Workbook

Sheet select_site
A1: Data Path | B1: \\dhex8\disk8\3SAQS\postproc\table\final | K1: Site | L1: Site Name | M1: Note
A2: Site | B2: MEVE1 | C2: File | D2: =B2&"_IMPROVE_3SAQS_psat_camx.tsv" -> MEVE1_IMPROVE_3SAQS_psat_camx.tsv | K2: AGTI1 | L2: =VLOOKUP(K2,SITE_STATE!$B$2:$C$249,2,FALSE) -> Agua Tibia
A3: State | B3: =VLOOKUP(B2,SITE_STATE!B2:E249,4,FALSE) -> CO | K3: ARCH1 | L3: =VLOOKUP(K3,SITE_STATE!$B$2:$C$249,2,FALSE) -> Arches NP | M3: No Measurement
K4: BADL1 | L4: =VLOOKUP(K4,SITE_STATE!$B$2:$C$249,2,FALSE) -> Badlands NP
K5: BALD1 | L5: =VLOOKUP(K5,SITE_STATE!$B$2:$C$249,2,FALSE) -> Mount Baldy
K6: BAND1 | L6: =VLOOKUP(K6,SITE_STATE!$B$2:$C$249,2,FALSE) -> Bandelier NM
K7: BIBE1 | L7: =VLOOKUP(K7,SITE_STATE!$B$2:$C$249,2,FALSE) -> Big Bend NP
B8: Direction | K8: BLIS1 | L8: =VLOOKUP(K8,SITE_STATE!$B$2:$C$249,2,FALSE) -> Bliss SP (TRPA)
B9: Choose Class I area from a drop-down menu (Cell B2). | K9: BLMO1 | L9: =VLOOKUP(K9,SITE_STATE!$B$2:$C$249,2,FALSE) -> Blue Mounds
B10: Once selected, the spreadsheet will automatically load PSAT modeling results and update plots | K10: BOAP1 | L10: =VLOOKUP(K10,SITE_STATE!$B$2:$C$249,2,FALSE) -> Bosque del Apache
B11: If the spreadsheet does not load automatically, Click "IMPORT SITE DATA' (green) button to proceed. | K11: BRCA1 | L11: =VLOOKUP(K11,SITE_STATE!$B$2:$C$249,2,FALSE) -> Bryce Canyon NP
K12: BRID1 | L12: =VLOOKUP(K12,SITE_STATE!$B$2:$C$249,2,FALSE) -> Bridger Wilderness
K13: BRLA1 | L13: =VLOOKUP(K13,SITE_STATE!$B$2:$C$249,2,FALSE) -> Brooklyn Lake | M13: No Measurement
K14: CABI1 | L14: =VLOOKUP(K14,SITE_STATE!$B$2:$C$249,2,FALSE) -> Cabinet Mountains
K15: CACR1 | L15: =VLOOKUP(K15,SITE_STATE!$B$2:$C$249,2,FALSE) -> Caney Creek
K16: CANY1 | L16: =VLOOKUP(K16,SITE_STATE!$B$2:$C$249,2,FALSE) -> Canyonlands NP
K17: CAPI1 | L17: =VLOOKUP(K17,SITE_STATE!$B$2:$C$249,2,FALSE) -> Capitol Reef NP
K18: CARE1 | L18: =VLOOKUP(K18,SITE_STATE!$B$2:$C$249,2,FALSE) ->  | M18: No Measurement
K19: CEBL1 | L19: =VLOOKUP(K19,SITE_STATE!$B$2:$C$249,2,FALSE) -> Cedar Bluff
K20: CHER1 | L20: =VLOOKUP(K20,SITE_STATE!$B$2:$C$249,2,FALSE) -> Cherokee Nation | M20: No Measurement
K21: CHIR1 | L21: =VLOOKUP(K21,SITE_STATE!$B$2:$C$249,2,FALSE) -> Chiricahua NM
K22: CLPE1 | L22: =VLOOKUP(K22,SITE_STATE!$B$2:$C$249,2,FALSE) -> Cloud Peak
K23: COGO1 | L23: =VLOOKUP(K23,SITE_STATE!$B$2:$C$249,2,FALSE) -> Columbia Gorge #1
K24: CORI1 | L24: =VLOOKUP(K24,SITE_STATE!$B$2:$C$249,2,FALSE) -> Columbia River Gorge
K25: CRES1 | L25: =VLOOKUP(K25,SITE_STATE!$B$2:$C$249,2,FALSE) -> Crescent Lake
K26: CRLA1 | L26: =VLOOKUP(K26,SITE_STATE!$B$2:$C$249,2,FALSE) -> Crater Lake NP
K27: CRMO1 | L27: =VLOOKUP(K27,SITE_STATE!$B$2:$C$249,2,FALSE) -> Craters of the Moon NM
K28: DEVA1 | L28: =VLOOKUP(K28,SITE_STATE!$B$2:$C$249,2,FALSE) -> Death Valley NP
K29: DOLA1 | L29: =VLOOKUP(K29,SITE_STATE!$B$2:$C$249,2,FALSE) -> Dome Lands Wilderness | M29: No Measurement
K30: DOME1 | L30: =VLOOKUP(K30,SITE_STATE!$B$2:$C$249,2,FALSE) -> Dome Lands Wilderness
K31: DOUG1 | L31: =VLOOKUP(K31,SITE_STATE!$B$2:$C$249,2,FALSE) -> Douglas
... 38 more rows

Sheet FileKey
A1: Site Specific Extinction calculation spreadsheets
A2: Last modified: 9/9/2016
A3: V3(20160909) | B3: Add Macro for site selection
A4: V2 (20160831) | B4: Tab W20Plots: Add additional plots of 20%Worst vs 20% most impaired day
A5: v1 (20160825) | B5: Add W20_IMPdays and W20Plots tab to compare most impaired days
B6: Add NO3 and SO4 contribution by background source group
A7: v0 (20160824) | B7: Template from CenSARA Updates (20151130)
A10: FILE KEY
A12: Mass/Exintciton
B13: WAQS mass | C13: IMPROVE mass | D13: IMPROVE extinction
A14: Ammonium Sulfate | B14: 1.375*[SO4] | C14: AmmSO4 | D14: EAmmSO4
A15: Ammonium Nitrate | B15: 1.29*[NO3] | C15: AmmNO3 | D15: EAmmNO3
A16: Organic Mass | B16: [POA] + [SOAA] + [SOAB] | C16: OMC | D16: EOMC
A17: Elemental Carbon | B17: [EC] | C17: LAC | D17: ELAC
A18: Soil | B18: [OPM25] | C18: Soil | D18: ESoil
A19: Coarse Mass | B19: [PMC] | C19: CM | D19: ECM
A20: Sea Salt | B20: [SSA] | C20: SeaSalt | D20: ESeaSalt
A21: *NO2 is not considered
A23: Sources
A24: Source | B24: Source_ID | C24: SRC CAT
A25: Natural | B25: 1NAT | C25: 1
A26: Wild Fire | B26: 2WF | C26: 2
A27: Prescribed Fire | B27: 3RXF | C27: 3
A28: Agricultural Fire | B28: 4AGF | C28: 4
A29: Anthropogenic | B29: 5ANT | C29: 5
A30: BC | B30: BC | C30: BC
A31: IC | B31: IC | C31: IC
... 34 more rows

Sheet Mass
A1: State | B1: SITE | C1: JDAY | D1: Date | E1: Month | F1: ss_rayleigh | G1: fsrh | H1: flrh | I1: fssrh | J1: IMP_Group | K1: IMP_AmmSO4 | L1: IMP_AmmNO3 | M1: IMP_LAC | N1: IMP_OMC | O1: IMP_Soil | P1: IMP_CM | Q1: IMP_SeaSalt | R1: WJ_SO4 | S1: WJ_NO3 | T1: WJ_NH4 | U1: WJ_EC | V1: WJ_POA | W1: WJ_OPM25 | X1: WJ_PMC | Y1: WJ_RGN | Z1: WJ_NO2 | AA1: WJ_SSA | AB1: WJ_SOAA | AC1: WJ_SOAB | AD1: __SO4 | AE1: 1NAT_01EA_SO4 | AF1: 1NAT_02AZ_SO4 | AG1: 1NAT_03CA_SO4 | AH1: 1NAT_04CO_SO4 | AI1: 1NAT_05KS_SO4 | AJ1: 1NAT_06ID_SO4 | AK1: 1NAT_07MT_SO4 | AL1: 1NAT_08OK_SO4 | AM1: 1NAT_09OR_SO4 | AN1: 1NAT_10WA_SO4 | AO1: 1NAT_11WY_SO4 | AP1: 1NAT_12ND_SO4 | AQ1: 1NAT_13SD_SO4 | AR1: 1NAT_14NE_SO4 | AS1: 1NAT_15NV_SO4 | AT1: 1NAT_16UT_SO4 | AU1: 1NAT_17TX_SO4 | AV1: 1NAT_18NM_SO4 | AW1: 1NAT_19CN_SO4 | AX1: 1NAT_20MX_SO4 | AY1: 1NAT_21ON_SO4 | AZ1: 2WF_01EA_SO4 | BA1: 2WF_02AZ_SO4 | BB1: 2WF_03CA_SO4 | BC1: 2WF_04CO_SO4 | BD1: 2WF_05KS_SO4 | BE1: 2WF_06ID_SO4 | BF1: 2WF_07MT_SO4 | BG1: 2WF_08OK_SO4 | BH1: 2WF_09OR_SO4 | BI1: 2WF_10WA_SO4 | BJ1: 2WF_11WY_SO4 | BK1: 2WF_12ND_SO4 | BL1: 2WF_13SD_SO4 | BM1: 2WF_14NE_SO4 | BN1: 2WF_15NV_SO4 | BO1: 2WF_16UT_SO4 | BP1: 2WF_17TX_SO4 | BQ1: 2WF_18NM_SO4 | BR1: 2WF_19CN_SO4 | BS1: 2WF_20MX_SO4 | BT1: 2WF_21ON_SO4 | BU1: 3RXF_01EA_SO4 | BV1: 3RXF_02AZ_SO4 | BW1: 3RXF_03CA_SO4 | BX1: 3RXF_04CO_SO4 | BY1: 3RXF_05KS_SO4 | BZ1: 3RXF_06ID_SO4 | CA1: 3RXF_07MT_SO4 | CB1: 3RXF_08OK_SO4 | CC1: 3RXF_09OR_SO4 | CD1: 3RXF_10WA_SO4 | CE1: 3RXF_11WY_SO4 | CF1: 3RXF_12ND_SO4 | CG1: 3RXF_13SD_SO4 | CH1: 3RXF_14NE_SO4 | CI1: 3RXF_15NV_SO4 | CJ1: 3RXF_16UT_SO4 | CK1: 3RXF_17TX_SO4 | CL1: 3RXF_18NM_SO4 | CM1: 3RXF_19CN_SO4 | CN1: 3RXF_20MX_SO4 | CO1: 3RXF_21ON_SO4 | CP1: 4AGF_01EA_SO4 | CQ1: 4AGF_02AZ_SO4 | CR1: 4AGF_03CA_SO4 | CS1: 4AGF_04CO_SO4 | CT1: 4AGF_05KS_SO4 | CU1: 4AGF_06ID_SO4 | CV1: 4AGF_07MT_SO4 | CW1: 4AGF_08OK_SO4 | CX1: 4AGF_09OR_SO4 | CY1: 4AGF_10WA_SO4 | CZ1: 4AGF_11WY_SO4 | DA1: 4AGF_12ND_SO4 | DB1: 4AGF_13SD_SO4 | DC1: 4AGF_14NE_SO4 | DD1: 4AGF_15NV_SO4 | DE1: 4AGF_16UT_SO4 | DF1: 4AGF_17TX_SO4 | DG1: 4AGF_18NM_SO4 | DH1: 4AGF_19CN_SO4 | DI1: 4AGF_20MX_SO4 | DJ1: 4AGF_21ON_SO4 | DK1: 5ANT_01EA_SO4 | DL1: 5ANT_02AZ_SO4 | DM1: 5ANT_03CA_SO4 | DN1: 5ANT_04CO_SO4 | DO1: 5ANT_05KS_SO4 | DP1: 5ANT_06ID_SO4 | DQ1: 5ANT_07MT_SO4 | DR1: 5ANT_08OK_SO4 | DS1: 5ANT_09OR_SO4 | DT1: 5ANT_10WA_SO4 | DU1: 5ANT_11WY_SO4 | DV1: 5ANT_12ND_SO4 | DW1: 5ANT_13SD_SO4 | DX1: 5ANT_14NE_SO4 | DY1: 5ANT_15NV_SO4 | DZ1: 5ANT_16UT_SO4 | EA1: 5ANT_17TX_SO4 | EB1: 5ANT_18NM_SO4 | EC1: 5ANT_19CN_SO4 | ED1: 5ANT_20MX_SO4 | EE1: 5ANT_21ON_SO4 | EF1: BC_SO4 | EG1: IC_SO4 | EH1: __NO3 | EI1: 1NAT_01EA_NO3 | EJ1: 1NAT_02AZ_NO3 | EK1: 1NAT_03CA_NO3 | EL1: 1NAT_04CO_NO3 | EM1: 1NAT_05KS_NO3 | EN1: 1NAT_06ID_NO3 | EO1: 1NAT_07MT_NO3 | EP1: 1NAT_08OK_NO3 | EQ1: 1NAT_09OR_NO3 | ER1: 1NAT_10WA_NO3 | ES1: 1NAT_11WY_NO3 | ET1: 1NAT_12ND_NO3 | EU1: 1NAT_13SD_NO3 | EV1: 1NAT_14NE_NO3 | EW1: 1NAT_15NV_NO3 | EX1: 1NAT_16UT_NO3 | EY1: 1NAT_17TX_NO3 | EZ1: 1NAT_18NM_NO3 | FA1: 1NAT_19CN_NO3 | FB1: 1NAT_20MX_NO3 | FC1: 1NAT_21ON_NO3 | FD1: 2WF_01EA_NO3 | FE1: 2WF_02AZ_NO3 | FF1: 2WF_03CA_NO3 | FG1: 2WF_04CO_NO3 | FH1: 2WF_05KS_NO3 | FI1: 2WF_06ID_NO3 | FJ1: 2WF_07MT_NO3 | FK1: 2WF_08OK_NO3 | FL1: 2WF_09OR_NO3 | FM1: 2WF_10WA_NO3 | FN1: 2WF_11WY_NO3 | FO1: 2WF_12ND_NO3 | FP1: 2WF_13SD_NO3 | FQ1: 2WF_14NE_NO3 | FR1: 2WF_15NV_NO3 | FS1: 2WF_16UT_NO3 | FT1: 2WF_17TX_NO3 | FU1: 2WF_18NM_NO3 | FV1: 2WF_19CN_NO3 | FW1: 2WF_20MX_NO3 | FX1: 2WF_21ON_NO3 | FY1: 3RXF_01EA_NO3 | FZ1: 3RXF_02AZ_NO3 | GA1: 3RXF_03CA_NO3 | GB1: 3RXF_04CO_NO3 | GC1: 3RXF_05KS_NO3 | GD1: 3RXF_06ID_NO3 | GE1: 3RXF_07MT_NO3 | GF1: 3RXF_08OK_NO3 | GG1: 3RXF_09OR_NO3 | GH1: 3RXF_10WA_NO3 | GI1: 3RXF_11WY_NO3 | GJ1: 3RXF_12ND_NO3 | GK1: 3RXF_13SD_NO3 | GL1: 3RXF_14NE_NO3 | GM1: 3RXF_15NV_NO3 | GN1: 3RXF_16UT_NO3 | GO1: 3RXF_17TX_NO3 | GP1: 3RXF_18NM_NO3 | GQ1: 3RXF_19CN_NO3 | GR1: 3RXF_20MX_NO3 | GS1: 3RXF_21ON_NO3 | GT1: 4AGF_01EA_NO3 | GU1: 4AGF_02AZ_NO3 | GV1: 4AGF_03CA_NO3 | GW1: 4AGF_04CO_NO3 | GX1: 4AGF_05KS_NO3 | GY1: 4AGF_06ID_NO3 | GZ1: 4AGF_07MT_NO3 | HA1: 4AGF_08OK_NO3 | HB1: 4AGF_09OR_NO3 | HC1: 4AGF_10WA_NO3 | HD1: 4AGF_11WY_NO3 | HE1: 4AGF_12ND_NO3 | HF1: 4AGF_13SD_NO3 | HG1: 4AGF_14NE_NO3 | HH1: 4AGF_15NV_NO3 | HI1: 4AGF_16UT_NO3 | HJ1: 4AGF_17TX_NO3 | HK1: 4AGF_18NM_NO3 | HL1: 4AGF_19CN_NO3 | HM1: 4AGF_20MX_NO3 | HN1: 4AGF_21ON_NO3 | HO1: 5ANT_01EA_NO3 | HP1: 5ANT_02AZ_NO3 | HQ1: 5ANT_03CA_NO3 | HR1: 5ANT_04CO_NO3 | HS1: 5ANT_05KS_NO3 | HT1: 5ANT_06ID_NO3 | HU1: 5ANT_07MT_NO3 | HV1: 5ANT_08OK_NO3 | HW1: 5ANT_09OR_NO3 | HX1: 5ANT_10WA_NO3 | HY1: 5ANT_11WY_NO3 | HZ1: 5ANT_12ND_NO3 | IA1: 5ANT_13SD_NO3 | IB1: 5ANT_14NE_NO3 | IC1: 5ANT_15NV_NO3 | ID1: 5ANT_16UT_NO3 | IE1: 5ANT_17TX_NO3 | IF1: 5ANT_18NM_NO3 | IG1: 5ANT_19CN_NO3 | IH1: 5ANT_20MX_NO3 | II1: 5ANT_21ON_NO3 | IJ1: BC_NO3 | IK1: IC_NO3 | IL1: __POA | IM1: 1NAT_01EA_POA | IN1: 1NAT_02AZ_POA | IO1: 1NAT_03CA_POA | IP1: 1NAT_04CO_POA | IQ1: 1NAT_05KS_POA | IR1: 1NAT_06ID_POA | IS1: 1NAT_07MT_POA | IT1: 1NAT_08OK_POA | IU1: 1NAT_09OR_POA | IV1: 1NAT_10WA_POA | IW1: 1NAT_11WY_POA | IX1: 1NAT_12ND_POA | IY1: 1NAT_13SD_POA | IZ1: 1NAT_14NE_POA | JA1: 1NAT_15NV_POA | JB1: 1NAT_16UT_POA | JC1: 1NAT_17TX_POA | JD1: 1NAT_18NM_POA | JE1: 1NAT_19CN_POA | JF1: 1NAT_20MX_POA | JG1: 1NAT_21ON_POA | JH1: 2WF_01EA_POA | JI1: 2WF_02AZ_POA | JJ1: 2WF_03CA_POA | JK1: 2WF_04CO_POA | JL1: 2WF_05KS_POA | JM1: 2WF_06ID_POA | JN1: 2WF_07MT_POA | JO1: 2WF_08OK_POA | JP1: 2WF_09OR_POA | JQ1: 2WF_10WA_POA | JR1: 2WF_11WY_POA | JS1: 2WF_12ND_POA | JT1: 2WF_13SD_POA | JU1: 2WF_14NE_POA | JV1: 2WF_15NV_POA | JW1: 2WF_16UT_POA | JX1: 2WF_17TX_POA | JY1: 2WF_18NM_POA | JZ1: 2WF_19CN_POA | KA1: 2WF_20MX_POA | KB1: 2WF_21ON_POA | KC1: 3RXF_01EA_POA | KD1: 3RXF_02AZ_POA | KE1: 3RXF_03CA_POA | KF1: 3RXF_04CO_POA | KG1: 3RXF_05KS_POA | KH1: 3RXF_06ID_POA | KI1: 3RXF_07MT_POA | KJ1: 3RXF_08OK_POA | KK1: 3RXF_09OR_POA | KL1: 3RXF_10WA_POA | KM1: 3RXF_11WY_POA | KN1: 3RXF_12ND_POA | KO1: 3RXF_13SD_POA | KP1: 3RXF_14NE_POA | KQ1: 3RXF_15NV_POA | KR1: 3RXF_16UT_POA | KS1: 3RXF_17TX_POA | KT1: 3RXF_18NM_POA | KU1: 3RXF_19CN_POA | KV1: 3RXF_20MX_POA | KW1: 3RXF_21ON_POA | KX1: 4AGF_01EA_POA | KY1: 4AGF_02AZ_POA | KZ1: 4AGF_03CA_POA | LA1: 4AGF_04CO_POA | LB1: 4AGF_05KS_POA | LC1: 4AGF_06ID_POA | LD1: 4AGF_07MT_POA | LE1: 4AGF_08OK_POA | LF1: 4AGF_09OR_POA | LG1: 4AGF_10WA_POA | LH1: 4AGF_11WY_POA | LI1: 4AGF_12ND_POA | LJ1: 4AGF_13SD_POA | LK1: 4AGF_14NE_POA | LL1: 4AGF_15NV_POA | LM1: 4AGF_16UT_POA | LN1: 4AGF_17TX_POA | LO1: 4AGF_18NM_POA | LP1: 4AGF_19CN_POA | LQ1: 4AGF_20MX_POA | LR1: 4AGF_21ON_POA | LS1: 5ANT_01EA_POA | LT1: 5ANT_02AZ_POA | LU1: 5ANT_03CA_POA | LV1: 5ANT_04CO_POA | LW1: 5ANT_05KS_POA | LX1: 5ANT_06ID_POA | LY1: 5ANT_07MT_POA | LZ1: 5ANT_08OK_POA | MA1: 5ANT_09OR_POA | MB1: 5ANT_10WA_POA | MC1: 5ANT_11WY_POA | MD1: 5ANT_12ND_POA | ME1: 5ANT_13SD_POA | MF1: 5ANT_14NE_POA | MG1: 5ANT_15NV_POA | MH1: 5ANT_16UT_POA | MI1: 5ANT_17TX_POA | MJ1: 5ANT_18NM_POA | MK1: 5ANT_19CN_POA | ML1: 5ANT_20MX_POA | MM1: 5ANT_21ON_POA | MN1: BC_POA | MO1: IC_POA | MP1: __EC | MQ1: 1NAT_01EA_EC | MR1: 1NAT_02AZ_EC | MS1: 1NAT_03CA_EC | MT1: 1NAT_04CO_EC | MU1: 1NAT_05KS_EC | MV1: 1NAT_06ID_EC | MW1: 1NAT_07MT_EC | MX1: 1NAT_08OK_EC | MY1: 1NAT_09OR_EC | MZ1: 1NAT_10WA_EC | NA1: 1NAT_11WY_EC | NB1: 1NAT_12ND_EC | NC1: 1NAT_13SD_EC | ND1: 1NAT_14NE_EC | NE1: 1NAT_15NV_EC | NF1: 1NAT_16UT_EC | NG1: 1NAT_17TX_EC | NH1: 1NAT_18NM_EC | NI1: 1NAT_19CN_EC | NJ1: 1NAT_20MX_EC | NK1: 1NAT_21ON_EC | NL1: 2WF_01EA_EC | NM1: 2WF_02AZ_EC | NN1: 2WF_03CA_EC | NO1: 2WF_04CO_EC | NP1: 2WF_05KS_EC | NQ1: 2WF_06ID_EC | NR1: 2WF_07MT_EC | NS1: 2WF_08OK_EC | NT1: 2WF_09OR_EC | NU1: 2WF_10WA_EC | NV1: 2WF_11WY_EC | NW1: 2WF_12ND_EC | NX1: 2WF_13SD_EC | NY1: 2WF_14NE_EC | NZ1: 2WF_15NV_EC | OA1: 2WF_16UT_EC | OB1: 2WF_17TX_EC | OC1: 2WF_18NM_EC | OD1: 2WF_19CN_EC | OE1: 2WF_20MX_EC | OF1: 2WF_21ON_EC | OG1: 3RXF_01EA_EC | OH1: 3RXF_02AZ_EC | OI1: 3RXF_03CA_EC | OJ1: 3RXF_04CO_EC | OK1: 3RXF_05KS_EC | OL1: 3RXF_06ID_EC | OM1: 3RXF_07MT_EC | ON1: 3RXF_08OK_EC | OO1: 3RXF_09OR_EC | OP1: 3RXF_10WA_EC | OQ1: 3RXF_11WY_EC | OR1: 3RXF_12ND_EC | OS1: 3RXF_13SD_EC | OT1: 3RXF_14NE_EC | OU1: 3RXF_15NV_EC | OV1: 3RXF_16UT_EC | OW1: 3RXF_17TX_EC | OX1: 3RXF_18NM_EC | OY1: 3RXF_19CN_EC | OZ1: 3RXF_20MX_EC | PA1: 3RXF_21ON_EC | PB1: 4AGF_01EA_EC | PC1: 4AGF_02AZ_EC | PD1: 4AGF_03CA_EC | PE1: 4AGF_04CO_EC | PF1: 4AGF_05KS_EC | PG1: 4AGF_06ID_EC | PH1: 4AGF_07MT_EC | PI1: 4AGF_08OK_EC | PJ1: 4AGF_09OR_EC | PK1: 4AGF_10WA_EC | PL1: 4AGF_11WY_EC | PM1: 4AGF_12ND_EC | PN1: 4AGF_13SD_EC | PO1: 4AGF_14NE_EC | PP1: 4AGF_15NV_EC | PQ1: 4AGF_16UT_EC | PR1: 4AGF_17TX_EC | PS1: 4AGF_18NM_EC | PT1: 4AGF_19CN_EC | PU1: 4AGF_20MX_EC | PV1: 4AGF_21ON_EC | PW1: 5ANT_01EA_EC | PX1: 5ANT_02AZ_EC | PY1: 5ANT_03CA_EC | PZ1: 5ANT_04CO_EC | QA1: 5ANT_05KS_EC | QB1: 5ANT_06ID_EC | QC1: 5ANT_07MT_EC | QD1: 5ANT_08OK_EC | QE1: 5ANT_09OR_EC | QF1: 5ANT_10WA_EC | QG1: 5ANT_11WY_EC | QH1: 5ANT_12ND_EC | QI1: 5ANT_13SD_EC | QJ1: 5ANT_14NE_EC | QK1: 5ANT_15NV_EC | QL1: 5ANT_16UT_EC | QM1: 5ANT_17TX_EC | QN1: 5ANT_18NM_EC | QO1: 5ANT_19CN_EC | QP1: 5ANT_20MX_EC | QQ1: 5ANT_21ON_EC | QR1: BC_EC | QS1: IC_EC | QT1: __OPM25 | QU1: 1NAT_01EA_OPM25 | QV1: 1NAT_02AZ_OPM25 | QW1: 1NAT_03CA_OPM25 | QX1: 1NAT_04CO_OPM25 | QY1: 1NAT_05KS_OPM25 | QZ1: 1NAT_06ID_OPM25 | RA1: 1NAT_07MT_OPM25 | RB1: 1NAT_08OK_OPM25 | RC1: 1NAT_09OR_OPM25 | RD1: 1NAT_10WA_OPM25 | RE1: 1NAT_11WY_OPM25 | RF1: 1NAT_12ND_OPM25 | RG1: 1NAT_13SD_OPM25 | RH1: 1NAT_14NE_OPM25 | RI1: 1NAT_15NV_OPM25 | RJ1: 1NAT_16UT_OPM25 | RK1: 1NAT_17TX_OPM25 | RL1: 1NAT_18NM_OPM25 | RM1: 1NAT_19CN_OPM25 | RN1: 1NAT_20MX_OPM25 | RO1: 1NAT_21ON_OPM25 | RP1: 2WF_01EA_OPM25 | RQ1: 2WF_02AZ_OPM25 | RR1: 2WF_03CA_OPM25 | RS1: 2WF_04CO_OPM25 | RT1: 2WF_05KS_OPM25 | RU1: 2WF_06ID_OPM25 | RV1: 2WF_07MT_OPM25 | RW1: 2WF_08OK_OPM25 | RX1: 2WF_09OR_OPM25 | RY1: 2WF_10WA_OPM25 | RZ1: 2WF_11WY_OPM25 | SA1: 2WF_12ND_OPM25 | SB1: 2WF_13SD_OPM25 | SC1: 2WF_14NE_OPM25 | SD1: 2WF_15NV_OPM25 | SE1: 2WF_16UT_OPM25 | SF1: 2WF_17TX_OPM25 | SG1: 2WF_18NM_OPM25 | SH1: 2WF_19CN_OPM25 | SI1: 2WF_20MX_OPM25 | SJ1: 2WF_21ON_OPM25 | SK1: 3RXF_01EA_OPM25 | SL1: 3RXF_02AZ_OPM25 | SM1: 3RXF_03CA_OPM25 | SN1: 3RXF_04CO_OPM25 | SO1: 3RXF_05KS_OPM25 | SP1: 3RXF_06ID_OPM25 | SQ1: 3RXF_07MT_OPM25 | SR1: 3RXF_08OK_OPM25 | SS1: 3RXF_09OR_OPM25 | ST1: 3RXF_10WA_OPM25 | SU1: 3RXF_11WY_OPM25 | SV1: 3RXF_12ND_OPM25 | SW1: 3RXF_13SD_OPM25 | SX1: 3RXF_14NE_OPM25 | SY1: 3RXF_15NV_OPM25 | SZ1: 3RXF_16UT_OPM25 | TA1: 3RXF_17TX_OPM25 | TB1: 3RXF_18NM_OPM25 | TC1: 3RXF_19CN_OPM25 | TD1: 3RXF_20MX_OPM25 | TE1: 3RXF_21ON_OPM25 | TF1: 4AGF_01EA_OPM25 | TG1: 4AGF_02AZ_OPM25 | TH1: 4AGF_03CA_OPM25 | TI1: 4AGF_04CO_OPM25 | TJ1: 4AGF_05KS_OPM25 | TK1: 4AGF_06ID_OPM25 | TL1: 4AGF_07MT_OPM25 | TM1: 4AGF_08OK_OPM25 | TN1: 4AGF_09OR_OPM25 | TO1: 4AGF_10WA_OPM25 | TP1: 4AGF_11WY_OPM25 | TQ1: 4AGF_12ND_OPM25 | TR1: 4AGF_13SD_OPM25 | TS1: 4AGF_14NE_OPM25 | TT1: 4AGF_15NV_OPM25 | TU1: 4AGF_16UT_OPM25 | TV1: 4AGF_17TX_OPM25 | TW1: 4AGF_18NM_OPM25 | TX1: 4AGF_19CN_OPM25 | TY1: 4AGF_20MX_OPM25 | TZ1: 4AGF_21ON_OPM25 | UA1: 5ANT_01EA_OPM25 | UB1: 5ANT_02AZ_OPM25 | UC1: 5ANT_03CA_OPM25 | UD1: 5ANT_04CO_OPM25 | UE1: 5ANT_05KS_OPM25 | UF1: 5ANT_06ID_OPM25 | UG1: 5ANT_07MT_OPM25 | UH1: 5ANT_08OK_OPM25 | UI1: 5ANT_09OR_OPM25 | UJ1: 5ANT_10WA_OPM25 | UK1: 5ANT_11WY_OPM25 | UL1: 5ANT_12ND_OPM25 | UM1: 5ANT_13SD_OPM25 | UN1: 5ANT_14NE_OPM25 | UO1: 5ANT_15NV_OPM25 | UP1: 5ANT_16UT_OPM25 | UQ1: 5ANT_17TX_OPM25 | UR1: 5ANT_18NM_OPM25 | US1: 5ANT_19CN_OPM25 | UT1: 5ANT_20MX_OPM25 | UU1: 5ANT_21ON_OPM25 | UV1: BC_OPM25 | UW1: IC_OPM25 | UX1: __PMC | UY1: 1NAT_01EA_PMC | UZ1: 1NAT_02AZ_PMC | VA1: 1NAT_03CA_PMC | VB1: 1NAT_04CO_PMC | VC1: 1NAT_05KS_PMC | VD1: 1NAT_06ID_PMC | VE1: 1NAT_07MT_PMC | VF1: 1NAT_08OK_PMC | VG1: 1NAT_09OR_PMC | VH1: 1NAT_10WA_PMC | VI1: 1NAT_11WY_PMC | VJ1: 1NAT_12ND_PMC | VK1: 1NAT_13SD_PMC | VL1: 1NAT_14NE_PMC | VM1: 1NAT_15NV_PMC | VN1: 1NAT_16UT_PMC | VO1: 1NAT_17TX_PMC | VP1: 1NAT_18NM_PMC | VQ1: 1NAT_19CN_PMC | VR1: 1NAT_20MX_PMC | VS1: 1NAT_21ON_PMC | VT1: 2WF_01EA_PMC | VU1: 2WF_02AZ_PMC | VV1: 2WF_03CA_PMC | VW1: 2WF_04CO_PMC | VX1: 2WF_05KS_PMC | VY1: 2WF_06ID_PMC | VZ1: 2WF_07MT_PMC | WA1: 2WF_08OK_PMC | WB1: 2WF_09OR_PMC | WC1: 2WF_10WA_PMC | WD1: 2WF_11WY_PMC | WE1: 2WF_12ND_PMC | WF1: 2WF_13SD_PMC | WG1: 2WF_14NE_PMC | WH1: 2WF_15NV_PMC | WI1: 2WF_16UT_PMC | WJ1: 2WF_17TX_PMC | WK1: 2WF_18NM_PMC | WL1: 2WF_19CN_PMC | WM1: 2WF_20MX_PMC | WN1: 2WF_21ON_PMC | WO1: 3RXF_01EA_PMC | WP1: 3RXF_02AZ_PMC | WQ1: 3RXF_03CA_PMC | WR1: 3RXF_04CO_PMC | WS1: 3RXF_05KS_PMC | WT1: 3RXF_06ID_PMC | WU1: 3RXF_07MT_PMC | WV1: 3RXF_08OK_PMC | WW1: 3RXF_09OR_PMC | WX1: 3RXF_10WA_PMC | WY1: 3RXF_11WY_PMC | WZ1: 3RXF_12ND_PMC | XA1: 3RXF_13SD_PMC | XB1: 3RXF_14NE_PMC | XC1: 3RXF_15NV_PMC | XD1: 3RXF_16UT_PMC | XE1: 3RXF_17TX_PMC | XF1: 3RXF_18NM_PMC | XG1: 3RXF_19CN_PMC | XH1: 3RXF_20MX_PMC | XI1: 3RXF_21ON_PMC | XJ1: 4AGF_01EA_PMC | XK1: 4AGF_02AZ_PMC | XL1: 4AGF_03CA_PMC | XM1: 4AGF_04CO_PMC | XN1: 4AGF_05KS_PMC | XO1: 4AGF_06ID_PMC | XP1: 4AGF_07MT_PMC | XQ1: 4AGF_08OK_PMC | XR1: 4AGF_09OR_PMC | XS1: 4AGF_10WA_PMC | XT1: 4AGF_11WY_PMC | XU1: 4AGF_12ND_PMC | XV1: 4AGF_13SD_PMC | XW1: 4AGF_14NE_PMC | XX1: 4AGF_15NV_PMC | XY1: 4AGF_16UT_PMC | XZ1: 4AGF_17TX_PMC | YA1: 4AGF_18NM_PMC | YB1: 4AGF_19CN_PMC | YC1: 4AGF_20MX_PMC | YD1: 4AGF_21ON_PMC | YE1: 5ANT_01EA_PMC | YF1: 5ANT_02AZ_PMC | YG1: 5ANT_03CA_PMC | YH1: 5ANT_04CO_PMC | YI1: 5ANT_05KS_PMC | YJ1: 5ANT_06ID_PMC | YK1: 5ANT_07MT_PMC | YL1: 5ANT_08OK_PMC | YM1: 5ANT_09OR_PMC | YN1: 5ANT_10WA_PMC | YO1: 5ANT_11WY_PMC | YP1: 5ANT_12ND_PMC | YQ1: 5ANT_13SD_PMC | YR1: 5ANT_14NE_PMC | YS1: 5ANT_15NV_PMC | YT1: 5ANT_16UT_PMC | YU1: 5ANT_17TX_PMC | YV1: 5ANT_18NM_PMC | YW1: 5ANT_19CN_PMC | YX1: 5ANT_20MX_PMC | YY1: 5ANT_21ON_PMC | YZ1: BC_PMC | ZA1: IC_PMC
A2: =VLOOKUP(B2,ClassIareas_Mass2011!A:B,2,FALSE) -> CO | B2: =CMAQ_raw!A2 -> MEVE1 | C2: 2011001 | D2: 2011-01-01 | E2: 1 | F2: =VLOOKUP(B2&"_"&E2,ClassIareas_Mass2011!F:L,4,FALSE) -> 9 | G2: =VLOOKUP(B2&"_"&E2,ClassIareas_Mass2011!F:L,5,FALSE) -> 3.32 | H2: =VLOOKUP(B2&"_"&E2,ClassIareas_Mass2011!F:L,6,FALSE) -> 2.45 | I2: =VLOOKUP(B2&"_"&E2,ClassIareas_Mass2011!F:L,7,FALSE) -> 3.4 | J2: =IFERROR(VLOOKUP(B2&"_"&C2,ClassIareas_Mass2011!H:T,6,FALSE),"") ->  | K2: =IFERROR(VLOOKUP(B2&"_"&C2,ClassIareas_Mass2011!H:T,7,FALSE),"") ->  | L2: =IFERROR(VLOOKUP(B2&"_"&C2,ClassIareas_Mass2011!H:T,8,FALSE),"") ->  | M2: =IFERROR(VLOOKUP(B2&"_"&C2,ClassIareas_Mass2011!H:T,9,FALSE),"") ->  | N2: =IFERROR(VLOOKUP(B2&"_"&C2,ClassIareas_Mass2011!H:T,10,FALSE),"") ->  | O2: =IFERROR(VLOOKUP(B2&"_"&C2,ClassIareas_Mass2011!H:T,11,FALSE),"") ->  | P2: =IFERROR(VLOOKUP(B2&"_"&C2,ClassIareas_Mass2011!H:T,12,FALSE),"") ->  | Q2: =IFERROR(VLOOKUP(B2&"_"&C2,ClassIareas_Mass2011!H:T,13,FALSE),"") ->  | R2: =GETPIVOTDATA("Sum of PS4",CMAQ_raw!$P$10,"JDAY",$C2,"SRC_CAT","TOTAL","SRC_REGION","TOTAL") -> 0.56767 | S2: =GETPIVOTDATA("Sum of PN3",CMAQ_raw!$P$10,"JDAY",$C2,"SRC_CAT","TOTAL","SRC_REGION","TOTAL") -> 0.35774 | T2: =GETPIVOTDATA("Sum of PN4",CMAQ_raw!$P$10,"JDAY",$C2,"SRC_CAT","TOTAL","SRC_REGION","TOTAL") -> 0.2201 | U2: =GETPIVOTDATA("Sum of PEC",CMAQ_raw!$P$10,"JDAY",$C2,"SRC_CAT","TOTAL","SRC_REGION","TOTAL") -> 0.093917 | V2: =GETPIVOTDATA("Sum of POA",CMAQ_raw!$P$10,"JDAY",$C2,"SRC_CAT","TOTAL","SRC_REGION","TOTAL") -> 0.67679 | W2: =GETPIVOTDATA("Sum of OPF",CMAQ_raw!$P$10,"JDAY",$C2,"SRC_CAT","TOTAL","SRC_REGION","TOTAL") -> 1.1619 | X2: =GETPIVOTDATA("Sum of PMC",CMAQ_raw!$P$10,"JDAY",$C2,"SRC_CAT","TOTAL","SRC_REGION","TOTAL") -> 4.8567 | AA2: =GETPIVOTDATA("Sum of SSA",CMAQ_raw!$P$10,"JDAY",$C2,"SRC_CAT","TOTAL","SRC_REGION","TOTAL") -> 0.077354 | AB2: =GETPIVOTDATA("Sum of SOAA",CMAQ_raw!$P$10,"JDAY",$C2,"SRC_CAT","TOTAL","SRC_REGION","TOTAL") -> 0.018349 | AC2: =GETPIVOTDATA("Sum of SOAB",CMAQ_raw!$P$10,"JDAY",$C2,"SRC_CAT","TOTAL","SRC_REGION","TOTAL") -> 0.018461 | AE2: =GETPIVOTDATA("Sum of PS4",CMAQ_raw!$P$10,"JDAY",$C2,"SRC_CAT",CMAQ_raw!AD$3,"SRC_REGION",CMAQ_raw!AD$4) -> 3.6291e-09 | AF2: =GETPIVOTDATA("Sum of PS4",CMAQ_raw!$P$10,"JDAY",$C2,"SRC_CAT",CMAQ_raw!AE$3,"SRC_REGION",CMAQ_raw!AE$4) -> 3.6291e-09 | AG2: =GETPIVOTDATA("Sum of PS4",CMAQ_raw!$P$10,"JDAY",$C2,"SRC_CAT",CMAQ_raw!AF$3,"SRC_REGION",CMAQ_raw!AF$4) -> 2.3958e-06 | AH2: =GETPIVOTDATA("Sum of PS4",CMAQ_raw!$P$10,"JDAY",$C2,"SRC_CAT",CMAQ_raw!AG$3,"SRC_REGION",CMAQ_raw!AG$4) -> 3.6291e-09 | AI2: =GETPIVOTDATA("Sum of PS4",CMAQ_raw!$P$10,"JDAY",$C2,"SRC_CAT",CMAQ_raw!AH$3,"SRC_REGION",CMAQ_raw!AH$4) -> 3.6291e-09 | AJ2: =GETPIVOTDATA("Sum of PS4",CMAQ_raw!$P$10,"JDAY",$C2,"SRC_CAT",CMAQ_raw!AI$3,"SRC_REGION",CMAQ_raw!AI$4) -> 3.6291e-09 | AK2: =GETPIVOTDATA("Sum of PS4",CMAQ_raw!$P$10,"JDAY",$C2,"SRC_CAT",CMAQ_raw!AJ$3,"SRC_REGION",CMAQ_raw!AJ$4) -> 3.6291e-09 | AL2: =GETPIVOTDATA("Sum of PS4",CMAQ_raw!$P$10,"JDAY",$C2,"SRC_CAT",CMAQ_raw!AK$3,"SRC_REGION",CMAQ_raw!AK$4) -> 3.6291e-09 | AM2: =GETPIVOTDATA("Sum of PS4",CMAQ_raw!$P$10,"JDAY",$C2,"SRC_CAT",CMAQ_raw!AL$3,"SRC_REGION",CMAQ_raw!AL$4) -> 8.6562e-09 | AN2: =GETPIVOTDATA("Sum of PS4",CMAQ_raw!$P$10,"JDAY",$C2,"SRC_CAT",CMAQ_raw!AM$3,"SRC_REGION",CMAQ_raw!AM$4) -> 3.6291e-09 | AO2: =GETPIVOTDATA("Sum of PS4",CMAQ_raw!$P$10,"JDAY",$C2,"SRC_CAT",CMAQ_raw!AN$3,"SRC_REGION",CMAQ_raw!AN$4) -> 3.6291e-09 | AP2: =GETPIVOTDATA("Sum of PS4",CMAQ_raw!$P$10,"JDAY",$C2,"SRC_CAT",CMAQ_raw!AO$3,"SRC_REGION",CMAQ_raw!AO$4) -> 3.6291e-09 | AQ2: =GETPIVOTDATA("Sum of PS4",CMAQ_raw!$P$10,"JDAY",$C2,"SRC_CAT",CMAQ_raw!AP$3,"SRC_REGION",CMAQ_raw!AP$4) -> 3.6291e-09 | AR2: =GETPIVOTDATA("Sum of PS4",CMAQ_raw!$P$10,"JDAY",$C2,"SRC_CAT",CMAQ_raw!AQ$3,"SRC_REGION",CMAQ_raw!AQ$4) -> 3.6291e-09 | AS2: =GETPIVOTDATA("Sum of PS4",CMAQ_raw!$P$10,"JDAY",$C2,"SRC_CAT",CMAQ_raw!AR$3,"SRC_REGION",CMAQ_raw!AR$4) -> 3.6291e-09 | AT2: =GETPIVOTDATA("Sum of PS4",CMAQ_raw!$P$10,"JDAY",$C2,"SRC_CAT",CMAQ_raw!AS$3,"SRC_REGION",CMAQ_raw!AS$4) -> 0.0015418 | AU2: =GETPIVOTDATA("Sum of PS4",CMAQ_raw!$P$10,"JDAY",$C2,"SRC_CAT",CMAQ_raw!AT$3,"SRC_REGION",CMAQ_raw!AT$4) -> 3.6291e-09 | AV2: =GETPIVOTDATA("Sum of PS4",CMAQ_raw!$P$10,"JDAY",$C2,"SRC_CAT",CMAQ_raw!AU$3,"SRC_REGION",CMAQ_raw!AU$4) -> 3.6291e-09 | AW2: =GETPIVOTDATA("Sum of PS4",CMAQ_raw!$P$10,"JDAY",$C2,"SRC_CAT",CMAQ_raw!AV$3,"SRC_REGION",CMAQ_raw!AV$4) -> 3.6291e-09 | AX2: =GETPIVOTDATA("Sum of PS4",CMAQ_raw!$P$10,"JDAY",$C2,"SRC_CAT",CMAQ_raw!AW$3,"SRC_REGION",CMAQ_raw!AW$4) -> 3.6293e-09 | AY2: =GETPIVOTDATA("Sum of PS4",CMAQ_raw!$P$10,"JDAY",$C2,"SRC_CAT",CMAQ_raw!AX$3,"SRC_REGION",CMAQ_raw!AX$4) -> 1.0508e-05 | AZ2: =GETPIVOTDATA("Sum of PS4",CMAQ_raw!$P$10,"JDAY",$C2,"SRC_CAT",CMAQ_raw!AY$3,"SRC_REGION",CMAQ_raw!AY$4) -> 3.6291e-09 | BA2: =GETPIVOTDATA("Sum of PS4",CMAQ_raw!$P$10,"JDAY",$C2,"SRC_CAT",CMAQ_raw!AZ$3,"SRC_REGION",CMAQ_raw!AZ$4) -> 3.6291e-09 | BB2: =GETPIVOTDATA("Sum of PS4",CMAQ_raw!$P$10,"JDAY",$C2,"SRC_CAT",CMAQ_raw!BA$3,"SRC_REGION",CMAQ_raw!BA$4) -> 3.6291e-09 | BC2: =GETPIVOTDATA("Sum of PS4",CMAQ_raw!$P$10,"JDAY",$C2,"SRC_CAT",CMAQ_raw!BB$3,"SRC_REGION",CMAQ_raw!BB$4) -> 3.6291e-09 | BD2: =GETPIVOTDATA("Sum of PS4",CMAQ_raw!$P$10,"JDAY",$C2,"SRC_CAT",CMAQ_raw!BC$3,"SRC_REGION",CMAQ_raw!BC$4) -> 3.6291e-09 | BE2: =GETPIVOTDATA("Sum of PS4",CMAQ_raw!$P$10,"JDAY",$C2,"SRC_CAT",CMAQ_raw!BD$3,"SRC_REGION",CMAQ_raw!BD$4) -> 3.6291e-09 | BF2: =GETPIVOTDATA("Sum of PS4",CMAQ_raw!$P$10,"JDAY",$C2,"SRC_CAT",CMAQ_raw!BE$3,"SRC_REGION",CMAQ_raw!BE$4) -> 3.6291e-09 | BG2: =GETPIVOTDATA("Sum of PS4",CMAQ_raw!$P$10,"JDAY",$C2,"SRC_CAT",CMAQ_raw!BF$3,"SRC_REGION",CMAQ_raw!BF$4) -> 3.6291e-09 | BH2: =GETPIVOTDATA("Sum of PS4",CMAQ_raw!$P$10,"JDAY",$C2,"SRC_CAT",CMAQ_raw!BG$3,"SRC_REGION",CMAQ_raw!BG$4) -> 3.6291e-09 | BI2: =GETPIVOTDATA("Sum of PS4",CMAQ_raw!$P$10,"JDAY",$C2,"SRC_CAT",CMAQ_raw!BH$3,"SRC_REGION",CMAQ_raw!BH$4) -> 3.6291e-09 | BJ2: =GETPIVOTDATA("Sum of PS4",CMAQ_raw!$P$10,"JDAY",$C2,"SRC_CAT",CMAQ_raw!BI$3,"SRC_REGION",CMAQ_raw!BI$4) -> 3.6291e-09 | BK2: =GETPIVOTDATA("Sum of PS4",CMAQ_raw!$P$10,"JDAY",$C2,"SRC_CAT",CMAQ_raw!BJ$3,"SRC_REGION",CMAQ_raw!BJ$4) -> 3.6291e-09 | BL2: =GETPIVOTDATA("Sum of PS4",CMAQ_raw!$P$10,"JDAY",$C2,"SRC_CAT",CMAQ_raw!BK$3,"SRC_REGION",CMAQ_raw!BK$4) -> 3.6291e-09 | BM2: =GETPIVOTDATA("Sum of PS4",CMAQ_raw!$P$10,"JDAY",$C2,"SRC_CAT",CMAQ_raw!BL$3,"SRC_REGION",CMAQ_raw!BL$4) -> 3.6291e-09 | BN2: =GETPIVOTDATA("Sum of PS4",CMAQ_raw!$P$10,"JDAY",$C2,"SRC_CAT",CMAQ_raw!BM$3,"SRC_REGION",CMAQ_raw!BM$4) -> 3.6291e-09 | BO2: =GETPIVOTDATA("Sum of PS4",CMAQ_raw!$P$10,"JDAY",$C2,"SRC_CAT",CMAQ_raw!BN$3,"SRC_REGION",CMAQ_raw!BN$4) -> 3.6291e-09 | BP2: =GETPIVOTDATA("Sum of PS4",CMAQ_raw!$P$10,"JDAY",$C2,"SRC_CAT",CMAQ_raw!BO$3,"SRC_REGION",CMAQ_raw!BO$4) -> 3.6291e-09 | BQ2: =GETPIVOTDATA("Sum of PS4",CMAQ_raw!$P$10,"JDAY",$C2,"SRC_CAT",CMAQ_raw!BP$3,"SRC_REGION",CMAQ_raw!BP$4) -> 3.6291e-09 | BR2: =GETPIVOTDATA("Sum of PS4",CMAQ_raw!$P$10,"JDAY",$C2,"SRC_CAT",CMAQ_raw!BQ$3,"SRC_REGION",CMAQ_raw!BQ$4) -> 3.6294e-09 | BS2: =GETPIVOTDATA("Sum of PS4",CMAQ_raw!$P$10,"JDAY",$C2,"SRC_CAT",CMAQ_raw!BR$3,"SRC_REGION",CMAQ_raw!BR$4) -> 3.6291e-09 | BT2: =GETPIVOTDATA("Sum of PS4",CMAQ_raw!$P$10,"JDAY",$C2,"SRC_CAT",CMAQ_raw!BS$3,"SRC_REGION",CMAQ_raw!BS$4) -> 3.6291e-09 | BU2: =GETPIVOTDATA("Sum of PS4",CMAQ_raw!$P$10,"JDAY",$C2,"SRC_CAT",CMAQ_raw!BT$3,"SRC_REGION",CMAQ_raw!BT$4) -> 3.6291e-09 | BV2: =GETPIVOTDATA("Sum of PS4",CMAQ_raw!$P$10,"JDAY",$C2,"SRC_CAT",CMAQ_raw!BU$3,"SRC_REGION",CMAQ_raw!BU$4) -> 3.6291e-09 | BW2: =GETPIVOTDATA("Sum of PS4",CMAQ_raw!$P$10,"JDAY",$C2,"SRC_CAT",CMAQ_raw!BV$3,"SRC_REGION",CMAQ_raw!BV$4) -> 3.6291e-09 | BX2: =GETPIVOTDATA("Sum of PS4",CMAQ_raw!$P$10,"JDAY",$C2,"SRC_CAT",CMAQ_raw!BW$3,"SRC_REGION",CMAQ_raw!BW$4) -> 3.6291e-09 | BY2: =GETPIVOTDATA("Sum of PS4",CMAQ_raw!$P$10,"JDAY",$C2,"SRC_CAT",CMAQ_raw!BX$3,"SRC_REGION",CMAQ_raw!BX$4) -> 3.6291e-09 | BZ2: =GETPIVOTDATA("Sum of PS4",CMAQ_raw!$P$10,"JDAY",$C2,"SRC_CAT",CMAQ_raw!BY$3,"SRC_REGION",CMAQ_raw!BY$4) -> 3.6291e-09 | CA2: =GETPIVOTDATA("Sum of PS4",CMAQ_raw!$P$10,"JDAY",$C2,"SRC_CAT",CMAQ_raw!BZ$3,"SRC_REGION",CMAQ_raw!BZ$4) -> 3.6291e-09 | CB2: =GETPIVOTDATA("Sum of PS4",CMAQ_raw!$P$10,"JDAY",$C2,"SRC_CAT",CMAQ_raw!CA$3,"SRC_REGION",CMAQ_raw!CA$4) -> 3.6291e-09 | CC2: =GETPIVOTDATA("Sum of PS4",CMAQ_raw!$P$10,"JDAY",$C2,"SRC_CAT",CMAQ_raw!CB$3,"SRC_REGION",CMAQ_raw!CB$4) -> 3.6297e-09 | CD2: =GETPIVOTDATA("Sum of PS4",CMAQ_raw!$P$10,"JDAY",$C2,"SRC_CAT",CMAQ_raw!CC$3,"SRC_REGION",CMAQ_raw!CC$4) -> 3.6291e-09 | CE2: =GETPIVOTDATA("Sum of PS4",CMAQ_raw!$P$10,"JDAY",$C2,"SRC_CAT",CMAQ_raw!CD$3,"SRC_REGION",CMAQ_raw!CD$4) -> 3.6291e-09 | CF2: =GETPIVOTDATA("Sum of PS4",CMAQ_raw!$P$10,"JDAY",$C2,"SRC_CAT",CMAQ_raw!CE$3,"SRC_REGION",CMAQ_raw!CE$4) -> 3.6291e-09 | CG2: =GETPIVOTDATA("Sum of PS4",CMAQ_raw!$P$10,"JDAY",$C2,"SRC_CAT",CMAQ_raw!CF$3,"SRC_REGION",CMAQ_raw!CF$4) -> 3.6291e-09 | CH2: =GETPIVOTDATA("Sum of PS4",CMAQ_raw!$P$10,"JDAY",$C2,"SRC_CAT",CMAQ_raw!CG$3,"SRC_REGION",CMAQ_raw!CG$4) -> 3.6291e-09 | CI2: =GETPIVOTDATA("Sum of PS4",CMAQ_raw!$P$10,"JDAY",$C2,"SRC_CAT",CMAQ_raw!CH$3,"SRC_REGION",CMAQ_raw!CH$4) -> 3.6291e-09 | CJ2: =GETPIVOTDATA("Sum of PS4",CMAQ_raw!$P$10,"JDAY",$C2,"SRC_CAT",CMAQ_raw!CI$3,"SRC_REGION",CMAQ_raw!CI$4) -> 3.6291e-09 | CK2: =GETPIVOTDATA("Sum of PS4",CMAQ_raw!$P$10,"JDAY",$C2,"SRC_CAT",CMAQ_raw!CJ$3,"SRC_REGION",CMAQ_raw!CJ$4) -> 3.6291e-09 | CL2: =GETPIVOTDATA("Sum of PS4",CMAQ_raw!$P$10,"JDAY",$C2,"SRC_CAT",CMAQ_raw!CK$3,"SRC_REGION",CMAQ_raw!CK$4) -> 3.6794e-09 | CM2: =GETPIVOTDATA("Sum of PS4",CMAQ_raw!$P$10,"JDAY",$C2,"SRC_CAT",CMAQ_raw!CL$3,"SRC_REGION",CMAQ_raw!CL$4) -> 3.6291e-09 | CN2: =GETPIVOTDATA("Sum of PS4",CMAQ_raw!$P$10,"JDAY",$C2,"SRC_CAT",CMAQ_raw!CM$3,"SRC_REGION",CMAQ_raw!CM$4) -> 3.6291e-09 | CO2: =GETPIVOTDATA("Sum of PS4",CMAQ_raw!$P$10,"JDAY",$C2,"SRC_CAT",CMAQ_raw!CN$3,"SRC_REGION",CMAQ_raw!CN$4) -> 3.6291e-09 | CP2: =GETPIVOTDATA("Sum of PS4",CMAQ_raw!$P$10,"JDAY",$C2,"SRC_CAT",CMAQ_raw!CO$3,"SRC_REGION",CMAQ_raw!CO$4) -> 3.6291e-09 | CQ2: =GETPIVOTDATA("Sum of PS4",CMAQ_raw!$P$10,"JDAY",$C2,"SRC_CAT",CMAQ_raw!CP$3,"SRC_REGION",CMAQ_raw!CP$4) -> 3.6291e-09 | CR2: =GETPIVOTDATA("Sum of PS4",CMAQ_raw!$P$10,"JDAY",$C2,"SRC_CAT",CMAQ_raw!CQ$3,"SRC_REGION",CMAQ_raw!CQ$4) -> 3.6291e-09 | CS2: =GETPIVOTDATA("Sum of PS4",CMAQ_raw!$P$10,"JDAY",$C2,"SRC_CAT",CMAQ_raw!CR$3,"SRC_REGION",CMAQ_raw!CR$4) -> 3.6291e-09 | CT2: =GETPIVOTDATA("Sum of PS4",CMAQ_raw!$P$10,"JDAY",$C2,"SRC_CAT",CMAQ_raw!CS$3,"SRC_REGION",CMAQ_raw!CS$4) -> 3.6291e-09 | CU2: =GETPIVOTDATA("Sum of PS4",CMAQ_raw!$P$10,"JDAY",$C2,"SRC_CAT",CMAQ_raw!CT$3,"SRC_REGION",CMAQ_raw!CT$4) -> 3.6291e-09 | CV2: =GETPIVOTDATA("Sum of PS4",CMAQ_raw!$P$10,"JDAY",$C2,"SRC_CAT",CMAQ_raw!CU$3,"SRC_REGION",CMAQ_raw!CU$4) -> 3.6291e-09 | CW2: =GETPIVOTDATA("Sum of PS4",CMAQ_raw!$P$10,"JDAY",$C2,"SRC_CAT",CMAQ_raw!CV$3,"SRC_REGION",CMAQ_raw!CV$4) -> 3.6291e-09 | CX2: =GETPIVOTDATA("Sum of PS4",CMAQ_raw!$P$10,"JDAY",$C2,"SRC_CAT",CMAQ_raw!CW$3,"SRC_REGION",CMAQ_raw!CW$4) -> 3.6291e-09 | CY2: =GETPIVOTDATA("Sum of PS4",CMAQ_raw!$P$10,"JDAY",$C2,"SRC_CAT",CMAQ_raw!CX$3,"SRC_REGION",CMAQ_raw!CX$4) -> 3.6291e-09 | CZ2: =GETPIVOTDATA("Sum of PS4",CMAQ_raw!$P$10,"JDAY",$C2,"SRC_CAT",CMAQ_raw!CY$3,"SRC_REGION",CMAQ_raw!CY$4) -> 3.6291e-09 | DA2: =GETPIVOTDATA("Sum of PS4",CMAQ_raw!$P$10,"JDAY",$C2,"SRC_CAT",CMAQ_raw!CZ$3,"SRC_REGION",CMAQ_raw!CZ$4) -> 3.6291e-09 | DB2: =GETPIVOTDATA("Sum of PS4",CMAQ_raw!$P$10,"JDAY",$C2,"SRC_CAT",CMAQ_raw!DA$3,"SRC_REGION",CMAQ_raw!DA$4) -> 3.6291e-09 | DC2: =GETPIVOTDATA("Sum of PS4",CMAQ_raw!$P$10,"JDAY",$C2,"SRC_CAT",CMAQ_raw!DB$3,"SRC_REGION",CMAQ_raw!DB$4) -> 3.6291e-09 | DD2: =GETPIVOTDATA("Sum of PS4",CMAQ_raw!$P$10,"JDAY",$C2,"SRC_CAT",CMAQ_raw!DC$3,"SRC_REGION",CMAQ_raw!DC$4) -> 3.6291e-09 | DE2: =GETPIVOTDATA("Sum of PS4",CMAQ_raw!$P$10,"JDAY",$C2,"SRC_CAT",CMAQ_raw!DD$3,"SRC_REGION",CMAQ_raw!DD$4) -> 3.6291e-09 | DF2: =GETPIVOTDATA("Sum of PS4",CMAQ_raw!$P$10,"JDAY",$C2,"SRC_CAT",CMAQ_raw!DE$3,"SRC_REGION",CMAQ_raw!DE$4) -> 3.6291e-09 | DG2: =GETPIVOTDATA("Sum of PS4",CMAQ_raw!$P$10,"JDAY",$C2,"SRC_CAT",CMAQ_raw!DF$3,"SRC_REGION",CMAQ_raw!DF$4) -> 3.6291e-09 | DH2: =GETPIVOTDATA("Sum of PS4",CMAQ_raw!$P$10,"JDAY",$C2,"SRC_CAT",CMAQ_raw!DG$3,"SRC_REGION",CMAQ_raw!DG$4) -> 3.6291e-09 | DI2: =GETPIVOTDATA("Sum of PS4",CMAQ_raw!$P$10,"JDAY",$C2,"SRC_CAT",CMAQ_raw!DH$3,"SRC_REGION",CMAQ_raw!DH$4) -> 3.6291e-09 | DJ2: =GETPIVOTDATA("Sum of PS4",CMAQ_raw!$P$10,"JDAY",$C2,"SRC_CAT",CMAQ_raw!DI$3,"SRC_REGION",CMAQ_raw!DI$4) -> 3.6291e-09 | DK2: =GETPIVOTDATA("Sum of PS4",CMAQ_raw!$P$10,"JDAY",$C2,"SRC_CAT",CMAQ_raw!DJ$3,"SRC_REGION",CMAQ_raw!DJ$4) -> 3.6291e-09 | DL2: =GETPIVOTDATA("Sum of PS4",CMAQ_raw!$P$10,"JDAY",$C2,"SRC_CAT",CMAQ_raw!DK$3,"SRC_REGION",CMAQ_raw!DK$4) -> 0.065319 | DM2: =GETPIVOTDATA("Sum of PS4",CMAQ_raw!$P$10,"JDAY",$C2,"SRC_CAT",CMAQ_raw!DL$3,"SRC_REGION",CMAQ_raw!DL$4) -> 0.00022852 | DN2: =GETPIVOTDATA("Sum of PS4",CMAQ_raw!$P$10,"JDAY",$C2,"SRC_CAT",CMAQ_raw!DM$3,"SRC_REGION",CMAQ_raw!DM$4) -> 0.084893 | DO2: =GETPIVOTDATA("Sum of PS4",CMAQ_raw!$P$10,"JDAY",$C2,"SRC_CAT",CMAQ_raw!DN$3,"SRC_REGION",CMAQ_raw!DN$4) -> 3.6291e-09 | DP2: =GETPIVOTDATA("Sum of PS4",CMAQ_raw!$P$10,"JDAY",$C2,"SRC_CAT",CMAQ_raw!DO$3,"SRC_REGION",CMAQ_raw!DO$4) -> 0.0042722 | DQ2: =GETPIVOTDATA("Sum of PS4",CMAQ_raw!$P$10,"JDAY",$C2,"SRC_CAT",CMAQ_raw!DP$3,"SRC_REGION",CMAQ_raw!DP$4) -> 2.4994e-05 | DR2: =GETPIVOTDATA("Sum of PS4",CMAQ_raw!$P$10,"JDAY",$C2,"SRC_CAT",CMAQ_raw!DQ$3,"SRC_REGION",CMAQ_raw!DQ$4) -> 3.6291e-09 | DS2: =GETPIVOTDATA("Sum of PS4",CMAQ_raw!$P$10,"JDAY",$C2,"SRC_CAT",CMAQ_raw!DR$3,"SRC_REGION",CMAQ_raw!DR$4) -> 0.00061234 | DT2: =GETPIVOTDATA("Sum of PS4",CMAQ_raw!$P$10,"JDAY",$C2,"SRC_CAT",CMAQ_raw!DS$3,"SRC_REGION",CMAQ_raw!DS$4) -> 0.00014088 | DU2: =GETPIVOTDATA("Sum of PS4",CMAQ_raw!$P$10,"JDAY",$C2,"SRC_CAT",CMAQ_raw!DT$3,"SRC_REGION",CMAQ_raw!DT$4) -> 0.00068926 | DV2: =GETPIVOTDATA("Sum of PS4",CMAQ_raw!$P$10,"JDAY",$C2,"SRC_CAT",CMAQ_raw!DU$3,"SRC_REGION",CMAQ_raw!DU$4) -> 3.6291e-09 | DW2: =GETPIVOTDATA("Sum of PS4",CMAQ_raw!$P$10,"JDAY",$C2,"SRC_CAT",CMAQ_raw!DV$3,"SRC_REGION",CMAQ_raw!DV$4) -> 3.6316e-09 | DX2: =GETPIVOTDATA("Sum of PS4",CMAQ_raw!$P$10,"JDAY",$C2,"SRC_CAT",CMAQ_raw!DW$3,"SRC_REGION",CMAQ_raw!DW$4) -> 3.6292e-09 | DY2: =GETPIVOTDATA("Sum of PS4",CMAQ_raw!$P$10,"JDAY",$C2,"SRC_CAT",CMAQ_raw!DX$3,"SRC_REGION",CMAQ_raw!DX$4) -> 0.019763 | DZ2: =GETPIVOTDATA("Sum of PS4",CMAQ_raw!$P$10,"JDAY",$C2,"SRC_CAT",CMAQ_raw!DY$3,"SRC_REGION",CMAQ_raw!DY$4) -> 0.28762 | EA2: =GETPIVOTDATA("Sum of PS4",CMAQ_raw!$P$10,"JDAY",$C2,"SRC_CAT",CMAQ_raw!DZ$3,"SRC_REGION",CMAQ_raw!DZ$4) -> 3.6291e-09 | EB2: =GETPIVOTDATA("Sum of PS4",CMAQ_raw!$P$10,"JDAY",$C2,"SRC_CAT",CMAQ_raw!EA$3,"SRC_REGION",CMAQ_raw!EA$4) -> 0.050802 | EC2: =GETPIVOTDATA("Sum of PS4",CMAQ_raw!$P$10,"JDAY",$C2,"SRC_CAT",CMAQ_raw!EB$3,"SRC_REGION",CMAQ_raw!EB$4) -> 0.00012461 | ED2: =GETPIVOTDATA("Sum of PS4",CMAQ_raw!$P$10,"JDAY",$C2,"SRC_CAT",CMAQ_raw!EC$3,"SRC_REGION",CMAQ_raw!EC$4) -> 3.6582e-09 | EE2: =GETPIVOTDATA("Sum of PS4",CMAQ_raw!$P$10,"JDAY",$C2,"SRC_CAT",CMAQ_raw!ED$3,"SRC_REGION",CMAQ_raw!ED$4) -> 3.0431e-05 | EF2: =GETPIVOTDATA("Sum of PS4",CMAQ_raw!$P$10,"JDAY",$C2,"SRC_CAT",CMAQ_raw!EE$3,"SRC_REGION",CMAQ_raw!EE$4) -> 0.051593 | EG2: =GETPIVOTDATA("Sum of PS4",CMAQ_raw!$P$10,"JDAY",$C2,"SRC_CAT",CMAQ_raw!EF$3,"SRC_REGION",CMAQ_raw!EF$4) -> 3.6291e-09 | EI2: =GETPIVOTDATA("Sum of PN3",CMAQ_raw!$P$10,"JDAY",$C2,"SRC_CAT",CMAQ_raw!EH$3,"SRC_REGION",CMAQ_raw!EH$4) -> 0.00022608 | EJ2: =GETPIVOTDATA("Sum of PN3",CMAQ_raw!$P$10,"JDAY",$C2,"SRC_CAT",CMAQ_raw!EI$3,"SRC_REGION",CMAQ_raw!EI$4) -> 0.00022612 | EK2: =GETPIVOTDATA("Sum of PN3",CMAQ_raw!$P$10,"JDAY",$C2,"SRC_CAT",CMAQ_raw!EJ$3,"SRC_REGION",CMAQ_raw!EJ$4) -> 0.00022609 | EL2: =GETPIVOTDATA("Sum of PN3",CMAQ_raw!$P$10,"JDAY",$C2,"SRC_CAT",CMAQ_raw!EK$3,"SRC_REGION",CMAQ_raw!EK$4) -> 0.00022608 | EM2: =GETPIVOTDATA("Sum of PN3",CMAQ_raw!$P$10,"JDAY",$C2,"SRC_CAT",CMAQ_raw!EL$3,"SRC_REGION",CMAQ_raw!EL$4) -> 0.00022608 | EN2: =GETPIVOTDATA("Sum of PN3",CMAQ_raw!$P$10,"JDAY",$C2,"SRC_CAT",CMAQ_raw!EM$3,"SRC_REGION",CMAQ_raw!EM$4) -> 0.00022608 | EO2: =GETPIVOTDATA("Sum of PN3",CMAQ_raw!$P$10,"JDAY",$C2,"SRC_CAT",CMAQ_raw!EN$3,"SRC_REGION",CMAQ_raw!EN$4) -> 0.00022608 | EP2: =GETPIVOTDATA("Sum of PN3",CMAQ_raw!$P$10,"JDAY",$C2,"SRC_CAT",CMAQ_raw!EO$3,"SRC_REGION",CMAQ_raw!EO$4) -> 0.00022608 | EQ2: =GETPIVOTDATA("Sum of PN3",CMAQ_raw!$P$10,"JDAY",$C2,"SRC_CAT",CMAQ_raw!EP$3,"SRC_REGION",CMAQ_raw!EP$4) -> 0.00022608 | ER2: =GETPIVOTDATA("Sum of PN3",CMAQ_raw!$P$10,"JDAY",$C2,"SRC_CAT",CMAQ_raw!EQ$3,"SRC_REGION",CMAQ_raw!EQ$4) -> 0.00022608 | ES2: =GETPIVOTDATA("Sum of PN3",CMAQ_raw!$P$10,"JDAY",$C2,"SRC_CAT",CMAQ_raw!ER$3,"SRC_REGION",CMAQ_raw!ER$4) -> 0.00022608 | ET2: =GETPIVOTDATA("Sum of PN3",CMAQ_raw!$P$10,"JDAY",$C2,"SRC_CAT",CMAQ_raw!ES$3,"SRC_REGION",CMAQ_raw!ES$4) -> 0.00022608 | EU2: =GETPIVOTDATA("Sum of PN3",CMAQ_raw!$P$10,"JDAY",$C2,"SRC_CAT",CMAQ_raw!ET$3,"SRC_REGION",CMAQ_raw!ET$4) -> 0.00022608 | EV2: =GETPIVOTDATA("Sum of PN3",CMAQ_raw!$P$10,"JDAY",$C2,"SRC_CAT",CMAQ_raw!EU$3,"SRC_REGION",CMAQ_raw!EU$4) -> 0.00022608 | EW2: =GETPIVOTDATA("Sum of PN3",CMAQ_raw!$P$10,"JDAY",$C2,"SRC_CAT",CMAQ_raw!EV$3,"SRC_REGION",CMAQ_raw!EV$4) -> 0.0002261 | EX2: =GETPIVOTDATA("Sum of PN3",CMAQ_raw!$P$10,"JDAY",$C2,"SRC_CAT",CMAQ_raw!EW$3,"SRC_REGION",CMAQ_raw!EW$4) -> 0.00022608 | EY2: =GETPIVOTDATA("Sum of PN3",CMAQ_raw!$P$10,"JDAY",$C2,"SRC_CAT",CMAQ_raw!EX$3,"SRC_REGION",CMAQ_raw!EX$4) -> 0.00022608 | EZ2: =GETPIVOTDATA("Sum of PN3",CMAQ_raw!$P$10,"JDAY",$C2,"SRC_CAT",CMAQ_raw!EY$3,"SRC_REGION",CMAQ_raw!EY$4) -> 0.00022608 | FA2: =GETPIVOTDATA("Sum of PN3",CMAQ_raw!$P$10,"JDAY",$C2,"SRC_CAT",CMAQ_raw!EZ$3,"SRC_REGION",CMAQ_raw!EZ$4) -> 0.00022608 | FB2: =GETPIVOTDATA("Sum of PN3",CMAQ_raw!$P$10,"JDAY",$C2,"SRC_CAT",CMAQ_raw!FA$3,"SRC_REGION",CMAQ_raw!FA$4) -> 0.00022608 | FC2: =GETPIVOTDATA("Sum of PN3",CMAQ_raw!$P$10,"JDAY",$C2,"SRC_CAT",CMAQ_raw!FB$3,"SRC_REGION",CMAQ_raw!FB$4) -> 0.00022787 | FD2: =GETPIVOTDATA("Sum of PN3",CMAQ_raw!$P$10,"JDAY",$C2,"SRC_CAT",CMAQ_raw!FC$3,"SRC_REGION",CMAQ_raw!FC$4) -> 0.00022608 | FE2: =GETPIVOTDATA("Sum of PN3",CMAQ_raw!$P$10,"JDAY",$C2,"SRC_CAT",CMAQ_raw!FD$3,"SRC_REGION",CMAQ_raw!FD$4) -> 0.00022608 | FF2: =GETPIVOTDATA("Sum of PN3",CMAQ_raw!$P$10,"JDAY",$C2,"SRC_CAT",CMAQ_raw!FE$3,"SRC_REGION",CMAQ_raw!FE$4) -> 0.00022608 | FG2: =GETPIVOTDATA("Sum of PN3",CMAQ_raw!$P$10,"JDAY",$C2,"SRC_CAT",CMAQ_raw!FF$3,"SRC_REGION",CMAQ_raw!FF$4) -> 0.00022608 | FH2: =GETPIVOTDATA("Sum of PN3",CMAQ_raw!$P$10,"JDAY",$C2,"SRC_CAT",CMAQ_raw!FG$3,"SRC_REGION",CMAQ_raw!FG$4) -> 0.00022608 | FI2: =GETPIVOTDATA("Sum of PN3",CMAQ_raw!$P$10,"JDAY",$C2,"SRC_CAT",CMAQ_raw!FH$3,"SRC_REGION",CMAQ_raw!FH$4) -> 0.00022608 | FJ2: =GETPIVOTDATA("Sum of PN3",CMAQ_raw!$P$10,"JDAY",$C2,"SRC_CAT",CMAQ_raw!FI$3,"SRC_REGION",CMAQ_raw!FI$4) -> 0.00022608 | FK2: =GETPIVOTDATA("Sum of PN3",CMAQ_raw!$P$10,"JDAY",$C2,"SRC_CAT",CMAQ_raw!FJ$3,"SRC_REGION",CMAQ_raw!FJ$4) -> 0.00022608 | FL2: =GETPIVOTDATA("Sum of PN3",CMAQ_raw!$P$10,"JDAY",$C2,"SRC_CAT",CMAQ_raw!FK$3,"SRC_REGION",CMAQ_raw!FK$4) -> 0.00022608 | FM2: =GETPIVOTDATA("Sum of PN3",CMAQ_raw!$P$10,"JDAY",$C2,"SRC_CAT",CMAQ_raw!FL$3,"SRC_REGION",CMAQ_raw!FL$4) -> 0.00022608 | FN2: =GETPIVOTDATA("Sum of PN3",CMAQ_raw!$P$10,"JDAY",$C2,"SRC_CAT",CMAQ_raw!FM$3,"SRC_REGION",CMAQ_raw!FM$4) -> 0.00022608 | FO2: =GETPIVOTDATA("Sum of PN3",CMAQ_raw!$P$10,"JDAY",$C2,"SRC_CAT",CMAQ_raw!FN$3,"SRC_REGION",CMAQ_raw!FN$4) -> 0.00022608 | FP2: =GETPIVOTDATA("Sum of PN3",CMAQ_raw!$P$10,"JDAY",$C2,"SRC_CAT",CMAQ_raw!FO$3,"SRC_REGION",CMAQ_raw!FO$4) -> 0.00022608 | FQ2: =GETPIVOTDATA("Sum of PN3",CMAQ_raw!$P$10,"JDAY",$C2,"SRC_CAT",CMAQ_raw!FP$3,"SRC_REGION",CMAQ_raw!FP$4) -> 0.00022608 | FR2: =GETPIVOTDATA("Sum of PN3",CMAQ_raw!$P$10,"JDAY",$C2,"SRC_CAT",CMAQ_raw!FQ$3,"SRC_REGION",CMAQ_raw!FQ$4) -> 0.00022608 | FS2: =GETPIVOTDATA("Sum of PN3",CMAQ_raw!$P$10,"JDAY",$C2,"SRC_CAT",CMAQ_raw!FR$3,"SRC_REGION",CMAQ_raw!FR$4) -> 0.00022608 | FT2: =GETPIVOTDATA("Sum of PN3",CMAQ_raw!$P$10,"JDAY",$C2,"SRC_CAT",CMAQ_raw!FS$3,"SRC_REGION",CMAQ_raw!FS$4) -> 0.00022608 | FU2: =GETPIVOTDATA("Sum of PN3",CMAQ_raw!$P$10,"JDAY",$C2,"SRC_CAT",CMAQ_raw!FT$3,"SRC_REGION",CMAQ_raw!FT$4) -> 0.00022608 | FV2: =GETPIVOTDATA("Sum of PN3",CMAQ_raw!$P$10,"JDAY",$C2,"SRC_CAT",CMAQ_raw!FU$3,"SRC_REGION",CMAQ_raw!FU$4) -> 0.00022608 | FW2: =GETPIVOTDATA("Sum of PN3",CMAQ_raw!$P$10,"JDAY",$C2,"SRC_CAT",CMAQ_raw!FV$3,"SRC_REGION",CMAQ_raw!FV$4) -> 0.00022608 | FX2: =GETPIVOTDATA("Sum of PN3",CMAQ_raw!$P$10,"JDAY",$C2,"SRC_CAT",CMAQ_raw!FW$3,"SRC_REGION",CMAQ_raw!FW$4) -> 0.00022608 | FY2: =GETPIVOTDATA("Sum of PN3",CMAQ_raw!$P$10,"JDAY",$C2,"SRC_CAT",CMAQ_raw!FX$3,"SRC_REGION",CMAQ_raw!FX$4) -> 0.00022608 | FZ2: =GETPIVOTDATA("Sum of PN3",CMAQ_raw!$P$10,"JDAY",$C2,"SRC_CAT",CMAQ_raw!FY$3,"SRC_REGION",CMAQ_raw!FY$4) -> 0.00022608 | GA2: =GETPIVOTDATA("Sum of PN3",CMAQ_raw!$P$10,"JDAY",$C2,"SRC_CAT",CMAQ_raw!FZ$3,"SRC_REGION",CMAQ_raw!FZ$4) -> 0.00022608 | GB2: =GETPIVOTDATA("Sum of PN3",CMAQ_raw!$P$10,"JDAY",$C2,"SRC_CAT",CMAQ_raw!GA$3,"SRC_REGION",CMAQ_raw!GA$4) -> 0.00022608 | GC2: =GETPIVOTDATA("Sum of PN3",CMAQ_raw!$P$10,"JDAY",$C2,"SRC_CAT",CMAQ_raw!GB$3,"SRC_REGION",CMAQ_raw!GB$4) -> 0.00022608 | GD2: =GETPIVOTDATA("Sum of PN3",CMAQ_raw!$P$10,"JDAY",$C2,"SRC_CAT",CMAQ_raw!GC$3,"SRC_REGION",CMAQ_raw!GC$4) -> 0.00022608 | GE2: =GETPIVOTDATA("Sum of PN3",CMAQ_raw!$P$10,"JDAY",$C2,"SRC_CAT",CMAQ_raw!GD$3,"SRC_REGION",CMAQ_raw!GD$4) -> 0.00022608 | GF2: =GETPIVOTDATA("Sum of PN3",CMAQ_raw!$P$10,"JDAY",$C2,"SRC_CAT",CMAQ_raw!GE$3,"SRC_REGION",CMAQ_raw!GE$4) -> 0.00022608 | GG2: =GETPIVOTDATA("Sum of PN3",CMAQ_raw!$P$10,"JDAY",$C2,"SRC_CAT",CMAQ_raw!GF$3,"SRC_REGION",CMAQ_raw!GF$4) -> 0.00022608 | GH2: =GETPIVOTDATA("Sum of PN3",CMAQ_raw!$P$10,"JDAY",$C2,"SRC_CAT",CMAQ_raw!GG$3,"SRC_REGION",CMAQ_raw!GG$4) -> 0.00022608 | GI2: =GETPIVOTDATA("Sum of PN3",CMAQ_raw!$P$10,"JDAY",$C2,"SRC_CAT",CMAQ_raw!GH$3,"SRC_REGION",CMAQ_raw!GH$4) -> 0.00022608 | GJ2: =GETPIVOTDATA("Sum of PN3",CMAQ_raw!$P$10,"JDAY",$C2,"SRC_CAT",CMAQ_raw!GI$3,"SRC_REGION",CMAQ_raw!GI$4) -> 0.00022608 | GK2: =GETPIVOTDATA("Sum of PN3",CMAQ_raw!$P$10,"JDAY",$C2,"SRC_CAT",CMAQ_raw!GJ$3,"SRC_REGION",CMAQ_raw!GJ$4) -> 0.00022608 | GL2: =GETPIVOTDATA("Sum of PN3",CMAQ_raw!$P$10,"JDAY",$C2,"SRC_CAT",CMAQ_raw!GK$3,"SRC_REGION",CMAQ_raw!GK$4) -> 0.00022608 | GM2: =GETPIVOTDATA("Sum of PN3",CMAQ_raw!$P$10,"JDAY",$C2,"SRC_CAT",CMAQ_raw!GL$3,"SRC_REGION",CMAQ_raw!GL$4) -> 0.00022608 | GN2: =GETPIVOTDATA("Sum of PN3",CMAQ_raw!$P$10,"JDAY",$C2,"SRC_CAT",CMAQ_raw!GM$3,"SRC_REGION",CMAQ_raw!GM$4) -> 0.00022608 | GO2: =GETPIVOTDATA("Sum of PN3",CMAQ_raw!$P$10,"JDAY",$C2,"SRC_CAT",CMAQ_raw!GN$3,"SRC_REGION",CMAQ_raw!GN$4) -> 0.00022608 | GP2: =GETPIVOTDATA("Sum of PN3",CMAQ_raw!$P$10,"JDAY",$C2,"SRC_CAT",CMAQ_raw!GO$3,"SRC_REGION",CMAQ_raw!GO$4) -> 0.00022608 | GQ2: =GETPIVOTDATA("Sum of PN3",CMAQ_raw!$P$10,"JDAY",$C2,"SRC_CAT",CMAQ_raw!GP$3,"SRC_REGION",CMAQ_raw!GP$4) -> 0.00022608 | GR2: =GETPIVOTDATA("Sum of PN3",CMAQ_raw!$P$10,"JDAY",$C2,"SRC_CAT",CMAQ_raw!GQ$3,"SRC_REGION",CMAQ_raw!GQ$4) -> 0.00022608 | GS2: =GETPIVOTDATA("Sum of PN3",CMAQ_raw!$P$10,"JDAY",$C2,"SRC_CAT",CMAQ_raw!GR$3,"SRC_REGION",CMAQ_raw!GR$4) -> 0.00022608 | GT2: =GETPIVOTDATA("Sum of PN3",CMAQ_raw!$P$10,"JDAY",$C2,"SRC_CAT",CMAQ_raw!GS$3,"SRC_REGION",CMAQ_raw!GS$4) -> 0.00022608 | GU2: =GETPIVOTDATA("Sum of PN3",CMAQ_raw!$P$10,"JDAY",$C2,"SRC_CAT",CMAQ_raw!GT$3,"SRC_REGION",CMAQ_raw!GT$4) -> 0.00022608 | GV2: =GETPIVOTDATA("Sum of PN3",CMAQ_raw!$P$10,"JDAY",$C2,"SRC_CAT",CMAQ_raw!GU$3,"SRC_REGION",CMAQ_raw!GU$4) -> 0.00022608 | GW2: =GETPIVOTDATA("Sum of PN3",CMAQ_raw!$P$10,"JDAY",$C2,"SRC_CAT",CMAQ_raw!GV$3,"SRC_REGION",CMAQ_raw!GV$4) -> 0.00022608 | GX2: =GETPIVOTDATA("Sum of PN3",CMAQ_raw!$P$10,"JDAY",$C2,"SRC_CAT",CMAQ_raw!GW$3,"SRC_REGION",CMAQ_raw!GW$4) -> 0.00022608 | GY2: =GETPIVOTDATA("Sum of PN3",CMAQ_raw!$P$10,"JDAY",$C2,"SRC_CAT",CMAQ_raw!GX$3,"SRC_REGION",CMAQ_raw!GX$4) -> 0.00022608 | GZ2: =GETPIVOTDATA("Sum of PN3",CMAQ_raw!$P$10,"JDAY",$C2,"SRC_CAT",CMAQ_raw!GY$3,"SRC_REGION",CMAQ_raw!GY$4) -> 0.00022608 | HA2: =GETPIVOTDATA("Sum of PN3",CMAQ_raw!$P$10,"JDAY",$C2,"SRC_CAT",CMAQ_raw!GZ$3,"SRC_REGION",CMAQ_raw!GZ$4) -> 0.00022608 | HB2: =GETPIVOTDATA("Sum of PN3",CMAQ_raw!$P$10,"JDAY",$C2,"SRC_CAT",CMAQ_raw!HA$3,"SRC_REGION",CMAQ_raw!HA$4) -> 0.00022608 | HC2: =GETPIVOTDATA("Sum of PN3",CMAQ_raw!$P$10,"JDAY",$C2,"SRC_CAT",CMAQ_raw!HB$3,"SRC_REGION",CMAQ_raw!HB$4) -> 0.00022608 | HD2: =GETPIVOTDATA("Sum of PN3",CMAQ_raw!$P$10,"JDAY",$C2,"SRC_CAT",CMAQ_raw!HC$3,"SRC_REGION",CMAQ_raw!HC$4) -> 0.00022608 | HE2: =GETPIVOTDATA("Sum of PN3",CMAQ_raw!$P$10,"JDAY",$C2,"SRC_CAT",CMAQ_raw!HD$3,"SRC_REGION",CMAQ_raw!HD$4) -> 0.00022608 | HF2: =GETPIVOTDATA("Sum of PN3",CMAQ_raw!$P$10,"JDAY",$C2,"SRC_CAT",CMAQ_raw!HE$3,"SRC_REGION",CMAQ_raw!HE$4) -> 0.00022608 | HG2: =GETPIVOTDATA("Sum of PN3",CMAQ_raw!$P$10,"JDAY",$C2,"SRC_CAT",CMAQ_raw!HF$3,"SRC_REGION",CMAQ_raw!HF$4) -> 0.00022608 | HH2: =GETPIVOTDATA("Sum of PN3",CMAQ_raw!$P$10,"JDAY",$C2,"SRC_CAT",CMAQ_raw!HG$3,"SRC_REGION",CMAQ_raw!HG$4) -> 0.00022608 | HI2: =GETPIVOTDATA("Sum of PN3",CMAQ_raw!$P$10,"JDAY",$C2,"SRC_CAT",CMAQ_raw!HH$3,"SRC_REGION",CMAQ_raw!HH$4) -> 0.00022608 | HJ2: =GETPIVOTDATA("Sum of PN3",CMAQ_raw!$P$10,"JDAY",$C2,"SRC_CAT",CMAQ_raw!HI$3,"SRC_REGION",CMAQ_raw!HI$4) -> 0.00022608 | HK2: =GETPIVOTDATA("Sum of PN3",CMAQ_raw!$P$10,"JDAY",$C2,"SRC_CAT",CMAQ_raw!HJ$3,"SRC_REGION",CMAQ_raw!HJ$4) -> 0.00022608 | HL2: =GETPIVOTDATA("Sum of PN3",CMAQ_raw!$P$10,"JDAY",$C2,"SRC_CAT",CMAQ_raw!HK$3,"SRC_REGION",CMAQ_raw!HK$4) -> 0.00022608 | HM2: =GETPIVOTDATA("Sum of PN3",CMAQ_raw!$P$10,"JDAY",$C2,"SRC_CAT",CMAQ_raw!HL$3,"SRC_REGION",CMAQ_raw!HL$4) -> 0.00022608 | HN2: =GETPIVOTDATA("Sum of PN3",CMAQ_raw!$P$10,"JDAY",$C2,"SRC_CAT",CMAQ_raw!HM$3,"SRC_REGION",CMAQ_raw!HM$4) -> 0.00022608 | HO2: =GETPIVOTDATA("Sum of PN3",CMAQ_raw!$P$10,"JDAY",$C2,"SRC_CAT",CMAQ_raw!HN$3,"SRC_REGION",CMAQ_raw!HN$4) -> 0.00022608 | HP2: =GETPIVOTDATA("Sum of PN3",CMAQ_raw!$P$10,"JDAY",$C2,"SRC_CAT",CMAQ_raw!HO$3,"SRC_REGION",CMAQ_raw!HO$4) -> 0.044581 | HQ2: =GETPIVOTDATA("Sum of PN3",CMAQ_raw!$P$10,"JDAY",$C2,"SRC_CAT",CMAQ_raw!HP$3,"SRC_REGION",CMAQ_raw!HP$4) -> 0.00024459 | HR2: =GETPIVOTDATA("Sum of PN3",CMAQ_raw!$P$10,"JDAY",$C2,"SRC_CAT",CMAQ_raw!HQ$3,"SRC_REGION",CMAQ_raw!HQ$4) -> 0.10464 | HS2: =GETPIVOTDATA("Sum of PN3",CMAQ_raw!$P$10,"JDAY",$C2,"SRC_CAT",CMAQ_raw!HR$3,"SRC_REGION",CMAQ_raw!HR$4) -> 0.00022608 | HT2: =GETPIVOTDATA("Sum of PN3",CMAQ_raw!$P$10,"JDAY",$C2,"SRC_CAT",CMAQ_raw!HS$3,"SRC_REGION",CMAQ_raw!HS$4) -> 0.0011426 | HU2: =GETPIVOTDATA("Sum of PN3",CMAQ_raw!$P$10,"JDAY",$C2,"SRC_CAT",CMAQ_raw!HT$3,"SRC_REGION",CMAQ_raw!HT$4) -> 0.0002284 | HV2: =GETPIVOTDATA("Sum of PN3",CMAQ_raw!$P$10,"JDAY",$C2,"SRC_CAT",CMAQ_raw!HU$3,"SRC_REGION",CMAQ_raw!HU$4) -> 0.00022608 | HW2: =GETPIVOTDATA("Sum of PN3",CMAQ_raw!$P$10,"JDAY",$C2,"SRC_CAT",CMAQ_raw!HV$3,"SRC_REGION",CMAQ_raw!HV$4) -> 0.00025885 | HX2: =GETPIVOTDATA("Sum of PN3",CMAQ_raw!$P$10,"JDAY",$C2,"SRC_CAT",CMAQ_raw!HW$3,"SRC_REGION",CMAQ_raw!HW$4) -> 0.00023255 | HY2: =GETPIVOTDATA("Sum of PN3",CMAQ_raw!$P$10,"JDAY",$C2,"SRC_CAT",CMAQ_raw!HX$3,"SRC_REGION",CMAQ_raw!HX$4) -> 0.0003259 | HZ2: =GETPIVOTDATA("Sum of PN3",CMAQ_raw!$P$10,"JDAY",$C2,"SRC_CAT",CMAQ_raw!HY$3,"SRC_REGION",CMAQ_raw!HY$4) -> 0.00022608 | IA2: =GETPIVOTDATA("Sum of PN3",CMAQ_raw!$P$10,"JDAY",$C2,"SRC_CAT",CMAQ_raw!HZ$3,"SRC_REGION",CMAQ_raw!HZ$4) -> 0.00022608 | IB2: =GETPIVOTDATA("Sum of PN3",CMAQ_raw!$P$10,"JDAY",$C2,"SRC_CAT",CMAQ_raw!IA$3,"SRC_REGION",CMAQ_raw!IA$4) -> 0.00022608 | IC2: =GETPIVOTDATA("Sum of PN3",CMAQ_raw!$P$10,"JDAY",$C2,"SRC_CAT",CMAQ_raw!IB$3,"SRC_REGION",CMAQ_raw!IB$4) -> 0.0078266 | ID2: =GETPIVOTDATA("Sum of PN3",CMAQ_raw!$P$10,"JDAY",$C2,"SRC_CAT",CMAQ_raw!IC$3,"SRC_REGION",CMAQ_raw!IC$4) -> 0.13169 | IE2: =GETPIVOTDATA("Sum of PN3",CMAQ_raw!$P$10,"JDAY",$C2,"SRC_CAT",CMAQ_raw!ID$3,"SRC_REGION",CMAQ_raw!ID$4) -> 0.00022608 | IF2: =GETPIVOTDATA("Sum of PN3",CMAQ_raw!$P$10,"JDAY",$C2,"SRC_CAT",CMAQ_raw!IE$3,"SRC_REGION",CMAQ_raw!IE$4) -> 0.032916 | IG2: =GETPIVOTDATA("Sum of PN3",CMAQ_raw!$P$10,"JDAY",$C2,"SRC_CAT",CMAQ_raw!IF$3,"SRC_REGION",CMAQ_raw!IF$4) -> 0.00022893 | IH2: =GETPIVOTDATA("Sum of PN3",CMAQ_raw!$P$10,"JDAY",$C2,"SRC_CAT",CMAQ_raw!IG$3,"SRC_REGION",CMAQ_raw!IG$4) -> 0.00022608 | II2: =GETPIVOTDATA("Sum of PN3",CMAQ_raw!$P$10,"JDAY",$C2,"SRC_CAT",CMAQ_raw!IH$3,"SRC_REGION",CMAQ_raw!IH$4) -> 0.00022833 | IJ2: =GETPIVOTDATA("Sum of PN3",CMAQ_raw!$P$10,"JDAY",$C2,"SRC_CAT",CMAQ_raw!II$3,"SRC_REGION",CMAQ_raw!II$4) -> 0.012171 | IK2: =GETPIVOTDATA("Sum of PN3",CMAQ_raw!$P$10,"JDAY",$C2,"SRC_CAT",CMAQ_raw!IJ$3,"SRC_REGION",CMAQ_raw!IJ$4) -> 0.00022608 | IM2: =GETPIVOTDATA("Sum of POA",CMAQ_raw!$P$10,"JDAY",$C2,"SRC_CAT",CMAQ_raw!IL$3,"SRC_REGION",CMAQ_raw!IL$4) -> 1.1657e-16 | IN2: =GETPIVOTDATA("Sum of POA",CMAQ_raw!$P$10,"JDAY",$C2,"SRC_CAT",CMAQ_raw!IM$3,"SRC_REGION",CMAQ_raw!IM$4) -> 1.1657e-16 | IO2: =GETPIVOTDATA("Sum of POA",CMAQ_raw!$P$10,"JDAY",$C2,"SRC_CAT",CMAQ_raw!IN$3,"SRC_REGION",CMAQ_raw!IN$4) -> 1.1657e-16 | IP2: =GETPIVOTDATA("Sum of POA",CMAQ_raw!$P$10,"JDAY",$C2,"SRC_CAT",CMAQ_raw!IO$3,"SRC_REGION",CMAQ_raw!IO$4) -> 1.1657e-16 | IQ2: =GETPIVOTDATA("Sum of POA",CMAQ_raw!$P$10,"JDAY",$C2,"SRC_CAT",CMAQ_raw!IP$3,"SRC_REGION",CMAQ_raw!IP$4) -> 1.1657e-16 | IR2: =GETPIVOTDATA("Sum of POA",CMAQ_raw!$P$10,"JDAY",$C2,"SRC_CAT",CMAQ_raw!IQ$3,"SRC_REGION",CMAQ_raw!IQ$4) -> 1.1657e-16 | IS2: =GETPIVOTDATA("Sum of POA",CMAQ_raw!$P$10,"JDAY",$C2,"SRC_CAT",CMAQ_raw!IR$3,"SRC_REGION",CMAQ_raw!IR$4) -> 1.1657e-16 | IT2: =GETPIVOTDATA("Sum of POA",CMAQ_raw!$P$10,"JDAY",$C2,"SRC_CAT",CMAQ_raw!IS$3,"SRC_REGION",CMAQ_raw!IS$4) -> 1.1657e-16 | IU2: =GETPIVOTDATA("Sum of POA",CMAQ_raw!$P$10,"JDAY",$C2,"SRC_CAT",CMAQ_raw!IT$3,"SRC_REGION",CMAQ_raw!IT$4) -> 1.1657e-16 | IV2: =GETPIVOTDATA("Sum of POA",CMAQ_raw!$P$10,"JDAY",$C2,"SRC_CAT",CMAQ_raw!IU$3,"SRC_REGION",CMAQ_raw!IU$4) -> 1.1657e-16 | IW2: =GETPIVOTDATA("Sum of POA",CMAQ_raw!$P$10,"JDAY",$C2,"SRC_CAT",CMAQ_raw!IV$3,"SRC_REGION",CMAQ_raw!IV$4) -> 1.1657e-16 | IX2: =GETPIVOTDATA("Sum of POA",CMAQ_raw!$P$10,"JDAY",$C2,"SRC_CAT",CMAQ_raw!IW$3,"SRC_REGION",CMAQ_raw!IW$4) -> 1.1657e-16 | IY2: =GETPIVOTDATA("Sum of POA",CMAQ_raw!$P$10,"JDAY",$C2,"SRC_CAT",CMAQ_raw!IX$3,"SRC_REGION",CMAQ_raw!IX$4) -> 1.1657e-16 | IZ2: =GETPIVOTDATA("Sum of POA",CMAQ_raw!$P$10,"JDAY",$C2,"SRC_CAT",CMAQ_raw!IY$3,"SRC_REGION",CMAQ_raw!IY$4) -> 1.1657e-16 | JA2: =GETPIVOTDATA("Sum of POA",CMAQ_raw!$P$10,"JDAY",$C2,"SRC_CAT",CMAQ_raw!IZ$3,"SRC_REGION",CMAQ_raw!IZ$4) -> 1.1657e-16 | JB2: =GETPIVOTDATA("Sum of POA",CMAQ_raw!$P$10,"JDAY",$C2,"SRC_CAT",CMAQ_raw!JA$3,"SRC_REGION",CMAQ_raw!JA$4) -> 1.1657e-16 | JC2: =GETPIVOTDATA("Sum of POA",CMAQ_raw!$P$10,"JDAY",$C2,"SRC_CAT",CMAQ_raw!JB$3,"SRC_REGION",CMAQ_raw!JB$4) -> 1.1657e-16 | JD2: =GETPIVOTDATA("Sum of POA",CMAQ_raw!$P$10,"JDAY",$C2,"SRC_CAT",CMAQ_raw!JC$3,"SRC_REGION",CMAQ_raw!JC$4) -> 1.1657e-16 | JE2: =GETPIVOTDATA("Sum of POA",CMAQ_raw!$P$10,"JDAY",$C2,"SRC_CAT",CMAQ_raw!JD$3,"SRC_REGION",CMAQ_raw!JD$4) -> 1.1657e-16 | JF2: =GETPIVOTDATA("Sum of POA",CMAQ_raw!$P$10,"JDAY",$C2,"SRC_CAT",CMAQ_raw!JE$3,"SRC_REGION",CMAQ_raw!JE$4) -> 1.1657e-16 | JG2: =GETPIVOTDATA("Sum of POA",CMAQ_raw!$P$10,"JDAY",$C2,"SRC_CAT",CMAQ_raw!JF$3,"SRC_REGION",CMAQ_raw!JF$4) -> 1.1657e-16 | JH2: =GETPIVOTDATA("Sum of POA",CMAQ_raw!$P$10,"JDAY",$C2,"SRC_CAT",CMAQ_raw!JG$3,"SRC_REGION",CMAQ_raw!JG$4) -> 1.1657e-16 | JI2: =GETPIVOTDATA("Sum of POA",CMAQ_raw!$P$10,"JDAY",$C2,"SRC_CAT",CMAQ_raw!JH$3,"SRC_REGION",CMAQ_raw!JH$4) -> 1.1657e-16 | JJ2: =GETPIVOTDATA("Sum of POA",CMAQ_raw!$P$10,"JDAY",$C2,"SRC_CAT",CMAQ_raw!JI$3,"SRC_REGION",CMAQ_raw!JI$4) -> 1.1657e-16 | JK2: =GETPIVOTDATA("Sum of POA",CMAQ_raw!$P$10,"JDAY",$C2,"SRC_CAT",CMAQ_raw!JJ$3,"SRC_REGION",CMAQ_raw!JJ$4) -> 1.1657e-16 | JL2: =GETPIVOTDATA("Sum of POA",CMAQ_raw!$P$10,"JDAY",$C2,"SRC_CAT",CMAQ_raw!JK$3,"SRC_REGION",CMAQ_raw!JK$4) -> 1.1657e-16 | JM2: =GETPIVOTDATA("Sum of POA",CMAQ_raw!$P$10,"JDAY",$C2,"SRC_CAT",CMAQ_raw!JL$3,"SRC_REGION",CMAQ_raw!JL$4) -> 1.1657e-16 | JN2: =GETPIVOTDATA("Sum of POA",CMAQ_raw!$P$10,"JDAY",$C2,"SRC_CAT",CMAQ_raw!JM$3,"SRC_REGION",CMAQ_raw!JM$4) -> 1.1657e-16 | JO2: =GETPIVOTDATA("Sum of POA",CMAQ_raw!$P$10,"JDAY",$C2,"SRC_CAT",CMAQ_raw!JN$3,"SRC_REGION",CMAQ_raw!JN$4) -> 1.1657e-16 | JP2: =GETPIVOTDATA("Sum of POA",CMAQ_raw!$P$10,"JDAY",$C2,"SRC_CAT",CMAQ_raw!JO$3,"SRC_REGION",CMAQ_raw!JO$4) -> 1.1657e-16 | JQ2: =GETPIVOTDATA("Sum of POA",CMAQ_raw!$P$10,"JDAY",$C2,"SRC_CAT",CMAQ_raw!JP$3,"SRC_REGION",CMAQ_raw!JP$4) -> 1.1657e-16 | JR2: =GETPIVOTDATA("Sum of POA",CMAQ_raw!$P$10,"JDAY",$C2,"SRC_CAT",CMAQ_raw!JQ$3,"SRC_REGION",CMAQ_raw!JQ$4) -> 1.1657e-16 | JS2: =GETPIVOTDATA("Sum of POA",CMAQ_raw!$P$10,"JDAY",$C2,"SRC_CAT",CMAQ_raw!JR$3,"SRC_REGION",CMAQ_raw!JR$4) -> 1.1657e-16 | JT2: =GETPIVOTDATA("Sum of POA",CMAQ_raw!$P$10,"JDAY",$C2,"SRC_CAT",CMAQ_raw!JS$3,"SRC_REGION",CMAQ_raw!JS$4) -> 1.1657e-16 | JU2: =GETPIVOTDATA("Sum of POA",CMAQ_raw!$P$10,"JDAY",$C2,"SRC_CAT",CMAQ_raw!JT$3,"SRC_REGION",CMAQ_raw!JT$4) -> 1.1657e-16 | JV2: =GETPIVOTDATA("Sum of POA",CMAQ_raw!$P$10,"JDAY",$C2,"SRC_CAT",CMAQ_raw!JU$3,"SRC_REGION",CMAQ_raw!JU$4) -> 1.1657e-16 | JW2: =GETPIVOTDATA("Sum of POA",CMAQ_raw!$P$10,"JDAY",$C2,"SRC_CAT",CMAQ_raw!JV$3,"SRC_REGION",CMAQ_raw!JV$4) -> 1.1657e-16 | JX2: =GETPIVOTDATA("Sum of POA",CMAQ_raw!$P$10,"JDAY",$C2,"SRC_CAT",CMAQ_raw!JW$3,"SRC_REGION",CMAQ_raw!JW$4) -> 1.1657e-16 | JY2: =GETPIVOTDATA("Sum of POA",CMAQ_raw!$P$10,"JDAY",$C2,"SRC_CAT",CMAQ_raw!JX$3,"SRC_REGION",CMAQ_raw!JX$4) -> 1.1657e-16 | JZ2: =GETPIVOTDATA("Sum of POA",CMAQ_raw!$P$10,"JDAY",$C2,"SRC_CAT",CMAQ_raw!JY$3,"SRC_REGION",CMAQ_raw!JY$4) -> 7.2956e-13 | KA2: =GETPIVOTDATA("Sum of POA",CMAQ_raw!$P$10,"JDAY",$C2,"SRC_CAT",CMAQ_raw!JZ$3,"SRC_REGION",CMAQ_raw!JZ$4) -> 1.1657e-16 | KB2: =GETPIVOTDATA("Sum of POA",CMAQ_raw!$P$10,"JDAY",$C2,"SRC_CAT",CMAQ_raw!KA$3,"SRC_REGION",CMAQ_raw!KA$4) -> 1.1657e-16 | KC2: =GETPIVOTDATA("Sum of POA",CMAQ_raw!$P$10,"JDAY",$C2,"SRC_CAT",CMAQ_raw!KB$3,"SRC_REGION",CMAQ_raw!KB$4) -> 1.1657e-16 | KD2: =GETPIVOTDATA("Sum of POA",CMAQ_raw!$P$10,"JDAY",$C2,"SRC_CAT",CMAQ_raw!KC$3,"SRC_REGION",CMAQ_raw!KC$4) -> 3.1648e-15 | KE2: =GETPIVOTDATA("Sum of POA",CMAQ_raw!$P$10,"JDAY",$C2,"SRC_CAT",CMAQ_raw!KD$3,"SRC_REGION",CMAQ_raw!KD$4) -> 1.1657e-16 | KF2: =GETPIVOTDATA("Sum of POA",CMAQ_raw!$P$10,"JDAY",$C2,"SRC_CAT",CMAQ_raw!KE$3,"SRC_REGION",CMAQ_raw!KE$4) -> 1.1657e-16 | KG2: =GETPIVOTDATA("Sum of POA",CMAQ_raw!$P$10,"JDAY",$C2,"SRC_CAT",CMAQ_raw!KF$3,"SRC_REGION",CMAQ_raw!KF$4) -> 1.1657e-16 | KH2: =GETPIVOTDATA("Sum of POA",CMAQ_raw!$P$10,"JDAY",$C2,"SRC_CAT",CMAQ_raw!KG$3,"SRC_REGION",CMAQ_raw!KG$4) -> 1.1657e-16 | KI2: =GETPIVOTDATA("Sum of POA",CMAQ_raw!$P$10,"JDAY",$C2,"SRC_CAT",CMAQ_raw!KH$3,"SRC_REGION",CMAQ_raw!KH$4) -> 1.1657e-16 | KJ2: =GETPIVOTDATA("Sum of POA",CMAQ_raw!$P$10,"JDAY",$C2,"SRC_CAT",CMAQ_raw!KI$3,"SRC_REGION",CMAQ_raw!KI$4) -> 1.1657e-16 | KK2: =GETPIVOTDATA("Sum of POA",CMAQ_raw!$P$10,"JDAY",$C2,"SRC_CAT",CMAQ_raw!KJ$3,"SRC_REGION",CMAQ_raw!KJ$4) -> 2.2069e-12 | KL2: =GETPIVOTDATA("Sum of POA",CMAQ_raw!$P$10,"JDAY",$C2,"SRC_CAT",CMAQ_raw!KK$3,"SRC_REGION",CMAQ_raw!KK$4) -> 1.1657e-16 | KM2: =GETPIVOTDATA("Sum of POA",CMAQ_raw!$P$10,"JDAY",$C2,"SRC_CAT",CMAQ_raw!KL$3,"SRC_REGION",CMAQ_raw!KL$4) -> 1.1657e-16 | KN2: =GETPIVOTDATA("Sum of POA",CMAQ_raw!$P$10,"JDAY",$C2,"SRC_CAT",CMAQ_raw!KM$3,"SRC_REGION",CMAQ_raw!KM$4) -> 1.1657e-16 | KO2: =GETPIVOTDATA("Sum of POA",CMAQ_raw!$P$10,"JDAY",$C2,"SRC_CAT",CMAQ_raw!KN$3,"SRC_REGION",CMAQ_raw!KN$4) -> 1.1657e-16 | KP2: =GETPIVOTDATA("Sum of POA",CMAQ_raw!$P$10,"JDAY",$C2,"SRC_CAT",CMAQ_raw!KO$3,"SRC_REGION",CMAQ_raw!KO$4) -> 1.1657e-16 | KQ2: =GETPIVOTDATA("Sum of POA",CMAQ_raw!$P$10,"JDAY",$C2,"SRC_CAT",CMAQ_raw!KP$3,"SRC_REGION",CMAQ_raw!KP$4) -> 1.1657e-16 | KR2: =GETPIVOTDATA("Sum of POA",CMAQ_raw!$P$10,"JDAY",$C2,"SRC_CAT",CMAQ_raw!KQ$3,"SRC_REGION",CMAQ_raw!KQ$4) -> 1.1657e-16 | KS2: =GETPIVOTDATA("Sum of POA",CMAQ_raw!$P$10,"JDAY",$C2,"SRC_CAT",CMAQ_raw!KR$3,"SRC_REGION",CMAQ_raw!KR$4) -> 1.1657e-16 | KT2: =GETPIVOTDATA("Sum of POA",CMAQ_raw!$P$10,"JDAY",$C2,"SRC_CAT",CMAQ_raw!KS$3,"SRC_REGION",CMAQ_raw!KS$4) -> 1.2822e-10 | KU2: =GETPIVOTDATA("Sum of POA",CMAQ_raw!$P$10,"JDAY",$C2,"SRC_CAT",CMAQ_raw!KT$3,"SRC_REGION",CMAQ_raw!KT$4) -> 1.1657e-16 | KV2: =GETPIVOTDATA("Sum of POA",CMAQ_raw!$P$10,"JDAY",$C2,"SRC_CAT",CMAQ_raw!KU$3,"SRC_REGION",CMAQ_raw!KU$4) -> 1.1657e-16 | KW2: =GETPIVOTDATA("Sum of POA",CMAQ_raw!$P$10,"JDAY",$C2,"SRC_CAT",CMAQ_raw!KV$3,"SRC_REGION",CMAQ_raw!KV$4) -> 1.1657e-16 | KX2: =GETPIVOTDATA("Sum of POA",CMAQ_raw!$P$10,"JDAY",$C2,"SRC_CAT",CMAQ_raw!KW$3,"SRC_REGION",CMAQ_raw!KW$4) -> 1.1657e-16 | KY2: =GETPIVOTDATA("Sum of POA",CMAQ_raw!$P$10,"JDAY",$C2,"SRC_CAT",CMAQ_raw!KX$3,"SRC_REGION",CMAQ_raw!KX$4) -> 1.1657e-16 | KZ2: =GETPIVOTDATA("Sum of POA",CMAQ_raw!$P$10,"JDAY",$C2,"SRC_CAT",CMAQ_raw!KY$3,"SRC_REGION",CMAQ_raw!KY$4) -> 1.1657e-16 | LA2: =GETPIVOTDATA("Sum of POA",CMAQ_raw!$P$10,"JDAY",$C2,"SRC_CAT",CMAQ_raw!KZ$3,"SRC_REGION",CMAQ_raw!KZ$4) -> 1.1657e-16 | LB2: =GETPIVOTDATA("Sum of POA",CMAQ_raw!$P$10,"JDAY",$C2,"SRC_CAT",CMAQ_raw!LA$3,"SRC_REGION",CMAQ_raw!LA$4) -> 1.1657e-16 | LC2: =GETPIVOTDATA("Sum of POA",CMAQ_raw!$P$10,"JDAY",$C2,"SRC_CAT",CMAQ_raw!LB$3,"SRC_REGION",CMAQ_raw!LB$4) -> 1.1657e-16 | LD2: =GETPIVOTDATA("Sum of POA",CMAQ_raw!$P$10,"JDAY",$C2,"SRC_CAT",CMAQ_raw!LC$3,"SRC_REGION",CMAQ_raw!LC$4) -> 1.1657e-16 | LE2: =GETPIVOTDATA("Sum of POA",CMAQ_raw!$P$10,"JDAY",$C2,"SRC_CAT",CMAQ_raw!LD$3,"SRC_REGION",CMAQ_raw!LD$4) -> 1.1657e-16 | LF2: =GETPIVOTDATA("Sum of POA",CMAQ_raw!$P$10,"JDAY",$C2,"SRC_CAT",CMAQ_raw!LE$3,"SRC_REGION",CMAQ_raw!LE$4) -> 1.1657e-16 | LG2: =GETPIVOTDATA("Sum of POA",CMAQ_raw!$P$10,"JDAY",$C2,"SRC_CAT",CMAQ_raw!LF$3,"SRC_REGION",CMAQ_raw!LF$4) -> 1.1657e-16 | LH2: =GETPIVOTDATA("Sum of POA",CMAQ_raw!$P$10,"JDAY",$C2,"SRC_CAT",CMAQ_raw!LG$3,"SRC_REGION",CMAQ_raw!LG$4) -> 1.1657e-16 | LI2: =GETPIVOTDATA("Sum of POA",CMAQ_raw!$P$10,"JDAY",$C2,"SRC_CAT",CMAQ_raw!LH$3,"SRC_REGION",CMAQ_raw!LH$4) -> 1.1657e-16 | LJ2: =GETPIVOTDATA("Sum of POA",CMAQ_raw!$P$10,"JDAY",$C2,"SRC_CAT",CMAQ_raw!LI$3,"SRC_REGION",CMAQ_raw!LI$4) -> 1.1657e-16 | LK2: =GETPIVOTDATA("Sum of POA",CMAQ_raw!$P$10,"JDAY",$C2,"SRC_CAT",CMAQ_raw!LJ$3,"SRC_REGION",CMAQ_raw!LJ$4) -> 1.1657e-16 | LL2: =GETPIVOTDATA("Sum of POA",CMAQ_raw!$P$10,"JDAY",$C2,"SRC_CAT",CMAQ_raw!LK$3,"SRC_REGION",CMAQ_raw!LK$4) -> 1.1657e-16 | LM2: =GETPIVOTDATA("Sum of POA",CMAQ_raw!$P$10,"JDAY",$C2,"SRC_CAT",CMAQ_raw!LL$3,"SRC_REGION",CMAQ_raw!LL$4) -> 1.1657e-16 | LN2: =GETPIVOTDATA("Sum of POA",CMAQ_raw!$P$10,"JDAY",$C2,"SRC_CAT",CMAQ_raw!LM$3,"SRC_REGION",CMAQ_raw!LM$4) -> 1.1657e-16 | LO2: =GETPIVOTDATA("Sum of POA",CMAQ_raw!$P$10,"JDAY",$C2,"SRC_CAT",CMAQ_raw!LN$3,"SRC_REGION",CMAQ_raw!LN$4) -> 1.1657e-16 | LP2: =GETPIVOTDATA("Sum of POA",CMAQ_raw!$P$10,"JDAY",$C2,"SRC_CAT",CMAQ_raw!LO$3,"SRC_REGION",CMAQ_raw!LO$4) -> 2.574e-16 | LQ2: =GETPIVOTDATA("Sum of POA",CMAQ_raw!$P$10,"JDAY",$C2,"SRC_CAT",CMAQ_raw!LP$3,"SRC_REGION",CMAQ_raw!LP$4) -> 1.1657e-16 | LR2: =GETPIVOTDATA("Sum of POA",CMAQ_raw!$P$10,"JDAY",$C2,"SRC_CAT",CMAQ_raw!LQ$3,"SRC_REGION",CMAQ_raw!LQ$4) -> 1.1657e-16 | LS2: =GETPIVOTDATA("Sum of POA",CMAQ_raw!$P$10,"JDAY",$C2,"SRC_CAT",CMAQ_raw!LR$3,"SRC_REGION",CMAQ_raw!LR$4) -> 1.1688e-16 | LT2: =GETPIVOTDATA("Sum of POA",CMAQ_raw!$P$10,"JDAY",$C2,"SRC_CAT",CMAQ_raw!LS$3,"SRC_REGION",CMAQ_raw!LS$4) -> 0.030883 | LU2: =GETPIVOTDATA("Sum of POA",CMAQ_raw!$P$10,"JDAY",$C2,"SRC_CAT",CMAQ_raw!LT$3,"SRC_REGION",CMAQ_raw!LT$4) -> 4.4651e-05 | LV2: =GETPIVOTDATA("Sum of POA",CMAQ_raw!$P$10,"JDAY",$C2,"SRC_CAT",CMAQ_raw!LU$3,"SRC_REGION",CMAQ_raw!LU$4) -> 0.45657 | LW2: =GETPIVOTDATA("Sum of POA",CMAQ_raw!$P$10,"JDAY",$C2,"SRC_CAT",CMAQ_raw!LV$3,"SRC_REGION",CMAQ_raw!LV$4) -> 1.2691e-16 | LX2: =GETPIVOTDATA("Sum of POA",CMAQ_raw!$P$10,"JDAY",$C2,"SRC_CAT",CMAQ_raw!LW$3,"SRC_REGION",CMAQ_raw!LW$4) -> 0.0012654 | LY2: =GETPIVOTDATA("Sum of POA",CMAQ_raw!$P$10,"JDAY",$C2,"SRC_CAT",CMAQ_raw!LX$3,"SRC_REGION",CMAQ_raw!LX$4) -> 7.4729e-06 | LZ2: =GETPIVOTDATA("Sum of POA",CMAQ_raw!$P$10,"JDAY",$C2,"SRC_CAT",CMAQ_raw!LY$3,"SRC_REGION",CMAQ_raw!LY$4) -> 2.0828e-15 | MA2: =GETPIVOTDATA("Sum of POA",CMAQ_raw!$P$10,"JDAY",$C2,"SRC_CAT",CMAQ_raw!LZ$3,"SRC_REGION",CMAQ_raw!LZ$4) -> 0.00014248 | MB2: =GETPIVOTDATA("Sum of POA",CMAQ_raw!$P$10,"JDAY",$C2,"SRC_CAT",CMAQ_raw!MA$3,"SRC_REGION",CMAQ_raw!MA$4) -> 2.1106e-05 | MC2: =GETPIVOTDATA("Sum of POA",CMAQ_raw!$P$10,"JDAY",$C2,"SRC_CAT",CMAQ_raw!MB$3,"SRC_REGION",CMAQ_raw!MB$4) -> 0.00023107 | MD2: =GETPIVOTDATA("Sum of POA",CMAQ_raw!$P$10,"JDAY",$C2,"SRC_CAT",CMAQ_raw!MC$3,"SRC_REGION",CMAQ_raw!MC$4) -> 6.926e-16 | ME2: =GETPIVOTDATA("Sum of POA",CMAQ_raw!$P$10,"JDAY",$C2,"SRC_CAT",CMAQ_raw!MD$3,"SRC_REGION",CMAQ_raw!MD$4) -> 1.7481e-13 | MF2: =GETPIVOTDATA("Sum of POA",CMAQ_raw!$P$10,"JDAY",$C2,"SRC_CAT",CMAQ_raw!ME$3,"SRC_REGION",CMAQ_raw!ME$4) -> 2.9928e-15 | MG2: =GETPIVOTDATA("Sum of POA",CMAQ_raw!$P$10,"JDAY",$C2,"SRC_CAT",CMAQ_raw!MF$3,"SRC_REGION",CMAQ_raw!MF$4) -> 0.0091277 | MH2: =GETPIVOTDATA("Sum of POA",CMAQ_raw!$P$10,"JDAY",$C2,"SRC_CAT",CMAQ_raw!MG$3,"SRC_REGION",CMAQ_raw!MG$4) -> 0.12077 | MI2: =GETPIVOTDATA("Sum of POA",CMAQ_raw!$P$10,"JDAY",$C2,"SRC_CAT",CMAQ_raw!MH$3,"SRC_REGION",CMAQ_raw!MH$4) -> 4.9784e-16 | MJ2: =GETPIVOTDATA("Sum of POA",CMAQ_raw!$P$10,"JDAY",$C2,"SRC_CAT",CMAQ_raw!MI$3,"SRC_REGION",CMAQ_raw!MI$4) -> 0.043822 | MK2: =GETPIVOTDATA("Sum of POA",CMAQ_raw!$P$10,"JDAY",$C2,"SRC_CAT",CMAQ_raw!MJ$3,"SRC_REGION",CMAQ_raw!MJ$4) -> 2.0217e-05 | ML2: =GETPIVOTDATA("Sum of POA",CMAQ_raw!$P$10,"JDAY",$C2,"SRC_CAT",CMAQ_raw!MK$3,"SRC_REGION",CMAQ_raw!MK$4) -> 2.3083e-11 | MM2: =GETPIVOTDATA("Sum of POA",CMAQ_raw!$P$10,"JDAY",$C2,"SRC_CAT",CMAQ_raw!ML$3,"SRC_REGION",CMAQ_raw!ML$4) -> 4.3074e-06 | MN2: =GETPIVOTDATA("Sum of POA",CMAQ_raw!$P$10,"JDAY",$C2,"SRC_CAT",CMAQ_raw!MM$3,"SRC_REGION",CMAQ_raw!MM$4) -> 0.013875 | MO2: =GETPIVOTDATA("Sum of POA",CMAQ_raw!$P$10,"JDAY",$C2,"SRC_CAT",CMAQ_raw!MN$3,"SRC_REGION",CMAQ_raw!MN$4) -> 1.1657e-16 | MQ2: =GETPIVOTDATA("Sum of PEC",CMAQ_raw!$P$10,"JDAY",$C2,"SRC_CAT",CMAQ_raw!MP$3,"SRC_REGION",CMAQ_raw!MP$4) -> 1.1133e-16 | MR2: =GETPIVOTDATA("Sum of PEC",CMAQ_raw!$P$10,"JDAY",$C2,"SRC_CAT",CMAQ_raw!MQ$3,"SRC_REGION",CMAQ_raw!MQ$4) -> 1.1133e-16 | MS2: =GETPIVOTDATA("Sum of PEC",CMAQ_raw!$P$10,"JDAY",$C2,"SRC_CAT",CMAQ_raw!MR$3,"SRC_REGION",CMAQ_raw!MR$4) -> 1.1133e-16 | MT2: =GETPIVOTDATA("Sum of PEC",CMAQ_raw!$P$10,"JDAY",$C2,"SRC_CAT",CMAQ_raw!MS$3,"SRC_REGION",CMAQ_raw!MS$4) -> 1.1133e-16 | MU2: =GETPIVOTDATA("Sum of PEC",CMAQ_raw!$P$10,"JDAY",$C2,"SRC_CAT",CMAQ_raw!MT$3,"SRC_REGION",CMAQ_raw!MT$4) -> 1.1133e-16 | MV2: =GETPIVOTDATA("Sum of PEC",CMAQ_raw!$P$10,"JDAY",$C2,"SRC_CAT",CMAQ_raw!MU$3,"SRC_REGION",CMAQ_raw!MU$4) -> 1.1133e-16 | MW2: =GETPIVOTDATA("Sum of PEC",CMAQ_raw!$P$10,"JDAY",$C2,"SRC_CAT",CMAQ_raw!MV$3,"SRC_REGION",CMAQ_raw!MV$4) -> 1.1133e-16 | MX2: =GETPIVOTDATA("Sum of PEC",CMAQ_raw!$P$10,"JDAY",$C2,"SRC_CAT",CMAQ_raw!MW$3,"SRC_REGION",CMAQ_raw!MW$4) -> 1.1133e-16 | MY2: =GETPIVOTDATA("Sum of PEC",CMAQ_raw!$P$10,"JDAY",$C2,"SRC_CAT",CMAQ_raw!MX$3,"SRC_REGION",CMAQ_raw!MX$4) -> 1.1133e-16 | MZ2: =GETPIVOTDATA("Sum of PEC",CMAQ_raw!$P$10,"JDAY",$C2,"SRC_CAT",CMAQ_raw!MY$3,"SRC_REGION",CMAQ_raw!MY$4) -> 1.1133e-16 | NA2: =GETPIVOTDATA("Sum of PEC",CMAQ_raw!$P$10,"JDAY",$C2,"SRC_CAT",CMAQ_raw!MZ$3,"SRC_REGION",CMAQ_raw!MZ$4) -> 1.1133e-16 | NB2: =GETPIVOTDATA("Sum of PEC",CMAQ_raw!$P$10,"JDAY",$C2,"SRC_CAT",CMAQ_raw!NA$3,"SRC_REGION",CMAQ_raw!NA$4) -> 1.1133e-16 | NC2: =GETPIVOTDATA("Sum of PEC",CMAQ_raw!$P$10,"JDAY",$C2,"SRC_CAT",CMAQ_raw!NB$3,"SRC_REGION",CMAQ_raw!NB$4) -> 1.1133e-16 | ND2: =GETPIVOTDATA("Sum of PEC",CMAQ_raw!$P$10,"JDAY",$C2,"SRC_CAT",CMAQ_raw!NC$3,"SRC_REGION",CMAQ_raw!NC$4) -> 1.1133e-16 | NE2: =GETPIVOTDATA("Sum of PEC",CMAQ_raw!$P$10,"JDAY",$C2,"SRC_CAT",CMAQ_raw!ND$3,"SRC_REGION",CMAQ_raw!ND$4) -> 1.1133e-16 | NF2: =GETPIVOTDATA("Sum of PEC",CMAQ_raw!$P$10,"JDAY",$C2,"SRC_CAT",CMAQ_raw!NE$3,"SRC_REGION",CMAQ_raw!NE$4) -> 1.1133e-16 | NG2: =GETPIVOTDATA("Sum of PEC",CMAQ_raw!$P$10,"JDAY",$C2,"SRC_CAT",CMAQ_raw!NF$3,"SRC_REGION",CMAQ_raw!NF$4) -> 1.1133e-16 | NH2: =GETPIVOTDATA("Sum of PEC",CMAQ_raw!$P$10,"JDAY",$C2,"SRC_CAT",CMAQ_raw!NG$3,"SRC_REGION",CMAQ_raw!NG$4) -> 1.1133e-16 | NI2: =GETPIVOTDATA("Sum of PEC",CMAQ_raw!$P$10,"JDAY",$C2,"SRC_CAT",CMAQ_raw!NH$3,"SRC_REGION",CMAQ_raw!NH$4) -> 1.1133e-16 | NJ2: =GETPIVOTDATA("Sum of PEC",CMAQ_raw!$P$10,"JDAY",$C2,"SRC_CAT",CMAQ_raw!NI$3,"SRC_REGION",CMAQ_raw!NI$4) -> 1.1133e-16 | NK2: =GETPIVOTDATA("Sum of PEC",CMAQ_raw!$P$10,"JDAY",$C2,"SRC_CAT",CMAQ_raw!NJ$3,"SRC_REGION",CMAQ_raw!NJ$4) -> 1.1133e-16 | NL2: =GETPIVOTDATA("Sum of PEC",CMAQ_raw!$P$10,"JDAY",$C2,"SRC_CAT",CMAQ_raw!NK$3,"SRC_REGION",CMAQ_raw!NK$4) -> 1.1133e-16 | NM2: =GETPIVOTDATA("Sum of PEC",CMAQ_raw!$P$10,"JDAY",$C2,"SRC_CAT",CMAQ_raw!NL$3,"SRC_REGION",CMAQ_raw!NL$4) -> 1.1133e-16 | NN2: =GETPIVOTDATA("Sum of PEC",CMAQ_raw!$P$10,"JDAY",$C2,"SRC_CAT",CMAQ_raw!NM$3,"SRC_REGION",CMAQ_raw!NM$4) -> 1.1133e-16 | NO2: =GETPIVOTDATA("Sum of PEC",CMAQ_raw!$P$10,"JDAY",$C2,"SRC_CAT",CMAQ_raw!NN$3,"SRC_REGION",CMAQ_raw!NN$4) -> 1.1133e-16 | NP2: =GETPIVOTDATA("Sum of PEC",CMAQ_raw!$P$10,"JDAY",$C2,"SRC_CAT",CMAQ_raw!NO$3,"SRC_REGION",CMAQ_raw!NO$4) -> 1.1133e-16 | NQ2: =GETPIVOTDATA("Sum of PEC",CMAQ_raw!$P$10,"JDAY",$C2,"SRC_CAT",CMAQ_raw!NP$3,"SRC_REGION",CMAQ_raw!NP$4) -> 1.1133e-16 | NR2: =GETPIVOTDATA("Sum of PEC",CMAQ_raw!$P$10,"JDAY",$C2,"SRC_CAT",CMAQ_raw!NQ$3,"SRC_REGION",CMAQ_raw!NQ$4) -> 1.1133e-16 | NS2: =GETPIVOTDATA("Sum of PEC",CMAQ_raw!$P$10,"JDAY",$C2,"SRC_CAT",CMAQ_raw!NR$3,"SRC_REGION",CMAQ_raw!NR$4) -> 1.1133e-16 | NT2: =GETPIVOTDATA("Sum of PEC",CMAQ_raw!$P$10,"JDAY",$C2,"SRC_CAT",CMAQ_raw!NS$3,"SRC_REGION",CMAQ_raw!NS$4) -> 1.1133e-16 | NU2: =GETPIVOTDATA("Sum of PEC",CMAQ_raw!$P$10,"JDAY",$C2,"SRC_CAT",CMAQ_raw!NT$3,"SRC_REGION",CMAQ_raw!NT$4) -> 1.1133e-16 | NV2: =GETPIVOTDATA("Sum of PEC",CMAQ_raw!$P$10,"JDAY",$C2,"SRC_CAT",CMAQ_raw!NU$3,"SRC_REGION",CMAQ_raw!NU$4) -> 1.1133e-16 | NW2: =GETPIVOTDATA("Sum of PEC",CMAQ_raw!$P$10,"JDAY",$C2,"SRC_CAT",CMAQ_raw!NV$3,"SRC_REGION",CMAQ_raw!NV$4) -> 1.1133e-16 | NX2: =GETPIVOTDATA("Sum of PEC",CMAQ_raw!$P$10,"JDAY",$C2,"SRC_CAT",CMAQ_raw!NW$3,"SRC_REGION",CMAQ_raw!NW$4) -> 1.1133e-16 | NY2: =GETPIVOTDATA("Sum of PEC",CMAQ_raw!$P$10,"JDAY",$C2,"SRC_CAT",CMAQ_raw!NX$3,"SRC_REGION",CMAQ_raw!NX$4) -> 1.1133e-16 | NZ2: =GETPIVOTDATA("Sum of PEC",CMAQ_raw!$P$10,"JDAY",$C2,"SRC_CAT",CMAQ_raw!NY$3,"SRC_REGION",CMAQ_raw!NY$4) -> 1.1133e-16 | OA2: =GETPIVOTDATA("Sum of PEC",CMAQ_raw!$P$10,"JDAY",$C2,"SRC_CAT",CMAQ_raw!NZ$3,"SRC_REGION",CMAQ_raw!NZ$4) -> 1.1133e-16 | OB2: =GETPIVOTDATA("Sum of PEC",CMAQ_raw!$P$10,"JDAY",$C2,"SRC_CAT",CMAQ_raw!OA$3,"SRC_REGION",CMAQ_raw!OA$4) -> 1.1133e-16 | OC2: =GETPIVOTDATA("Sum of PEC",CMAQ_raw!$P$10,"JDAY",$C2,"SRC_CAT",CMAQ_raw!OB$3,"SRC_REGION",CMAQ_raw!OB$4) -> 1.1133e-16 | OD2: =GETPIVOTDATA("Sum of PEC",CMAQ_raw!$P$10,"JDAY",$C2,"SRC_CAT",CMAQ_raw!OC$3,"SRC_REGION",CMAQ_raw!OC$4) -> 3.6605e-13 | OE2: =GETPIVOTDATA("Sum of PEC",CMAQ_raw!$P$10,"JDAY",$C2,"SRC_CAT",CMAQ_raw!OD$3,"SRC_REGION",CMAQ_raw!OD$4) -> 1.1133e-16 | OF2: =GETPIVOTDATA("Sum of PEC",CMAQ_raw!$P$10,"JDAY",$C2,"SRC_CAT",CMAQ_raw!OE$3,"SRC_REGION",CMAQ_raw!OE$4) -> 1.1133e-16 | OG2: =GETPIVOTDATA("Sum of PEC",CMAQ_raw!$P$10,"JDAY",$C2,"SRC_CAT",CMAQ_raw!OF$3,"SRC_REGION",CMAQ_raw!OF$4) -> 1.1133e-16 | OH2: =GETPIVOTDATA("Sum of PEC",CMAQ_raw!$P$10,"JDAY",$C2,"SRC_CAT",CMAQ_raw!OG$3,"SRC_REGION",CMAQ_raw!OG$4) -> 1.9124e-15 | OI2: =GETPIVOTDATA("Sum of PEC",CMAQ_raw!$P$10,"JDAY",$C2,"SRC_CAT",CMAQ_raw!OH$3,"SRC_REGION",CMAQ_raw!OH$4) -> 1.1133e-16 | OJ2: =GETPIVOTDATA("Sum of PEC",CMAQ_raw!$P$10,"JDAY",$C2,"SRC_CAT",CMAQ_raw!OI$3,"SRC_REGION",CMAQ_raw!OI$4) -> 1.1133e-16 | OK2: =GETPIVOTDATA("Sum of PEC",CMAQ_raw!$P$10,"JDAY",$C2,"SRC_CAT",CMAQ_raw!OJ$3,"SRC_REGION",CMAQ_raw!OJ$4) -> 1.1133e-16 | OL2: =GETPIVOTDATA("Sum of PEC",CMAQ_raw!$P$10,"JDAY",$C2,"SRC_CAT",CMAQ_raw!OK$3,"SRC_REGION",CMAQ_raw!OK$4) -> 1.1133e-16 | OM2: =GETPIVOTDATA("Sum of PEC",CMAQ_raw!$P$10,"JDAY",$C2,"SRC_CAT",CMAQ_raw!OL$3,"SRC_REGION",CMAQ_raw!OL$4) -> 1.1133e-16 | ON2: =GETPIVOTDATA("Sum of PEC",CMAQ_raw!$P$10,"JDAY",$C2,"SRC_CAT",CMAQ_raw!OM$3,"SRC_REGION",CMAQ_raw!OM$4) -> 1.1133e-16 | OO2: =GETPIVOTDATA("Sum of PEC",CMAQ_raw!$P$10,"JDAY",$C2,"SRC_CAT",CMAQ_raw!ON$3,"SRC_REGION",CMAQ_raw!ON$4) -> 1.0961e-12 | OP2: =GETPIVOTDATA("Sum of PEC",CMAQ_raw!$P$10,"JDAY",$C2,"SRC_CAT",CMAQ_raw!OO$3,"SRC_REGION",CMAQ_raw!OO$4) -> 1.1133e-16 | OQ2: =GETPIVOTDATA("Sum of PEC",CMAQ_raw!$P$10,"JDAY",$C2,"SRC_CAT",CMAQ_raw!OP$3,"SRC_REGION",CMAQ_raw!OP$4) -> 1.1133e-16 | OR2: =GETPIVOTDATA("Sum of PEC",CMAQ_raw!$P$10,"JDAY",$C2,"SRC_CAT",CMAQ_raw!OQ$3,"SRC_REGION",CMAQ_raw!OQ$4) -> 1.1133e-16 | OS2: =GETPIVOTDATA("Sum of PEC",CMAQ_raw!$P$10,"JDAY",$C2,"SRC_CAT",CMAQ_raw!OR$3,"SRC_REGION",CMAQ_raw!OR$4) -> 1.1133e-16 | OT2: =GETPIVOTDATA("Sum of PEC",CMAQ_raw!$P$10,"JDAY",$C2,"SRC_CAT",CMAQ_raw!OS$3,"SRC_REGION",CMAQ_raw!OS$4) -> 1.1133e-16 | OU2: =GETPIVOTDATA("Sum of PEC",CMAQ_raw!$P$10,"JDAY",$C2,"SRC_CAT",CMAQ_raw!OT$3,"SRC_REGION",CMAQ_raw!OT$4) -> 1.1133e-16 | OV2: =GETPIVOTDATA("Sum of PEC",CMAQ_raw!$P$10,"JDAY",$C2,"SRC_CAT",CMAQ_raw!OU$3,"SRC_REGION",CMAQ_raw!OU$4) -> 1.1133e-16 | OW2: =GETPIVOTDATA("Sum of PEC",CMAQ_raw!$P$10,"JDAY",$C2,"SRC_CAT",CMAQ_raw!OV$3,"SRC_REGION",CMAQ_raw!OV$4) -> 1.1133e-16 | OX2: =GETPIVOTDATA("Sum of PEC",CMAQ_raw!$P$10,"JDAY",$C2,"SRC_CAT",CMAQ_raw!OW$3,"SRC_REGION",CMAQ_raw!OW$4) -> 5.6363e-11 | OY2: =GETPIVOTDATA("Sum of PEC",CMAQ_raw!$P$10,"JDAY",$C2,"SRC_CAT",CMAQ_raw!OX$3,"SRC_REGION",CMAQ_raw!OX$4) -> 1.1133e-16 | OZ2: =GETPIVOTDATA("Sum of PEC",CMAQ_raw!$P$10,"JDAY",$C2,"SRC_CAT",CMAQ_raw!OY$3,"SRC_REGION",CMAQ_raw!OY$4) -> 1.1133e-16 | PA2: =GETPIVOTDATA("Sum of PEC",CMAQ_raw!$P$10,"JDAY",$C2,"SRC_CAT",CMAQ_raw!OZ$3,"SRC_REGION",CMAQ_raw!OZ$4) -> 1.1133e-16 | PB2: =GETPIVOTDATA("Sum of PEC",CMAQ_raw!$P$10,"JDAY",$C2,"SRC_CAT",CMAQ_raw!PA$3,"SRC_REGION",CMAQ_raw!PA$4) -> 1.1133e-16 | PC2: =GETPIVOTDATA("Sum of PEC",CMAQ_raw!$P$10,"JDAY",$C2,"SRC_CAT",CMAQ_raw!PB$3,"SRC_REGION",CMAQ_raw!PB$4) -> 1.1133e-16 | PD2: =GETPIVOTDATA("Sum of PEC",CMAQ_raw!$P$10,"JDAY",$C2,"SRC_CAT",CMAQ_raw!PC$3,"SRC_REGION",CMAQ_raw!PC$4) -> 1.1133e-16 | PE2: =GETPIVOTDATA("Sum of PEC",CMAQ_raw!$P$10,"JDAY",$C2,"SRC_CAT",CMAQ_raw!PD$3,"SRC_REGION",CMAQ_raw!PD$4) -> 1.1133e-16 | PF2: =GETPIVOTDATA("Sum of PEC",CMAQ_raw!$P$10,"JDAY",$C2,"SRC_CAT",CMAQ_raw!PE$3,"SRC_REGION",CMAQ_raw!PE$4) -> 1.1133e-16 | PG2: =GETPIVOTDATA("Sum of PEC",CMAQ_raw!$P$10,"JDAY",$C2,"SRC_CAT",CMAQ_raw!PF$3,"SRC_REGION",CMAQ_raw!PF$4) -> 1.1133e-16 | PH2: =GETPIVOTDATA("Sum of PEC",CMAQ_raw!$P$10,"JDAY",$C2,"SRC_CAT",CMAQ_raw!PG$3,"SRC_REGION",CMAQ_raw!PG$4) -> 1.1133e-16 | PI2: =GETPIVOTDATA("Sum of PEC",CMAQ_raw!$P$10,"JDAY",$C2,"SRC_CAT",CMAQ_raw!PH$3,"SRC_REGION",CMAQ_raw!PH$4) -> 1.1133e-16 | PJ2: =GETPIVOTDATA("Sum of PEC",CMAQ_raw!$P$10,"JDAY",$C2,"SRC_CAT",CMAQ_raw!PI$3,"SRC_REGION",CMAQ_raw!PI$4) -> 1.1133e-16 | PK2: =GETPIVOTDATA("Sum of PEC",CMAQ_raw!$P$10,"JDAY",$C2,"SRC_CAT",CMAQ_raw!PJ$3,"SRC_REGION",CMAQ_raw!PJ$4) -> 1.1133e-16 | PL2: =GETPIVOTDATA("Sum of PEC",CMAQ_raw!$P$10,"JDAY",$C2,"SRC_CAT",CMAQ_raw!PK$3,"SRC_REGION",CMAQ_raw!PK$4) -> 1.1133e-16 | PM2: =GETPIVOTDATA("Sum of PEC",CMAQ_raw!$P$10,"JDAY",$C2,"SRC_CAT",CMAQ_raw!PL$3,"SRC_REGION",CMAQ_raw!PL$4) -> 1.1133e-16 | PN2: =GETPIVOTDATA("Sum of PEC",CMAQ_raw!$P$10,"JDAY",$C2,"SRC_CAT",CMAQ_raw!PM$3,"SRC_REGION",CMAQ_raw!PM$4) -> 1.1133e-16 | PO2: =GETPIVOTDATA("Sum of PEC",CMAQ_raw!$P$10,"JDAY",$C2,"SRC_CAT",CMAQ_raw!PN$3,"SRC_REGION",CMAQ_raw!PN$4) -> 1.1133e-16 | PP2: =GETPIVOTDATA("Sum of PEC",CMAQ_raw!$P$10,"JDAY",$C2,"SRC_CAT",CMAQ_raw!PO$3,"SRC_REGION",CMAQ_raw!PO$4) -> 1.1133e-16 | PQ2: =GETPIVOTDATA("Sum of PEC",CMAQ_raw!$P$10,"JDAY",$C2,"SRC_CAT",CMAQ_raw!PP$3,"SRC_REGION",CMAQ_raw!PP$4) -> 1.1133e-16 | PR2: =GETPIVOTDATA("Sum of PEC",CMAQ_raw!$P$10,"JDAY",$C2,"SRC_CAT",CMAQ_raw!PQ$3,"SRC_REGION",CMAQ_raw!PQ$4) -> 1.1133e-16 | PS2: =GETPIVOTDATA("Sum of PEC",CMAQ_raw!$P$10,"JDAY",$C2,"SRC_CAT",CMAQ_raw!PR$3,"SRC_REGION",CMAQ_raw!PR$4) -> 1.1133e-16 | PT2: =GETPIVOTDATA("Sum of PEC",CMAQ_raw!$P$10,"JDAY",$C2,"SRC_CAT",CMAQ_raw!PS$3,"SRC_REGION",CMAQ_raw!PS$4) -> 1.3557e-16 | PU2: =GETPIVOTDATA("Sum of PEC",CMAQ_raw!$P$10,"JDAY",$C2,"SRC_CAT",CMAQ_raw!PT$3,"SRC_REGION",CMAQ_raw!PT$4) -> 1.1133e-16 | PV2: =GETPIVOTDATA("Sum of PEC",CMAQ_raw!$P$10,"JDAY",$C2,"SRC_CAT",CMAQ_raw!PU$3,"SRC_REGION",CMAQ_raw!PU$4) -> 1.1133e-16 | PW2: =GETPIVOTDATA("Sum of PEC",CMAQ_raw!$P$10,"JDAY",$C2,"SRC_CAT",CMAQ_raw!PV$3,"SRC_REGION",CMAQ_raw!PV$4) -> 1.1142e-16 | PX2: =GETPIVOTDATA("Sum of PEC",CMAQ_raw!$P$10,"JDAY",$C2,"SRC_CAT",CMAQ_raw!PW$3,"SRC_REGION",CMAQ_raw!PW$4) -> 0.0059912 | PY2: =GETPIVOTDATA("Sum of PEC",CMAQ_raw!$P$10,"JDAY",$C2,"SRC_CAT",CMAQ_raw!PX$3,"SRC_REGION",CMAQ_raw!PX$4) -> 1.588e-05 | PZ2: =GETPIVOTDATA("Sum of PEC",CMAQ_raw!$P$10,"JDAY",$C2,"SRC_CAT",CMAQ_raw!PY$3,"SRC_REGION",CMAQ_raw!PY$4) -> 0.048996 | QA2: =GETPIVOTDATA("Sum of PEC",CMAQ_raw!$P$10,"JDAY",$C2,"SRC_CAT",CMAQ_raw!PZ$3,"SRC_REGION",CMAQ_raw!PZ$4) -> 1.1388e-16 | QB2: =GETPIVOTDATA("Sum of PEC",CMAQ_raw!$P$10,"JDAY",$C2,"SRC_CAT",CMAQ_raw!QA$3,"SRC_REGION",CMAQ_raw!QA$4) -> 0.00034372 | QC2: =GETPIVOTDATA("Sum of PEC",CMAQ_raw!$P$10,"JDAY",$C2,"SRC_CAT",CMAQ_raw!QB$3,"SRC_REGION",CMAQ_raw!QB$4) -> 2.2065e-06 | QD2: =GETPIVOTDATA("Sum of PEC",CMAQ_raw!$P$10,"JDAY",$C2,"SRC_CAT",CMAQ_raw!QC$3,"SRC_REGION",CMAQ_raw!QC$4) -> 9.5166e-16 | QE2: =GETPIVOTDATA("Sum of PEC",CMAQ_raw!$P$10,"JDAY",$C2,"SRC_CAT",CMAQ_raw!QD$3,"SRC_REGION",CMAQ_raw!QD$4) -> 4.5438e-05 | QF2: =GETPIVOTDATA("Sum of PEC",CMAQ_raw!$P$10,"JDAY",$C2,"SRC_CAT",CMAQ_raw!QE$3,"SRC_REGION",CMAQ_raw!QE$4) -> 1.0726e-05 | QG2: =GETPIVOTDATA("Sum of PEC",CMAQ_raw!$P$10,"JDAY",$C2,"SRC_CAT",CMAQ_raw!QF$3,"SRC_REGION",CMAQ_raw!QF$4) -> 7.5919e-05 | QH2: =GETPIVOTDATA("Sum of PEC",CMAQ_raw!$P$10,"JDAY",$C2,"SRC_CAT",CMAQ_raw!QG$3,"SRC_REGION",CMAQ_raw!QG$4) -> 2.9518e-16 | QI2: =GETPIVOTDATA("Sum of PEC",CMAQ_raw!$P$10,"JDAY",$C2,"SRC_CAT",CMAQ_raw!QH$3,"SRC_REGION",CMAQ_raw!QH$4) -> 1.0424e-13 | QJ2: =GETPIVOTDATA("Sum of PEC",CMAQ_raw!$P$10,"JDAY",$C2,"SRC_CAT",CMAQ_raw!QI$3,"SRC_REGION",CMAQ_raw!QI$4) -> 1.0629e-15 | QK2: =GETPIVOTDATA("Sum of PEC",CMAQ_raw!$P$10,"JDAY",$C2,"SRC_CAT",CMAQ_raw!QJ$3,"SRC_REGION",CMAQ_raw!QJ$4) -> 0.0018365 | QL2: =GETPIVOTDATA("Sum of PEC",CMAQ_raw!$P$10,"JDAY",$C2,"SRC_CAT",CMAQ_raw!QK$3,"SRC_REGION",CMAQ_raw!QK$4) -> 0.028147 | QM2: =GETPIVOTDATA("Sum of PEC",CMAQ_raw!$P$10,"JDAY",$C2,"SRC_CAT",CMAQ_raw!QL$3,"SRC_REGION",CMAQ_raw!QL$4) -> 2.7804e-16 | QN2: =GETPIVOTDATA("Sum of PEC",CMAQ_raw!$P$10,"JDAY",$C2,"SRC_CAT",CMAQ_raw!QM$3,"SRC_REGION",CMAQ_raw!QM$4) -> 0.0041405 | QO2: =GETPIVOTDATA("Sum of PEC",CMAQ_raw!$P$10,"JDAY",$C2,"SRC_CAT",CMAQ_raw!QN$3,"SRC_REGION",CMAQ_raw!QN$4) -> 7.1488e-06 | QP2: =GETPIVOTDATA("Sum of PEC",CMAQ_raw!$P$10,"JDAY",$C2,"SRC_CAT",CMAQ_raw!QO$3,"SRC_REGION",CMAQ_raw!QO$4) -> 6.5971e-12 | QQ2: =GETPIVOTDATA("Sum of PEC",CMAQ_raw!$P$10,"JDAY",$C2,"SRC_CAT",CMAQ_raw!QP$3,"SRC_REGION",CMAQ_raw!QP$4) -> 1.7494e-06 | QR2: =GETPIVOTDATA("Sum of PEC",CMAQ_raw!$P$10,"JDAY",$C2,"SRC_CAT",CMAQ_raw!QQ$3,"SRC_REGION",CMAQ_raw!QQ$4) -> 0.0043031 | QS2: =GETPIVOTDATA("Sum of PEC",CMAQ_raw!$P$10,"JDAY",$C2,"SRC_CAT",CMAQ_raw!QR$3,"SRC_REGION",CMAQ_raw!QR$4) -> 1.1133e-16 | QU2: =GETPIVOTDATA("Sum of OPF",CMAQ_raw!$P$10,"JDAY",$C2,"SRC_CAT",CMAQ_raw!QT$3,"SRC_REGION",CMAQ_raw!QT$4) -> 2.7446e-16 | QV2: =GETPIVOTDATA("Sum of OPF",CMAQ_raw!$P$10,"JDAY",$C2,"SRC_CAT",CMAQ_raw!QU$3,"SRC_REGION",CMAQ_raw!QU$4) -> 1.3438e-11 | QW2: =GETPIVOTDATA("Sum of OPF",CMAQ_raw!$P$10,"JDAY",$C2,"SRC_CAT",CMAQ_raw!QV$3,"SRC_REGION",CMAQ_raw!QV$4) -> 2.7452e-16 | QX2: =GETPIVOTDATA("Sum of OPF",CMAQ_raw!$P$10,"JDAY",$C2,"SRC_CAT",CMAQ_raw!QW$3,"SRC_REGION",CMAQ_raw!QW$4) -> 1.3175e-09 | QY2: =GETPIVOTDATA("Sum of OPF",CMAQ_raw!$P$10,"JDAY",$C2,"SRC_CAT",CMAQ_raw!QX$3,"SRC_REGION",CMAQ_raw!QX$4) -> 2.7446e-16 | QZ2: =GETPIVOTDATA("Sum of OPF",CMAQ_raw!$P$10,"JDAY",$C2,"SRC_CAT",CMAQ_raw!QY$3,"SRC_REGION",CMAQ_raw!QY$4) -> 2.7446e-16 | RA2: =GETPIVOTDATA("Sum of OPF",CMAQ_raw!$P$10,"JDAY",$C2,"SRC_CAT",CMAQ_raw!QZ$3,"SRC_REGION",CMAQ_raw!QZ$4) -> 2.7446e-16 | RB2: =GETPIVOTDATA("Sum of OPF",CMAQ_raw!$P$10,"JDAY",$C2,"SRC_CAT",CMAQ_raw!RA$3,"SRC_REGION",CMAQ_raw!RA$4) -> 2.7446e-16 | RC2: =GETPIVOTDATA("Sum of OPF",CMAQ_raw!$P$10,"JDAY",$C2,"SRC_CAT",CMAQ_raw!RB$3,"SRC_REGION",CMAQ_raw!RB$4) -> 2.7446e-16 | RD2: =GETPIVOTDATA("Sum of OPF",CMAQ_raw!$P$10,"JDAY",$C2,"SRC_CAT",CMAQ_raw!RC$3,"SRC_REGION",CMAQ_raw!RC$4) -> 2.7446e-16 | RE2: =GETPIVOTDATA("Sum of OPF",CMAQ_raw!$P$10,"JDAY",$C2,"SRC_CAT",CMAQ_raw!RD$3,"SRC_REGION",CMAQ_raw!RD$4) -> 2.7446e-16 | RF2: =GETPIVOTDATA("Sum of OPF",CMAQ_raw!$P$10,"JDAY",$C2,"SRC_CAT",CMAQ_raw!RE$3,"SRC_REGION",CMAQ_raw!RE$4) -> 2.7446e-16 | RG2: =GETPIVOTDATA("Sum of OPF",CMAQ_raw!$P$10,"JDAY",$C2,"SRC_CAT",CMAQ_raw!RF$3,"SRC_REGION",CMAQ_raw!RF$4) -> 2.7446e-16 | RH2: =GETPIVOTDATA("Sum of OPF",CMAQ_raw!$P$10,"JDAY",$C2,"SRC_CAT",CMAQ_raw!RG$3,"SRC_REGION",CMAQ_raw!RG$4) -> 2.7446e-16 | RI2: =GETPIVOTDATA("Sum of OPF",CMAQ_raw!$P$10,"JDAY",$C2,"SRC_CAT",CMAQ_raw!RH$3,"SRC_REGION",CMAQ_raw!RH$4) -> 2.7446e-16 | RJ2: =GETPIVOTDATA("Sum of OPF",CMAQ_raw!$P$10,"JDAY",$C2,"SRC_CAT",CMAQ_raw!RI$3,"SRC_REGION",CMAQ_raw!RI$4) -> 2.7446e-16 | RK2: =GETPIVOTDATA("Sum of OPF",CMAQ_raw!$P$10,"JDAY",$C2,"SRC_CAT",CMAQ_raw!RJ$3,"SRC_REGION",CMAQ_raw!RJ$4) -> 2.7446e-16 | RL2: =GETPIVOTDATA("Sum of OPF",CMAQ_raw!$P$10,"JDAY",$C2,"SRC_CAT",CMAQ_raw!RK$3,"SRC_REGION",CMAQ_raw!RK$4) -> 8.886e-05 | RM2: =GETPIVOTDATA("Sum of OPF",CMAQ_raw!$P$10,"JDAY",$C2,"SRC_CAT",CMAQ_raw!RL$3,"SRC_REGION",CMAQ_raw!RL$4) -> 2.7446e-16 | RN2: =GETPIVOTDATA("Sum of OPF",CMAQ_raw!$P$10,"JDAY",$C2,"SRC_CAT",CMAQ_raw!RM$3,"SRC_REGION",CMAQ_raw!RM$4) -> 9.3992e-15 | RO2: =GETPIVOTDATA("Sum of OPF",CMAQ_raw!$P$10,"JDAY",$C2,"SRC_CAT",CMAQ_raw!RN$3,"SRC_REGION",CMAQ_raw!RN$4) -> 2.7446e-16 | RP2: =GETPIVOTDATA("Sum of OPF",CMAQ_raw!$P$10,"JDAY",$C2,"SRC_CAT",CMAQ_raw!RO$3,"SRC_REGION",CMAQ_raw!RO$4) -> 2.7446e-16 | RQ2: =GETPIVOTDATA("Sum of OPF",CMAQ_raw!$P$10,"JDAY",$C2,"SRC_CAT",CMAQ_raw!RP$3,"SRC_REGION",CMAQ_raw!RP$4) -> 2.7446e-16 | RR2: =GETPIVOTDATA("Sum of OPF",CMAQ_raw!$P$10,"JDAY",$C2,"SRC_CAT",CMAQ_raw!RQ$3,"SRC_REGION",CMAQ_raw!RQ$4) -> 2.7446e-16 | RS2: =GETPIVOTDATA("Sum of OPF",CMAQ_raw!$P$10,"JDAY",$C2,"SRC_CAT",CMAQ_raw!RR$3,"SRC_REGION",CMAQ_raw!RR$4) -> 2.7446e-16 | RT2: =GETPIVOTDATA("Sum of OPF",CMAQ_raw!$P$10,"JDAY",$C2,"SRC_CAT",CMAQ_raw!RS$3,"SRC_REGION",CMAQ_raw!RS$4) -> 2.7446e-16 | RU2: =GETPIVOTDATA("Sum of OPF",CMAQ_raw!$P$10,"JDAY",$C2,"SRC_CAT",CMAQ_raw!RT$3,"SRC_REGION",CMAQ_raw!RT$4) -> 2.7446e-16 | RV2: =GETPIVOTDATA("Sum of OPF",CMAQ_raw!$P$10,"JDAY",$C2,"SRC_CAT",CMAQ_raw!RU$3,"SRC_REGION",CMAQ_raw!RU$4) -> 2.7446e-16 | RW2: =GETPIVOTDATA("Sum of OPF",CMAQ_raw!$P$10,"JDAY",$C2,"SRC_CAT",CMAQ_raw!RV$3,"SRC_REGION",CMAQ_raw!RV$4) -> 2.7446e-16 | RX2: =GETPIVOTDATA("Sum of OPF",CMAQ_raw!$P$10,"JDAY",$C2,"SRC_CAT",CMAQ_raw!RW$3,"SRC_REGION",CMAQ_raw!RW$4) -> 2.7446e-16 | RY2: =GETPIVOTDATA("Sum of OPF",CMAQ_raw!$P$10,"JDAY",$C2,"SRC_CAT",CMAQ_raw!RX$3,"SRC_REGION",CMAQ_raw!RX$4) -> 2.7446e-16 | RZ2: =GETPIVOTDATA("Sum of OPF",CMAQ_raw!$P$10,"JDAY",$C2,"SRC_CAT",CMAQ_raw!RY$3,"SRC_REGION",CMAQ_raw!RY$4) -> 2.7446e-16 | SA2: =GETPIVOTDATA("Sum of OPF",CMAQ_raw!$P$10,"JDAY",$C2,"SRC_CAT",CMAQ_raw!RZ$3,"SRC_REGION",CMAQ_raw!RZ$4) -> 2.7446e-16 | SB2: =GETPIVOTDATA("Sum of OPF",CMAQ_raw!$P$10,"JDAY",$C2,"SRC_CAT",CMAQ_raw!SA$3,"SRC_REGION",CMAQ_raw!SA$4) -> 2.7446e-16 | SC2: =GETPIVOTDATA("Sum of OPF",CMAQ_raw!$P$10,"JDAY",$C2,"SRC_CAT",CMAQ_raw!SB$3,"SRC_REGION",CMAQ_raw!SB$4) -> 2.7446e-16 | SD2: =GETPIVOTDATA("Sum of OPF",CMAQ_raw!$P$10,"JDAY",$C2,"SRC_CAT",CMAQ_raw!SC$3,"SRC_REGION",CMAQ_raw!SC$4) -> 2.7446e-16 | SE2: =GETPIVOTDATA("Sum of OPF",CMAQ_raw!$P$10,"JDAY",$C2,"SRC_CAT",CMAQ_raw!SD$3,"SRC_REGION",CMAQ_raw!SD$4) -> 2.7446e-16 | SF2: =GETPIVOTDATA("Sum of OPF",CMAQ_raw!$P$10,"JDAY",$C2,"SRC_CAT",CMAQ_raw!SE$3,"SRC_REGION",CMAQ_raw!SE$4) -> 2.7446e-16 | SG2: =GETPIVOTDATA("Sum of OPF",CMAQ_raw!$P$10,"JDAY",$C2,"SRC_CAT",CMAQ_raw!SF$3,"SRC_REGION",CMAQ_raw!SF$4) -> 2.7446e-16 | SH2: =GETPIVOTDATA("Sum of OPF",CMAQ_raw!$P$10,"JDAY",$C2,"SRC_CAT",CMAQ_raw!SG$3,"SRC_REGION",CMAQ_raw!SG$4) -> 6.787e-15 | SI2: =GETPIVOTDATA("Sum of OPF",CMAQ_raw!$P$10,"JDAY",$C2,"SRC_CAT",CMAQ_raw!SH$3,"SRC_REGION",CMAQ_raw!SH$4) -> 2.7446e-16 | SJ2: =GETPIVOTDATA("Sum of OPF",CMAQ_raw!$P$10,"JDAY",$C2,"SRC_CAT",CMAQ_raw!SI$3,"SRC_REGION",CMAQ_raw!SI$4) -> 2.7446e-16 | SK2: =GETPIVOTDATA("Sum of OPF",CMAQ_raw!$P$10,"JDAY",$C2,"SRC_CAT",CMAQ_raw!SJ$3,"SRC_REGION",CMAQ_raw!SJ$4) -> 2.7446e-16 | SL2: =GETPIVOTDATA("Sum of OPF",CMAQ_raw!$P$10,"JDAY",$C2,"SRC_CAT",CMAQ_raw!SK$3,"SRC_REGION",CMAQ_raw!SK$4) -> 2.7446e-16 | SM2: =GETPIVOTDATA("Sum of OPF",CMAQ_raw!$P$10,"JDAY",$C2,"SRC_CAT",CMAQ_raw!SL$3,"SRC_REGION",CMAQ_raw!SL$4) -> 2.7446e-16 | SN2: =GETPIVOTDATA("Sum of OPF",CMAQ_raw!$P$10,"JDAY",$C2,"SRC_CAT",CMAQ_raw!SM$3,"SRC_REGION",CMAQ_raw!SM$4) -> 2.7446e-16 | SO2: =GETPIVOTDATA("Sum of OPF",CMAQ_raw!$P$10,"JDAY",$C2,"SRC_CAT",CMAQ_raw!SN$3,"SRC_REGION",CMAQ_raw!SN$4) -> 2.7446e-16 | SP2: =GETPIVOTDATA("Sum of OPF",CMAQ_raw!$P$10,"JDAY",$C2,"SRC_CAT",CMAQ_raw!SO$3,"SRC_REGION",CMAQ_raw!SO$4) -> 2.7446e-16 | SQ2: =GETPIVOTDATA("Sum of OPF",CMAQ_raw!$P$10,"JDAY",$C2,"SRC_CAT",CMAQ_raw!SP$3,"SRC_REGION",CMAQ_raw!SP$4) -> 2.7446e-16 | SR2: =GETPIVOTDATA("Sum of OPF",CMAQ_raw!$P$10,"JDAY",$C2,"SRC_CAT",CMAQ_raw!SQ$3,"SRC_REGION",CMAQ_raw!SQ$4) -> 2.7446e-16 | SS2: =GETPIVOTDATA("Sum of OPF",CMAQ_raw!$P$10,"JDAY",$C2,"SRC_CAT",CMAQ_raw!SR$3,"SRC_REGION",CMAQ_raw!SR$4) -> 3.9192e-15 | ST2: =GETPIVOTDATA("Sum of OPF",CMAQ_raw!$P$10,"JDAY",$C2,"SRC_CAT",CMAQ_raw!SS$3,"SRC_REGION",CMAQ_raw!SS$4) -> 2.7446e-16 | SU2: =GETPIVOTDATA("Sum of OPF",CMAQ_raw!$P$10,"JDAY",$C2,"SRC_CAT",CMAQ_raw!ST$3,"SRC_REGION",CMAQ_raw!ST$4) -> 2.7446e-16 | SV2: =GETPIVOTDATA("Sum of OPF",CMAQ_raw!$P$10,"JDAY",$C2,"SRC_CAT",CMAQ_raw!SU$3,"SRC_REGION",CMAQ_raw!SU$4) -> 2.7446e-16 | SW2: =GETPIVOTDATA("Sum of OPF",CMAQ_raw!$P$10,"JDAY",$C2,"SRC_CAT",CMAQ_raw!SV$3,"SRC_REGION",CMAQ_raw!SV$4) -> 2.7446e-16 | SX2: =GETPIVOTDATA("Sum of OPF",CMAQ_raw!$P$10,"JDAY",$C2,"SRC_CAT",CMAQ_raw!SW$3,"SRC_REGION",CMAQ_raw!SW$4) -> 2.7446e-16 | SY2: =GETPIVOTDATA("Sum of OPF",CMAQ_raw!$P$10,"JDAY",$C2,"SRC_CAT",CMAQ_raw!SX$3,"SRC_REGION",CMAQ_raw!SX$4) -> 2.7446e-16 | SZ2: =GETPIVOTDATA("Sum of OPF",CMAQ_raw!$P$10,"JDAY",$C2,"SRC_CAT",CMAQ_raw!SY$3,"SRC_REGION",CMAQ_raw!SY$4) -> 2.7446e-16 | TA2: =GETPIVOTDATA("Sum of OPF",CMAQ_raw!$P$10,"JDAY",$C2,"SRC_CAT",CMAQ_raw!SZ$3,"SRC_REGION",CMAQ_raw!SZ$4) -> 2.7446e-16 | TB2: =GETPIVOTDATA("Sum of OPF",CMAQ_raw!$P$10,"JDAY",$C2,"SRC_CAT",CMAQ_raw!TA$3,"SRC_REGION",CMAQ_raw!TA$4) -> 4.226e-13 | TC2: =GETPIVOTDATA("Sum of OPF",CMAQ_raw!$P$10,"JDAY",$C2,"SRC_CAT",CMAQ_raw!TB$3,"SRC_REGION",CMAQ_raw!TB$4) -> 2.7446e-16 | TD2: =GETPIVOTDATA("Sum of OPF",CMAQ_raw!$P$10,"JDAY",$C2,"SRC_CAT",CMAQ_raw!TC$3,"SRC_REGION",CMAQ_raw!TC$4) -> 2.7446e-16 | TE2: =GETPIVOTDATA("Sum of OPF",CMAQ_raw!$P$10,"JDAY",$C2,"SRC_CAT",CMAQ_raw!TD$3,"SRC_REGION",CMAQ_raw!TD$4) -> 2.7446e-16 | TF2: =GETPIVOTDATA("Sum of OPF",CMAQ_raw!$P$10,"JDAY",$C2,"SRC_CAT",CMAQ_raw!TE$3,"SRC_REGION",CMAQ_raw!TE$4) -> 2.7446e-16 | TG2: =GETPIVOTDATA("Sum of OPF",CMAQ_raw!$P$10,"JDAY",$C2,"SRC_CAT",CMAQ_raw!TF$3,"SRC_REGION",CMAQ_raw!TF$4) -> 2.7446e-16 | TH2: =GETPIVOTDATA("Sum of OPF",CMAQ_raw!$P$10,"JDAY",$C2,"SRC_CAT",CMAQ_raw!TG$3,"SRC_REGION",CMAQ_raw!TG$4) -> 2.7446e-16 | TI2: =GETPIVOTDATA("Sum of OPF",CMAQ_raw!$P$10,"JDAY",$C2,"SRC_CAT",CMAQ_raw!TH$3,"SRC_REGION",CMAQ_raw!TH$4) -> 2.7446e-16 | TJ2: =GETPIVOTDATA("Sum of OPF",CMAQ_raw!$P$10,"JDAY",$C2,"SRC_CAT",CMAQ_raw!TI$3,"SRC_REGION",CMAQ_raw!TI$4) -> 2.7446e-16 | TK2: =GETPIVOTDATA("Sum of OPF",CMAQ_raw!$P$10,"JDAY",$C2,"SRC_CAT",CMAQ_raw!TJ$3,"SRC_REGION",CMAQ_raw!TJ$4) -> 2.7446e-16 | TL2: =GETPIVOTDATA("Sum of OPF",CMAQ_raw!$P$10,"JDAY",$C2,"SRC_CAT",CMAQ_raw!TK$3,"SRC_REGION",CMAQ_raw!TK$4) -> 2.7446e-16 | TM2: =GETPIVOTDATA("Sum of OPF",CMAQ_raw!$P$10,"JDAY",$C2,"SRC_CAT",CMAQ_raw!TL$3,"SRC_REGION",CMAQ_raw!TL$4) -> 2.7446e-16 | TN2: =GETPIVOTDATA("Sum of OPF",CMAQ_raw!$P$10,"JDAY",$C2,"SRC_CAT",CMAQ_raw!TM$3,"SRC_REGION",CMAQ_raw!TM$4) -> 2.7446e-16 | TO2: =GETPIVOTDATA("Sum of OPF",CMAQ_raw!$P$10,"JDAY",$C2,"SRC_CAT",CMAQ_raw!TN$3,"SRC_REGION",CMAQ_raw!TN$4) -> 2.7446e-16 | TP2: =GETPIVOTDATA("Sum of OPF",CMAQ_raw!$P$10,"JDAY",$C2,"SRC_CAT",CMAQ_raw!TO$3,"SRC_REGION",CMAQ_raw!TO$4) -> 2.7446e-16 | TQ2: =GETPIVOTDATA("Sum of OPF",CMAQ_raw!$P$10,"JDAY",$C2,"SRC_CAT",CMAQ_raw!TP$3,"SRC_REGION",CMAQ_raw!TP$4) -> 2.7446e-16 | TR2: =GETPIVOTDATA("Sum of OPF",CMAQ_raw!$P$10,"JDAY",$C2,"SRC_CAT",CMAQ_raw!TQ$3,"SRC_REGION",CMAQ_raw!TQ$4) -> 2.7446e-16 | TS2: =GETPIVOTDATA("Sum of OPF",CMAQ_raw!$P$10,"JDAY",$C2,"SRC_CAT",CMAQ_raw!TR$3,"SRC_REGION",CMAQ_raw!TR$4) -> 2.7446e-16 | TT2: =GETPIVOTDATA("Sum of OPF",CMAQ_raw!$P$10,"JDAY",$C2,"SRC_CAT",CMAQ_raw!TS$3,"SRC_REGION",CMAQ_raw!TS$4) -> 2.7446e-16 | TU2: =GETPIVOTDATA("Sum of OPF",CMAQ_raw!$P$10,"JDAY",$C2,"SRC_CAT",CMAQ_raw!TT$3,"SRC_REGION",CMAQ_raw!TT$4) -> 2.7446e-16 | TV2: =GETPIVOTDATA("Sum of OPF",CMAQ_raw!$P$10,"JDAY",$C2,"SRC_CAT",CMAQ_raw!TU$3,"SRC_REGION",CMAQ_raw!TU$4) -> 2.7446e-16 | TW2: =GETPIVOTDATA("Sum of OPF",CMAQ_raw!$P$10,"JDAY",$C2,"SRC_CAT",CMAQ_raw!TV$3,"SRC_REGION",CMAQ_raw!TV$4) -> 2.7446e-16 | TX2: =GETPIVOTDATA("Sum of OPF",CMAQ_raw!$P$10,"JDAY",$C2,"SRC_CAT",CMAQ_raw!TW$3,"SRC_REGION",CMAQ_raw!TW$4) -> 2.7446e-16 | TY2: =GETPIVOTDATA("Sum of OPF",CMAQ_raw!$P$10,"JDAY",$C2,"SRC_CAT",CMAQ_raw!TX$3,"SRC_REGION",CMAQ_raw!TX$4) -> 2.7446e-16 | TZ2: =GETPIVOTDATA("Sum of OPF",CMAQ_raw!$P$10,"JDAY",$C2,"SRC_CAT",CMAQ_raw!TY$3,"SRC_REGION",CMAQ_raw!TY$4) -> 2.7446e-16 | UA2: =GETPIVOTDATA("Sum of OPF",CMAQ_raw!$P$10,"JDAY",$C2,"SRC_CAT",CMAQ_raw!TZ$3,"SRC_REGION",CMAQ_raw!TZ$4) -> 2.7949e-16 | UB2: =GETPIVOTDATA("Sum of OPF",CMAQ_raw!$P$10,"JDAY",$C2,"SRC_CAT",CMAQ_raw!UA$3,"SRC_REGION",CMAQ_raw!UA$4) -> 0.21642 | UC2: =GETPIVOTDATA("Sum of OPF",CMAQ_raw!$P$10,"JDAY",$C2,"SRC_CAT",CMAQ_raw!UB$3,"SRC_REGION",CMAQ_raw!UB$4) -> 2.2393e-06 | UD2: =GETPIVOTDATA("Sum of OPF",CMAQ_raw!$P$10,"JDAY",$C2,"SRC_CAT",CMAQ_raw!UC$3,"SRC_REGION",CMAQ_raw!UC$4) -> 0.22486 | UE2: =GETPIVOTDATA("Sum of OPF",CMAQ_raw!$P$10,"JDAY",$C2,"SRC_CAT",CMAQ_raw!UD$3,"SRC_REGION",CMAQ_raw!UD$4) -> 2.9788e-16 | UF2: =GETPIVOTDATA("Sum of OPF",CMAQ_raw!$P$10,"JDAY",$C2,"SRC_CAT",CMAQ_raw!UE$3,"SRC_REGION",CMAQ_raw!UE$4) -> 0.0015988 | UG2: =GETPIVOTDATA("Sum of OPF",CMAQ_raw!$P$10,"JDAY",$C2,"SRC_CAT",CMAQ_raw!UF$3,"SRC_REGION",CMAQ_raw!UF$4) -> 1.2138e-05 | UH2: =GETPIVOTDATA("Sum of OPF",CMAQ_raw!$P$10,"JDAY",$C2,"SRC_CAT",CMAQ_raw!UG$3,"SRC_REGION",CMAQ_raw!UG$4) -> 2.2409e-15 | UI2: =GETPIVOTDATA("Sum of OPF",CMAQ_raw!$P$10,"JDAY",$C2,"SRC_CAT",CMAQ_raw!UH$3,"SRC_REGION",CMAQ_raw!UH$4) -> 9.7516e-06 | UJ2: =GETPIVOTDATA("Sum of OPF",CMAQ_raw!$P$10,"JDAY",$C2,"SRC_CAT",CMAQ_raw!UI$3,"SRC_REGION",CMAQ_raw!UI$4) -> 5.4907e-07 | UK2: =GETPIVOTDATA("Sum of OPF",CMAQ_raw!$P$10,"JDAY",$C2,"SRC_CAT",CMAQ_raw!UJ$3,"SRC_REGION",CMAQ_raw!UJ$4) -> 0.00055119 | UL2: =GETPIVOTDATA("Sum of OPF",CMAQ_raw!$P$10,"JDAY",$C2,"SRC_CAT",CMAQ_raw!UK$3,"SRC_REGION",CMAQ_raw!UK$4) -> 3.817e-15 | UM2: =GETPIVOTDATA("Sum of OPF",CMAQ_raw!$P$10,"JDAY",$C2,"SRC_CAT",CMAQ_raw!UL$3,"SRC_REGION",CMAQ_raw!UL$4) -> 1.6104e-12 | UN2: =GETPIVOTDATA("Sum of OPF",CMAQ_raw!$P$10,"JDAY",$C2,"SRC_CAT",CMAQ_raw!UM$3,"SRC_REGION",CMAQ_raw!UM$4) -> 2.4188e-13 | UO2: =GETPIVOTDATA("Sum of OPF",CMAQ_raw!$P$10,"JDAY",$C2,"SRC_CAT",CMAQ_raw!UN$3,"SRC_REGION",CMAQ_raw!UN$4) -> 0.0096098 | UP2: =GETPIVOTDATA("Sum of OPF",CMAQ_raw!$P$10,"JDAY",$C2,"SRC_CAT",CMAQ_raw!UO$3,"SRC_REGION",CMAQ_raw!UO$4) -> 0.54824 | UQ2: =GETPIVOTDATA("Sum of OPF",CMAQ_raw!$P$10,"JDAY",$C2,"SRC_CAT",CMAQ_raw!UP$3,"SRC_REGION",CMAQ_raw!UP$4) -> 2.5253e-15 | UR2: =GETPIVOTDATA("Sum of OPF",CMAQ_raw!$P$10,"JDAY",$C2,"SRC_CAT",CMAQ_raw!UQ$3,"SRC_REGION",CMAQ_raw!UQ$4) -> 0.15275 | US2: =GETPIVOTDATA("Sum of OPF",CMAQ_raw!$P$10,"JDAY",$C2,"SRC_CAT",CMAQ_raw!UR$3,"SRC_REGION",CMAQ_raw!UR$4) -> 6.1873e-08 | UT2: =GETPIVOTDATA("Sum of OPF",CMAQ_raw!$P$10,"JDAY",$C2,"SRC_CAT",CMAQ_raw!US$3,"SRC_REGION",CMAQ_raw!US$4) -> 2.1252e-10 | UU2: =GETPIVOTDATA("Sum of OPF",CMAQ_raw!$P$10,"JDAY",$C2,"SRC_CAT",CMAQ_raw!UT$3,"SRC_REGION",CMAQ_raw!UT$4) -> 1.1477e-08 | UV2: =GETPIVOTDATA("Sum of OPF",CMAQ_raw!$P$10,"JDAY",$C2,"SRC_CAT",CMAQ_raw!UU$3,"SRC_REGION",CMAQ_raw!UU$4) -> 0.0077231 | UW2: =GETPIVOTDATA("Sum of OPF",CMAQ_raw!$P$10,"JDAY",$C2,"SRC_CAT",CMAQ_raw!UV$3,"SRC_REGION",CMAQ_raw!UV$4) -> 2.7446e-16 | UY2: =GETPIVOTDATA("Sum of PMC",CMAQ_raw!$P$10,"JDAY",$C2,"SRC_CAT",CMAQ_raw!UX$3,"SRC_REGION",CMAQ_raw!UX$4) -> 2.4023e-16 | UZ2: =GETPIVOTDATA("Sum of PMC",CMAQ_raw!$P$10,"JDAY",$C2,"SRC_CAT",CMAQ_raw!UY$3,"SRC_REGION",CMAQ_raw!UY$4) -> 3.006e-11 | VA2: =GETPIVOTDATA("Sum of PMC",CMAQ_raw!$P$10,"JDAY",$C2,"SRC_CAT",CMAQ_raw!UZ$3,"SRC_REGION",CMAQ_raw!UZ$4) -> 2.4057e-16 | VB2: =GETPIVOTDATA("Sum of PMC",CMAQ_raw!$P$10,"JDAY",$C2,"SRC_CAT",CMAQ_raw!VA$3,"SRC_REGION",CMAQ_raw!VA$4) -> 3.1763e-09 | VC2: =GETPIVOTDATA("Sum of PMC",CMAQ_raw!$P$10,"JDAY",$C2,"SRC_CAT",CMAQ_raw!VB$3,"SRC_REGION",CMAQ_raw!VB$4) -> 2.4023e-16 | VD2: =GETPIVOTDATA("Sum of PMC",CMAQ_raw!$P$10,"JDAY",$C2,"SRC_CAT",CMAQ_raw!VC$3,"SRC_REGION",CMAQ_raw!VC$4) -> 2.4023e-16 | VE2: =GETPIVOTDATA("Sum of PMC",CMAQ_raw!$P$10,"JDAY",$C2,"SRC_CAT",CMAQ_raw!VD$3,"SRC_REGION",CMAQ_raw!VD$4) -> 2.4023e-16 | VF2: =GETPIVOTDATA("Sum of PMC",CMAQ_raw!$P$10,"JDAY",$C2,"SRC_CAT",CMAQ_raw!VE$3,"SRC_REGION",CMAQ_raw!VE$4) -> 2.4023e-16 | VG2: =GETPIVOTDATA("Sum of PMC",CMAQ_raw!$P$10,"JDAY",$C2,"SRC_CAT",CMAQ_raw!VF$3,"SRC_REGION",CMAQ_raw!VF$4) -> 2.4023e-16 | VH2: =GETPIVOTDATA("Sum of PMC",CMAQ_raw!$P$10,"JDAY",$C2,"SRC_CAT",CMAQ_raw!VG$3,"SRC_REGION",CMAQ_raw!VG$4) -> 2.4023e-16 | VI2: =GETPIVOTDATA("Sum of PMC",CMAQ_raw!$P$10,"JDAY",$C2,"SRC_CAT",CMAQ_raw!VH$3,"SRC_REGION",CMAQ_raw!VH$4) -> 2.4023e-16 | VJ2: =GETPIVOTDATA("Sum of PMC",CMAQ_raw!$P$10,"JDAY",$C2,"SRC_CAT",CMAQ_raw!VI$3,"SRC_REGION",CMAQ_raw!VI$4) -> 2.4023e-16 | VK2: =GETPIVOTDATA("Sum of PMC",CMAQ_raw!$P$10,"JDAY",$C2,"SRC_CAT",CMAQ_raw!VJ$3,"SRC_REGION",CMAQ_raw!VJ$4) -> 2.4023e-16 | VL2: =GETPIVOTDATA("Sum of PMC",CMAQ_raw!$P$10,"JDAY",$C2,"SRC_CAT",CMAQ_raw!VK$3,"SRC_REGION",CMAQ_raw!VK$4) -> 2.4023e-16 | VM2: =GETPIVOTDATA("Sum of PMC",CMAQ_raw!$P$10,"JDAY",$C2,"SRC_CAT",CMAQ_raw!VL$3,"SRC_REGION",CMAQ_raw!VL$4) -> 2.4023e-16 | VN2: =GETPIVOTDATA("Sum of PMC",CMAQ_raw!$P$10,"JDAY",$C2,"SRC_CAT",CMAQ_raw!VM$3,"SRC_REGION",CMAQ_raw!VM$4) -> 2.4023e-16 | VO2: =GETPIVOTDATA("Sum of PMC",CMAQ_raw!$P$10,"JDAY",$C2,"SRC_CAT",CMAQ_raw!VN$3,"SRC_REGION",CMAQ_raw!VN$4) -> 2.4023e-16 | VP2: =GETPIVOTDATA("Sum of PMC",CMAQ_raw!$P$10,"JDAY",$C2,"SRC_CAT",CMAQ_raw!VO$3,"SRC_REGION",CMAQ_raw!VO$4) -> 0.00017346 | VQ2: =GETPIVOTDATA("Sum of PMC",CMAQ_raw!$P$10,"JDAY",$C2,"SRC_CAT",CMAQ_raw!VP$3,"SRC_REGION",CMAQ_raw!VP$4) -> 2.4023e-16 | VR2: =GETPIVOTDATA("Sum of PMC",CMAQ_raw!$P$10,"JDAY",$C2,"SRC_CAT",CMAQ_raw!VQ$3,"SRC_REGION",CMAQ_raw!VQ$4) -> 2.2209e-14 | VS2: =GETPIVOTDATA("Sum of PMC",CMAQ_raw!$P$10,"JDAY",$C2,"SRC_CAT",CMAQ_raw!VR$3,"SRC_REGION",CMAQ_raw!VR$4) -> 2.4023e-16 | VT2: =GETPIVOTDATA("Sum of PMC",CMAQ_raw!$P$10,"JDAY",$C2,"SRC_CAT",CMAQ_raw!VS$3,"SRC_REGION",CMAQ_raw!VS$4) -> 2.4023e-16 | VU2: =GETPIVOTDATA("Sum of PMC",CMAQ_raw!$P$10,"JDAY",$C2,"SRC_CAT",CMAQ_raw!VT$3,"SRC_REGION",CMAQ_raw!VT$4) -> 2.4023e-16 | VV2: =GETPIVOTDATA("Sum of PMC",CMAQ_raw!$P$10,"JDAY",$C2,"SRC_CAT",CMAQ_raw!VU$3,"SRC_REGION",CMAQ_raw!VU$4) -> 2.4023e-16 | VW2: =GETPIVOTDATA("Sum of PMC",CMAQ_raw!$P$10,"JDAY",$C2,"SRC_CAT",CMAQ_raw!VV$3,"SRC_REGION",CMAQ_raw!VV$4) -> 2.4023e-16 | VX2: =GETPIVOTDATA("Sum of PMC",CMAQ_raw!$P$10,"JDAY",$C2,"SRC_CAT",CMAQ_raw!VW$3,"SRC_REGION",CMAQ_raw!VW$4) -> 2.4023e-16 | VY2: =GETPIVOTDATA("Sum of PMC",CMAQ_raw!$P$10,"JDAY",$C2,"SRC_CAT",CMAQ_raw!VX$3,"SRC_REGION",CMAQ_raw!VX$4) -> 2.4023e-16 | VZ2: =GETPIVOTDATA("Sum of PMC",CMAQ_raw!$P$10,"JDAY",$C2,"SRC_CAT",CMAQ_raw!VY$3,"SRC_REGION",CMAQ_raw!VY$4) -> 2.4023e-16 | WA2: =GETPIVOTDATA("Sum of PMC",CMAQ_raw!$P$10,"JDAY",$C2,"SRC_CAT",CMAQ_raw!VZ$3,"SRC_REGION",CMAQ_raw!VZ$4) -> 2.4023e-16 | WB2: =GETPIVOTDATA("Sum of PMC",CMAQ_raw!$P$10,"JDAY",$C2,"SRC_CAT",CMAQ_raw!WA$3,"SRC_REGION",CMAQ_raw!WA$4) -> 2.4023e-16 | WC2: =GETPIVOTDATA("Sum of PMC",CMAQ_raw!$P$10,"JDAY",$C2,"SRC_CAT",CMAQ_raw!WB$3,"SRC_REGION",CMAQ_raw!WB$4) -> 2.4023e-16 | WD2: =GETPIVOTDATA("Sum of PMC",CMAQ_raw!$P$10,"JDAY",$C2,"SRC_CAT",CMAQ_raw!WC$3,"SRC_REGION",CMAQ_raw!WC$4) -> 2.4023e-16 | WE2: =GETPIVOTDATA("Sum of PMC",CMAQ_raw!$P$10,"JDAY",$C2,"SRC_CAT",CMAQ_raw!WD$3,"SRC_REGION",CMAQ_raw!WD$4) -> 2.4023e-16 | WF2: =GETPIVOTDATA("Sum of PMC",CMAQ_raw!$P$10,"JDAY",$C2,"SRC_CAT",CMAQ_raw!WE$3,"SRC_REGION",CMAQ_raw!WE$4) -> 2.4023e-16 | WG2: =GETPIVOTDATA("Sum of PMC",CMAQ_raw!$P$10,"JDAY",$C2,"SRC_CAT",CMAQ_raw!WF$3,"SRC_REGION",CMAQ_raw!WF$4) -> 2.4023e-16 | WH2: =GETPIVOTDATA("Sum of PMC",CMAQ_raw!$P$10,"JDAY",$C2,"SRC_CAT",CMAQ_raw!WG$3,"SRC_REGION",CMAQ_raw!WG$4) -> 2.4023e-16 | WI2: =GETPIVOTDATA("Sum of PMC",CMAQ_raw!$P$10,"JDAY",$C2,"SRC_CAT",CMAQ_raw!WH$3,"SRC_REGION",CMAQ_raw!WH$4) -> 2.4023e-16 | WJ2: =GETPIVOTDATA("Sum of PMC",CMAQ_raw!$P$10,"JDAY",$C2,"SRC_CAT",CMAQ_raw!WI$3,"SRC_REGION",CMAQ_raw!WI$4) -> 2.4023e-16 | WK2: =GETPIVOTDATA("Sum of PMC",CMAQ_raw!$P$10,"JDAY",$C2,"SRC_CAT",CMAQ_raw!WJ$3,"SRC_REGION",CMAQ_raw!WJ$4) -> 2.4023e-16 | WL2: =GETPIVOTDATA("Sum of PMC",CMAQ_raw!$P$10,"JDAY",$C2,"SRC_CAT",CMAQ_raw!WK$3,"SRC_REGION",CMAQ_raw!WK$4) -> 1.0951e-13 | WM2: =GETPIVOTDATA("Sum of PMC",CMAQ_raw!$P$10,"JDAY",$C2,"SRC_CAT",CMAQ_raw!WL$3,"SRC_REGION",CMAQ_raw!WL$4) -> 2.4023e-16 | WN2: =GETPIVOTDATA("Sum of PMC",CMAQ_raw!$P$10,"JDAY",$C2,"SRC_CAT",CMAQ_raw!WM$3,"SRC_REGION",CMAQ_raw!WM$4) -> 2.4023e-16 | WO2: =GETPIVOTDATA("Sum of PMC",CMAQ_raw!$P$10,"JDAY",$C2,"SRC_CAT",CMAQ_raw!WN$3,"SRC_REGION",CMAQ_raw!WN$4) -> 2.4023e-16 | WP2: =GETPIVOTDATA("Sum of PMC",CMAQ_raw!$P$10,"JDAY",$C2,"SRC_CAT",CMAQ_raw!WO$3,"SRC_REGION",CMAQ_raw!WO$4) -> 1.3546e-15 | WQ2: =GETPIVOTDATA("Sum of PMC",CMAQ_raw!$P$10,"JDAY",$C2,"SRC_CAT",CMAQ_raw!WP$3,"SRC_REGION",CMAQ_raw!WP$4) -> 2.4023e-16 | WR2: =GETPIVOTDATA("Sum of PMC",CMAQ_raw!$P$10,"JDAY",$C2,"SRC_CAT",CMAQ_raw!WQ$3,"SRC_REGION",CMAQ_raw!WQ$4) -> 2.4023e-16 | WS2: =GETPIVOTDATA("Sum of PMC",CMAQ_raw!$P$10,"JDAY",$C2,"SRC_CAT",CMAQ_raw!WR$3,"SRC_REGION",CMAQ_raw!WR$4) -> 2.4023e-16 | WT2: =GETPIVOTDATA("Sum of PMC",CMAQ_raw!$P$10,"JDAY",$C2,"SRC_CAT",CMAQ_raw!WS$3,"SRC_REGION",CMAQ_raw!WS$4) -> 2.4023e-16 | WU2: =GETPIVOTDATA("Sum of PMC",CMAQ_raw!$P$10,"JDAY",$C2,"SRC_CAT",CMAQ_raw!WT$3,"SRC_REGION",CMAQ_raw!WT$4) -> 2.4023e-16 | WV2: =GETPIVOTDATA("Sum of PMC",CMAQ_raw!$P$10,"JDAY",$C2,"SRC_CAT",CMAQ_raw!WU$3,"SRC_REGION",CMAQ_raw!WU$4) -> 2.4023e-16 | WW2: =GETPIVOTDATA("Sum of PMC",CMAQ_raw!$P$10,"JDAY",$C2,"SRC_CAT",CMAQ_raw!WV$3,"SRC_REGION",CMAQ_raw!WV$4) -> 1.5224e-13 | WX2: =GETPIVOTDATA("Sum of PMC",CMAQ_raw!$P$10,"JDAY",$C2,"SRC_CAT",CMAQ_raw!WW$3,"SRC_REGION",CMAQ_raw!WW$4) -> 2.4023e-16 | WY2: =GETPIVOTDATA("Sum of PMC",CMAQ_raw!$P$10,"JDAY",$C2,"SRC_CAT",CMAQ_raw!WX$3,"SRC_REGION",CMAQ_raw!WX$4) -> 2.4023e-16 | WZ2: =GETPIVOTDATA("Sum of PMC",CMAQ_raw!$P$10,"JDAY",$C2,"SRC_CAT",CMAQ_raw!WY$3,"SRC_REGION",CMAQ_raw!WY$4) -> 2.4023e-16 | XA2: =GETPIVOTDATA("Sum of PMC",CMAQ_raw!$P$10,"JDAY",$C2,"SRC_CAT",CMAQ_raw!WZ$3,"SRC_REGION",CMAQ_raw!WZ$4) -> 2.4023e-16 | XB2: =GETPIVOTDATA("Sum of PMC",CMAQ_raw!$P$10,"JDAY",$C2,"SRC_CAT",CMAQ_raw!XA$3,"SRC_REGION",CMAQ_raw!XA$4) -> 2.4023e-16 | XC2: =GETPIVOTDATA("Sum of PMC",CMAQ_raw!$P$10,"JDAY",$C2,"SRC_CAT",CMAQ_raw!XB$3,"SRC_REGION",CMAQ_raw!XB$4) -> 2.4023e-16 | XD2: =GETPIVOTDATA("Sum of PMC",CMAQ_raw!$P$10,"JDAY",$C2,"SRC_CAT",CMAQ_raw!XC$3,"SRC_REGION",CMAQ_raw!XC$4) -> 2.4023e-16 | XE2: =GETPIVOTDATA("Sum of PMC",CMAQ_raw!$P$10,"JDAY",$C2,"SRC_CAT",CMAQ_raw!XD$3,"SRC_REGION",CMAQ_raw!XD$4) -> 2.4023e-16 | XF2: =GETPIVOTDATA("Sum of PMC",CMAQ_raw!$P$10,"JDAY",$C2,"SRC_CAT",CMAQ_raw!XE$3,"SRC_REGION",CMAQ_raw!XE$4) -> 9.4437e-12 | XG2: =GETPIVOTDATA("Sum of PMC",CMAQ_raw!$P$10,"JDAY",$C2,"SRC_CAT",CMAQ_raw!XF$3,"SRC_REGION",CMAQ_raw!XF$4) -> 2.4023e-16 | XH2: =GETPIVOTDATA("Sum of PMC",CMAQ_raw!$P$10,"JDAY",$C2,"SRC_CAT",CMAQ_raw!XG$3,"SRC_REGION",CMAQ_raw!XG$4) -> 2.4023e-16 | XI2: =GETPIVOTDATA("Sum of PMC",CMAQ_raw!$P$10,"JDAY",$C2,"SRC_CAT",CMAQ_raw!XH$3,"SRC_REGION",CMAQ_raw!XH$4) -> 2.4023e-16 | XJ2: =GETPIVOTDATA("Sum of PMC",CMAQ_raw!$P$10,"JDAY",$C2,"SRC_CAT",CMAQ_raw!XI$3,"SRC_REGION",CMAQ_raw!XI$4) -> 2.4023e-16 | XK2: =GETPIVOTDATA("Sum of PMC",CMAQ_raw!$P$10,"JDAY",$C2,"SRC_CAT",CMAQ_raw!XJ$3,"SRC_REGION",CMAQ_raw!XJ$4) -> 2.4023e-16 | XL2: =GETPIVOTDATA("Sum of PMC",CMAQ_raw!$P$10,"JDAY",$C2,"SRC_CAT",CMAQ_raw!XK$3,"SRC_REGION",CMAQ_raw!XK$4) -> 2.4023e-16 | XM2: =GETPIVOTDATA("Sum of PMC",CMAQ_raw!$P$10,"JDAY",$C2,"SRC_CAT",CMAQ_raw!XL$3,"SRC_REGION",CMAQ_raw!XL$4) -> 2.4023e-16 | XN2: =GETPIVOTDATA("Sum of PMC",CMAQ_raw!$P$10,"JDAY",$C2,"SRC_CAT",CMAQ_raw!XM$3,"SRC_REGION",CMAQ_raw!XM$4) -> 2.4023e-16 | XO2: =GETPIVOTDATA("Sum of PMC",CMAQ_raw!$P$10,"JDAY",$C2,"SRC_CAT",CMAQ_raw!XN$3,"SRC_REGION",CMAQ_raw!XN$4) -> 2.4023e-16 | XP2: =GETPIVOTDATA("Sum of PMC",CMAQ_raw!$P$10,"JDAY",$C2,"SRC_CAT",CMAQ_raw!XO$3,"SRC_REGION",CMAQ_raw!XO$4) -> 2.4023e-16 | XQ2: =GETPIVOTDATA("Sum of PMC",CMAQ_raw!$P$10,"JDAY",$C2,"SRC_CAT",CMAQ_raw!XP$3,"SRC_REGION",CMAQ_raw!XP$4) -> 2.4023e-16 | XR2: =GETPIVOTDATA("Sum of PMC",CMAQ_raw!$P$10,"JDAY",$C2,"SRC_CAT",CMAQ_raw!XQ$3,"SRC_REGION",CMAQ_raw!XQ$4) -> 2.4023e-16 | XS2: =GETPIVOTDATA("Sum of PMC",CMAQ_raw!$P$10,"JDAY",$C2,"SRC_CAT",CMAQ_raw!XR$3,"SRC_REGION",CMAQ_raw!XR$4) -> 2.4023e-16 | XT2: =GETPIVOTDATA("Sum of PMC",CMAQ_raw!$P$10,"JDAY",$C2,"SRC_CAT",CMAQ_raw!XS$3,"SRC_REGION",CMAQ_raw!XS$4) -> 2.4023e-16 | XU2: =GETPIVOTDATA("Sum of PMC",CMAQ_raw!$P$10,"JDAY",$C2,"SRC_CAT",CMAQ_raw!XT$3,"SRC_REGION",CMAQ_raw!XT$4) -> 2.4023e-16 | XV2: =GETPIVOTDATA("Sum of PMC",CMAQ_raw!$P$10,"JDAY",$C2,"SRC_CAT",CMAQ_raw!XU$3,"SRC_REGION",CMAQ_raw!XU$4) -> 2.4023e-16 | XW2: =GETPIVOTDATA("Sum of PMC",CMAQ_raw!$P$10,"JDAY",$C2,"SRC_CAT",CMAQ_raw!XV$3,"SRC_REGION",CMAQ_raw!XV$4) -> 2.4023e-16 | XX2: =GETPIVOTDATA("Sum of PMC",CMAQ_raw!$P$10,"JDAY",$C2,"SRC_CAT",CMAQ_raw!XW$3,"SRC_REGION",CMAQ_raw!XW$4) -> 2.4023e-16 | XY2: =GETPIVOTDATA("Sum of PMC",CMAQ_raw!$P$10,"JDAY",$C2,"SRC_CAT",CMAQ_raw!XX$3,"SRC_REGION",CMAQ_raw!XX$4) -> 2.4023e-16 | XZ2: =GETPIVOTDATA("Sum of PMC",CMAQ_raw!$P$10,"JDAY",$C2,"SRC_CAT",CMAQ_raw!XY$3,"SRC_REGION",CMAQ_raw!XY$4) -> 2.4023e-16 | YA2: =GETPIVOTDATA("Sum of PMC",CMAQ_raw!$P$10,"JDAY",$C2,"SRC_CAT",CMAQ_raw!XZ$3,"SRC_REGION",CMAQ_raw!XZ$4) -> 2.4023e-16 | YB2: =GETPIVOTDATA("Sum of PMC",CMAQ_raw!$P$10,"JDAY",$C2,"SRC_CAT",CMAQ_raw!YA$3,"SRC_REGION",CMAQ_raw!YA$4) -> 2.4431e-16 | YC2: =GETPIVOTDATA("Sum of PMC",CMAQ_raw!$P$10,"JDAY",$C2,"SRC_CAT",CMAQ_raw!YB$3,"SRC_REGION",CMAQ_raw!YB$4) -> 2.4023e-16 | YD2: =GETPIVOTDATA("Sum of PMC",CMAQ_raw!$P$10,"JDAY",$C2,"SRC_CAT",CMAQ_raw!YC$3,"SRC_REGION",CMAQ_raw!YC$4) -> 2.4023e-16 | YE2: =GETPIVOTDATA("Sum of PMC",CMAQ_raw!$P$10,"JDAY",$C2,"SRC_CAT",CMAQ_raw!YD$3,"SRC_REGION",CMAQ_raw!YD$4) -> 2.4345e-16 | YF2: =GETPIVOTDATA("Sum of PMC",CMAQ_raw!$P$10,"JDAY",$C2,"SRC_CAT",CMAQ_raw!YE$3,"SRC_REGION",CMAQ_raw!YE$4) -> 0.92701 | YG2: =GETPIVOTDATA("Sum of PMC",CMAQ_raw!$P$10,"JDAY",$C2,"SRC_CAT",CMAQ_raw!YF$3,"SRC_REGION",CMAQ_raw!YF$4) -> 8.4163e-06 | YH2: =GETPIVOTDATA("Sum of PMC",CMAQ_raw!$P$10,"JDAY",$C2,"SRC_CAT",CMAQ_raw!YG$3,"SRC_REGION",CMAQ_raw!YG$4) -> 0.75498 | YI2: =GETPIVOTDATA("Sum of PMC",CMAQ_raw!$P$10,"JDAY",$C2,"SRC_CAT",CMAQ_raw!YH$3,"SRC_REGION",CMAQ_raw!YH$4) -> 2.6238e-16 | YJ2: =GETPIVOTDATA("Sum of PMC",CMAQ_raw!$P$10,"JDAY",$C2,"SRC_CAT",CMAQ_raw!YI$3,"SRC_REGION",CMAQ_raw!YI$4) -> 0.0043288 | YK2: =GETPIVOTDATA("Sum of PMC",CMAQ_raw!$P$10,"JDAY",$C2,"SRC_CAT",CMAQ_raw!YJ$3,"SRC_REGION",CMAQ_raw!YJ$4) -> 3.4794e-05 | YL2: =GETPIVOTDATA("Sum of PMC",CMAQ_raw!$P$10,"JDAY",$C2,"SRC_CAT",CMAQ_raw!YK$3,"SRC_REGION",CMAQ_raw!YK$4) -> 1.7809e-15 | YM2: =GETPIVOTDATA("Sum of PMC",CMAQ_raw!$P$10,"JDAY",$C2,"SRC_CAT",CMAQ_raw!YL$3,"SRC_REGION",CMAQ_raw!YL$4) -> 2.0275e-05 | YN2: =GETPIVOTDATA("Sum of PMC",CMAQ_raw!$P$10,"JDAY",$C2,"SRC_CAT",CMAQ_raw!YM$3,"SRC_REGION",CMAQ_raw!YM$4) -> 7.9398e-07 | YO2: =GETPIVOTDATA("Sum of PMC",CMAQ_raw!$P$10,"JDAY",$C2,"SRC_CAT",CMAQ_raw!YN$3,"SRC_REGION",CMAQ_raw!YN$4) -> 0.0017116 | YP2: =GETPIVOTDATA("Sum of PMC",CMAQ_raw!$P$10,"JDAY",$C2,"SRC_CAT",CMAQ_raw!YO$3,"SRC_REGION",CMAQ_raw!YO$4) -> 1.953e-15 | YQ2: =GETPIVOTDATA("Sum of PMC",CMAQ_raw!$P$10,"JDAY",$C2,"SRC_CAT",CMAQ_raw!YP$3,"SRC_REGION",CMAQ_raw!YP$4) -> 1.2504e-12 | YR2: =GETPIVOTDATA("Sum of PMC",CMAQ_raw!$P$10,"JDAY",$C2,"SRC_CAT",CMAQ_raw!YQ$3,"SRC_REGION",CMAQ_raw!YQ$4) -> 1.3101e-13 | YS2: =GETPIVOTDATA("Sum of PMC",CMAQ_raw!$P$10,"JDAY",$C2,"SRC_CAT",CMAQ_raw!YR$3,"SRC_REGION",CMAQ_raw!YR$4) -> 0.036222 | YT2: =GETPIVOTDATA("Sum of PMC",CMAQ_raw!$P$10,"JDAY",$C2,"SRC_CAT",CMAQ_raw!YS$3,"SRC_REGION",CMAQ_raw!YS$4) -> 2.366 | YU2: =GETPIVOTDATA("Sum of PMC",CMAQ_raw!$P$10,"JDAY",$C2,"SRC_CAT",CMAQ_raw!YT$3,"SRC_REGION",CMAQ_raw!YT$4) -> 2.7573e-15 | YV2: =GETPIVOTDATA("Sum of PMC",CMAQ_raw!$P$10,"JDAY",$C2,"SRC_CAT",CMAQ_raw!YU$3,"SRC_REGION",CMAQ_raw!YU$4) -> 0.74241 | YW2: =GETPIVOTDATA("Sum of PMC",CMAQ_raw!$P$10,"JDAY",$C2,"SRC_CAT",CMAQ_raw!YV$3,"SRC_REGION",CMAQ_raw!YV$4) -> 1.4237e-07 | YX2: =GETPIVOTDATA("Sum of PMC",CMAQ_raw!$P$10,"JDAY",$C2,"SRC_CAT",CMAQ_raw!YW$3,"SRC_REGION",CMAQ_raw!YW$4) -> 5.6185e-10 | YY2: =GETPIVOTDATA("Sum of PMC",CMAQ_raw!$P$10,"JDAY",$C2,"SRC_CAT",CMAQ_raw!YX$3,"SRC_REGION",CMAQ_raw!YX$4) -> 9.5061e-09 | YZ2: =GETPIVOTDATA("Sum of PMC",CMAQ_raw!$P$10,"JDAY",$C2,"SRC_CAT",CMAQ_raw!YY$3,"SRC_REGION",CMAQ_raw!YY$4) -> 0.023764 | ZA2: =GETPIVOTDATA("Sum of PMC",CMAQ_raw!$P$10,"JDAY",$C2,"SRC_CAT",CMAQ_raw!YZ$3,"SRC_REGION",CMAQ_raw!YZ$4) -> 2.4023e-16
A3: =VLOOKUP(B3,ClassIareas_Mass2011!A:B,2,FALSE) -> CO | B3: =B2 -> MEVE1 | C3: 2011002 | D3: 2011-01-02 | E3: 1 | F3: =VLOOKUP(B3&"_"&E3,ClassIareas_Mass2011!F:L,4,FALSE) -> 9 | G3: =VLOOKUP(B3&"_"&E3,ClassIareas_Mass2011!F:L,5,FALSE) -> 3.32 | H3: =VLOOKUP(B3&"_"&E3,ClassIareas_Mass2011!F:L,6,FALSE) -> 2.45 | I3: =VLOOKUP(B3&"_"&E3,ClassIareas_Mass2011!F:L,7,FALSE) -> 3.4 | J3: =IFERROR(VLOOKUP(B3&"_"&C3,ClassIareas_Mass2011!H:T,6,FALSE),"") ->  | K3: =IFERROR(VLOOKUP(B3&"_"&C3,ClassIareas_Mass2011!H:T,7,FALSE),"") ->  | L3: =IFERROR(VLOOKUP(B3&"_"&C3,ClassIareas_Mass2011!H:T,8,FALSE),"") ->  | M3: =IFERROR(VLOOKUP(B3&"_"&C3,ClassIareas_Mass2011!H:T,9,FALSE),"") ->  | N3: =IFERROR(VLOOKUP(B3&"_"&C3,ClassIareas_Mass2011!H:T,10,FALSE),"") ->  | O3: =IFERROR(VLOOKUP(B3&"_"&C3,ClassIareas_Mass2011!H:T,11,FALSE),"") ->  | P3: =IFERROR(VLOOKUP(B3&"_"&C3,ClassIareas_Mass2011!H:T,12,FALSE),"") ->  | Q3: =IFERROR(VLOOKUP(B3&"_"&C3,ClassIareas_Mass2011!H:T,13,FALSE),"") ->  | R3: =GETPIVOTDATA("Sum of PS4",CMAQ_raw!$P$10,"JDAY",$C3,"SRC_CAT","TOTAL","SRC_REGION","TOTAL") -> 0.50871 | S3: =GETPIVOTDATA("Sum of PN3",CMAQ_raw!$P$10,"JDAY",$C3,"SRC_CAT","TOTAL","SRC_REGION","TOTAL") -> 0.25049 | T3: =GETPIVOTDATA("Sum of PN4",CMAQ_raw!$P$10,"JDAY",$C3,"SRC_CAT","TOTAL","SRC_REGION","TOTAL") -> 0.18268 | U3: =GETPIVOTDATA("Sum of PEC",CMAQ_raw!$P$10,"JDAY",$C3,"SRC_CAT","TOTAL","SRC_REGION","TOTAL") -> 0.10092 | V3: =GETPIVOTDATA("Sum of POA",CMAQ_raw!$P$10,"JDAY",$C3,"SRC_CAT","TOTAL","SRC_REGION","TOTAL") -> 0.82748 | W3: =GETPIVOTDATA("Sum of OPF",CMAQ_raw!$P$10,"JDAY",$C3,"SRC_CAT","TOTAL","SRC_REGION","TOTAL") -> 1.0313 | X3: =GETPIVOTDATA("Sum of PMC",CMAQ_raw!$P$10,"JDAY",$C3,"SRC_CAT","TOTAL","SRC_REGION","TOTAL") -> 4.631 | AA3: =GETPIVOTDATA("Sum of SSA",CMAQ_raw!$P$10,"JDAY",$C3,"SRC_CAT","TOTAL","SRC_REGION","TOTAL") -> 0.074467 | AB3: =GETPIVOTDATA("Sum of SOAA",CMAQ_raw!$P$10,"JDAY",$C3,"SRC_CAT","TOTAL","SRC_REGION","TOTAL") -> 0.013431 | AC3: =GETPIVOTDATA("Sum of SOAB",CMAQ_raw!$P$10,"JDAY",$C3,"SRC_CAT","TOTAL","SRC_REGION","TOTAL") -> 0.033894 | AE3: =GETPIVOTDATA("Sum of PS4",CMAQ_raw!$P$10,"JDAY",$C3,"SRC_CAT",CMAQ_raw!AD$3,"SRC_REGION",CMAQ_raw!AD$4) -> 5.6842e-07 | AF3: =GETPIVOTDATA("Sum of PS4",CMAQ_raw!$P$10,"JDAY",$C3,"SRC_CAT",CMAQ_raw!AE$3,"SRC_REGION",CMAQ_raw!AE$4) -> 5.6842e-07 | AG3: =GETPIVOTDATA("Sum of PS4",CMAQ_raw!$P$10,"JDAY",$C3,"SRC_CAT",CMAQ_raw!AF$3,"SRC_REGION",CMAQ_raw!AF$4) -> 0.00025159 | AH3: =GETPIVOTDATA("Sum of PS4",CMAQ_raw!$P$10,"JDAY",$C3,"SRC_CAT",CMAQ_raw!AG$3,"SRC_REGION",CMAQ_raw!AG$4) -> 5.6842e-07 | AI3: =GETPIVOTDATA("Sum of PS4",CMAQ_raw!$P$10,"JDAY",$C3,"SRC_CAT",CMAQ_raw!AH$3,"SRC_REGION",CMAQ_raw!AH$4) -> 5.6842e-07 | AJ3: =GETPIVOTDATA("Sum of PS4",CMAQ_raw!$P$10,"JDAY",$C3,"SRC_CAT",CMAQ_raw!AI$3,"SRC_REGION",CMAQ_raw!AI$4) -> 5.6842e-07 | AK3: =GETPIVOTDATA("Sum of PS4",CMAQ_raw!$P$10,"JDAY",$C3,"SRC_CAT",CMAQ_raw!AJ$3,"SRC_REGION",CMAQ_raw!AJ$4) -> 5.6842e-07 | AL3: =GETPIVOTDATA("Sum of PS4",CMAQ_raw!$P$10,"JDAY",$C3,"SRC_CAT",CMAQ_raw!AK$3,"SRC_REGION",CMAQ_raw!AK$4) -> 5.6842e-07 | AM3: =GETPIVOTDATA("Sum of PS4",CMAQ_raw!$P$10,"JDAY",$C3,"SRC_CAT",CMAQ_raw!AL$3,"SRC_REGION",CMAQ_raw!AL$4) -> 1.4366e-06 | AN3: =GETPIVOTDATA("Sum of PS4",CMAQ_raw!$P$10,"JDAY",$C3,"SRC_CAT",CMAQ_raw!AM$3,"SRC_REGION",CMAQ_raw!AM$4) -> 5.6842e-07 | AO3: =GETPIVOTDATA("Sum of PS4",CMAQ_raw!$P$10,"JDAY",$C3,"SRC_CAT",CMAQ_raw!AN$3,"SRC_REGION",CMAQ_raw!AN$4) -> 5.6842e-07 | AP3: =GETPIVOTDATA("Sum of PS4",CMAQ_raw!$P$10,"JDAY",$C3,"SRC_CAT",CMAQ_raw!AO$3,"SRC_REGION",CMAQ_raw!AO$4) -> 5.6842e-07 | AQ3: =GETPIVOTDATA("Sum of PS4",CMAQ_raw!$P$10,"JDAY",$C3,"SRC_CAT",CMAQ_raw!AP$3,"SRC_REGION",CMAQ_raw!AP$4) -> 5.6842e-07 | AR3: =GETPIVOTDATA("Sum of PS4",CMAQ_raw!$P$10,"JDAY",$C3,"SRC_CAT",CMAQ_raw!AQ$3,"SRC_REGION",CMAQ_raw!AQ$4) -> 5.6842e-07 | AS3: =GETPIVOTDATA("Sum of PS4",CMAQ_raw!$P$10,"JDAY",$C3,"SRC_CAT",CMAQ_raw!AR$3,"SRC_REGION",CMAQ_raw!AR$4) -> 5.6842e-07 | AT3: =GETPIVOTDATA("Sum of PS4",CMAQ_raw!$P$10,"JDAY",$C3,"SRC_CAT",CMAQ_raw!AS$3,"SRC_REGION",CMAQ_raw!AS$4) -> 0.00052983 | AU3: =GETPIVOTDATA("Sum of PS4",CMAQ_raw!$P$10,"JDAY",$C3,"SRC_CAT",CMAQ_raw!AT$3,"SRC_REGION",CMAQ_raw!AT$4) -> 5.6842e-07 | AV3: =GETPIVOTDATA("Sum of PS4",CMAQ_raw!$P$10,"JDAY",$C3,"SRC_CAT",CMAQ_raw!AU$3,"SRC_REGION",CMAQ_raw!AU$4) -> 5.6842e-07 | AW3: =GETPIVOTDATA("Sum of PS4",CMAQ_raw!$P$10,"JDAY",$C3,"SRC_CAT",CMAQ_raw!AV$3,"SRC_REGION",CMAQ_raw!AV$4) -> 5.6898e-07 | AX3: =GETPIVOTDATA("Sum of PS4",CMAQ_raw!$P$10,"JDAY",$C3,"SRC_CAT",CMAQ_raw!AW$3,"SRC_REGION",CMAQ_raw!AW$4) -> 5.701e-07 | AY3: =GETPIVOTDATA("Sum of PS4",CMAQ_raw!$P$10,"JDAY",$C3,"SRC_CAT",CMAQ_raw!AX$3,"SRC_REGION",CMAQ_raw!AX$4) -> 0.0022714 | AZ3: =GETPIVOTDATA("Sum of PS4",CMAQ_raw!$P$10,"JDAY",$C3,"SRC_CAT",CMAQ_raw!AY$3,"SRC_REGION",CMAQ_raw!AY$4) -> 5.6842e-07 | BA3: =GETPIVOTDATA("Sum of PS4",CMAQ_raw!$P$10,"JDAY",$C3,"SRC_CAT",CMAQ_raw!AZ$3,"SRC_REGION",CMAQ_raw!AZ$4) -> 5.6842e-07 | BB3: =GETPIVOTDATA("Sum of PS4",CMAQ_raw!$P$10,"JDAY",$C3,"SRC_CAT",CMAQ_raw!BA$3,"SRC_REGION",CMAQ_raw!BA$4) -> 5.6842e-07 | BC3: =GETPIVOTDATA("Sum of PS4",CMAQ_raw!$P$10,"JDAY",$C3,"SRC_CAT",CMAQ_raw!BB$3,"SRC_REGION",CMAQ_raw!BB$4) -> 5.6842e-07 | BD3: =GETPIVOTDATA("Sum of PS4",CMAQ_raw!$P$10,"JDAY",$C3,"SRC_CAT",CMAQ_raw!BC$3,"SRC_REGION",CMAQ_raw!BC$4) -> 5.6842e-07 | BE3: =GETPIVOTDATA("Sum of PS4",CMAQ_raw!$P$10,"JDAY",$C3,"SRC_CAT",CMAQ_raw!BD$3,"SRC_REGION",CMAQ_raw!BD$4) -> 5.6842e-07 | BF3: =GETPIVOTDATA("Sum of PS4",CMAQ_raw!$P$10,"JDAY",$C3,"SRC_CAT",CMAQ_raw!BE$3,"SRC_REGION",CMAQ_raw!BE$4) -> 5.6842e-07 | BG3: =GETPIVOTDATA("Sum of PS4",CMAQ_raw!$P$10,"JDAY",$C3,"SRC_CAT",CMAQ_raw!BF$3,"SRC_REGION",CMAQ_raw!BF$4) -> 5.6842e-07 | BH3: =GETPIVOTDATA("Sum of PS4",CMAQ_raw!$P$10,"JDAY",$C3,"SRC_CAT",CMAQ_raw!BG$3,"SRC_REGION",CMAQ_raw!BG$4) -> 5.6842e-07 | BI3: =GETPIVOTDATA("Sum of PS4",CMAQ_raw!$P$10,"JDAY",$C3,"SRC_CAT",CMAQ_raw!BH$3,"SRC_REGION",CMAQ_raw!BH$4) -> 5.6842e-07 | BJ3: =GETPIVOTDATA("Sum of PS4",CMAQ_raw!$P$10,"JDAY",$C3,"SRC_CAT",CMAQ_raw!BI$3,"SRC_REGION",CMAQ_raw!BI$4) -> 5.6842e-07 | BK3: =GETPIVOTDATA("Sum of PS4",CMAQ_raw!$P$10,"JDAY",$C3,"SRC_CAT",CMAQ_raw!BJ$3,"SRC_REGION",CMAQ_raw!BJ$4) -> 5.6842e-07 | BL3: =GETPIVOTDATA("Sum of PS4",CMAQ_raw!$P$10,"JDAY",$C3,"SRC_CAT",CMAQ_raw!BK$3,"SRC_REGION",CMAQ_raw!BK$4) -> 5.6842e-07 | BM3: =GETPIVOTDATA("Sum of PS4",CMAQ_raw!$P$10,"JDAY",$C3,"SRC_CAT",CMAQ_raw!BL$3,"SRC_REGION",CMAQ_raw!BL$4) -> 5.6842e-07 | BN3: =GETPIVOTDATA("Sum of PS4",CMAQ_raw!$P$10,"JDAY",$C3,"SRC_CAT",CMAQ_raw!BM$3,"SRC_REGION",CMAQ_raw!BM$4) -> 5.6842e-07 | BO3: =GETPIVOTDATA("Sum of PS4",CMAQ_raw!$P$10,"JDAY",$C3,"SRC_CAT",CMAQ_raw!BN$3,"SRC_REGION",CMAQ_raw!BN$4) -> 5.6842e-07 | BP3: =GETPIVOTDATA("Sum of PS4",CMAQ_raw!$P$10,"JDAY",$C3,"SRC_CAT",CMAQ_raw!BO$3,"SRC_REGION",CMAQ_raw!BO$4) -> 5.6842e-07 | BQ3: =GETPIVOTDATA("Sum of PS4",CMAQ_raw!$P$10,"JDAY",$C3,"SRC_CAT",CMAQ_raw!BP$3,"SRC_REGION",CMAQ_raw!BP$4) -> 5.6842e-07 | BR3: =GETPIVOTDATA("Sum of PS4",CMAQ_raw!$P$10,"JDAY",$C3,"SRC_CAT",CMAQ_raw!BQ$3,"SRC_REGION",CMAQ_raw!BQ$4) -> 5.6859e-07 | BS3: =GETPIVOTDATA("Sum of PS4",CMAQ_raw!$P$10,"JDAY",$C3,"SRC_CAT",CMAQ_raw!BR$3,"SRC_REGION",CMAQ_raw!BR$4) -> 5.6842e-07 | BT3: =GETPIVOTDATA("Sum of PS4",CMAQ_raw!$P$10,"JDAY",$C3,"SRC_CAT",CMAQ_raw!BS$3,"SRC_REGION",CMAQ_raw!BS$4) -> 5.6842e-07 | BU3: =GETPIVOTDATA("Sum of PS4",CMAQ_raw!$P$10,"JDAY",$C3,"SRC_CAT",CMAQ_raw!BT$3,"SRC_REGION",CMAQ_raw!BT$4) -> 5.6842e-07 | BV3: =GETPIVOTDATA("Sum of PS4",CMAQ_raw!$P$10,"JDAY",$C3,"SRC_CAT",CMAQ_raw!BU$3,"SRC_REGION",CMAQ_raw!BU$4) -> 5.6844e-07 | BW3: =GETPIVOTDATA("Sum of PS4",CMAQ_raw!$P$10,"JDAY",$C3,"SRC_CAT",CMAQ_raw!BV$3,"SRC_REGION",CMAQ_raw!BV$4) -> 5.6842e-07 | BX3: =GETPIVOTDATA("Sum of PS4",CMAQ_raw!$P$10,"JDAY",$C3,"SRC_CAT",CMAQ_raw!BW$3,"SRC_REGION",CMAQ_raw!BW$4) -> 5.6843e-07 | BY3: =GETPIVOTDATA("Sum of PS4",CMAQ_raw!$P$10,"JDAY",$C3,"SRC_CAT",CMAQ_raw!BX$3,"SRC_REGION",CMAQ_raw!BX$4) -> 5.6842e-07 | BZ3: =GETPIVOTDATA("Sum of PS4",CMAQ_raw!$P$10,"JDAY",$C3,"SRC_CAT",CMAQ_raw!BY$3,"SRC_REGION",CMAQ_raw!BY$4) -> 5.6842e-07 | CA3: =GETPIVOTDATA("Sum of PS4",CMAQ_raw!$P$10,"JDAY",$C3,"SRC_CAT",CMAQ_raw!BZ$3,"SRC_REGION",CMAQ_raw!BZ$4) -> 5.6842e-07 | CB3: =GETPIVOTDATA("Sum of PS4",CMAQ_raw!$P$10,"JDAY",$C3,"SRC_CAT",CMAQ_raw!CA$3,"SRC_REGION",CMAQ_raw!CA$4) -> 5.6842e-07 | CC3: =GETPIVOTDATA("Sum of PS4",CMAQ_raw!$P$10,"JDAY",$C3,"SRC_CAT",CMAQ_raw!CB$3,"SRC_REGION",CMAQ_raw!CB$4) -> 5.6891e-07 | CD3: =GETPIVOTDATA("Sum of PS4",CMAQ_raw!$P$10,"JDAY",$C3,"SRC_CAT",CMAQ_raw!CC$3,"SRC_REGION",CMAQ_raw!CC$4) -> 5.6842e-07 | CE3: =GETPIVOTDATA("Sum of PS4",CMAQ_raw!$P$10,"JDAY",$C3,"SRC_CAT",CMAQ_raw!CD$3,"SRC_REGION",CMAQ_raw!CD$4) -> 5.6842e-07 | CF3: =GETPIVOTDATA("Sum of PS4",CMAQ_raw!$P$10,"JDAY",$C3,"SRC_CAT",CMAQ_raw!CE$3,"SRC_REGION",CMAQ_raw!CE$4) -> 5.6842e-07 | CG3: =GETPIVOTDATA("Sum of PS4",CMAQ_raw!$P$10,"JDAY",$C3,"SRC_CAT",CMAQ_raw!CF$3,"SRC_REGION",CMAQ_raw!CF$4) -> 5.6842e-07 | CH3: =GETPIVOTDATA("Sum of PS4",CMAQ_raw!$P$10,"JDAY",$C3,"SRC_CAT",CMAQ_raw!CG$3,"SRC_REGION",CMAQ_raw!CG$4) -> 5.6842e-07 | CI3: =GETPIVOTDATA("Sum of PS4",CMAQ_raw!$P$10,"JDAY",$C3,"SRC_CAT",CMAQ_raw!CH$3,"SRC_REGION",CMAQ_raw!CH$4) -> 5.6842e-07 | CJ3: =GETPIVOTDATA("Sum of PS4",CMAQ_raw!$P$10,"JDAY",$C3,"SRC_CAT",CMAQ_raw!CI$3,"SRC_REGION",CMAQ_raw!CI$4) -> 5.6842e-07 | CK3: =GETPIVOTDATA("Sum of PS4",CMAQ_raw!$P$10,"JDAY",$C3,"SRC_CAT",CMAQ_raw!CJ$3,"SRC_REGION",CMAQ_raw!CJ$4) -> 5.6842e-07 | CL3: =GETPIVOTDATA("Sum of PS4",CMAQ_raw!$P$10,"JDAY",$C3,"SRC_CAT",CMAQ_raw!CK$3,"SRC_REGION",CMAQ_raw!CK$4) -> 6.3187e-07 | CM3: =GETPIVOTDATA("Sum of PS4",CMAQ_raw!$P$10,"JDAY",$C3,"SRC_CAT",CMAQ_raw!CL$3,"SRC_REGION",CMAQ_raw!CL$4) -> 5.6842e-07 | CN3: =GETPIVOTDATA("Sum of PS4",CMAQ_raw!$P$10,"JDAY",$C3,"SRC_CAT",CMAQ_raw!CM$3,"SRC_REGION",CMAQ_raw!CM$4) -> 5.6842e-07 | CO3: =GETPIVOTDATA("Sum of PS4",CMAQ_raw!$P$10,"JDAY",$C3,"SRC_CAT",CMAQ_raw!CN$3,"SRC_REGION",CMAQ_raw!CN$4) -> 5.6842e-07 | CP3: =GETPIVOTDATA("Sum of PS4",CMAQ_raw!$P$10,"JDAY",$C3,"SRC_CAT",CMAQ_raw!CO$3,"SRC_REGION",CMAQ_raw!CO$4) -> 5.6842e-07 | CQ3: =GETPIVOTDATA("Sum of PS4",CMAQ_raw!$P$10,"JDAY",$C3,"SRC_CAT",CMAQ_raw!CP$3,"SRC_REGION",CMAQ_raw!CP$4) -> 5.6842e-07 | CR3: =GETPIVOTDATA("Sum of PS4",CMAQ_raw!$P$10,"JDAY",$C3,"SRC_CAT",CMAQ_raw!CQ$3,"SRC_REGION",CMAQ_raw!CQ$4) -> 5.6842e-07 | CS3: =GETPIVOTDATA("Sum of PS4",CMAQ_raw!$P$10,"JDAY",$C3,"SRC_CAT",CMAQ_raw!CR$3,"SRC_REGION",CMAQ_raw!CR$4) -> 5.6842e-07 | CT3: =GETPIVOTDATA("Sum of PS4",CMAQ_raw!$P$10,"JDAY",$C3,"SRC_CAT",CMAQ_raw!CS$3,"SRC_REGION",CMAQ_raw!CS$4) -> 5.6842e-07 | CU3: =GETPIVOTDATA("Sum of PS4",CMAQ_raw!$P$10,"JDAY",$C3,"SRC_CAT",CMAQ_raw!CT$3,"SRC_REGION",CMAQ_raw!CT$4) -> 5.6842e-07 | CV3: =GETPIVOTDATA("Sum of PS4",CMAQ_raw!$P$10,"JDAY",$C3,"SRC_CAT",CMAQ_raw!CU$3,"SRC_REGION",CMAQ_raw!CU$4) -> 5.6842e-07 | CW3: =GETPIVOTDATA("Sum of PS4",CMAQ_raw!$P$10,"JDAY",$C3,"SRC_CAT",CMAQ_raw!CV$3,"SRC_REGION",CMAQ_raw!CV$4) -> 5.6842e-07 | CX3: =GETPIVOTDATA("Sum of PS4",CMAQ_raw!$P$10,"JDAY",$C3,"SRC_CAT",CMAQ_raw!CW$3,"SRC_REGION",CMAQ_raw!CW$4) -> 5.6842e-07 | CY3: =GETPIVOTDATA("Sum of PS4",CMAQ_raw!$P$10,"JDAY",$C3,"SRC_CAT",CMAQ_raw!CX$3,"SRC_REGION",CMAQ_raw!CX$4) -> 5.6842e-07 | CZ3: =GETPIVOTDATA("Sum of PS4",CMAQ_raw!$P$10,"JDAY",$C3,"SRC_CAT",CMAQ_raw!CY$3,"SRC_REGION",CMAQ_raw!CY$4) -> 5.6842e-07 | DA3: =GETPIVOTDATA("Sum of PS4",CMAQ_raw!$P$10,"JDAY",$C3,"SRC_CAT",CMAQ_raw!CZ$3,"SRC_REGION",CMAQ_raw!CZ$4) -> 5.6842e-07 | DB3: =GETPIVOTDATA("Sum of PS4",CMAQ_raw!$P$10,"JDAY",$C3,"SRC_CAT",CMAQ_raw!DA$3,"SRC_REGION",CMAQ_raw!DA$4) -> 5.6842e-07 | DC3: =GETPIVOTDATA("Sum of PS4",CMAQ_raw!$P$10,"JDAY",$C3,"SRC_CAT",CMAQ_raw!DB$3,"SRC_REGION",CMAQ_raw!DB$4) -> 5.6842e-07 | DD3: =GETPIVOTDATA("Sum of PS4",CMAQ_raw!$P$10,"JDAY",$C3,"SRC_CAT",CMAQ_raw!DC$3,"SRC_REGION",CMAQ_raw!DC$4) -> 5.6842e-07 | DE3: =GETPIVOTDATA("Sum of PS4",CMAQ_raw!$P$10,"JDAY",$C3,"SRC_CAT",CMAQ_raw!DD$3,"SRC_REGION",CMAQ_raw!DD$4) -> 5.6842e-07 | DF3: =GETPIVOTDATA("Sum of PS4",CMAQ_raw!$P$10,"JDAY",$C3,"SRC_CAT",CMAQ_raw!DE$3,"SRC_REGION",CMAQ_raw!DE$4) -> 5.6842e-07 | DG3: =GETPIVOTDATA("Sum of PS4",CMAQ_raw!$P$10,"JDAY",$C3,"SRC_CAT",CMAQ_raw!DF$3,"SRC_REGION",CMAQ_raw!DF$4) -> 5.6842e-07 | DH3: =GETPIVOTDATA("Sum of PS4",CMAQ_raw!$P$10,"JDAY",$C3,"SRC_CAT",CMAQ_raw!DG$3,"SRC_REGION",CMAQ_raw!DG$4) -> 5.6842e-07 | DI3: =GETPIVOTDATA("Sum of PS4",CMAQ_raw!$P$10,"JDAY",$C3,"SRC_CAT",CMAQ_raw!DH$3,"SRC_REGION",CMAQ_raw!DH$4) -> 5.6842e-07 | DJ3: =GETPIVOTDATA("Sum of PS4",CMAQ_raw!$P$10,"JDAY",$C3,"SRC_CAT",CMAQ_raw!DI$3,"SRC_REGION",CMAQ_raw!DI$4) -> 5.6842e-07 | DK3: =GETPIVOTDATA("Sum of PS4",CMAQ_raw!$P$10,"JDAY",$C3,"SRC_CAT",CMAQ_raw!DJ$3,"SRC_REGION",CMAQ_raw!DJ$4) -> 5.6842e-07 | DL3: =GETPIVOTDATA("Sum of PS4",CMAQ_raw!$P$10,"JDAY",$C3,"SRC_CAT",CMAQ_raw!DK$3,"SRC_REGION",CMAQ_raw!DK$4) -> 0.025921 | DM3: =GETPIVOTDATA("Sum of PS4",CMAQ_raw!$P$10,"JDAY",$C3,"SRC_CAT",CMAQ_raw!DL$3,"SRC_REGION",CMAQ_raw!DL$4) -> 0.02003 | DN3: =GETPIVOTDATA("Sum of PS4",CMAQ_raw!$P$10,"JDAY",$C3,"SRC_CAT",CMAQ_raw!DM$3,"SRC_REGION",CMAQ_raw!DM$4) -> 0.018135 | DO3: =GETPIVOTDATA("Sum of PS4",CMAQ_raw!$P$10,"JDAY",$C3,"SRC_CAT",CMAQ_raw!DN$3,"SRC_REGION",CMAQ_raw!DN$4) -> 5.6842e-07 | DP3: =GETPIVOTDATA("Sum of PS4",CMAQ_raw!$P$10,"JDAY",$C3,"SRC_CAT",CMAQ_raw!DO$3,"SRC_REGION",CMAQ_raw!DO$4) -> 0.0045677 | DQ3: =GETPIVOTDATA("Sum of PS4",CMAQ_raw!$P$10,"JDAY",$C3,"SRC_CAT",CMAQ_raw!DP$3,"SRC_REGION",CMAQ_raw!DP$4) -> 6.4031e-05 | DR3: =GETPIVOTDATA("Sum of PS4",CMAQ_raw!$P$10,"JDAY",$C3,"SRC_CAT",CMAQ_raw!DQ$3,"SRC_REGION",CMAQ_raw!DQ$4) -> 5.6842e-07 | DS3: =GETPIVOTDATA("Sum of PS4",CMAQ_raw!$P$10,"JDAY",$C3,"SRC_CAT",CMAQ_raw!DR$3,"SRC_REGION",CMAQ_raw!DR$4) -> 0.0066088 | DT3: =GETPIVOTDATA("Sum of PS4",CMAQ_raw!$P$10,"JDAY",$C3,"SRC_CAT",CMAQ_raw!DS$3,"SRC_REGION",CMAQ_raw!DS$4) -> 0.0020201 | DU3: =GETPIVOTDATA("Sum of PS4",CMAQ_raw!$P$10,"JDAY",$C3,"SRC_CAT",CMAQ_raw!DT$3,"SRC_REGION",CMAQ_raw!DT$4) -> 0.00020084 | DV3: =GETPIVOTDATA("Sum of PS4",CMAQ_raw!$P$10,"JDAY",$C3,"SRC_CAT",CMAQ_raw!DU$3,"SRC_REGION",CMAQ_raw!DU$4) -> 5.6842e-07 | DW3: =GETPIVOTDATA("Sum of PS4",CMAQ_raw!$P$10,"JDAY",$C3,"SRC_CAT",CMAQ_raw!DV$3,"SRC_REGION",CMAQ_raw!DV$4) -> 5.6842e-07 | DX3: =GETPIVOTDATA("Sum of PS4",CMAQ_raw!$P$10,"JDAY",$C3,"SRC_CAT",CMAQ_raw!DW$3,"SRC_REGION",CMAQ_raw!DW$4) -> 5.6842e-07 | DY3: =GETPIVOTDATA("Sum of PS4",CMAQ_raw!$P$10,"JDAY",$C3,"SRC_CAT",CMAQ_raw!DX$3,"SRC_REGION",CMAQ_raw!DX$4) -> 0.02525 | DZ3: =GETPIVOTDATA("Sum of PS4",CMAQ_raw!$P$10,"JDAY",$C3,"SRC_CAT",CMAQ_raw!DY$3,"SRC_REGION",CMAQ_raw!DY$4) -> 0.039356 | EA3: =GETPIVOTDATA("Sum of PS4",CMAQ_raw!$P$10,"JDAY",$C3,"SRC_CAT",CMAQ_raw!DZ$3,"SRC_REGION",CMAQ_raw!DZ$4) -> 5.6842e-07 | EB3: =GETPIVOTDATA("Sum of PS4",CMAQ_raw!$P$10,"JDAY",$C3,"SRC_CAT",CMAQ_raw!EA$3,"SRC_REGION",CMAQ_raw!EA$4) -> 0.22915 | EC3: =GETPIVOTDATA("Sum of PS4",CMAQ_raw!$P$10,"JDAY",$C3,"SRC_CAT",CMAQ_raw!EB$3,"SRC_REGION",CMAQ_raw!EB$4) -> 0.0010909 | ED3: =GETPIVOTDATA("Sum of PS4",CMAQ_raw!$P$10,"JDAY",$C3,"SRC_CAT",CMAQ_raw!EC$3,"SRC_REGION",CMAQ_raw!EC$4) -> 7.0174e-07 | EE3: =GETPIVOTDATA("Sum of PS4",CMAQ_raw!$P$10,"JDAY",$C3,"SRC_CAT",CMAQ_raw!ED$3,"SRC_REGION",CMAQ_raw!ED$4) -> 0.0048821 | EF3: =GETPIVOTDATA("Sum of PS4",CMAQ_raw!$P$10,"JDAY",$C3,"SRC_CAT",CMAQ_raw!EE$3,"SRC_REGION",CMAQ_raw!EE$4) -> 0.12832 | EG3: =GETPIVOTDATA("Sum of PS4",CMAQ_raw!$P$10,"JDAY",$C3,"SRC_CAT",CMAQ_raw!EF$3,"SRC_REGION",CMAQ_raw!EF$4) -> 5.6842e-07 | EI3: =GETPIVOTDATA("Sum of PN3",CMAQ_raw!$P$10,"JDAY",$C3,"SRC_CAT",CMAQ_raw!EH$3,"SRC_REGION",CMAQ_raw!EH$4) -> 9.1699e-05 | EJ3: =GETPIVOTDATA("Sum of PN3",CMAQ_raw!$P$10,"JDAY",$C3,"SRC_CAT",CMAQ_raw!EI$3,"SRC_REGION",CMAQ_raw!EI$4) -> 9.1785e-05 | EK3: =GETPIVOTDATA("Sum of PN3",CMAQ_raw!$P$10,"JDAY",$C3,"SRC_CAT",CMAQ_raw!EJ$3,"SRC_REGION",CMAQ_raw!EJ$4) -> 0.00016661 | EL3: =GETPIVOTDATA("Sum of PN3",CMAQ_raw!$P$10,"JDAY",$C3,"SRC_CAT",CMAQ_raw!EK$3,"SRC_REGION",CMAQ_raw!EK$4) -> 9.1767e-05 | EM3: =GETPIVOTDATA("Sum of PN3",CMAQ_raw!$P$10,"JDAY",$C3,"SRC_CAT",CMAQ_raw!EL$3,"SRC_REGION",CMAQ_raw!EL$4) -> 9.1699e-05 | EN3: =GETPIVOTDATA("Sum of PN3",CMAQ_raw!$P$10,"JDAY",$C3,"SRC_CAT",CMAQ_raw!EM$3,"SRC_REGION",CMAQ_raw!EM$4) -> 9.1699e-05 | EO3: =GETPIVOTDATA("Sum of PN3",CMAQ_raw!$P$10,"JDAY",$C3,"SRC_CAT",CMAQ_raw!EN$3,"SRC_REGION",CMAQ_raw!EN$4) -> 9.1699e-05 | EP3: =GETPIVOTDATA("Sum of PN3",CMAQ_raw!$P$10,"JDAY",$C3,"SRC_CAT",CMAQ_raw!EO$3,"SRC_REGION",CMAQ_raw!EO$4) -> 9.1699e-05 | EQ3: =GETPIVOTDATA("Sum of PN3",CMAQ_raw!$P$10,"JDAY",$C3,"SRC_CAT",CMAQ_raw!EP$3,"SRC_REGION",CMAQ_raw!EP$4) -> 9.1699e-05 | ER3: =GETPIVOTDATA("Sum of PN3",CMAQ_raw!$P$10,"JDAY",$C3,"SRC_CAT",CMAQ_raw!EQ$3,"SRC_REGION",CMAQ_raw!EQ$4) -> 9.1699e-05 | ES3: =GETPIVOTDATA("Sum of PN3",CMAQ_raw!$P$10,"JDAY",$C3,"SRC_CAT",CMAQ_raw!ER$3,"SRC_REGION",CMAQ_raw!ER$4) -> 9.1699e-05 | ET3: =GETPIVOTDATA("Sum of PN3",CMAQ_raw!$P$10,"JDAY",$C3,"SRC_CAT",CMAQ_raw!ES$3,"SRC_REGION",CMAQ_raw!ES$4) -> 9.1699e-05 | EU3: =GETPIVOTDATA("Sum of PN3",CMAQ_raw!$P$10,"JDAY",$C3,"SRC_CAT",CMAQ_raw!ET$3,"SRC_REGION",CMAQ_raw!ET$4) -> 9.1699e-05 | EV3: =GETPIVOTDATA("Sum of PN3",CMAQ_raw!$P$10,"JDAY",$C3,"SRC_CAT",CMAQ_raw!EU$3,"SRC_REGION",CMAQ_raw!EU$4) -> 9.1699e-05 | EW3: =GETPIVOTDATA("Sum of PN3",CMAQ_raw!$P$10,"JDAY",$C3,"SRC_CAT",CMAQ_raw!EV$3,"SRC_REGION",CMAQ_raw!EV$4) -> 9.1763e-05 | EX3: =GETPIVOTDATA("Sum of PN3",CMAQ_raw!$P$10,"JDAY",$C3,"SRC_CAT",CMAQ_raw!EW$3,"SRC_REGION",CMAQ_raw!EW$4) -> 9.1717e-05 | EY3: =GETPIVOTDATA("Sum of PN3",CMAQ_raw!$P$10,"JDAY",$C3,"SRC_CAT",CMAQ_raw!EX$3,"SRC_REGION",CMAQ_raw!EX$4) -> 9.1699e-05 | EZ3: =GETPIVOTDATA("Sum of PN3",CMAQ_raw!$P$10,"JDAY",$C3,"SRC_CAT",CMAQ_raw!EY$3,"SRC_REGION",CMAQ_raw!EY$4) -> 9.1728e-05 | FA3: =GETPIVOTDATA("Sum of PN3",CMAQ_raw!$P$10,"JDAY",$C3,"SRC_CAT",CMAQ_raw!EZ$3,"SRC_REGION",CMAQ_raw!EZ$4) -> 9.1699e-05 | FB3: =GETPIVOTDATA("Sum of PN3",CMAQ_raw!$P$10,"JDAY",$C3,"SRC_CAT",CMAQ_raw!FA$3,"SRC_REGION",CMAQ_raw!FA$4) -> 9.1699e-05 | FC3: =GETPIVOTDATA("Sum of PN3",CMAQ_raw!$P$10,"JDAY",$C3,"SRC_CAT",CMAQ_raw!FB$3,"SRC_REGION",CMAQ_raw!FB$4) -> 0.00029402 | FD3: =GETPIVOTDATA("Sum of PN3",CMAQ_raw!$P$10,"JDAY",$C3,"SRC_CAT",CMAQ_raw!FC$3,"SRC_REGION",CMAQ_raw!FC$4) -> 9.1699e-05 | FE3: =GETPIVOTDATA("Sum of PN3",CMAQ_raw!$P$10,"JDAY",$C3,"SRC_CAT",CMAQ_raw!FD$3,"SRC_REGION",CMAQ_raw!FD$4) -> 9.1699e-05 | FF3: =GETPIVOTDATA("Sum of PN3",CMAQ_raw!$P$10,"JDAY",$C3,"SRC_CAT",CMAQ_raw!FE$3,"SRC_REGION",CMAQ_raw!FE$4) -> 9.1699e-05 | FG3: =GETPIVOTDATA("Sum of PN3",CMAQ_raw!$P$10,"JDAY",$C3,"SRC_CAT",CMAQ_raw!FF$3,"SRC_REGION",CMAQ_raw!FF$4) -> 9.1699e-05 | FH3: =GETPIVOTDATA("Sum of PN3",CMAQ_raw!$P$10,"JDAY",$C3,"SRC_CAT",CMAQ_raw!FG$3,"SRC_REGION",CMAQ_raw!FG$4) -> 9.1699e-05 | FI3: =GETPIVOTDATA("Sum of PN3",CMAQ_raw!$P$10,"JDAY",$C3,"SRC_CAT",CMAQ_raw!FH$3,"SRC_REGION",CMAQ_raw!FH$4) -> 9.1699e-05 | FJ3: =GETPIVOTDATA("Sum of PN3",CMAQ_raw!$P$10,"JDAY",$C3,"SRC_CAT",CMAQ_raw!FI$3,"SRC_REGION",CMAQ_raw!FI$4) -> 9.1699e-05 | FK3: =GETPIVOTDATA("Sum of PN3",CMAQ_raw!$P$10,"JDAY",$C3,"SRC_CAT",CMAQ_raw!FJ$3,"SRC_REGION",CMAQ_raw!FJ$4) -> 9.1699e-05 | FL3: =GETPIVOTDATA("Sum of PN3",CMAQ_raw!$P$10,"JDAY",$C3,"SRC_CAT",CMAQ_raw!FK$3,"SRC_REGION",CMAQ_raw!FK$4) -> 9.1699e-05 | FM3: =GETPIVOTDATA("Sum of PN3",CMAQ_raw!$P$10,"JDAY",$C3,"SRC_CAT",CMAQ_raw!FL$3,"SRC_REGION",CMAQ_raw!FL$4) -> 9.1699e-05 | FN3: =GETPIVOTDATA("Sum of PN3",CMAQ_raw!$P$10,"JDAY",$C3,"SRC_CAT",CMAQ_raw!FM$3,"SRC_REGION",CMAQ_raw!FM$4) -> 9.1699e-05 | FO3: =GETPIVOTDATA("Sum of PN3",CMAQ_raw!$P$10,"JDAY",$C3,"SRC_CAT",CMAQ_raw!FN$3,"SRC_REGION",CMAQ_raw!FN$4) -> 9.1699e-05 | FP3: =GETPIVOTDATA("Sum of PN3",CMAQ_raw!$P$10,"JDAY",$C3,"SRC_CAT",CMAQ_raw!FO$3,"SRC_REGION",CMAQ_raw!FO$4) -> 9.1699e-05 | FQ3: =GETPIVOTDATA("Sum of PN3",CMAQ_raw!$P$10,"JDAY",$C3,"SRC_CAT",CMAQ_raw!FP$3,"SRC_REGION",CMAQ_raw!FP$4) -> 9.1699e-05 | FR3: =GETPIVOTDATA("Sum of PN3",CMAQ_raw!$P$10,"JDAY",$C3,"SRC_CAT",CMAQ_raw!FQ$3,"SRC_REGION",CMAQ_raw!FQ$4) -> 9.1699e-05 | FS3: =GETPIVOTDATA("Sum of PN3",CMAQ_raw!$P$10,"JDAY",$C3,"SRC_CAT",CMAQ_raw!FR$3,"SRC_REGION",CMAQ_raw!FR$4) -> 9.1699e-05 | FT3: =GETPIVOTDATA("Sum of PN3",CMAQ_raw!$P$10,"JDAY",$C3,"SRC_CAT",CMAQ_raw!FS$3,"SRC_REGION",CMAQ_raw!FS$4) -> 9.1699e-05 | FU3: =GETPIVOTDATA("Sum of PN3",CMAQ_raw!$P$10,"JDAY",$C3,"SRC_CAT",CMAQ_raw!FT$3,"SRC_REGION",CMAQ_raw!FT$4) -> 9.1699e-05 | FV3: =GETPIVOTDATA("Sum of PN3",CMAQ_raw!$P$10,"JDAY",$C3,"SRC_CAT",CMAQ_raw!FU$3,"SRC_REGION",CMAQ_raw!FU$4) -> 9.1699e-05 | FW3: =GETPIVOTDATA("Sum of PN3",CMAQ_raw!$P$10,"JDAY",$C3,"SRC_CAT",CMAQ_raw!FV$3,"SRC_REGION",CMAQ_raw!FV$4) -> 9.1699e-05 | FX3: =GETPIVOTDATA("Sum of PN3",CMAQ_raw!$P$10,"JDAY",$C3,"SRC_CAT",CMAQ_raw!FW$3,"SRC_REGION",CMAQ_raw!FW$4) -> 9.1699e-05 | FY3: =GETPIVOTDATA("Sum of PN3",CMAQ_raw!$P$10,"JDAY",$C3,"SRC_CAT",CMAQ_raw!FX$3,"SRC_REGION",CMAQ_raw!FX$4) -> 9.1699e-05 | FZ3: =GETPIVOTDATA("Sum of PN3",CMAQ_raw!$P$10,"JDAY",$C3,"SRC_CAT",CMAQ_raw!FY$3,"SRC_REGION",CMAQ_raw!FY$4) -> 9.1699e-05 | GA3: =GETPIVOTDATA("Sum of PN3",CMAQ_raw!$P$10,"JDAY",$C3,"SRC_CAT",CMAQ_raw!FZ$3,"SRC_REGION",CMAQ_raw!FZ$4) -> 9.1699e-05 | GB3: =GETPIVOTDATA("Sum of PN3",CMAQ_raw!$P$10,"JDAY",$C3,"SRC_CAT",CMAQ_raw!GA$3,"SRC_REGION",CMAQ_raw!GA$4) -> 9.1699e-05 | GC3: =GETPIVOTDATA("Sum of PN3",CMAQ_raw!$P$10,"JDAY",$C3,"SRC_CAT",CMAQ_raw!GB$3,"SRC_REGION",CMAQ_raw!GB$4) -> 9.1699e-05 | GD3: =GETPIVOTDATA("Sum of PN3",CMAQ_raw!$P$10,"JDAY",$C3,"SRC_CAT",CMAQ_raw!GC$3,"SRC_REGION",CMAQ_raw!GC$4) -> 9.1699e-05 | GE3: =GETPIVOTDATA("Sum of PN3",CMAQ_raw!$P$10,"JDAY",$C3,"SRC_CAT",CMAQ_raw!GD$3,"SRC_REGION",CMAQ_raw!GD$4) -> 9.1699e-05 | GF3: =GETPIVOTDATA("Sum of PN3",CMAQ_raw!$P$10,"JDAY",$C3,"SRC_CAT",CMAQ_raw!GE$3,"SRC_REGION",CMAQ_raw!GE$4) -> 9.1699e-05 | GG3: =GETPIVOTDATA("Sum of PN3",CMAQ_raw!$P$10,"JDAY",$C3,"SRC_CAT",CMAQ_raw!GF$3,"SRC_REGION",CMAQ_raw!GF$4) -> 9.1701e-05 | GH3: =GETPIVOTDATA("Sum of PN3",CMAQ_raw!$P$10,"JDAY",$C3,"SRC_CAT",CMAQ_raw!GG$3,"SRC_REGION",CMAQ_raw!GG$4) -> 9.1699e-05 | GI3: =GETPIVOTDATA("Sum of PN3",CMAQ_raw!$P$10,"JDAY",$C3,"SRC_CAT",CMAQ_raw!GH$3,"SRC_REGION",CMAQ_raw!GH$4) -> 9.1699e-05 | GJ3: =GETPIVOTDATA("Sum of PN3",CMAQ_raw!$P$10,"JDAY",$C3,"SRC_CAT",CMAQ_raw!GI$3,"SRC_REGION",CMAQ_raw!GI$4) -> 9.1699e-05 | GK3: =GETPIVOTDATA("Sum of PN3",CMAQ_raw!$P$10,"JDAY",$C3,"SRC_CAT",CMAQ_raw!GJ$3,"SRC_REGION",CMAQ_raw!GJ$4) -> 9.1699e-05 | GL3: =GETPIVOTDATA("Sum of PN3",CMAQ_raw!$P$10,"JDAY",$C3,"SRC_CAT",CMAQ_raw!GK$3,"SRC_REGION",CMAQ_raw!GK$4) -> 9.1699e-05 | GM3: =GETPIVOTDATA("Sum of PN3",CMAQ_raw!$P$10,"JDAY",$C3,"SRC_CAT",CMAQ_raw!GL$3,"SRC_REGION",CMAQ_raw!GL$4) -> 9.1699e-05 | GN3: =GETPIVOTDATA("Sum of PN3",CMAQ_raw!$P$10,"JDAY",$C3,"SRC_CAT",CMAQ_raw!GM$3,"SRC_REGION",CMAQ_raw!GM$4) -> 9.1699e-05 | GO3: =GETPIVOTDATA("Sum of PN3",CMAQ_raw!$P$10,"JDAY",$C3,"SRC_CAT",CMAQ_raw!GN$3,"SRC_REGION",CMAQ_raw!GN$4) -> 9.1699e-05 | GP3: =GETPIVOTDATA("Sum of PN3",CMAQ_raw!$P$10,"JDAY",$C3,"SRC_CAT",CMAQ_raw!GO$3,"SRC_REGION",CMAQ_raw!GO$4) -> 9.1707e-05 | GQ3: =GETPIVOTDATA("Sum of PN3",CMAQ_raw!$P$10,"JDAY",$C3,"SRC_CAT",CMAQ_raw!GP$3,"SRC_REGION",CMAQ_raw!GP$4) -> 9.1699e-05 | GR3: =GETPIVOTDATA("Sum of PN3",CMAQ_raw!$P$10,"JDAY",$C3,"SRC_CAT",CMAQ_raw!GQ$3,"SRC_REGION",CMAQ_raw!GQ$4) -> 9.1699e-05 | GS3: =GETPIVOTDATA("Sum of PN3",CMAQ_raw!$P$10,"JDAY",$C3,"SRC_CAT",CMAQ_raw!GR$3,"SRC_REGION",CMAQ_raw!GR$4) -> 9.1699e-05 | GT3: =GETPIVOTDATA("Sum of PN3",CMAQ_raw!$P$10,"JDAY",$C3,"SRC_CAT",CMAQ_raw!GS$3,"SRC_REGION",CMAQ_raw!GS$4) -> 9.1699e-05 | GU3: =GETPIVOTDATA("Sum of PN3",CMAQ_raw!$P$10,"JDAY",$C3,"SRC_CAT",CMAQ_raw!GT$3,"SRC_REGION",CMAQ_raw!GT$4) -> 9.1699e-05 | GV3: =GETPIVOTDATA("Sum of PN3",CMAQ_raw!$P$10,"JDAY",$C3,"SRC_CAT",CMAQ_raw!GU$3,"SRC_REGION",CMAQ_raw!GU$4) -> 9.1699e-05 | GW3: =GETPIVOTDATA("Sum of PN3",CMAQ_raw!$P$10,"JDAY",$C3,"SRC_CAT",CMAQ_raw!GV$3,"SRC_REGION",CMAQ_raw!GV$4) -> 9.1699e-05 | GX3: =GETPIVOTDATA("Sum of PN3",CMAQ_raw!$P$10,"JDAY",$C3,"SRC_CAT",CMAQ_raw!GW$3,"SRC_REGION",CMAQ_raw!GW$4) -> 9.1699e-05 | GY3: =GETPIVOTDATA("Sum of PN3",CMAQ_raw!$P$10,"JDAY",$C3,"SRC_CAT",CMAQ_raw!GX$3,"SRC_REGION",CMAQ_raw!GX$4) -> 9.1699e-05 | GZ3: =GETPIVOTDATA("Sum of PN3",CMAQ_raw!$P$10,"JDAY",$C3,"SRC_CAT",CMAQ_raw!GY$3,"SRC_REGION",CMAQ_raw!GY$4) -> 9.1699e-05 | HA3: =GETPIVOTDATA("Sum of PN3",CMAQ_raw!$P$10,"JDAY",$C3,"SRC_CAT",CMAQ_raw!GZ$3,"SRC_REGION",CMAQ_raw!GZ$4) -> 9.1699e-05 | HB3: =GETPIVOTDATA("Sum of PN3",CMAQ_raw!$P$10,"JDAY",$C3,"SRC_CAT",CMAQ_raw!HA$3,"SRC_REGION",CMAQ_raw!HA$4) -> 9.1699e-05 | HC3: =GETPIVOTDATA("Sum of PN3",CMAQ_raw!$P$10,"JDAY",$C3,"SRC_CAT",CMAQ_raw!HB$3,"SRC_REGION",CMAQ_raw!HB$4) -> 9.1699e-05 | HD3: =GETPIVOTDATA("Sum of PN3",CMAQ_raw!$P$10,"JDAY",$C3,"SRC_CAT",CMAQ_raw!HC$3,"SRC_REGION",CMAQ_raw!HC$4) -> 9.1699e-05 | HE3: =GETPIVOTDATA("Sum of PN3",CMAQ_raw!$P$10,"JDAY",$C3,"SRC_CAT",CMAQ_raw!HD$3,"SRC_REGION",CMAQ_raw!HD$4) -> 9.1699e-05 | HF3: =GETPIVOTDATA("Sum of PN3",CMAQ_raw!$P$10,"JDAY",$C3,"SRC_CAT",CMAQ_raw!HE$3,"SRC_REGION",CMAQ_raw!HE$4) -> 9.1699e-05 | HG3: =GETPIVOTDATA("Sum of PN3",CMAQ_raw!$P$10,"JDAY",$C3,"SRC_CAT",CMAQ_raw!HF$3,"SRC_REGION",CMAQ_raw!HF$4) -> 9.1699e-05 | HH3: =GETPIVOTDATA("Sum of PN3",CMAQ_raw!$P$10,"JDAY",$C3,"SRC_CAT",CMAQ_raw!HG$3,"SRC_REGION",CMAQ_raw!HG$4) -> 9.1699e-05 | HI3: =GETPIVOTDATA("Sum of PN3",CMAQ_raw!$P$10,"JDAY",$C3,"SRC_CAT",CMAQ_raw!HH$3,"SRC_REGION",CMAQ_raw!HH$4) -> 9.1699e-05 | HJ3: =GETPIVOTDATA("Sum of PN3",CMAQ_raw!$P$10,"JDAY",$C3,"SRC_CAT",CMAQ_raw!HI$3,"SRC_REGION",CMAQ_raw!HI$4) -> 9.1699e-05 | HK3: =GETPIVOTDATA("Sum of PN3",CMAQ_raw!$P$10,"JDAY",$C3,"SRC_CAT",CMAQ_raw!HJ$3,"SRC_REGION",CMAQ_raw!HJ$4) -> 9.1699e-05 | HL3: =GETPIVOTDATA("Sum of PN3",CMAQ_raw!$P$10,"JDAY",$C3,"SRC_CAT",CMAQ_raw!HK$3,"SRC_REGION",CMAQ_raw!HK$4) -> 9.1699e-05 | HM3: =GETPIVOTDATA("Sum of PN3",CMAQ_raw!$P$10,"JDAY",$C3,"SRC_CAT",CMAQ_raw!HL$3,"SRC_REGION",CMAQ_raw!HL$4) -> 9.1699e-05 | HN3: =GETPIVOTDATA("Sum of PN3",CMAQ_raw!$P$10,"JDAY",$C3,"SRC_CAT",CMAQ_raw!HM$3,"SRC_REGION",CMAQ_raw!HM$4) -> 9.1699e-05 | HO3: =GETPIVOTDATA("Sum of PN3",CMAQ_raw!$P$10,"JDAY",$C3,"SRC_CAT",CMAQ_raw!HN$3,"SRC_REGION",CMAQ_raw!HN$4) -> 9.1699e-05 | HP3: =GETPIVOTDATA("Sum of PN3",CMAQ_raw!$P$10,"JDAY",$C3,"SRC_CAT",CMAQ_raw!HO$3,"SRC_REGION",CMAQ_raw!HO$4) -> 0.015604 | HQ3: =GETPIVOTDATA("Sum of PN3",CMAQ_raw!$P$10,"JDAY",$C3,"SRC_CAT",CMAQ_raw!HP$3,"SRC_REGION",CMAQ_raw!HP$4) -> 0.0013145 | HR3: =GETPIVOTDATA("Sum of PN3",CMAQ_raw!$P$10,"JDAY",$C3,"SRC_CAT",CMAQ_raw!HQ$3,"SRC_REGION",CMAQ_raw!HQ$4) -> 0.078717 | HS3: =GETPIVOTDATA("Sum of PN3",CMAQ_raw!$P$10,"JDAY",$C3,"SRC_CAT",CMAQ_raw!HR$3,"SRC_REGION",CMAQ_raw!HR$4) -> 9.1699e-05 | HT3: =GETPIVOTDATA("Sum of PN3",CMAQ_raw!$P$10,"JDAY",$C3,"SRC_CAT",CMAQ_raw!HS$3,"SRC_REGION",CMAQ_raw!HS$4) -> 0.0017724 | HU3: =GETPIVOTDATA("Sum of PN3",CMAQ_raw!$P$10,"JDAY",$C3,"SRC_CAT",CMAQ_raw!HT$3,"SRC_REGION",CMAQ_raw!HT$4) -> 9.863e-05 | HV3: =GETPIVOTDATA("Sum of PN3",CMAQ_raw!$P$10,"JDAY",$C3,"SRC_CAT",CMAQ_raw!HU$3,"SRC_REGION",CMAQ_raw!HU$4) -> 9.1699e-05 | HW3: =GETPIVOTDATA("Sum of PN3",CMAQ_raw!$P$10,"JDAY",$C3,"SRC_CAT",CMAQ_raw!HV$3,"SRC_REGION",CMAQ_raw!HV$4) -> 0.00033922 | HX3: =GETPIVOTDATA("Sum of PN3",CMAQ_raw!$P$10,"JDAY",$C3,"SRC_CAT",CMAQ_raw!HW$3,"SRC_REGION",CMAQ_raw!HW$4) -> 0.00014146 | HY3: =GETPIVOTDATA("Sum of PN3",CMAQ_raw!$P$10,"JDAY",$C3,"SRC_CAT",CMAQ_raw!HX$3,"SRC_REGION",CMAQ_raw!HX$4) -> 0.00011059 | HZ3: =GETPIVOTDATA("Sum of PN3",CMAQ_raw!$P$10,"JDAY",$C3,"SRC_CAT",CMAQ_raw!HY$3,"SRC_REGION",CMAQ_raw!HY$4) -> 9.1699e-05 | IA3: =GETPIVOTDATA("Sum of PN3",CMAQ_raw!$P$10,"JDAY",$C3,"SRC_CAT",CMAQ_raw!HZ$3,"SRC_REGION",CMAQ_raw!HZ$4) -> 9.1699e-05 | IB3: =GETPIVOTDATA("Sum of PN3",CMAQ_raw!$P$10,"JDAY",$C3,"SRC_CAT",CMAQ_raw!IA$3,"SRC_REGION",CMAQ_raw!IA$4) -> 9.1699e-05 | IC3: =GETPIVOTDATA("Sum of PN3",CMAQ_raw!$P$10,"JDAY",$C3,"SRC_CAT",CMAQ_raw!IB$3,"SRC_REGION",CMAQ_raw!IB$4) -> 0.0062951 | ID3: =GETPIVOTDATA("Sum of PN3",CMAQ_raw!$P$10,"JDAY",$C3,"SRC_CAT",CMAQ_raw!IC$3,"SRC_REGION",CMAQ_raw!IC$4) -> 0.015911 | IE3: =GETPIVOTDATA("Sum of PN3",CMAQ_raw!$P$10,"JDAY",$C3,"SRC_CAT",CMAQ_raw!ID$3,"SRC_REGION",CMAQ_raw!ID$4) -> 9.1699e-05 | IF3: =GETPIVOTDATA("Sum of PN3",CMAQ_raw!$P$10,"JDAY",$C3,"SRC_CAT",CMAQ_raw!IE$3,"SRC_REGION",CMAQ_raw!IE$4) -> 0.1136 | IG3: =GETPIVOTDATA("Sum of PN3",CMAQ_raw!$P$10,"JDAY",$C3,"SRC_CAT",CMAQ_raw!IF$3,"SRC_REGION",CMAQ_raw!IF$4) -> 0.00011558 | IH3: =GETPIVOTDATA("Sum of PN3",CMAQ_raw!$P$10,"JDAY",$C3,"SRC_CAT",CMAQ_raw!IG$3,"SRC_REGION",CMAQ_raw!IG$4) -> 9.1796e-05 | II3: =GETPIVOTDATA("Sum of PN3",CMAQ_raw!$P$10,"JDAY",$C3,"SRC_CAT",CMAQ_raw!IH$3,"SRC_REGION",CMAQ_raw!IH$4) -> 0.0003325 | IJ3: =GETPIVOTDATA("Sum of PN3",CMAQ_raw!$P$10,"JDAY",$C3,"SRC_CAT",CMAQ_raw!II$3,"SRC_REGION",CMAQ_raw!II$4) -> 0.0073305 | IK3: =GETPIVOTDATA("Sum of PN3",CMAQ_raw!$P$10,"JDAY",$C3,"SRC_CAT",CMAQ_raw!IJ$3,"SRC_REGION",CMAQ_raw!IJ$4) -> 9.1699e-05 | IM3: =GETPIVOTDATA("Sum of POA",CMAQ_raw!$P$10,"JDAY",$C3,"SRC_CAT",CMAQ_raw!IL$3,"SRC_REGION",CMAQ_raw!IL$4) -> 1.2189e-16 | IN3: =GETPIVOTDATA("Sum of POA",CMAQ_raw!$P$10,"JDAY",$C3,"SRC_CAT",CMAQ_raw!IM$3,"SRC_REGION",CMAQ_raw!IM$4) -> 1.2189e-16 | IO3: =GETPIVOTDATA("Sum of POA",CMAQ_raw!$P$10,"JDAY",$C3,"SRC_CAT",CMAQ_raw!IN$3,"SRC_REGION",CMAQ_raw!IN$4) -> 1.2189e-16 | IP3: =GETPIVOTDATA("Sum of POA",CMAQ_raw!$P$10,"JDAY",$C3,"SRC_CAT",CMAQ_raw!IO$3,"SRC_REGION",CMAQ_raw!IO$4) -> 1.2189e-16 | IQ3: =GETPIVOTDATA("Sum of POA",CMAQ_raw!$P$10,"JDAY",$C3,"SRC_CAT",CMAQ_raw!IP$3,"SRC_REGION",CMAQ_raw!IP$4) -> 1.2189e-16 | IR3: =GETPIVOTDATA("Sum of POA",CMAQ_raw!$P$10,"JDAY",$C3,"SRC_CAT",CMAQ_raw!IQ$3,"SRC_REGION",CMAQ_raw!IQ$4) -> 1.2189e-16 | IS3: =GETPIVOTDATA("Sum of POA",CMAQ_raw!$P$10,"JDAY",$C3,"SRC_CAT",CMAQ_raw!IR$3,"SRC_REGION",CMAQ_raw!IR$4) -> 1.2189e-16 | IT3: =GETPIVOTDATA("Sum of POA",CMAQ_raw!$P$10,"JDAY",$C3,"SRC_CAT",CMAQ_raw!IS$3,"SRC_REGION",CMAQ_raw!IS$4) -> 1.2189e-16 | IU3: =GETPIVOTDATA("Sum of POA",CMAQ_raw!$P$10,"JDAY",$C3,"SRC_CAT",CMAQ_raw!IT$3,"SRC_REGION",CMAQ_raw!IT$4) -> 1.2189e-16 | IV3: =GETPIVOTDATA("Sum of POA",CMAQ_raw!$P$10,"JDAY",$C3,"SRC_CAT",CMAQ_raw!IU$3,"SRC_REGION",CMAQ_raw!IU$4) -> 1.2189e-16 | IW3: =GETPIVOTDATA("Sum of POA",CMAQ_raw!$P$10,"JDAY",$C3,"SRC_CAT",CMAQ_raw!IV$3,"SRC_REGION",CMAQ_raw!IV$4) -> 1.2189e-16 | IX3: =GETPIVOTDATA("Sum of POA",CMAQ_raw!$P$10,"JDAY",$C3,"SRC_CAT",CMAQ_raw!IW$3,"SRC_REGION",CMAQ_raw!IW$4) -> 1.2189e-16 | IY3: =GETPIVOTDATA("Sum of POA",CMAQ_raw!$P$10,"JDAY",$C3,"SRC_CAT",CMAQ_raw!IX$3,"SRC_REGION",CMAQ_raw!IX$4) -> 1.2189e-16 | IZ3: =GETPIVOTDATA("Sum of POA",CMAQ_raw!$P$10,"JDAY",$C3,"SRC_CAT",CMAQ_raw!IY$3,"SRC_REGION",CMAQ_raw!IY$4) -> 1.2189e-16 | JA3: =GETPIVOTDATA("Sum of POA",CMAQ_raw!$P$10,"JDAY",$C3,"SRC_CAT",CMAQ_raw!IZ$3,"SRC_REGION",CMAQ_raw!IZ$4) -> 1.2189e-16 | JB3: =GETPIVOTDATA("Sum of POA",CMAQ_raw!$P$10,"JDAY",$C3,"SRC_CAT",CMAQ_raw!JA$3,"SRC_REGION",CMAQ_raw!JA$4) -> 1.2189e-16 | JC3: =GETPIVOTDATA("Sum of POA",CMAQ_raw!$P$10,"JDAY",$C3,"SRC_CAT",CMAQ_raw!JB$3,"SRC_REGION",CMAQ_raw!JB$4) -> 1.2189e-16 | JD3: =GETPIVOTDATA("Sum of POA",CMAQ_raw!$P$10,"JDAY",$C3,"SRC_CAT",CMAQ_raw!JC$3,"SRC_REGION",CMAQ_raw!JC$4) -> 1.2189e-16 | JE3: =GETPIVOTDATA("Sum of POA",CMAQ_raw!$P$10,"JDAY",$C3,"SRC_CAT",CMAQ_raw!JD$3,"SRC_REGION",CMAQ_raw!JD$4) -> 1.2189e-16 | JF3: =GETPIVOTDATA("Sum of POA",CMAQ_raw!$P$10,"JDAY",$C3,"SRC_CAT",CMAQ_raw!JE$3,"SRC_REGION",CMAQ_raw!JE$4) -> 1.2189e-16 | JG3: =GETPIVOTDATA("Sum of POA",CMAQ_raw!$P$10,"JDAY",$C3,"SRC_CAT",CMAQ_raw!JF$3,"SRC_REGION",CMAQ_raw!JF$4) -> 1.2189e-16 | JH3: =GETPIVOTDATA("Sum of POA",CMAQ_raw!$P$10,"JDAY",$C3,"SRC_CAT",CMAQ_raw!JG$3,"SRC_REGION",CMAQ_raw!JG$4) -> 1.2189e-16 | JI3: =GETPIVOTDATA("Sum of POA",CMAQ_raw!$P$10,"JDAY",$C3,"SRC_CAT",CMAQ_raw!JH$3,"SRC_REGION",CMAQ_raw!JH$4) -> 1.2189e-16 | JJ3: =GETPIVOTDATA("Sum of POA",CMAQ_raw!$P$10,"JDAY",$C3,"SRC_CAT",CMAQ_raw!JI$3,"SRC_REGION",CMAQ_raw!JI$4) -> 2.5868e-11 | JK3: =GETPIVOTDATA("Sum of POA",CMAQ_raw!$P$10,"JDAY",$C3,"SRC_CAT",CMAQ_raw!JJ$3,"SRC_REGION",CMAQ_raw!JJ$4) -> 3.9827e-11 | JL3: =GETPIVOTDATA("Sum of POA",CMAQ_raw!$P$10,"JDAY",$C3,"SRC_CAT",CMAQ_raw!JK$3,"SRC_REGION",CMAQ_raw!JK$4) -> 1.2189e-16 | JM3: =GETPIVOTDATA("Sum of POA",CMAQ_raw!$P$10,"JDAY",$C3,"SRC_CAT",CMAQ_raw!JL$3,"SRC_REGION",CMAQ_raw!JL$4) -> 1.2189e-16 | JN3: =GETPIVOTDATA("Sum of POA",CMAQ_raw!$P$10,"JDAY",$C3,"SRC_CAT",CMAQ_raw!JM$3,"SRC_REGION",CMAQ_raw!JM$4) -> 1.2189e-16 | JO3: =GETPIVOTDATA("Sum of POA",CMAQ_raw!$P$10,"JDAY",$C3,"SRC_CAT",CMAQ_raw!JN$3,"SRC_REGION",CMAQ_raw!JN$4) -> 1.2189e-16 | JP3: =GETPIVOTDATA("Sum of POA",CMAQ_raw!$P$10,"JDAY",$C3,"SRC_CAT",CMAQ_raw!JO$3,"SRC_REGION",CMAQ_raw!JO$4) -> 1.2189e-16 | JQ3: =GETPIVOTDATA("Sum of POA",CMAQ_raw!$P$10,"JDAY",$C3,"SRC_CAT",CMAQ_raw!JP$3,"SRC_REGION",CMAQ_raw!JP$4) -> 1.2189e-16 | JR3: =GETPIVOTDATA("Sum of POA",CMAQ_raw!$P$10,"JDAY",$C3,"SRC_CAT",CMAQ_raw!JQ$3,"SRC_REGION",CMAQ_raw!JQ$4) -> 1.2189e-16 | JS3: =GETPIVOTDATA("Sum of POA",CMAQ_raw!$P$10,"JDAY",$C3,"SRC_CAT",CMAQ_raw!JR$3,"SRC_REGION",CMAQ_raw!JR$4) -> 1.2189e-16 | JT3: =GETPIVOTDATA("Sum of POA",CMAQ_raw!$P$10,"JDAY",$C3,"SRC_CAT",CMAQ_raw!JS$3,"SRC_REGION",CMAQ_raw!JS$4) -> 1.2189e-16 | JU3: =GETPIVOTDATA("Sum of POA",CMAQ_raw!$P$10,"JDAY",$C3,"SRC_CAT",CMAQ_raw!JT$3,"SRC_REGION",CMAQ_raw!JT$4) -> 1.2189e-16 | JV3: =GETPIVOTDATA("Sum of POA",CMAQ_raw!$P$10,"JDAY",$C3,"SRC_CAT",CMAQ_raw!JU$3,"SRC_REGION",CMAQ_raw!JU$4) -> 1.2189e-16 | JW3: =GETPIVOTDATA("Sum of POA",CMAQ_raw!$P$10,"JDAY",$C3,"SRC_CAT",CMAQ_raw!JV$3,"SRC_REGION",CMAQ_raw!JV$4) -> 1.2189e-16 | JX3: =GETPIVOTDATA("Sum of POA",CMAQ_raw!$P$10,"JDAY",$C3,"SRC_CAT",CMAQ_raw!JW$3,"SRC_REGION",CMAQ_raw!JW$4) -> 1.2189e-16 | JY3: =GETPIVOTDATA("Sum of POA",CMAQ_raw!$P$10,"JDAY",$C3,"SRC_CAT",CMAQ_raw!JX$3,"SRC_REGION",CMAQ_raw!JX$4) -> 3.0722e-16 | JZ3: =GETPIVOTDATA("Sum of POA",CMAQ_raw!$P$10,"JDAY",$C3,"SRC_CAT",CMAQ_raw!JY$3,"SRC_REGION",CMAQ_raw!JY$4) -> 2.9553e-09 | KA3: =GETPIVOTDATA("Sum of POA",CMAQ_raw!$P$10,"JDAY",$C3,"SRC_CAT",CMAQ_raw!JZ$3,"SRC_REGION",CMAQ_raw!JZ$4) -> 1.3693e-14 | KB3: =GETPIVOTDATA("Sum of POA",CMAQ_raw!$P$10,"JDAY",$C3,"SRC_CAT",CMAQ_raw!KA$3,"SRC_REGION",CMAQ_raw!KA$4) -> 1.2189e-16 | KC3: =GETPIVOTDATA("Sum of POA",CMAQ_raw!$P$10,"JDAY",$C3,"SRC_CAT",CMAQ_raw!KB$3,"SRC_REGION",CMAQ_raw!KB$4) -> 1.2189e-16 | KD3: =GETPIVOTDATA("Sum of POA",CMAQ_raw!$P$10,"JDAY",$C3,"SRC_CAT",CMAQ_raw!KC$3,"SRC_REGION",CMAQ_raw!KC$4) -> 2.4741e-10 | KE3: =GETPIVOTDATA("Sum of POA",CMAQ_raw!$P$10,"JDAY",$C3,"SRC_CAT",CMAQ_raw!KD$3,"SRC_REGION",CMAQ_raw!KD$4) -> 1.2189e-16 | KF3: =GETPIVOTDATA("Sum of POA",CMAQ_raw!$P$10,"JDAY",$C3,"SRC_CAT",CMAQ_raw!KE$3,"SRC_REGION",CMAQ_raw!KE$4) -> 6.4036e-11 | KG3: =GETPIVOTDATA("Sum of POA",CMAQ_raw!$P$10,"JDAY",$C3,"SRC_CAT",CMAQ_raw!KF$3,"SRC_REGION",CMAQ_raw!KF$4) -> 1.2189e-16 | KH3: =GETPIVOTDATA("Sum of POA",CMAQ_raw!$P$10,"JDAY",$C3,"SRC_CAT",CMAQ_raw!KG$3,"SRC_REGION",CMAQ_raw!KG$4) -> 1.2189e-16 | KI3: =GETPIVOTDATA("Sum of POA",CMAQ_raw!$P$10,"JDAY",$C3,"SRC_CAT",CMAQ_raw!KH$3,"SRC_REGION",CMAQ_raw!KH$4) -> 1.2189e-16 | KJ3: =GETPIVOTDATA("Sum of POA",CMAQ_raw!$P$10,"JDAY",$C3,"SRC_CAT",CMAQ_raw!KI$3,"SRC_REGION",CMAQ_raw!KI$4) -> 1.2189e-16 | KK3: =GETPIVOTDATA("Sum of POA",CMAQ_raw!$P$10,"JDAY",$C3,"SRC_CAT",CMAQ_raw!KJ$3,"SRC_REGION",CMAQ_raw!KJ$4) -> 1.6988e-08 | KL3: =GETPIVOTDATA("Sum of POA",CMAQ_raw!$P$10,"JDAY",$C3,"SRC_CAT",CMAQ_raw!KK$3,"SRC_REGION",CMAQ_raw!KK$4) -> 4.4404e-15 | KM3: =GETPIVOTDATA("Sum of POA",CMAQ_raw!$P$10,"JDAY",$C3,"SRC_CAT",CMAQ_raw!KL$3,"SRC_REGION",CMAQ_raw!KL$4) -> 1.219e-16 | KN3: =GETPIVOTDATA("Sum of POA",CMAQ_raw!$P$10,"JDAY",$C3,"SRC_CAT",CMAQ_raw!KM$3,"SRC_REGION",CMAQ_raw!KM$4) -> 1.2189e-16 | KO3: =GETPIVOTDATA("Sum of POA",CMAQ_raw!$P$10,"JDAY",$C3,"SRC_CAT",CMAQ_raw!KN$3,"SRC_REGION",CMAQ_raw!KN$4) -> 1.2501e-16 | KP3: =GETPIVOTDATA("Sum of POA",CMAQ_raw!$P$10,"JDAY",$C3,"SRC_CAT",CMAQ_raw!KO$3,"SRC_REGION",CMAQ_raw!KO$4) -> 1.2189e-16 | KQ3: =GETPIVOTDATA("Sum of POA",CMAQ_raw!$P$10,"JDAY",$C3,"SRC_CAT",CMAQ_raw!KP$3,"SRC_REGION",CMAQ_raw!KP$4) -> 1.2189e-16 | KR3: =GETPIVOTDATA("Sum of POA",CMAQ_raw!$P$10,"JDAY",$C3,"SRC_CAT",CMAQ_raw!KQ$3,"SRC_REGION",CMAQ_raw!KQ$4) -> 1.2189e-16 | KS3: =GETPIVOTDATA("Sum of POA",CMAQ_raw!$P$10,"JDAY",$C3,"SRC_CAT",CMAQ_raw!KR$3,"SRC_REGION",CMAQ_raw!KR$4) -> 1.234e-16 | KT3: =GETPIVOTDATA("Sum of POA",CMAQ_raw!$P$10,"JDAY",$C3,"SRC_CAT",CMAQ_raw!KS$3,"SRC_REGION",CMAQ_raw!KS$4) -> 2.3712e-07 | KU3: =GETPIVOTDATA("Sum of POA",CMAQ_raw!$P$10,"JDAY",$C3,"SRC_CAT",CMAQ_raw!KT$3,"SRC_REGION",CMAQ_raw!KT$4) -> 1.2189e-16 | KV3: =GETPIVOTDATA("Sum of POA",CMAQ_raw!$P$10,"JDAY",$C3,"SRC_CAT",CMAQ_raw!KU$3,"SRC_REGION",CMAQ_raw!KU$4) -> 1.2189e-16 | KW3: =GETPIVOTDATA("Sum of POA",CMAQ_raw!$P$10,"JDAY",$C3,"SRC_CAT",CMAQ_raw!KV$3,"SRC_REGION",CMAQ_raw!KV$4) -> 1.2189e-16 | KX3: =GETPIVOTDATA("Sum of POA",CMAQ_raw!$P$10,"JDAY",$C3,"SRC_CAT",CMAQ_raw!KW$3,"SRC_REGION",CMAQ_raw!KW$4) -> 1.2189e-16 | KY3: =GETPIVOTDATA("Sum of POA",CMAQ_raw!$P$10,"JDAY",$C3,"SRC_CAT",CMAQ_raw!KX$3,"SRC_REGION",CMAQ_raw!KX$4) -> 1.2189e-16 | KZ3: =GETPIVOTDATA("Sum of POA",CMAQ_raw!$P$10,"JDAY",$C3,"SRC_CAT",CMAQ_raw!KY$3,"SRC_REGION",CMAQ_raw!KY$4) -> 1.2868e-16 | LA3: =GETPIVOTDATA("Sum of POA",CMAQ_raw!$P$10,"JDAY",$C3,"SRC_CAT",CMAQ_raw!KZ$3,"SRC_REGION",CMAQ_raw!KZ$4) -> 1.219e-16 | LB3: =GETPIVOTDATA("Sum of POA",CMAQ_raw!$P$10,"JDAY",$C3,"SRC_CAT",CMAQ_raw!LA$3,"SRC_REGION",CMAQ_raw!LA$4) -> 1.219e-16 | LC3: =GETPIVOTDATA("Sum of POA",CMAQ_raw!$P$10,"JDAY",$C3,"SRC_CAT",CMAQ_raw!LB$3,"SRC_REGION",CMAQ_raw!LB$4) -> 1.2189e-16 | LD3: =GETPIVOTDATA("Sum of POA",CMAQ_raw!$P$10,"JDAY",$C3,"SRC_CAT",CMAQ_raw!LC$3,"SRC_REGION",CMAQ_raw!LC$4) -> 1.2189e-16 | LE3: =GETPIVOTDATA("Sum of POA",CMAQ_raw!$P$10,"JDAY",$C3,"SRC_CAT",CMAQ_raw!LD$3,"SRC_REGION",CMAQ_raw!LD$4) -> 1.2189e-16 | LF3: =GETPIVOTDATA("Sum of POA",CMAQ_raw!$P$10,"JDAY",$C3,"SRC_CAT",CMAQ_raw!LE$3,"SRC_REGION",CMAQ_raw!LE$4) -> 1.2189e-16 | LG3: =GETPIVOTDATA("Sum of POA",CMAQ_raw!$P$10,"JDAY",$C3,"SRC_CAT",CMAQ_raw!LF$3,"SRC_REGION",CMAQ_raw!LF$4) -> 1.2189e-16 | LH3: =GETPIVOTDATA("Sum of POA",CMAQ_raw!$P$10,"JDAY",$C3,"SRC_CAT",CMAQ_raw!LG$3,"SRC_REGION",CMAQ_raw!LG$4) -> 1.2189e-16 | LI3: =GETPIVOTDATA("Sum of POA",CMAQ_raw!$P$10,"JDAY",$C3,"SRC_CAT",CMAQ_raw!LH$3,"SRC_REGION",CMAQ_raw!LH$4) -> 1.2189e-16 | LJ3: =GETPIVOTDATA("Sum of POA",CMAQ_raw!$P$10,"JDAY",$C3,"SRC_CAT",CMAQ_raw!LI$3,"SRC_REGION",CMAQ_raw!LI$4) -> 1.2189e-16 | LK3: =GETPIVOTDATA("Sum of POA",CMAQ_raw!$P$10,"JDAY",$C3,"SRC_CAT",CMAQ_raw!LJ$3,"SRC_REGION",CMAQ_raw!LJ$4) -> 1.219e-16 | LL3: =GETPIVOTDATA("Sum of POA",CMAQ_raw!$P$10,"JDAY",$C3,"SRC_CAT",CMAQ_raw!LK$3,"SRC_REGION",CMAQ_raw!LK$4) -> 1.2189e-16 | LM3: =GETPIVOTDATA("Sum of POA",CMAQ_raw!$P$10,"JDAY",$C3,"SRC_CAT",CMAQ_raw!LL$3,"SRC_REGION",CMAQ_raw!LL$4) -> 1.2189e-16 | LN3: =GETPIVOTDATA("Sum of POA",CMAQ_raw!$P$10,"JDAY",$C3,"SRC_CAT",CMAQ_raw!LM$3,"SRC_REGION",CMAQ_raw!LM$4) -> 1.8243e-16 | LO3: =GETPIVOTDATA("Sum of POA",CMAQ_raw!$P$10,"JDAY",$C3,"SRC_CAT",CMAQ_raw!LN$3,"SRC_REGION",CMAQ_raw!LN$4) -> 1.2189e-16 | LP3: =GETPIVOTDATA("Sum of POA",CMAQ_raw!$P$10,"JDAY",$C3,"SRC_CAT",CMAQ_raw!LO$3,"SRC_REGION",CMAQ_raw!LO$4) -> 4.0317e-12 | LQ3: =GETPIVOTDATA("Sum of POA",CMAQ_raw!$P$10,"JDAY",$C3,"SRC_CAT",CMAQ_raw!LP$3,"SRC_REGION",CMAQ_raw!LP$4) -> 1.2189e-16 | LR3: =GETPIVOTDATA("Sum of POA",CMAQ_raw!$P$10,"JDAY",$C3,"SRC_CAT",CMAQ_raw!LQ$3,"SRC_REGION",CMAQ_raw!LQ$4) -> 1.2189e-16 | LS3: =GETPIVOTDATA("Sum of POA",CMAQ_raw!$P$10,"JDAY",$C3,"SRC_CAT",CMAQ_raw!LR$3,"SRC_REGION",CMAQ_raw!LR$4) -> 1.5516e-16 | LT3: =GETPIVOTDATA("Sum of POA",CMAQ_raw!$P$10,"JDAY",$C3,"SRC_CAT",CMAQ_raw!LS$3,"SRC_REGION",CMAQ_raw!LS$4) -> 0.01156 | LU3: =GETPIVOTDATA("Sum of POA",CMAQ_raw!$P$10,"JDAY",$C3,"SRC_CAT",CMAQ_raw!LT$3,"SRC_REGION",CMAQ_raw!LT$4) -> 0.0047898 | LV3: =GETPIVOTDATA("Sum of POA",CMAQ_raw!$P$10,"JDAY",$C3,"SRC_CAT",CMAQ_raw!LU$3,"SRC_REGION",CMAQ_raw!LU$4) -> 0.54624 | LW3: =GETPIVOTDATA("Sum of POA",CMAQ_raw!$P$10,"JDAY",$C3,"SRC_CAT",CMAQ_raw!LV$3,"SRC_REGION",CMAQ_raw!LV$4) -> 8.8361e-15 | LX3: =GETPIVOTDATA("Sum of POA",CMAQ_raw!$P$10,"JDAY",$C3,"SRC_CAT",CMAQ_raw!LW$3,"SRC_REGION",CMAQ_raw!LW$4) -> 0.00183 | LY3: =GETPIVOTDATA("Sum of POA",CMAQ_raw!$P$10,"JDAY",$C3,"SRC_CAT",CMAQ_raw!LX$3,"SRC_REGION",CMAQ_raw!LX$4) -> 1.5599e-05 | LZ3: =GETPIVOTDATA("Sum of POA",CMAQ_raw!$P$10,"JDAY",$C3,"SRC_CAT",CMAQ_raw!LY$3,"SRC_REGION",CMAQ_raw!LY$4) -> 8.1562e-14 | MA3: =GETPIVOTDATA("Sum of POA",CMAQ_raw!$P$10,"JDAY",$C3,"SRC_CAT",CMAQ_raw!LZ$3,"SRC_REGION",CMAQ_raw!LZ$4) -> 0.0011835 | MB3: =GETPIVOTDATA("Sum of POA",CMAQ_raw!$P$10,"JDAY",$C3,"SRC_CAT",CMAQ_raw!MA$3,"SRC_REGION",CMAQ_raw!MA$4) -> 0.00027305 | MC3: =GETPIVOTDATA("Sum of POA",CMAQ_raw!$P$10,"JDAY",$C3,"SRC_CAT",CMAQ_raw!MB$3,"SRC_REGION",CMAQ_raw!MB$4) -> 5.5058e-05 | MD3: =GETPIVOTDATA("Sum of POA",CMAQ_raw!$P$10,"JDAY",$C3,"SRC_CAT",CMAQ_raw!MC$3,"SRC_REGION",CMAQ_raw!MC$4) -> 1.2765e-15 | ME3: =GETPIVOTDATA("Sum of POA",CMAQ_raw!$P$10,"JDAY",$C3,"SRC_CAT",CMAQ_raw!MD$3,"SRC_REGION",CMAQ_raw!MD$4) -> 1.6559e-13 | MF3: =GETPIVOTDATA("Sum of POA",CMAQ_raw!$P$10,"JDAY",$C3,"SRC_CAT",CMAQ_raw!ME$3,"SRC_REGION",CMAQ_raw!ME$4) -> 5.8065e-15 | MG3: =GETPIVOTDATA("Sum of POA",CMAQ_raw!$P$10,"JDAY",$C3,"SRC_CAT",CMAQ_raw!MF$3,"SRC_REGION",CMAQ_raw!MF$4) -> 0.0079317 | MH3: =GETPIVOTDATA("Sum of POA",CMAQ_raw!$P$10,"JDAY",$C3,"SRC_CAT",CMAQ_raw!MG$3,"SRC_REGION",CMAQ_raw!MG$4) -> 0.021098 | MI3: =GETPIVOTDATA("Sum of POA",CMAQ_raw!$P$10,"JDAY",$C3,"SRC_CAT",CMAQ_raw!MH$3,"SRC_REGION",CMAQ_raw!MH$4) -> 1.3491e-12 | MJ3: =GETPIVOTDATA("Sum of POA",CMAQ_raw!$P$10,"JDAY",$C3,"SRC_CAT",CMAQ_raw!MI$3,"SRC_REGION",CMAQ_raw!MI$4) -> 0.21017 | MK3: =GETPIVOTDATA("Sum of POA",CMAQ_raw!$P$10,"JDAY",$C3,"SRC_CAT",CMAQ_raw!MJ$3,"SRC_REGION",CMAQ_raw!MJ$4) -> 0.00015018 | ML3: =GETPIVOTDATA("Sum of POA",CMAQ_raw!$P$10,"JDAY",$C3,"SRC_CAT",CMAQ_raw!MK$3,"SRC_REGION",CMAQ_raw!MK$4) -> 7.7072e-08 | MM3: =GETPIVOTDATA("Sum of POA",CMAQ_raw!$P$10,"JDAY",$C3,"SRC_CAT",CMAQ_raw!ML$3,"SRC_REGION",CMAQ_raw!ML$4) -> 0.00085593 | MN3: =GETPIVOTDATA("Sum of POA",CMAQ_raw!$P$10,"JDAY",$C3,"SRC_CAT",CMAQ_raw!MM$3,"SRC_REGION",CMAQ_raw!MM$4) -> 0.021321 | MO3: =GETPIVOTDATA("Sum of POA",CMAQ_raw!$P$10,"JDAY",$C3,"SRC_CAT",CMAQ_raw!MN$3,"SRC_REGION",CMAQ_raw!MN$4) -> 1.2189e-16 | MQ3: =GETPIVOTDATA("Sum of PEC",CMAQ_raw!$P$10,"JDAY",$C3,"SRC_CAT",CMAQ_raw!MP$3,"SRC_REGION",CMAQ_raw!MP$4) -> 1.1869e-16 | MR3: =GETPIVOTDATA("Sum of PEC",CMAQ_raw!$P$10,"JDAY",$C3,"SRC_CAT",CMAQ_raw!MQ$3,"SRC_REGION",CMAQ_raw!MQ$4) -> 1.1869e-16 | MS3: =GETPIVOTDATA("Sum of PEC",CMAQ_raw!$P$10,"JDAY",$C3,"SRC_CAT",CMAQ_raw!MR$3,"SRC_REGION",CMAQ_raw!MR$4) -> 1.1869e-16 | MT3: =GETPIVOTDATA("Sum of PEC",CMAQ_raw!$P$10,"JDAY",$C3,"SRC_CAT",CMAQ_raw!MS$3,"SRC_REGION",CMAQ_raw!MS$4) -> 1.1869e-16 | MU3: =GETPIVOTDATA("Sum of PEC",CMAQ_raw!$P$10,"JDAY",$C3,"SRC_CAT",CMAQ_raw!MT$3,"SRC_REGION",CMAQ_raw!MT$4) -> 1.1869e-16 | MV3: =GETPIVOTDATA("Sum of PEC",CMAQ_raw!$P$10,"JDAY",$C3,"SRC_CAT",CMAQ_raw!MU$3,"SRC_REGION",CMAQ_raw!MU$4) -> 1.1869e-16 | MW3: =GETPIVOTDATA("Sum of PEC",CMAQ_raw!$P$10,"JDAY",$C3,"SRC_CAT",CMAQ_raw!MV$3,"SRC_REGION",CMAQ_raw!MV$4) -> 1.1869e-16 | MX3: =GETPIVOTDATA("Sum of PEC",CMAQ_raw!$P$10,"JDAY",$C3,"SRC_CAT",CMAQ_raw!MW$3,"SRC_REGION",CMAQ_raw!MW$4) -> 1.1869e-16 | MY3: =GETPIVOTDATA("Sum of PEC",CMAQ_raw!$P$10,"JDAY",$C3,"SRC_CAT",CMAQ_raw!MX$3,"SRC_REGION",CMAQ_raw!MX$4) -> 1.1869e-16 | MZ3: =GETPIVOTDATA("Sum of PEC",CMAQ_raw!$P$10,"JDAY",$C3,"SRC_CAT",CMAQ_raw!MY$3,"SRC_REGION",CMAQ_raw!MY$4) -> 1.1869e-16 | NA3: =GETPIVOTDATA("Sum of PEC",CMAQ_raw!$P$10,"JDAY",$C3,"SRC_CAT",CMAQ_raw!MZ$3,"SRC_REGION",CMAQ_raw!MZ$4) -> 1.1869e-16 | NB3: =GETPIVOTDATA("Sum of PEC",CMAQ_raw!$P$10,"JDAY",$C3,"SRC_CAT",CMAQ_raw!NA$3,"SRC_REGION",CMAQ_raw!NA$4) -> 1.1869e-16 | NC3: =GETPIVOTDATA("Sum of PEC",CMAQ_raw!$P$10,"JDAY",$C3,"SRC_CAT",CMAQ_raw!NB$3,"SRC_REGION",CMAQ_raw!NB$4) -> 1.1869e-16 | ND3: =GETPIVOTDATA("Sum of PEC",CMAQ_raw!$P$10,"JDAY",$C3,"SRC_CAT",CMAQ_raw!NC$3,"SRC_REGION",CMAQ_raw!NC$4) -> 1.1869e-16 | NE3: =GETPIVOTDATA("Sum of PEC",CMAQ_raw!$P$10,"JDAY",$C3,"SRC_CAT",CMAQ_raw!ND$3,"SRC_REGION",CMAQ_raw!ND$4) -> 1.1869e-16 | NF3: =GETPIVOTDATA("Sum of PEC",CMAQ_raw!$P$10,"JDAY",$C3,"SRC_CAT",CMAQ_raw!NE$3,"SRC_REGION",CMAQ_raw!NE$4) -> 1.1869e-16 | NG3: =GETPIVOTDATA("Sum of PEC",CMAQ_raw!$P$10,"JDAY",$C3,"SRC_CAT",CMAQ_raw!NF$3,"SRC_REGION",CMAQ_raw!NF$4) -> 1.1869e-16 | NH3: =GETPIVOTDATA("Sum of PEC",CMAQ_raw!$P$10,"JDAY",$C3,"SRC_CAT",CMAQ_raw!NG$3,"SRC_REGION",CMAQ_raw!NG$4) -> 1.1869e-16 | NI3: =GETPIVOTDATA("Sum of PEC",CMAQ_raw!$P$10,"JDAY",$C3,"SRC_CAT",CMAQ_raw!NH$3,"SRC_REGION",CMAQ_raw!NH$4) -> 1.1869e-16 | NJ3: =GETPIVOTDATA("Sum of PEC",CMAQ_raw!$P$10,"JDAY",$C3,"SRC_CAT",CMAQ_raw!NI$3,"SRC_REGION",CMAQ_raw!NI$4) -> 1.1869e-16 | NK3: =GETPIVOTDATA("Sum of PEC",CMAQ_raw!$P$10,"JDAY",$C3,"SRC_CAT",CMAQ_raw!NJ$3,"SRC_REGION",CMAQ_raw!NJ$4) -> 1.1869e-16 | NL3: =GETPIVOTDATA("Sum of PEC",CMAQ_raw!$P$10,"JDAY",$C3,"SRC_CAT",CMAQ_raw!NK$3,"SRC_REGION",CMAQ_raw!NK$4) -> 1.1869e-16 | NM3: =GETPIVOTDATA("Sum of PEC",CMAQ_raw!$P$10,"JDAY",$C3,"SRC_CAT",CMAQ_raw!NL$3,"SRC_REGION",CMAQ_raw!NL$4) -> 1.1869e-16 | NN3: =GETPIVOTDATA("Sum of PEC",CMAQ_raw!$P$10,"JDAY",$C3,"SRC_CAT",CMAQ_raw!NM$3,"SRC_REGION",CMAQ_raw!NM$4) -> 1.6993e-11 | NO3: =GETPIVOTDATA("Sum of PEC",CMAQ_raw!$P$10,"JDAY",$C3,"SRC_CAT",CMAQ_raw!NN$3,"SRC_REGION",CMAQ_raw!NN$4) -> 1.6022e-11 | NP3: =GETPIVOTDATA("Sum of PEC",CMAQ_raw!$P$10,"JDAY",$C3,"SRC_CAT",CMAQ_raw!NO$3,"SRC_REGION",CMAQ_raw!NO$4) -> 1.1869e-16 | NQ3: =GETPIVOTDATA("Sum of PEC",CMAQ_raw!$P$10,"JDAY",$C3,"SRC_CAT",CMAQ_raw!NP$3,"SRC_REGION",CMAQ_raw!NP$4) -> 1.1869e-16 | NR3: =GETPIVOTDATA("Sum of PEC",CMAQ_raw!$P$10,"JDAY",$C3,"SRC_CAT",CMAQ_raw!NQ$3,"SRC_REGION",CMAQ_raw!NQ$4) -> 1.1869e-16 | NS3: =GETPIVOTDATA("Sum of PEC",CMAQ_raw!$P$10,"JDAY",$C3,"SRC_CAT",CMAQ_raw!NR$3,"SRC_REGION",CMAQ_raw!NR$4) -> 1.1869e-16 | NT3: =GETPIVOTDATA("Sum of PEC",CMAQ_raw!$P$10,"JDAY",$C3,"SRC_CAT",CMAQ_raw!NS$3,"SRC_REGION",CMAQ_raw!NS$4) -> 1.1869e-16 | NU3: =GETPIVOTDATA("Sum of PEC",CMAQ_raw!$P$10,"JDAY",$C3,"SRC_CAT",CMAQ_raw!NT$3,"SRC_REGION",CMAQ_raw!NT$4) -> 1.1869e-16 | NV3: =GETPIVOTDATA("Sum of PEC",CMAQ_raw!$P$10,"JDAY",$C3,"SRC_CAT",CMAQ_raw!NU$3,"SRC_REGION",CMAQ_raw!NU$4) -> 1.1869e-16 | NW3: =GETPIVOTDATA("Sum of PEC",CMAQ_raw!$P$10,"JDAY",$C3,"SRC_CAT",CMAQ_raw!NV$3,"SRC_REGION",CMAQ_raw!NV$4) -> 1.1869e-16 | NX3: =GETPIVOTDATA("Sum of PEC",CMAQ_raw!$P$10,"JDAY",$C3,"SRC_CAT",CMAQ_raw!NW$3,"SRC_REGION",CMAQ_raw!NW$4) -> 1.1869e-16 | NY3: =GETPIVOTDATA("Sum of PEC",CMAQ_raw!$P$10,"JDAY",$C3,"SRC_CAT",CMAQ_raw!NX$3,"SRC_REGION",CMAQ_raw!NX$4) -> 1.1869e-16 | NZ3: =GETPIVOTDATA("Sum of PEC",CMAQ_raw!$P$10,"JDAY",$C3,"SRC_CAT",CMAQ_raw!NY$3,"SRC_REGION",CMAQ_raw!NY$4) -> 1.1869e-16 | OA3: =GETPIVOTDATA("Sum of PEC",CMAQ_raw!$P$10,"JDAY",$C3,"SRC_CAT",CMAQ_raw!NZ$3,"SRC_REGION",CMAQ_raw!NZ$4) -> 1.1869e-16 | OB3: =GETPIVOTDATA("Sum of PEC",CMAQ_raw!$P$10,"JDAY",$C3,"SRC_CAT",CMAQ_raw!OA$3,"SRC_REGION",CMAQ_raw!OA$4) -> 1.1869e-16 | OC3: =GETPIVOTDATA("Sum of PEC",CMAQ_raw!$P$10,"JDAY",$C3,"SRC_CAT",CMAQ_raw!OB$3,"SRC_REGION",CMAQ_raw!OB$4) -> 1.9303e-16 | OD3: =GETPIVOTDATA("Sum of PEC",CMAQ_raw!$P$10,"JDAY",$C3,"SRC_CAT",CMAQ_raw!OC$3,"SRC_REGION",CMAQ_raw!OC$4) -> 1.4322e-09 | OE3: =GETPIVOTDATA("Sum of PEC",CMAQ_raw!$P$10,"JDAY",$C3,"SRC_CAT",CMAQ_raw!OD$3,"SRC_REGION",CMAQ_raw!OD$4) -> 5.2964e-15 | OF3: =GETPIVOTDATA("Sum of PEC",CMAQ_raw!$P$10,"JDAY",$C3,"SRC_CAT",CMAQ_raw!OE$3,"SRC_REGION",CMAQ_raw!OE$4) -> 1.1869e-16 | OG3: =GETPIVOTDATA("Sum of PEC",CMAQ_raw!$P$10,"JDAY",$C3,"SRC_CAT",CMAQ_raw!OF$3,"SRC_REGION",CMAQ_raw!OF$4) -> 1.1869e-16 | OH3: =GETPIVOTDATA("Sum of PEC",CMAQ_raw!$P$10,"JDAY",$C3,"SRC_CAT",CMAQ_raw!OG$3,"SRC_REGION",CMAQ_raw!OG$4) -> 1.508e-10 | OI3: =GETPIVOTDATA("Sum of PEC",CMAQ_raw!$P$10,"JDAY",$C3,"SRC_CAT",CMAQ_raw!OH$3,"SRC_REGION",CMAQ_raw!OH$4) -> 1.1869e-16 | OJ3: =GETPIVOTDATA("Sum of PEC",CMAQ_raw!$P$10,"JDAY",$C3,"SRC_CAT",CMAQ_raw!OI$3,"SRC_REGION",CMAQ_raw!OI$4) -> 2.5803e-11 | OK3: =GETPIVOTDATA("Sum of PEC",CMAQ_raw!$P$10,"JDAY",$C3,"SRC_CAT",CMAQ_raw!OJ$3,"SRC_REGION",CMAQ_raw!OJ$4) -> 1.1869e-16 | OL3: =GETPIVOTDATA("Sum of PEC",CMAQ_raw!$P$10,"JDAY",$C3,"SRC_CAT",CMAQ_raw!OK$3,"SRC_REGION",CMAQ_raw!OK$4) -> 1.1869e-16 | OM3: =GETPIVOTDATA("Sum of PEC",CMAQ_raw!$P$10,"JDAY",$C3,"SRC_CAT",CMAQ_raw!OL$3,"SRC_REGION",CMAQ_raw!OL$4) -> 1.1869e-16 | ON3: =GETPIVOTDATA("Sum of PEC",CMAQ_raw!$P$10,"JDAY",$C3,"SRC_CAT",CMAQ_raw!OM$3,"SRC_REGION",CMAQ_raw!OM$4) -> 1.1869e-16 | OO3: =GETPIVOTDATA("Sum of PEC",CMAQ_raw!$P$10,"JDAY",$C3,"SRC_CAT",CMAQ_raw!ON$3,"SRC_REGION",CMAQ_raw!ON$4) -> 8.11e-09 | OP3: =GETPIVOTDATA("Sum of PEC",CMAQ_raw!$P$10,"JDAY",$C3,"SRC_CAT",CMAQ_raw!OO$3,"SRC_REGION",CMAQ_raw!OO$4) -> 1.0738e-15 | OQ3: =GETPIVOTDATA("Sum of PEC",CMAQ_raw!$P$10,"JDAY",$C3,"SRC_CAT",CMAQ_raw!OP$3,"SRC_REGION",CMAQ_raw!OP$4) -> 1.1869e-16 | OR3: =GETPIVOTDATA("Sum of PEC",CMAQ_raw!$P$10,"JDAY",$C3,"SRC_CAT",CMAQ_raw!OQ$3,"SRC_REGION",CMAQ_raw!OQ$4) -> 1.1869e-16 | OS3: =GETPIVOTDATA("Sum of PEC",CMAQ_raw!$P$10,"JDAY",$C3,"SRC_CAT",CMAQ_raw!OR$3,"SRC_REGION",CMAQ_raw!OR$4) -> 1.2002e-16 | OT3: =GETPIVOTDATA("Sum of PEC",CMAQ_raw!$P$10,"JDAY",$C3,"SRC_CAT",CMAQ_raw!OS$3,"SRC_REGION",CMAQ_raw!OS$4) -> 1.1869e-16 | OU3: =GETPIVOTDATA("Sum of PEC",CMAQ_raw!$P$10,"JDAY",$C3,"SRC_CAT",CMAQ_raw!OT$3,"SRC_REGION",CMAQ_raw!OT$4) -> 1.1869e-16 | OV3: =GETPIVOTDATA("Sum of PEC",CMAQ_raw!$P$10,"JDAY",$C3,"SRC_CAT",CMAQ_raw!OU$3,"SRC_REGION",CMAQ_raw!OU$4) -> 1.1869e-16 | OW3: =GETPIVOTDATA("Sum of PEC",CMAQ_raw!$P$10,"JDAY",$C3,"SRC_CAT",CMAQ_raw!OV$3,"SRC_REGION",CMAQ_raw!OV$4) -> 1.1891e-16 | OX3: =GETPIVOTDATA("Sum of PEC",CMAQ_raw!$P$10,"JDAY",$C3,"SRC_CAT",CMAQ_raw!OW$3,"SRC_REGION",CMAQ_raw!OW$4) -> 1.2222e-07 | OY3: =GETPIVOTDATA("Sum of PEC",CMAQ_raw!$P$10,"JDAY",$C3,"SRC_CAT",CMAQ_raw!OX$3,"SRC_REGION",CMAQ_raw!OX$4) -> 1.1869e-16 | OZ3: =GETPIVOTDATA("Sum of PEC",CMAQ_raw!$P$10,"JDAY",$C3,"SRC_CAT",CMAQ_raw!OY$3,"SRC_REGION",CMAQ_raw!OY$4) -> 1.1869e-16 | PA3: =GETPIVOTDATA("Sum of PEC",CMAQ_raw!$P$10,"JDAY",$C3,"SRC_CAT",CMAQ_raw!OZ$3,"SRC_REGION",CMAQ_raw!OZ$4) -> 1.1869e-16 | PB3: =GETPIVOTDATA("Sum of PEC",CMAQ_raw!$P$10,"JDAY",$C3,"SRC_CAT",CMAQ_raw!PA$3,"SRC_REGION",CMAQ_raw!PA$4) -> 1.1869e-16 | PC3: =GETPIVOTDATA("Sum of PEC",CMAQ_raw!$P$10,"JDAY",$C3,"SRC_CAT",CMAQ_raw!PB$3,"SRC_REGION",CMAQ_raw!PB$4) -> 1.1869e-16 | PD3: =GETPIVOTDATA("Sum of PEC",CMAQ_raw!$P$10,"JDAY",$C3,"SRC_CAT",CMAQ_raw!PC$3,"SRC_REGION",CMAQ_raw!PC$4) -> 1.1947e-16 | PE3: =GETPIVOTDATA("Sum of PEC",CMAQ_raw!$P$10,"JDAY",$C3,"SRC_CAT",CMAQ_raw!PD$3,"SRC_REGION",CMAQ_raw!PD$4) -> 1.1869e-16 | PF3: =GETPIVOTDATA("Sum of PEC",CMAQ_raw!$P$10,"JDAY",$C3,"SRC_CAT",CMAQ_raw!PE$3,"SRC_REGION",CMAQ_raw!PE$4) -> 1.1869e-16 | PG3: =GETPIVOTDATA("Sum of PEC",CMAQ_raw!$P$10,"JDAY",$C3,"SRC_CAT",CMAQ_raw!PF$3,"SRC_REGION",CMAQ_raw!PF$4) -> 1.1869e-16 | PH3: =GETPIVOTDATA("Sum of PEC",CMAQ_raw!$P$10,"JDAY",$C3,"SRC_CAT",CMAQ_raw!PG$3,"SRC_REGION",CMAQ_raw!PG$4) -> 1.1869e-16 | PI3: =GETPIVOTDATA("Sum of PEC",CMAQ_raw!$P$10,"JDAY",$C3,"SRC_CAT",CMAQ_raw!PH$3,"SRC_REGION",CMAQ_raw!PH$4) -> 1.1869e-16 | PJ3: =GETPIVOTDATA("Sum of PEC",CMAQ_raw!$P$10,"JDAY",$C3,"SRC_CAT",CMAQ_raw!PI$3,"SRC_REGION",CMAQ_raw!PI$4) -> 1.1869e-16 | PK3: =GETPIVOTDATA("Sum of PEC",CMAQ_raw!$P$10,"JDAY",$C3,"SRC_CAT",CMAQ_raw!PJ$3,"SRC_REGION",CMAQ_raw!PJ$4) -> 1.1869e-16 | PL3: =GETPIVOTDATA("Sum of PEC",CMAQ_raw!$P$10,"JDAY",$C3,"SRC_CAT",CMAQ_raw!PK$3,"SRC_REGION",CMAQ_raw!PK$4) -> 1.1869e-16 | PM3: =GETPIVOTDATA("Sum of PEC",CMAQ_raw!$P$10,"JDAY",$C3,"SRC_CAT",CMAQ_raw!PL$3,"SRC_REGION",CMAQ_raw!PL$4) -> 1.1869e-16 | PN3: =GETPIVOTDATA("Sum of PEC",CMAQ_raw!$P$10,"JDAY",$C3,"SRC_CAT",CMAQ_raw!PM$3,"SRC_REGION",CMAQ_raw!PM$4) -> 1.1869e-16 | PO3: =GETPIVOTDATA("Sum of PEC",CMAQ_raw!$P$10,"JDAY",$C3,"SRC_CAT",CMAQ_raw!PN$3,"SRC_REGION",CMAQ_raw!PN$4) -> 1.1869e-16 | PP3: =GETPIVOTDATA("Sum of PEC",CMAQ_raw!$P$10,"JDAY",$C3,"SRC_CAT",CMAQ_raw!PO$3,"SRC_REGION",CMAQ_raw!PO$4) -> 1.1869e-16 | PQ3: =GETPIVOTDATA("Sum of PEC",CMAQ_raw!$P$10,"JDAY",$C3,"SRC_CAT",CMAQ_raw!PP$3,"SRC_REGION",CMAQ_raw!PP$4) -> 1.1869e-16 | PR3: =GETPIVOTDATA("Sum of PEC",CMAQ_raw!$P$10,"JDAY",$C3,"SRC_CAT",CMAQ_raw!PQ$3,"SRC_REGION",CMAQ_raw!PQ$4) -> 1.265e-16 | PS3: =GETPIVOTDATA("Sum of PEC",CMAQ_raw!$P$10,"JDAY",$C3,"SRC_CAT",CMAQ_raw!PR$3,"SRC_REGION",CMAQ_raw!PR$4) -> 1.1869e-16 | PT3: =GETPIVOTDATA("Sum of PEC",CMAQ_raw!$P$10,"JDAY",$C3,"SRC_CAT",CMAQ_raw!PS$3,"SRC_REGION",CMAQ_raw!PS$4) -> 7.0151e-13 | PU3: =GETPIVOTDATA("Sum of PEC",CMAQ_raw!$P$10,"JDAY",$C3,"SRC_CAT",CMAQ_raw!PT$3,"SRC_REGION",CMAQ_raw!PT$4) -> 1.1869e-16 | PV3: =GETPIVOTDATA("Sum of PEC",CMAQ_raw!$P$10,"JDAY",$C3,"SRC_CAT",CMAQ_raw!PU$3,"SRC_REGION",CMAQ_raw!PU$4) -> 1.1869e-16 | PW3: =GETPIVOTDATA("Sum of PEC",CMAQ_raw!$P$10,"JDAY",$C3,"SRC_CAT",CMAQ_raw!PV$3,"SRC_REGION",CMAQ_raw!PV$4) -> 1.3255e-16 | PX3: =GETPIVOTDATA("Sum of PEC",CMAQ_raw!$P$10,"JDAY",$C3,"SRC_CAT",CMAQ_raw!PW$3,"SRC_REGION",CMAQ_raw!PW$4) -> 0.0024087 | PY3: =GETPIVOTDATA("Sum of PEC",CMAQ_raw!$P$10,"JDAY",$C3,"SRC_CAT",CMAQ_raw!PX$3,"SRC_REGION",CMAQ_raw!PX$4) -> 0.0017529 | PZ3: =GETPIVOTDATA("Sum of PEC",CMAQ_raw!$P$10,"JDAY",$C3,"SRC_CAT",CMAQ_raw!PY$3,"SRC_REGION",CMAQ_raw!PY$4) -> 0.056024 | QA3: =GETPIVOTDATA("Sum of PEC",CMAQ_raw!$P$10,"JDAY",$C3,"SRC_CAT",CMAQ_raw!PZ$3,"SRC_REGION",CMAQ_raw!PZ$4) -> 3.0228e-15 | QB3: =GETPIVOTDATA("Sum of PEC",CMAQ_raw!$P$10,"JDAY",$C3,"SRC_CAT",CMAQ_raw!QA$3,"SRC_REGION",CMAQ_raw!QA$4) -> 0.00040902 | QC3: =GETPIVOTDATA("Sum of PEC",CMAQ_raw!$P$10,"JDAY",$C3,"SRC_CAT",CMAQ_raw!QB$3,"SRC_REGION",CMAQ_raw!QB$4) -> 4.8598e-06 | QD3: =GETPIVOTDATA("Sum of PEC",CMAQ_raw!$P$10,"JDAY",$C3,"SRC_CAT",CMAQ_raw!QC$3,"SRC_REGION",CMAQ_raw!QC$4) -> 2.5323e-14 | QE3: =GETPIVOTDATA("Sum of PEC",CMAQ_raw!$P$10,"JDAY",$C3,"SRC_CAT",CMAQ_raw!QD$3,"SRC_REGION",CMAQ_raw!QD$4) -> 0.00045792 | QF3: =GETPIVOTDATA("Sum of PEC",CMAQ_raw!$P$10,"JDAY",$C3,"SRC_CAT",CMAQ_raw!QE$3,"SRC_REGION",CMAQ_raw!QE$4) -> 0.0001315 | QG3: =GETPIVOTDATA("Sum of PEC",CMAQ_raw!$P$10,"JDAY",$C3,"SRC_CAT",CMAQ_raw!QF$3,"SRC_REGION",CMAQ_raw!QF$4) -> 1.9225e-05 | QH3: =GETPIVOTDATA("Sum of PEC",CMAQ_raw!$P$10,"JDAY",$C3,"SRC_CAT",CMAQ_raw!QG$3,"SRC_REGION",CMAQ_raw!QG$4) -> 5.0385e-16 | QI3: =GETPIVOTDATA("Sum of PEC",CMAQ_raw!$P$10,"JDAY",$C3,"SRC_CAT",CMAQ_raw!QH$3,"SRC_REGION",CMAQ_raw!QH$4) -> 9.1065e-14 | QJ3: =GETPIVOTDATA("Sum of PEC",CMAQ_raw!$P$10,"JDAY",$C3,"SRC_CAT",CMAQ_raw!QI$3,"SRC_REGION",CMAQ_raw!QI$4) -> 2.5827e-15 | QK3: =GETPIVOTDATA("Sum of PEC",CMAQ_raw!$P$10,"JDAY",$C3,"SRC_CAT",CMAQ_raw!QJ$3,"SRC_REGION",CMAQ_raw!QJ$4) -> 0.0019648 | QL3: =GETPIVOTDATA("Sum of PEC",CMAQ_raw!$P$10,"JDAY",$C3,"SRC_CAT",CMAQ_raw!QK$3,"SRC_REGION",CMAQ_raw!QK$4) -> 0.0041409 | QM3: =GETPIVOTDATA("Sum of PEC",CMAQ_raw!$P$10,"JDAY",$C3,"SRC_CAT",CMAQ_raw!QL$3,"SRC_REGION",CMAQ_raw!QL$4) -> 2.9689e-13 | QN3: =GETPIVOTDATA("Sum of PEC",CMAQ_raw!$P$10,"JDAY",$C3,"SRC_CAT",CMAQ_raw!QM$3,"SRC_REGION",CMAQ_raw!QM$4) -> 0.024464 | QO3: =GETPIVOTDATA("Sum of PEC",CMAQ_raw!$P$10,"JDAY",$C3,"SRC_CAT",CMAQ_raw!QN$3,"SRC_REGION",CMAQ_raw!QN$4) -> 6.4357e-05 | QP3: =GETPIVOTDATA("Sum of PEC",CMAQ_raw!$P$10,"JDAY",$C3,"SRC_CAT",CMAQ_raw!QO$3,"SRC_REGION",CMAQ_raw!QO$4) -> 2.3097e-08 | QQ3: =GETPIVOTDATA("Sum of PEC",CMAQ_raw!$P$10,"JDAY",$C3,"SRC_CAT",CMAQ_raw!QP$3,"SRC_REGION",CMAQ_raw!QP$4) -> 0.00034868 | QR3: =GETPIVOTDATA("Sum of PEC",CMAQ_raw!$P$10,"JDAY",$C3,"SRC_CAT",CMAQ_raw!QQ$3,"SRC_REGION",CMAQ_raw!QQ$4) -> 0.0087251 | QS3: =GETPIVOTDATA("Sum of PEC",CMAQ_raw!$P$10,"JDAY",$C3,"SRC_CAT",CMAQ_raw!QR$3,"SRC_REGION",CMAQ_raw!QR$4) -> 1.1869e-16 | QU3: =GETPIVOTDATA("Sum of OPF",CMAQ_raw!$P$10,"JDAY",$C3,"SRC_CAT",CMAQ_raw!QT$3,"SRC_REGION",CMAQ_raw!QT$4) -> 3.4993e-16 | QV3: =GETPIVOTDATA("Sum of OPF",CMAQ_raw!$P$10,"JDAY",$C3,"SRC_CAT",CMAQ_raw!QU$3,"SRC_REGION",CMAQ_raw!QU$4) -> 1.9848e-09 | QW3: =GETPIVOTDATA("Sum of OPF",CMAQ_raw!$P$10,"JDAY",$C3,"SRC_CAT",CMAQ_raw!QV$3,"SRC_REGION",CMAQ_raw!QV$4) -> 3.3558e-09 | QX3: =GETPIVOTDATA("Sum of OPF",CMAQ_raw!$P$10,"JDAY",$C3,"SRC_CAT",CMAQ_raw!QW$3,"SRC_REGION",CMAQ_raw!QW$4) -> 5.7945e-06 | QY3: =GETPIVOTDATA("Sum of OPF",CMAQ_raw!$P$10,"JDAY",$C3,"SRC_CAT",CMAQ_raw!QX$3,"SRC_REGION",CMAQ_raw!QX$4) -> 3.4994e-16 | QZ3: =GETPIVOTDATA("Sum of OPF",CMAQ_raw!$P$10,"JDAY",$C3,"SRC_CAT",CMAQ_raw!QY$3,"SRC_REGION",CMAQ_raw!QY$4) -> 3.4993e-16 | RA3: =GETPIVOTDATA("Sum of OPF",CMAQ_raw!$P$10,"JDAY",$C3,"SRC_CAT",CMAQ_raw!QZ$3,"SRC_REGION",CMAQ_raw!QZ$4) -> 3.0609e-15 | RB3: =GETPIVOTDATA("Sum of OPF",CMAQ_raw!$P$10,"JDAY",$C3,"SRC_CAT",CMAQ_raw!RA$3,"SRC_REGION",CMAQ_raw!RA$4) -> 3.4993e-16 | RC3: =GETPIVOTDATA("Sum of OPF",CMAQ_raw!$P$10,"JDAY",$C3,"SRC_CAT",CMAQ_raw!RB$3,"SRC_REGION",CMAQ_raw!RB$4) -> 3.4993e-16 | RD3: =GETPIVOTDATA("Sum of OPF",CMAQ_raw!$P$10,"JDAY",$C3,"SRC_CAT",CMAQ_raw!RC$3,"SRC_REGION",CMAQ_raw!RC$4) -> 3.5006e-16 | RE3: =GETPIVOTDATA("Sum of OPF",CMAQ_raw!$P$10,"JDAY",$C3,"SRC_CAT",CMAQ_raw!RD$3,"SRC_REGION",CMAQ_raw!RD$4) -> 6.33e-16 | RF3: =GETPIVOTDATA("Sum of OPF",CMAQ_raw!$P$10,"JDAY",$C3,"SRC_CAT",CMAQ_raw!RE$3,"SRC_REGION",CMAQ_raw!RE$4) -> 3.4993e-16 | RG3: =GETPIVOTDATA("Sum of OPF",CMAQ_raw!$P$10,"JDAY",$C3,"SRC_CAT",CMAQ_raw!RF$3,"SRC_REGION",CMAQ_raw!RF$4) -> 3.4993e-16 | RH3: =GETPIVOTDATA("Sum of OPF",CMAQ_raw!$P$10,"JDAY",$C3,"SRC_CAT",CMAQ_raw!RG$3,"SRC_REGION",CMAQ_raw!RG$4) -> 3.4993e-16 | RI3: =GETPIVOTDATA("Sum of OPF",CMAQ_raw!$P$10,"JDAY",$C3,"SRC_CAT",CMAQ_raw!RH$3,"SRC_REGION",CMAQ_raw!RH$4) -> 3.4993e-16 | RJ3: =GETPIVOTDATA("Sum of OPF",CMAQ_raw!$P$10,"JDAY",$C3,"SRC_CAT",CMAQ_raw!RI$3,"SRC_REGION",CMAQ_raw!RI$4) -> 3.4993e-16 | RK3: =GETPIVOTDATA("Sum of OPF",CMAQ_raw!$P$10,"JDAY",$C3,"SRC_CAT",CMAQ_raw!RJ$3,"SRC_REGION",CMAQ_raw!RJ$4) -> 3.4993e-16 | RL3: =GETPIVOTDATA("Sum of OPF",CMAQ_raw!$P$10,"JDAY",$C3,"SRC_CAT",CMAQ_raw!RK$3,"SRC_REGION",CMAQ_raw!RK$4) -> 1.8284e-05 | RM3: =GETPIVOTDATA("Sum of OPF",CMAQ_raw!$P$10,"JDAY",$C3,"SRC_CAT",CMAQ_raw!RL$3,"SRC_REGION",CMAQ_raw!RL$4) -> 3.5063e-16 | RN3: =GETPIVOTDATA("Sum of OPF",CMAQ_raw!$P$10,"JDAY",$C3,"SRC_CAT",CMAQ_raw!RM$3,"SRC_REGION",CMAQ_raw!RM$4) -> 1.4922e-11 | RO3: =GETPIVOTDATA("Sum of OPF",CMAQ_raw!$P$10,"JDAY",$C3,"SRC_CAT",CMAQ_raw!RN$3,"SRC_REGION",CMAQ_raw!RN$4) -> 3.4993e-16 | RP3: =GETPIVOTDATA("Sum of OPF",CMAQ_raw!$P$10,"JDAY",$C3,"SRC_CAT",CMAQ_raw!RO$3,"SRC_REGION",CMAQ_raw!RO$4) -> 3.4993e-16 | RQ3: =GETPIVOTDATA("Sum of OPF",CMAQ_raw!$P$10,"JDAY",$C3,"SRC_CAT",CMAQ_raw!RP$3,"SRC_REGION",CMAQ_raw!RP$4) -> 3.4993e-16 | RR3: =GETPIVOTDATA("Sum of OPF",CMAQ_raw!$P$10,"JDAY",$C3,"SRC_CAT",CMAQ_raw!RQ$3,"SRC_REGION",CMAQ_raw!RQ$4) -> 3.4993e-16 | RS3: =GETPIVOTDATA("Sum of OPF",CMAQ_raw!$P$10,"JDAY",$C3,"SRC_CAT",CMAQ_raw!RR$3,"SRC_REGION",CMAQ_raw!RR$4) -> 1.3623e-13 | RT3: =GETPIVOTDATA("Sum of OPF",CMAQ_raw!$P$10,"JDAY",$C3,"SRC_CAT",CMAQ_raw!RS$3,"SRC_REGION",CMAQ_raw!RS$4) -> 3.4993e-16 | RU3: =GETPIVOTDATA("Sum of OPF",CMAQ_raw!$P$10,"JDAY",$C3,"SRC_CAT",CMAQ_raw!RT$3,"SRC_REGION",CMAQ_raw!RT$4) -> 3.4993e-16 | RV3: =GETPIVOTDATA("Sum of OPF",CMAQ_raw!$P$10,"JDAY",$C3,"SRC_CAT",CMAQ_raw!RU$3,"SRC_REGION",CMAQ_raw!RU$4) -> 3.4993e-16 | RW3: =GETPIVOTDATA("Sum of OPF",CMAQ_raw!$P$10,"JDAY",$C3,"SRC_CAT",CMAQ_raw!RV$3,"SRC_REGION",CMAQ_raw!RV$4) -> 3.4993e-16 | RX3: =GETPIVOTDATA("Sum of OPF",CMAQ_raw!$P$10,"JDAY",$C3,"SRC_CAT",CMAQ_raw!RW$3,"SRC_REGION",CMAQ_raw!RW$4) -> 3.4993e-16 | RY3: =GETPIVOTDATA("Sum of OPF",CMAQ_raw!$P$10,"JDAY",$C3,"SRC_CAT",CMAQ_raw!RX$3,"SRC_REGION",CMAQ_raw!RX$4) -> 3.4993e-16 | RZ3: =GETPIVOTDATA("Sum of OPF",CMAQ_raw!$P$10,"JDAY",$C3,"SRC_CAT",CMAQ_raw!RY$3,"SRC_REGION",CMAQ_raw!RY$4) -> 3.4993e-16 | SA3: =GETPIVOTDATA("Sum of OPF",CMAQ_raw!$P$10,"JDAY",$C3,"SRC_CAT",CMAQ_raw!RZ$3,"SRC_REGION",CMAQ_raw!RZ$4) -> 3.4993e-16 | SB3: =GETPIVOTDATA("Sum of OPF",CMAQ_raw!$P$10,"JDAY",$C3,"SRC_CAT",CMAQ_raw!SA$3,"SRC_REGION",CMAQ_raw!SA$4) -> 3.4993e-16 | SC3: =GETPIVOTDATA("Sum of OPF",CMAQ_raw!$P$10,"JDAY",$C3,"SRC_CAT",CMAQ_raw!SB$3,"SRC_REGION",CMAQ_raw!SB$4) -> 3.4993e-16 | SD3: =GETPIVOTDATA("Sum of OPF",CMAQ_raw!$P$10,"JDAY",$C3,"SRC_CAT",CMAQ_raw!SC$3,"SRC_REGION",CMAQ_raw!SC$4) -> 3.4993e-16 | SE3: =GETPIVOTDATA("Sum of OPF",CMAQ_raw!$P$10,"JDAY",$C3,"SRC_CAT",CMAQ_raw!SD$3,"SRC_REGION",CMAQ_raw!SD$4) -> 3.4993e-16 | SF3: =GETPIVOTDATA("Sum of OPF",CMAQ_raw!$P$10,"JDAY",$C3,"SRC_CAT",CMAQ_raw!SE$3,"SRC_REGION",CMAQ_raw!SE$4) -> 3.4993e-16 | SG3: =GETPIVOTDATA("Sum of OPF",CMAQ_raw!$P$10,"JDAY",$C3,"SRC_CAT",CMAQ_raw!SF$3,"SRC_REGION",CMAQ_raw!SF$4) -> 3.5042e-16 | SH3: =GETPIVOTDATA("Sum of OPF",CMAQ_raw!$P$10,"JDAY",$C3,"SRC_CAT",CMAQ_raw!SG$3,"SRC_REGION",CMAQ_raw!SG$4) -> 8.1352e-12 | SI3: =GETPIVOTDATA("Sum of OPF",CMAQ_raw!$P$10,"JDAY",$C3,"SRC_CAT",CMAQ_raw!SH$3,"SRC_REGION",CMAQ_raw!SH$4) -> 3.7823e-16 | SJ3: =GETPIVOTDATA("Sum of OPF",CMAQ_raw!$P$10,"JDAY",$C3,"SRC_CAT",CMAQ_raw!SI$3,"SRC_REGION",CMAQ_raw!SI$4) -> 3.4993e-16 | SK3: =GETPIVOTDATA("Sum of OPF",CMAQ_raw!$P$10,"JDAY",$C3,"SRC_CAT",CMAQ_raw!SJ$3,"SRC_REGION",CMAQ_raw!SJ$4) -> 3.4993e-16 | SL3: =GETPIVOTDATA("Sum of OPF",CMAQ_raw!$P$10,"JDAY",$C3,"SRC_CAT",CMAQ_raw!SK$3,"SRC_REGION",CMAQ_raw!SK$4) -> 3.4997e-16 | SM3: =GETPIVOTDATA("Sum of OPF",CMAQ_raw!$P$10,"JDAY",$C3,"SRC_CAT",CMAQ_raw!SL$3,"SRC_REGION",CMAQ_raw!SL$4) -> 3.4993e-16 | SN3: =GETPIVOTDATA("Sum of OPF",CMAQ_raw!$P$10,"JDAY",$C3,"SRC_CAT",CMAQ_raw!SM$3,"SRC_REGION",CMAQ_raw!SM$4) -> 2.1299e-13 | SO3: =GETPIVOTDATA("Sum of OPF",CMAQ_raw!$P$10,"JDAY",$C3,"SRC_CAT",CMAQ_raw!SN$3,"SRC_REGION",CMAQ_raw!SN$4) -> 3.4993e-16 | SP3: =GETPIVOTDATA("Sum of OPF",CMAQ_raw!$P$10,"JDAY",$C3,"SRC_CAT",CMAQ_raw!SO$3,"SRC_REGION",CMAQ_raw!SO$4) -> 3.4993e-16 | SQ3: =GETPIVOTDATA("Sum of OPF",CMAQ_raw!$P$10,"JDAY",$C3,"SRC_CAT",CMAQ_raw!SP$3,"SRC_REGION",CMAQ_raw!SP$4) -> 3.4993e-16 | SR3: =GETPIVOTDATA("Sum of OPF",CMAQ_raw!$P$10,"JDAY",$C3,"SRC_CAT",CMAQ_raw!SQ$3,"SRC_REGION",CMAQ_raw!SQ$4) -> 3.4993e-16 | SS3: =GETPIVOTDATA("Sum of OPF",CMAQ_raw!$P$10,"JDAY",$C3,"SRC_CAT",CMAQ_raw!SR$3,"SRC_REGION",CMAQ_raw!SR$4) -> 1.6516e-11 | ST3: =GETPIVOTDATA("Sum of OPF",CMAQ_raw!$P$10,"JDAY",$C3,"SRC_CAT",CMAQ_raw!SS$3,"SRC_REGION",CMAQ_raw!SS$4) -> 3.4993e-16 | SU3: =GETPIVOTDATA("Sum of OPF",CMAQ_raw!$P$10,"JDAY",$C3,"SRC_CAT",CMAQ_raw!ST$3,"SRC_REGION",CMAQ_raw!ST$4) -> 3.4993e-16 | SV3: =GETPIVOTDATA("Sum of OPF",CMAQ_raw!$P$10,"JDAY",$C3,"SRC_CAT",CMAQ_raw!SU$3,"SRC_REGION",CMAQ_raw!SU$4) -> 3.4993e-16 | SW3: =GETPIVOTDATA("Sum of OPF",CMAQ_raw!$P$10,"JDAY",$C3,"SRC_CAT",CMAQ_raw!SV$3,"SRC_REGION",CMAQ_raw!SV$4) -> 3.4993e-16 | SX3: =GETPIVOTDATA("Sum of OPF",CMAQ_raw!$P$10,"JDAY",$C3,"SRC_CAT",CMAQ_raw!SW$3,"SRC_REGION",CMAQ_raw!SW$4) -> 3.4993e-16 | SY3: =GETPIVOTDATA("Sum of OPF",CMAQ_raw!$P$10,"JDAY",$C3,"SRC_CAT",CMAQ_raw!SX$3,"SRC_REGION",CMAQ_raw!SX$4) -> 3.4993e-16 | SZ3: =GETPIVOTDATA("Sum of OPF",CMAQ_raw!$P$10,"JDAY",$C3,"SRC_CAT",CMAQ_raw!SY$3,"SRC_REGION",CMAQ_raw!SY$4) -> 3.4993e-16 | TA3: =GETPIVOTDATA("Sum of OPF",CMAQ_raw!$P$10,"JDAY",$C3,"SRC_CAT",CMAQ_raw!SZ$3,"SRC_REGION",CMAQ_raw!SZ$4) -> 3.4993e-16 | TB3: =GETPIVOTDATA("Sum of OPF",CMAQ_raw!$P$10,"JDAY",$C3,"SRC_CAT",CMAQ_raw!TA$3,"SRC_REGION",CMAQ_raw!TA$4) -> 5.7927e-10 | TC3: =GETPIVOTDATA("Sum of OPF",CMAQ_raw!$P$10,"JDAY",$C3,"SRC_CAT",CMAQ_raw!TB$3,"SRC_REGION",CMAQ_raw!TB$4) -> 3.4993e-16 | TD3: =GETPIVOTDATA("Sum of OPF",CMAQ_raw!$P$10,"JDAY",$C3,"SRC_CAT",CMAQ_raw!TC$3,"SRC_REGION",CMAQ_raw!TC$4) -> 3.4993e-16 | TE3: =GETPIVOTDATA("Sum of OPF",CMAQ_raw!$P$10,"JDAY",$C3,"SRC_CAT",CMAQ_raw!TD$3,"SRC_REGION",CMAQ_raw!TD$4) -> 3.4993e-16 | TF3: =GETPIVOTDATA("Sum of OPF",CMAQ_raw!$P$10,"JDAY",$C3,"SRC_CAT",CMAQ_raw!TE$3,"SRC_REGION",CMAQ_raw!TE$4) -> 3.4993e-16 | TG3: =GETPIVOTDATA("Sum of OPF",CMAQ_raw!$P$10,"JDAY",$C3,"SRC_CAT",CMAQ_raw!TF$3,"SRC_REGION",CMAQ_raw!TF$4) -> 3.4993e-16 | TH3: =GETPIVOTDATA("Sum of OPF",CMAQ_raw!$P$10,"JDAY",$C3,"SRC_CAT",CMAQ_raw!TG$3,"SRC_REGION",CMAQ_raw!TG$4) -> 3.4993e-16 | TI3: =GETPIVOTDATA("Sum of OPF",CMAQ_raw!$P$10,"JDAY",$C3,"SRC_CAT",CMAQ_raw!TH$3,"SRC_REGION",CMAQ_raw!TH$4) -> 3.4993e-16 | TJ3: =GETPIVOTDATA("Sum of OPF",CMAQ_raw!$P$10,"JDAY",$C3,"SRC_CAT",CMAQ_raw!TI$3,"SRC_REGION",CMAQ_raw!TI$4) -> 3.4993e-16 | TK3: =GETPIVOTDATA("Sum of OPF",CMAQ_raw!$P$10,"JDAY",$C3,"SRC_CAT",CMAQ_raw!TJ$3,"SRC_REGION",CMAQ_raw!TJ$4) -> 3.4993e-16 | TL3: =GETPIVOTDATA("Sum of OPF",CMAQ_raw!$P$10,"JDAY",$C3,"SRC_CAT",CMAQ_raw!TK$3,"SRC_REGION",CMAQ_raw!TK$4) -> 3.4993e-16 | TM3: =GETPIVOTDATA("Sum of OPF",CMAQ_raw!$P$10,"JDAY",$C3,"SRC_CAT",CMAQ_raw!TL$3,"SRC_REGION",CMAQ_raw!TL$4) -> 3.4993e-16 | TN3: =GETPIVOTDATA("Sum of OPF",CMAQ_raw!$P$10,"JDAY",$C3,"SRC_CAT",CMAQ_raw!TM$3,"SRC_REGION",CMAQ_raw!TM$4) -> 3.4993e-16 | TO3: =GETPIVOTDATA("Sum of OPF",CMAQ_raw!$P$10,"JDAY",$C3,"SRC_CAT",CMAQ_raw!TN$3,"SRC_REGION",CMAQ_raw!TN$4) -> 3.4993e-16 | TP3: =GETPIVOTDATA("Sum of OPF",CMAQ_raw!$P$10,"JDAY",$C3,"SRC_CAT",CMAQ_raw!TO$3,"SRC_REGION",CMAQ_raw!TO$4) -> 3.4993e-16 | TQ3: =GETPIVOTDATA("Sum of OPF",CMAQ_raw!$P$10,"JDAY",$C3,"SRC_CAT",CMAQ_raw!TP$3,"SRC_REGION",CMAQ_raw!TP$4) -> 3.4993e-16 | TR3: =GETPIVOTDATA("Sum of OPF",CMAQ_raw!$P$10,"JDAY",$C3,"SRC_CAT",CMAQ_raw!TQ$3,"SRC_REGION",CMAQ_raw!TQ$4) -> 3.4993e-16 | TS3: =GETPIVOTDATA("Sum of OPF",CMAQ_raw!$P$10,"JDAY",$C3,"SRC_CAT",CMAQ_raw!TR$3,"SRC_REGION",CMAQ_raw!TR$4) -> 3.4993e-16 | TT3: =GETPIVOTDATA("Sum of OPF",CMAQ_raw!$P$10,"JDAY",$C3,"SRC_CAT",CMAQ_raw!TS$3,"SRC_REGION",CMAQ_raw!TS$4) -> 3.4993e-16 | TU3: =GETPIVOTDATA("Sum of OPF",CMAQ_raw!$P$10,"JDAY",$C3,"SRC_CAT",CMAQ_raw!TT$3,"SRC_REGION",CMAQ_raw!TT$4) -> 3.4993e-16 | TV3: =GETPIVOTDATA("Sum of OPF",CMAQ_raw!$P$10,"JDAY",$C3,"SRC_CAT",CMAQ_raw!TU$3,"SRC_REGION",CMAQ_raw!TU$4) -> 3.4993e-16 | TW3: =GETPIVOTDATA("Sum of OPF",CMAQ_raw!$P$10,"JDAY",$C3,"SRC_CAT",CMAQ_raw!TV$3,"SRC_REGION",CMAQ_raw!TV$4) -> 3.4993e-16 | TX3: =GETPIVOTDATA("Sum of OPF",CMAQ_raw!$P$10,"JDAY",$C3,"SRC_CAT",CMAQ_raw!TW$3,"SRC_REGION",CMAQ_raw!TW$4) -> 3.4993e-16 | TY3: =GETPIVOTDATA("Sum of OPF",CMAQ_raw!$P$10,"JDAY",$C3,"SRC_CAT",CMAQ_raw!TX$3,"SRC_REGION",CMAQ_raw!TX$4) -> 3.4993e-16 | TZ3: =GETPIVOTDATA("Sum of OPF",CMAQ_raw!$P$10,"JDAY",$C3,"SRC_CAT",CMAQ_raw!TY$3,"SRC_REGION",CMAQ_raw!TY$4) -> 3.4993e-16 | UA3: =GETPIVOTDATA("Sum of OPF",CMAQ_raw!$P$10,"JDAY",$C3,"SRC_CAT",CMAQ_raw!TZ$3,"SRC_REGION",CMAQ_raw!TZ$4) -> 3.5327e-16 | UB3: =GETPIVOTDATA("Sum of OPF",CMAQ_raw!$P$10,"JDAY",$C3,"SRC_CAT",CMAQ_raw!UA$3,"SRC_REGION",CMAQ_raw!UA$4) -> 0.054875 | UC3: =GETPIVOTDATA("Sum of OPF",CMAQ_raw!$P$10,"JDAY",$C3,"SRC_CAT",CMAQ_raw!UB$3,"SRC_REGION",CMAQ_raw!UB$4) -> 0.00044099 | UD3: =GETPIVOTDATA("Sum of OPF",CMAQ_raw!$P$10,"JDAY",$C3,"SRC_CAT",CMAQ_raw!UC$3,"SRC_REGION",CMAQ_raw!UC$4) -> 0.2185 | UE3: =GETPIVOTDATA("Sum of OPF",CMAQ_raw!$P$10,"JDAY",$C3,"SRC_CAT",CMAQ_raw!UD$3,"SRC_REGION",CMAQ_raw!UD$4) -> 1.5841e-14 | UF3: =GETPIVOTDATA("Sum of OPF",CMAQ_raw!$P$10,"JDAY",$C3,"SRC_CAT",CMAQ_raw!UE$3,"SRC_REGION",CMAQ_raw!UE$4) -> 0.0007273 | UG3: =GETPIVOTDATA("Sum of OPF",CMAQ_raw!$P$10,"JDAY",$C3,"SRC_CAT",CMAQ_raw!UF$3,"SRC_REGION",CMAQ_raw!UF$4) -> 3.7279e-06 | UH3: =GETPIVOTDATA("Sum of OPF",CMAQ_raw!$P$10,"JDAY",$C3,"SRC_CAT",CMAQ_raw!UG$3,"SRC_REGION",CMAQ_raw!UG$4) -> 1.898e-13 | UI3: =GETPIVOTDATA("Sum of OPF",CMAQ_raw!$P$10,"JDAY",$C3,"SRC_CAT",CMAQ_raw!UH$3,"SRC_REGION",CMAQ_raw!UH$4) -> 4.9097e-05 | UJ3: =GETPIVOTDATA("Sum of OPF",CMAQ_raw!$P$10,"JDAY",$C3,"SRC_CAT",CMAQ_raw!UI$3,"SRC_REGION",CMAQ_raw!UI$4) -> 5.5082e-06 | UK3: =GETPIVOTDATA("Sum of OPF",CMAQ_raw!$P$10,"JDAY",$C3,"SRC_CAT",CMAQ_raw!UJ$3,"SRC_REGION",CMAQ_raw!UJ$4) -> 0.00010241 | UL3: =GETPIVOTDATA("Sum of OPF",CMAQ_raw!$P$10,"JDAY",$C3,"SRC_CAT",CMAQ_raw!UK$3,"SRC_REGION",CMAQ_raw!UK$4) -> 4.2543e-15 | UM3: =GETPIVOTDATA("Sum of OPF",CMAQ_raw!$P$10,"JDAY",$C3,"SRC_CAT",CMAQ_raw!UL$3,"SRC_REGION",CMAQ_raw!UL$4) -> 7.8272e-13 | UN3: =GETPIVOTDATA("Sum of OPF",CMAQ_raw!$P$10,"JDAY",$C3,"SRC_CAT",CMAQ_raw!UM$3,"SRC_REGION",CMAQ_raw!UM$4) -> 1.2759e-13 | UO3: =GETPIVOTDATA("Sum of OPF",CMAQ_raw!$P$10,"JDAY",$C3,"SRC_CAT",CMAQ_raw!UN$3,"SRC_REGION",CMAQ_raw!UN$4) -> 0.0065832 | UP3: =GETPIVOTDATA("Sum of OPF",CMAQ_raw!$P$10,"JDAY",$C3,"SRC_CAT",CMAQ_raw!UO$3,"SRC_REGION",CMAQ_raw!UO$4) -> 0.054851 | UQ3: =GETPIVOTDATA("Sum of OPF",CMAQ_raw!$P$10,"JDAY",$C3,"SRC_CAT",CMAQ_raw!UP$3,"SRC_REGION",CMAQ_raw!UP$4) -> 1.5841e-12 | UR3: =GETPIVOTDATA("Sum of OPF",CMAQ_raw!$P$10,"JDAY",$C3,"SRC_CAT",CMAQ_raw!UQ$3,"SRC_REGION",CMAQ_raw!UQ$4) -> 0.69343 | US3: =GETPIVOTDATA("Sum of OPF",CMAQ_raw!$P$10,"JDAY",$C3,"SRC_CAT",CMAQ_raw!UR$3,"SRC_REGION",CMAQ_raw!UR$4) -> 1.34e-06 | UT3: =GETPIVOTDATA("Sum of OPF",CMAQ_raw!$P$10,"JDAY",$C3,"SRC_CAT",CMAQ_raw!US$3,"SRC_REGION",CMAQ_raw!US$4) -> 1.6532e-07 | UU3: =GETPIVOTDATA("Sum of OPF",CMAQ_raw!$P$10,"JDAY",$C3,"SRC_CAT",CMAQ_raw!UT$3,"SRC_REGION",CMAQ_raw!UT$4) -> 1.0616e-05 | UV3: =GETPIVOTDATA("Sum of OPF",CMAQ_raw!$P$10,"JDAY",$C3,"SRC_CAT",CMAQ_raw!UU$3,"SRC_REGION",CMAQ_raw!UU$4) -> 0.0017148 | UW3: =GETPIVOTDATA("Sum of OPF",CMAQ_raw!$P$10,"JDAY",$C3,"SRC_CAT",CMAQ_raw!UV$3,"SRC_REGION",CMAQ_raw!UV$4) -> 3.4993e-16 | UY3: =GETPIVOTDATA("Sum of PMC",CMAQ_raw!$P$10,"JDAY",$C3,"SRC_CAT",CMAQ_raw!UX$3,"SRC_REGION",CMAQ_raw!UX$4) -> 2.639e-16 | UZ3: =GETPIVOTDATA("Sum of PMC",CMAQ_raw!$P$10,"JDAY",$C3,"SRC_CAT",CMAQ_raw!UY$3,"SRC_REGION",CMAQ_raw!UY$4) -> 5.2109e-09 | VA3: =GETPIVOTDATA("Sum of PMC",CMAQ_raw!$P$10,"JDAY",$C3,"SRC_CAT",CMAQ_raw!UZ$3,"SRC_REGION",CMAQ_raw!UZ$4) -> 1.3643e-08 | VB3: =GETPIVOTDATA("Sum of PMC",CMAQ_raw!$P$10,"JDAY",$C3,"SRC_CAT",CMAQ_raw!VA$3,"SRC_REGION",CMAQ_raw!VA$4) -> 1.2078e-05 | VC3: =GETPIVOTDATA("Sum of PMC",CMAQ_raw!$P$10,"JDAY",$C3,"SRC_CAT",CMAQ_raw!VB$3,"SRC_REGION",CMAQ_raw!VB$4) -> 2.6392e-16 | VD3: =GETPIVOTDATA("Sum of PMC",CMAQ_raw!$P$10,"JDAY",$C3,"SRC_CAT",CMAQ_raw!VC$3,"SRC_REGION",CMAQ_raw!VC$4) -> 2.639e-16 | VE3: =GETPIVOTDATA("Sum of PMC",CMAQ_raw!$P$10,"JDAY",$C3,"SRC_CAT",CMAQ_raw!VD$3,"SRC_REGION",CMAQ_raw!VD$4) -> 9.0859e-15 | VF3: =GETPIVOTDATA("Sum of PMC",CMAQ_raw!$P$10,"JDAY",$C3,"SRC_CAT",CMAQ_raw!VE$3,"SRC_REGION",CMAQ_raw!VE$4) -> 2.639e-16 | VG3: =GETPIVOTDATA("Sum of PMC",CMAQ_raw!$P$10,"JDAY",$C3,"SRC_CAT",CMAQ_raw!VF$3,"SRC_REGION",CMAQ_raw!VF$4) -> 2.639e-16 | VH3: =GETPIVOTDATA("Sum of PMC",CMAQ_raw!$P$10,"JDAY",$C3,"SRC_CAT",CMAQ_raw!VG$3,"SRC_REGION",CMAQ_raw!VG$4) -> 2.6438e-16 | VI3: =GETPIVOTDATA("Sum of PMC",CMAQ_raw!$P$10,"JDAY",$C3,"SRC_CAT",CMAQ_raw!VH$3,"SRC_REGION",CMAQ_raw!VH$4) -> 1.3172e-15 | VJ3: =GETPIVOTDATA("Sum of PMC",CMAQ_raw!$P$10,"JDAY",$C3,"SRC_CAT",CMAQ_raw!VI$3,"SRC_REGION",CMAQ_raw!VI$4) -> 2.639e-16 | VK3: =GETPIVOTDATA("Sum of PMC",CMAQ_raw!$P$10,"JDAY",$C3,"SRC_CAT",CMAQ_raw!VJ$3,"SRC_REGION",CMAQ_raw!VJ$4) -> 2.639e-16 | VL3: =GETPIVOTDATA("Sum of PMC",CMAQ_raw!$P$10,"JDAY",$C3,"SRC_CAT",CMAQ_raw!VK$3,"SRC_REGION",CMAQ_raw!VK$4) -> 2.639e-16 | VM3: =GETPIVOTDATA("Sum of PMC",CMAQ_raw!$P$10,"JDAY",$C3,"SRC_CAT",CMAQ_raw!VL$3,"SRC_REGION",CMAQ_raw!VL$4) -> 2.639e-16 | VN3: =GETPIVOTDATA("Sum of PMC",CMAQ_raw!$P$10,"JDAY",$C3,"SRC_CAT",CMAQ_raw!VM$3,"SRC_REGION",CMAQ_raw!VM$4) -> 2.639e-16 | VO3: =GETPIVOTDATA("Sum of PMC",CMAQ_raw!$P$10,"JDAY",$C3,"SRC_CAT",CMAQ_raw!VN$3,"SRC_REGION",CMAQ_raw!VN$4) -> 2.639e-16 | VP3: =GETPIVOTDATA("Sum of PMC",CMAQ_raw!$P$10,"JDAY",$C3,"SRC_CAT",CMAQ_raw!VO$3,"SRC_REGION",CMAQ_raw!VO$4) -> 2.3189e-05 | VQ3: =GETPIVOTDATA("Sum of PMC",CMAQ_raw!$P$10,"JDAY",$C3,"SRC_CAT",CMAQ_raw!VP$3,"SRC_REGION",CMAQ_raw!VP$4) -> 2.6399e-16 | VR3: =GETPIVOTDATA("Sum of PMC",CMAQ_raw!$P$10,"JDAY",$C3,"SRC_CAT",CMAQ_raw!VQ$3,"SRC_REGION",CMAQ_raw!VQ$4) -> 4.1965e-11 | VS3: =GETPIVOTDATA("Sum of PMC",CMAQ_raw!$P$10,"JDAY",$C3,"SRC_CAT",CMAQ_raw!VR$3,"SRC_REGION",CMAQ_raw!VR$4) -> 2.639e-16 | VT3: =GETPIVOTDATA("Sum of PMC",CMAQ_raw!$P$10,"JDAY",$C3,"SRC_CAT",CMAQ_raw!VS$3,"SRC_REGION",CMAQ_raw!VS$4) -> 2.639e-16 | VU3: =GETPIVOTDATA("Sum of PMC",CMAQ_raw!$P$10,"JDAY",$C3,"SRC_CAT",CMAQ_raw!VT$3,"SRC_REGION",CMAQ_raw!VT$4) -> 2.639e-16 | VV3: =GETPIVOTDATA("Sum of PMC",CMAQ_raw!$P$10,"JDAY",$C3,"SRC_CAT",CMAQ_raw!VU$3,"SRC_REGION",CMAQ_raw!VU$4) -> 1.8857e-11 | VW3: =GETPIVOTDATA("Sum of PMC",CMAQ_raw!$P$10,"JDAY",$C3,"SRC_CAT",CMAQ_raw!VV$3,"SRC_REGION",CMAQ_raw!VV$4) -> 4.2815e-12 | VX3: =GETPIVOTDATA("Sum of PMC",CMAQ_raw!$P$10,"JDAY",$C3,"SRC_CAT",CMAQ_raw!VW$3,"SRC_REGION",CMAQ_raw!VW$4) -> 2.639e-16 | VY3: =GETPIVOTDATA("Sum of PMC",CMAQ_raw!$P$10,"JDAY",$C3,"SRC_CAT",CMAQ_raw!VX$3,"SRC_REGION",CMAQ_raw!VX$4) -> 2.639e-16 | VZ3: =GETPIVOTDATA("Sum of PMC",CMAQ_raw!$P$10,"JDAY",$C3,"SRC_CAT",CMAQ_raw!VY$3,"SRC_REGION",CMAQ_raw!VY$4) -> 2.639e-16 | WA3: =GETPIVOTDATA("Sum of PMC",CMAQ_raw!$P$10,"JDAY",$C3,"SRC_CAT",CMAQ_raw!VZ$3,"SRC_REGION",CMAQ_raw!VZ$4) -> 2.639e-16 | WB3: =GETPIVOTDATA("Sum of PMC",CMAQ_raw!$P$10,"JDAY",$C3,"SRC_CAT",CMAQ_raw!WA$3,"SRC_REGION",CMAQ_raw!WA$4) -> 2.639e-16 | WC3: =GETPIVOTDATA("Sum of PMC",CMAQ_raw!$P$10,"JDAY",$C3,"SRC_CAT",CMAQ_raw!WB$3,"SRC_REGION",CMAQ_raw!WB$4) -> 2.639e-16 | WD3: =GETPIVOTDATA("Sum of PMC",CMAQ_raw!$P$10,"JDAY",$C3,"SRC_CAT",CMAQ_raw!WC$3,"SRC_REGION",CMAQ_raw!WC$4) -> 2.639e-16 | WE3: =GETPIVOTDATA("Sum of PMC",CMAQ_raw!$P$10,"JDAY",$C3,"SRC_CAT",CMAQ_raw!WD$3,"SRC_REGION",CMAQ_raw!WD$4) -> 2.639e-16 | WF3: =GETPIVOTDATA("Sum of PMC",CMAQ_raw!$P$10,"JDAY",$C3,"SRC_CAT",CMAQ_raw!WE$3,"SRC_REGION",CMAQ_raw!WE$4) -> 2.639e-16 | WG3: =GETPIVOTDATA("Sum of PMC",CMAQ_raw!$P$10,"JDAY",$C3,"SRC_CAT",CMAQ_raw!WF$3,"SRC_REGION",CMAQ_raw!WF$4) -> 2.639e-16 | WH3: =GETPIVOTDATA("Sum of PMC",CMAQ_raw!$P$10,"JDAY",$C3,"SRC_CAT",CMAQ_raw!WG$3,"SRC_REGION",CMAQ_raw!WG$4) -> 2.639e-16 | WI3: =GETPIVOTDATA("Sum of PMC",CMAQ_raw!$P$10,"JDAY",$C3,"SRC_CAT",CMAQ_raw!WH$3,"SRC_REGION",CMAQ_raw!WH$4) -> 2.639e-16 | WJ3: =GETPIVOTDATA("Sum of PMC",CMAQ_raw!$P$10,"JDAY",$C3,"SRC_CAT",CMAQ_raw!WI$3,"SRC_REGION",CMAQ_raw!WI$4) -> 2.639e-16 | WK3: =GETPIVOTDATA("Sum of PMC",CMAQ_raw!$P$10,"JDAY",$C3,"SRC_CAT",CMAQ_raw!WJ$3,"SRC_REGION",CMAQ_raw!WJ$4) -> 2.7798e-16 | WL3: =GETPIVOTDATA("Sum of PMC",CMAQ_raw!$P$10,"JDAY",$C3,"SRC_CAT",CMAQ_raw!WK$3,"SRC_REGION",CMAQ_raw!WK$4) -> 1.6978e-10 | WM3: =GETPIVOTDATA("Sum of PMC",CMAQ_raw!$P$10,"JDAY",$C3,"SRC_CAT",CMAQ_raw!WL$3,"SRC_REGION",CMAQ_raw!WL$4) -> 1.5903e-15 | WN3: =GETPIVOTDATA("Sum of PMC",CMAQ_raw!$P$10,"JDAY",$C3,"SRC_CAT",CMAQ_raw!WM$3,"SRC_REGION",CMAQ_raw!WM$4) -> 2.639e-16 | WO3: =GETPIVOTDATA("Sum of PMC",CMAQ_raw!$P$10,"JDAY",$C3,"SRC_CAT",CMAQ_raw!WN$3,"SRC_REGION",CMAQ_raw!WN$4) -> 2.639e-16 | WP3: =GETPIVOTDATA("Sum of PMC",CMAQ_raw!$P$10,"JDAY",$C3,"SRC_CAT",CMAQ_raw!WO$3,"SRC_REGION",CMAQ_raw!WO$4) -> 1.1968e-10 | WQ3: =GETPIVOTDATA("Sum of PMC",CMAQ_raw!$P$10,"JDAY",$C3,"SRC_CAT",CMAQ_raw!WP$3,"SRC_REGION",CMAQ_raw!WP$4) -> 2.639e-16 | WR3: =GETPIVOTDATA("Sum of PMC",CMAQ_raw!$P$10,"JDAY",$C3,"SRC_CAT",CMAQ_raw!WQ$3,"SRC_REGION",CMAQ_raw!WQ$4) -> 6.8844e-12 | WS3: =GETPIVOTDATA("Sum of PMC",CMAQ_raw!$P$10,"JDAY",$C3,"SRC_CAT",CMAQ_raw!WR$3,"SRC_REGION",CMAQ_raw!WR$4) -> 2.639e-16 | WT3: =GETPIVOTDATA("Sum of PMC",CMAQ_raw!$P$10,"JDAY",$C3,"SRC_CAT",CMAQ_raw!WS$3,"SRC_REGION",CMAQ_raw!WS$4) -> 2.639e-16 | WU3: =GETPIVOTDATA("Sum of PMC",CMAQ_raw!$P$10,"JDAY",$C3,"SRC_CAT",CMAQ_raw!WT$3,"SRC_REGION",CMAQ_raw!WT$4) -> 2.639e-16 | WV3: =GETPIVOTDATA("Sum of PMC",CMAQ_raw!$P$10,"JDAY",$C3,"SRC_CAT",CMAQ_raw!WU$3,"SRC_REGION",CMAQ_raw!WU$4) -> 2.639e-16 | WW3: =GETPIVOTDATA("Sum of PMC",CMAQ_raw!$P$10,"JDAY",$C3,"SRC_CAT",CMAQ_raw!WV$3,"SRC_REGION",CMAQ_raw!WV$4) -> 7.2337e-10 | WX3: =GETPIVOTDATA("Sum of PMC",CMAQ_raw!$P$10,"JDAY",$C3,"SRC_CAT",CMAQ_raw!WW$3,"SRC_REGION",CMAQ_raw!WW$4) -> 5.4724e-16 | WY3: =GETPIVOTDATA("Sum of PMC",CMAQ_raw!$P$10,"JDAY",$C3,"SRC_CAT",CMAQ_raw!WX$3,"SRC_REGION",CMAQ_raw!WX$4) -> 2.639e-16 | WZ3: =GETPIVOTDATA("Sum of PMC",CMAQ_raw!$P$10,"JDAY",$C3,"SRC_CAT",CMAQ_raw!WY$3,"SRC_REGION",CMAQ_raw!WY$4) -> 2.639e-16 | XA3: =GETPIVOTDATA("Sum of PMC",CMAQ_raw!$P$10,"JDAY",$C3,"SRC_CAT",CMAQ_raw!WZ$3,"SRC_REGION",CMAQ_raw!WZ$4) -> 2.6402e-16 | XB3: =GETPIVOTDATA("Sum of PMC",CMAQ_raw!$P$10,"JDAY",$C3,"SRC_CAT",CMAQ_raw!XA$3,"SRC_REGION",CMAQ_raw!XA$4) -> 2.639e-16 | XC3: =GETPIVOTDATA("Sum of PMC",CMAQ_raw!$P$10,"JDAY",$C3,"SRC_CAT",CMAQ_raw!XB$3,"SRC_REGION",CMAQ_raw!XB$4) -> 2.639e-16 | XD3: =GETPIVOTDATA("Sum of PMC",CMAQ_raw!$P$10,"JDAY",$C3,"SRC_CAT",CMAQ_raw!XC$3,"SRC_REGION",CMAQ_raw!XC$4) -> 2.639e-16 | XE3: =GETPIVOTDATA("Sum of PMC",CMAQ_raw!$P$10,"JDAY",$C3,"SRC_CAT",CMAQ_raw!XD$3,"SRC_REGION",CMAQ_raw!XD$4) -> 2.6398e-16 | XF3: =GETPIVOTDATA("Sum of PMC",CMAQ_raw!$P$10,"JDAY",$C3,"SRC_CAT",CMAQ_raw!XE$3,"SRC_REGION",CMAQ_raw!XE$4) -> 9.4493e-09 | XG3: =GETPIVOTDATA("Sum of PMC",CMAQ_raw!$P$10,"JDAY",$C3,"SRC_CAT",CMAQ_raw!XF$3,"SRC_REGION",CMAQ_raw!XF$4) -> 2.639e-16 | XH3: =GETPIVOTDATA("Sum of PMC",CMAQ_raw!$P$10,"JDAY",$C3,"SRC_CAT",CMAQ_raw!XG$3,"SRC_REGION",CMAQ_raw!XG$4) -> 2.639e-16 | XI3: =GETPIVOTDATA("Sum of PMC",CMAQ_raw!$P$10,"JDAY",$C3,"SRC_CAT",CMAQ_raw!XH$3,"SRC_REGION",CMAQ_raw!XH$4) -> 2.639e-16 | XJ3: =GETPIVOTDATA("Sum of PMC",CMAQ_raw!$P$10,"JDAY",$C3,"SRC_CAT",CMAQ_raw!XI$3,"SRC_REGION",CMAQ_raw!XI$4) -> 2.639e-16 | XK3: =GETPIVOTDATA("Sum of PMC",CMAQ_raw!$P$10,"JDAY",$C3,"SRC_CAT",CMAQ_raw!XJ$3,"SRC_REGION",CMAQ_raw!XJ$4) -> 2.639e-16 | XL3: =GETPIVOTDATA("Sum of PMC",CMAQ_raw!$P$10,"JDAY",$C3,"SRC_CAT",CMAQ_raw!XK$3,"SRC_REGION",CMAQ_raw!XK$4) -> 2.6419e-16 | XM3: =GETPIVOTDATA("Sum of PMC",CMAQ_raw!$P$10,"JDAY",$C3,"SRC_CAT",CMAQ_raw!XL$3,"SRC_REGION",CMAQ_raw!XL$4) -> 2.639e-16 | XN3: =GETPIVOTDATA("Sum of PMC",CMAQ_raw!$P$10,"JDAY",$C3,"SRC_CAT",CMAQ_raw!XM$3,"SRC_REGION",CMAQ_raw!XM$4) -> 2.639e-16 | XO3: =GETPIVOTDATA("Sum of PMC",CMAQ_raw!$P$10,"JDAY",$C3,"SRC_CAT",CMAQ_raw!XN$3,"SRC_REGION",CMAQ_raw!XN$4) -> 2.639e-16 | XP3: =GETPIVOTDATA("Sum of PMC",CMAQ_raw!$P$10,"JDAY",$C3,"SRC_CAT",CMAQ_raw!XO$3,"SRC_REGION",CMAQ_raw!XO$4) -> 2.639e-16 | XQ3: =GETPIVOTDATA("Sum of PMC",CMAQ_raw!$P$10,"JDAY",$C3,"SRC_CAT",CMAQ_raw!XP$3,"SRC_REGION",CMAQ_raw!XP$4) -> 2.639e-16 | XR3: =GETPIVOTDATA("Sum of PMC",CMAQ_raw!$P$10,"JDAY",$C3,"SRC_CAT",CMAQ_raw!XQ$3,"SRC_REGION",CMAQ_raw!XQ$4) -> 2.639e-16 | XS3: =GETPIVOTDATA("Sum of PMC",CMAQ_raw!$P$10,"JDAY",$C3,"SRC_CAT",CMAQ_raw!XR$3,"SRC_REGION",CMAQ_raw!XR$4) -> 2.639e-16 | XT3: =GETPIVOTDATA("Sum of PMC",CMAQ_raw!$P$10,"JDAY",$C3,"SRC_CAT",CMAQ_raw!XS$3,"SRC_REGION",CMAQ_raw!XS$4) -> 2.639e-16 | XU3: =GETPIVOTDATA("Sum of PMC",CMAQ_raw!$P$10,"JDAY",$C3,"SRC_CAT",CMAQ_raw!XT$3,"SRC_REGION",CMAQ_raw!XT$4) -> 2.639e-16 | XV3: =GETPIVOTDATA("Sum of PMC",CMAQ_raw!$P$10,"JDAY",$C3,"SRC_CAT",CMAQ_raw!XU$3,"SRC_REGION",CMAQ_raw!XU$4) -> 2.639e-16 | XW3: =GETPIVOTDATA("Sum of PMC",CMAQ_raw!$P$10,"JDAY",$C3,"SRC_CAT",CMAQ_raw!XV$3,"SRC_REGION",CMAQ_raw!XV$4) -> 2.639e-16 | XX3: =GETPIVOTDATA("Sum of PMC",CMAQ_raw!$P$10,"JDAY",$C3,"SRC_CAT",CMAQ_raw!XW$3,"SRC_REGION",CMAQ_raw!XW$4) -> 2.639e-16 | XY3: =GETPIVOTDATA("Sum of PMC",CMAQ_raw!$P$10,"JDAY",$C3,"SRC_CAT",CMAQ_raw!XX$3,"SRC_REGION",CMAQ_raw!XX$4) -> 2.639e-16 | XZ3: =GETPIVOTDATA("Sum of PMC",CMAQ_raw!$P$10,"JDAY",$C3,"SRC_CAT",CMAQ_raw!XY$3,"SRC_REGION",CMAQ_raw!XY$4) -> 2.6476e-16 | YA3: =GETPIVOTDATA("Sum of PMC",CMAQ_raw!$P$10,"JDAY",$C3,"SRC_CAT",CMAQ_raw!XZ$3,"SRC_REGION",CMAQ_raw!XZ$4) -> 2.639e-16 | YB3: =GETPIVOTDATA("Sum of PMC",CMAQ_raw!$P$10,"JDAY",$C3,"SRC_CAT",CMAQ_raw!YA$3,"SRC_REGION",CMAQ_raw!YA$4) -> 5.03e-14 | YC3: =GETPIVOTDATA("Sum of PMC",CMAQ_raw!$P$10,"JDAY",$C3,"SRC_CAT",CMAQ_raw!YB$3,"SRC_REGION",CMAQ_raw!YB$4) -> 2.639e-16 | YD3: =GETPIVOTDATA("Sum of PMC",CMAQ_raw!$P$10,"JDAY",$C3,"SRC_CAT",CMAQ_raw!YC$3,"SRC_REGION",CMAQ_raw!YC$4) -> 2.639e-16 | YE3: =GETPIVOTDATA("Sum of PMC",CMAQ_raw!$P$10,"JDAY",$C3,"SRC_CAT",CMAQ_raw!YD$3,"SRC_REGION",CMAQ_raw!YD$4) -> 2.656e-16 | YF3: =GETPIVOTDATA("Sum of PMC",CMAQ_raw!$P$10,"JDAY",$C3,"SRC_CAT",CMAQ_raw!YE$3,"SRC_REGION",CMAQ_raw!YE$4) -> 0.1727 | YG3: =GETPIVOTDATA("Sum of PMC",CMAQ_raw!$P$10,"JDAY",$C3,"SRC_CAT",CMAQ_raw!YF$3,"SRC_REGION",CMAQ_raw!YF$4) -> 0.0014855 | YH3: =GETPIVOTDATA("Sum of PMC",CMAQ_raw!$P$10,"JDAY",$C3,"SRC_CAT",CMAQ_raw!YG$3,"SRC_REGION",CMAQ_raw!YG$4) -> 0.88297 | YI3: =GETPIVOTDATA("Sum of PMC",CMAQ_raw!$P$10,"JDAY",$C3,"SRC_CAT",CMAQ_raw!YH$3,"SRC_REGION",CMAQ_raw!YH$4) -> 1.0575e-14 | YJ3: =GETPIVOTDATA("Sum of PMC",CMAQ_raw!$P$10,"JDAY",$C3,"SRC_CAT",CMAQ_raw!YI$3,"SRC_REGION",CMAQ_raw!YI$4) -> 0.001862 | YK3: =GETPIVOTDATA("Sum of PMC",CMAQ_raw!$P$10,"JDAY",$C3,"SRC_CAT",CMAQ_raw!YJ$3,"SRC_REGION",CMAQ_raw!YJ$4) -> 6.6888e-06 | YL3: =GETPIVOTDATA("Sum of PMC",CMAQ_raw!$P$10,"JDAY",$C3,"SRC_CAT",CMAQ_raw!YK$3,"SRC_REGION",CMAQ_raw!YK$4) -> 1.5634e-13 | YM3: =GETPIVOTDATA("Sum of PMC",CMAQ_raw!$P$10,"JDAY",$C3,"SRC_CAT",CMAQ_raw!YL$3,"SRC_REGION",CMAQ_raw!YL$4) -> 0.00010421 | YN3: =GETPIVOTDATA("Sum of PMC",CMAQ_raw!$P$10,"JDAY",$C3,"SRC_CAT",CMAQ_raw!YM$3,"SRC_REGION",CMAQ_raw!YM$4) -> 7.973e-06 | YO3: =GETPIVOTDATA("Sum of PMC",CMAQ_raw!$P$10,"JDAY",$C3,"SRC_CAT",CMAQ_raw!YN$3,"SRC_REGION",CMAQ_raw!YN$4) -> 0.00019064 | YP3: =GETPIVOTDATA("Sum of PMC",CMAQ_raw!$P$10,"JDAY",$C3,"SRC_CAT",CMAQ_raw!YO$3,"SRC_REGION",CMAQ_raw!YO$4) -> 1.6361e-15 | YQ3: =GETPIVOTDATA("Sum of PMC",CMAQ_raw!$P$10,"JDAY",$C3,"SRC_CAT",CMAQ_raw!YP$3,"SRC_REGION",CMAQ_raw!YP$4) -> 4.1384e-13 | YR3: =GETPIVOTDATA("Sum of PMC",CMAQ_raw!$P$10,"JDAY",$C3,"SRC_CAT",CMAQ_raw!YQ$3,"SRC_REGION",CMAQ_raw!YQ$4) -> 3.7045e-14 | YS3: =GETPIVOTDATA("Sum of PMC",CMAQ_raw!$P$10,"JDAY",$C3,"SRC_CAT",CMAQ_raw!YR$3,"SRC_REGION",CMAQ_raw!YR$4) -> 0.02028 | YT3: =GETPIVOTDATA("Sum of PMC",CMAQ_raw!$P$10,"JDAY",$C3,"SRC_CAT",CMAQ_raw!YS$3,"SRC_REGION",CMAQ_raw!YS$4) -> 0.21404 | YU3: =GETPIVOTDATA("Sum of PMC",CMAQ_raw!$P$10,"JDAY",$C3,"SRC_CAT",CMAQ_raw!YT$3,"SRC_REGION",CMAQ_raw!YT$4) -> 3.7728e-12 | YV3: =GETPIVOTDATA("Sum of PMC",CMAQ_raw!$P$10,"JDAY",$C3,"SRC_CAT",CMAQ_raw!YU$3,"SRC_REGION",CMAQ_raw!YU$4) -> 3.3338 | YW3: =GETPIVOTDATA("Sum of PMC",CMAQ_raw!$P$10,"JDAY",$C3,"SRC_CAT",CMAQ_raw!YV$3,"SRC_REGION",CMAQ_raw!YV$4) -> 2.1695e-06 | YX3: =GETPIVOTDATA("Sum of PMC",CMAQ_raw!$P$10,"JDAY",$C3,"SRC_CAT",CMAQ_raw!YW$3,"SRC_REGION",CMAQ_raw!YW$4) -> 4.6794e-07 | YY3: =GETPIVOTDATA("Sum of PMC",CMAQ_raw!$P$10,"JDAY",$C3,"SRC_CAT",CMAQ_raw!YX$3,"SRC_REGION",CMAQ_raw!YX$4) -> 3.7847e-06 | YZ3: =GETPIVOTDATA("Sum of PMC",CMAQ_raw!$P$10,"JDAY",$C3,"SRC_CAT",CMAQ_raw!YY$3,"SRC_REGION",CMAQ_raw!YY$4) -> 0.0035664 | ZA3: =GETPIVOTDATA("Sum of PMC",CMAQ_raw!$P$10,"JDAY",$C3,"SRC_CAT",CMAQ_raw!YZ$3,"SRC_REGION",CMAQ_raw!YZ$4) -> 2.639e-16
A4: =VLOOKUP(B4,ClassIareas_Mass2011!A:B,2,FALSE) -> CO | B4: =B3 -> MEVE1 | C4: 2011003 | D4: 2011-01-03 | E4: 1 | F4: =VLOOKUP(B4&"_"&E4,ClassIareas_Mass2011!F:L,4,FALSE) -> 9 | G4: =VLOOKUP(B4&"_"&E4,ClassIareas_Mass2011!F:L,5,FALSE) -> 3.32 | H4: =VLOOKUP(B4&"_"&E4,ClassIareas_Mass2011!F:L,6,FALSE) -> 2.45 | I4: =VLOOKUP(B4&"_"&E4,ClassIareas_Mass2011!F:L,7,FALSE) -> 3.4 | J4: =IFERROR(VLOOKUP(B4&"_"&C4,ClassIareas_Mass2011!H:T,6,FALSE),"") -> 10 | K4: =IFERROR(VLOOKUP(B4&"_"&C4,ClassIareas_Mass2011!H:T,7,FALSE),"") -> 0.21632 | L4: =IFERROR(VLOOKUP(B4&"_"&C4,ClassIareas_Mass2011!H:T,8,FALSE),"") -> 0.06334 | M4: =IFERROR(VLOOKUP(B4&"_"&C4,ClassIareas_Mass2011!H:T,9,FALSE),"") -> 0.0728 | N4: =IFERROR(VLOOKUP(B4&"_"&C4,ClassIareas_Mass2011!H:T,10,FALSE),"") -> 0.48474 | O4: =IFERROR(VLOOKUP(B4&"_"&C4,ClassIareas_Mass2011!H:T,11,FALSE),"") -> 0.05789 | P4: =IFERROR(VLOOKUP(B4&"_"&C4,ClassIareas_Mass2011!H:T,12,FALSE),"") -> 0.4813 | Q4: =IFERROR(VLOOKUP(B4&"_"&C4,ClassIareas_Mass2011!H:T,13,FALSE),"") -> 0.00032 | R4: =GETPIVOTDATA("Sum of PS4",CMAQ_raw!$P$10,"JDAY",$C4,"SRC_CAT","TOTAL","SRC_REGION","TOTAL") -> 0.56759 | S4: =GETPIVOTDATA("Sum of PN3",CMAQ_raw!$P$10,"JDAY",$C4,"SRC_CAT","TOTAL","SRC_REGION","TOTAL") -> 0.32614 | T4: =GETPIVOTDATA("Sum of PN4",CMAQ_raw!$P$10,"JDAY",$C4,"SRC_CAT","TOTAL","SRC_REGION","TOTAL") -> 0.19454 | U4: =GETPIVOTDATA("Sum of PEC",CMAQ_raw!$P$10,"JDAY",$C4,"SRC_CAT","TOTAL","SRC_REGION","TOTAL") -> 0.12092 | V4: =GETPIVOTDATA("Sum of POA",CMAQ_raw!$P$10,"JDAY",$C4,"SRC_CAT","TOTAL","SRC_REGION","TOTAL") -> 0.76 | W4: =GETPIVOTDATA("Sum of OPF",CMAQ_raw!$P$10,"JDAY",$C4,"SRC_CAT","TOTAL","SRC_REGION","TOTAL") -> 0.69267 | X4: =GETPIVOTDATA("Sum of PMC",CMAQ_raw!$P$10,"JDAY",$C4,"SRC_CAT","TOTAL","SRC_REGION","TOTAL") -> 2.9237 | AA4: =GETPIVOTDATA("Sum of SSA",CMAQ_raw!$P$10,"JDAY",$C4,"SRC_CAT","TOTAL","SRC_REGION","TOTAL") -> 0.073348 | AB4: =GETPIVOTDATA("Sum of SOAA",CMAQ_raw!$P$10,"JDAY",$C4,"SRC_CAT","TOTAL","SRC_REGION","TOTAL") -> 0.016972 | AC4: =GETPIVOTDATA("Sum of SOAB",CMAQ_raw!$P$10,"JDAY",$C4,"SRC_CAT","TOTAL","SRC_REGION","TOTAL") -> 0.040431 | AE4: =GETPIVOTDATA("Sum of PS4",CMAQ_raw!$P$10,"JDAY",$C4,"SRC_CAT",CMAQ_raw!AD$3,"SRC_REGION",CMAQ_raw!AD$4) -> 2.0146e-06 | AF4: =GETPIVOTDATA("Sum of PS4",CMAQ_raw!$P$10,"JDAY",$C4,"SRC_CAT",CMAQ_raw!AE$3,"SRC_REGION",CMAQ_raw!AE$4) -> 2.0146e-06 | AG4: =GETPIVOTDATA("Sum of PS4",CMAQ_raw!$P$10,"JDAY",$C4,"SRC_CAT",CMAQ_raw!AF$3,"SRC_REGION",CMAQ_raw!AF$4) -> 0.00021141 | AH4: =GETPIVOTDATA("Sum of PS4",CMAQ_raw!$P$10,"JDAY",$C4,"SRC_CAT",CMAQ_raw!AG$3,"SRC_REGION",CMAQ_raw!AG$4) -> 2.0146e-06 | AI4: =GETPIVOTDATA("Sum of PS4",CMAQ_raw!$P$10,"JDAY",$C4,"SRC_CAT",CMAQ_raw!AH$3,"SRC_REGION",CMAQ_raw!AH$4) -> 2.0146e-06 | AJ4: =GETPIVOTDATA("Sum of PS4",CMAQ_raw!$P$10,"JDAY",$C4,"SRC_CAT",CMAQ_raw!AI$3,"SRC_REGION",CMAQ_raw!AI$4) -> 2.0146e-06 | AK4: =GETPIVOTDATA("Sum of PS4",CMAQ_raw!$P$10,"JDAY",$C4,"SRC_CAT",CMAQ_raw!AJ$3,"SRC_REGION",CMAQ_raw!AJ$4) -> 2.0146e-06 | AL4: =GETPIVOTDATA("Sum of PS4",CMAQ_raw!$P$10,"JDAY",$C4,"SRC_CAT",CMAQ_raw!AK$3,"SRC_REGION",CMAQ_raw!AK$4) -> 2.0146e-06 | AM4: =GETPIVOTDATA("Sum of PS4",CMAQ_raw!$P$10,"JDAY",$C4,"SRC_CAT",CMAQ_raw!AL$3,"SRC_REGION",CMAQ_raw!AL$4) -> 2.662e-06 | AN4: =GETPIVOTDATA("Sum of PS4",CMAQ_raw!$P$10,"JDAY",$C4,"SRC_CAT",CMAQ_raw!AM$3,"SRC_REGION",CMAQ_raw!AM$4) -> 2.0146e-06 | AO4: =GETPIVOTDATA("Sum of PS4",CMAQ_raw!$P$10,"JDAY",$C4,"SRC_CAT",CMAQ_raw!AN$3,"SRC_REGION",CMAQ_raw!AN$4) -> 2.0146e-06 | AP4: =GETPIVOTDATA("Sum of PS4",CMAQ_raw!$P$10,"JDAY",$C4,"SRC_CAT",CMAQ_raw!AO$3,"SRC_REGION",CMAQ_raw!AO$4) -> 2.0146e-06 | AQ4: =GETPIVOTDATA("Sum of PS4",CMAQ_raw!$P$10,"JDAY",$C4,"SRC_CAT",CMAQ_raw!AP$3,"SRC_REGION",CMAQ_raw!AP$4) -> 2.0146e-06 | AR4: =GETPIVOTDATA("Sum of PS4",CMAQ_raw!$P$10,"JDAY",$C4,"SRC_CAT",CMAQ_raw!AQ$3,"SRC_REGION",CMAQ_raw!AQ$4) -> 2.0146e-06 | AS4: =GETPIVOTDATA("Sum of PS4",CMAQ_raw!$P$10,"JDAY",$C4,"SRC_CAT",CMAQ_raw!AR$3,"SRC_REGION",CMAQ_raw!AR$4) -> 2.0146e-06 | AT4: =GETPIVOTDATA("Sum of PS4",CMAQ_raw!$P$10,"JDAY",$C4,"SRC_CAT",CMAQ_raw!AS$3,"SRC_REGION",CMAQ_raw!AS$4) -> 0.00010898 | AU4: =GETPIVOTDATA("Sum of PS4",CMAQ_raw!$P$10,"JDAY",$C4,"SRC_CAT",CMAQ_raw!AT$3,"SRC_REGION",CMAQ_raw!AT$4) -> 2.0146e-06 | AV4: =GETPIVOTDATA("Sum of PS4",CMAQ_raw!$P$10,"JDAY",$C4,"SRC_CAT",CMAQ_raw!AU$3,"SRC_REGION",CMAQ_raw!AU$4) -> 2.0146e-06 | AW4: =GETPIVOTDATA("Sum of PS4",CMAQ_raw!$P$10,"JDAY",$C4,"SRC_CAT",CMAQ_raw!AV$3,"SRC_REGION",CMAQ_raw!AV$4) -> 2.0155e-06 | AX4: =GETPIVOTDATA("Sum of PS4",CMAQ_raw!$P$10,"JDAY",$C4,"SRC_CAT",CMAQ_raw!AW$3,"SRC_REGION",CMAQ_raw!AW$4) -> 4.3355e-05 | AY4: =GETPIVOTDATA("Sum of PS4",CMAQ_raw!$P$10,"JDAY",$C4,"SRC_CAT",CMAQ_raw!AX$3,"SRC_REGION",CMAQ_raw!AX$4) -> 0.0071112 | AZ4: =GETPIVOTDATA("Sum of PS4",CMAQ_raw!$P$10,"JDAY",$C4,"SRC_CAT",CMAQ_raw!AY$3,"SRC_REGION",CMAQ_raw!AY$4) -> 2.0146e-06 | BA4: =GETPIVOTDATA("Sum of PS4",CMAQ_raw!$P$10,"JDAY",$C4,"SRC_CAT",CMAQ_raw!AZ$3,"SRC_REGION",CMAQ_raw!AZ$4) -> 2.0146e-06 | BB4: =GETPIVOTDATA("Sum of PS4",CMAQ_raw!$P$10,"JDAY",$C4,"SRC_CAT",CMAQ_raw!BA$3,"SRC_REGION",CMAQ_raw!BA$4) -> 2.0149e-06 | BC4: =GETPIVOTDATA("Sum of PS4",CMAQ_raw!$P$10,"JDAY",$C4,"SRC_CAT",CMAQ_raw!BB$3,"SRC_REGION",CMAQ_raw!BB$4) -> 2.015e-06 | BD4: =GETPIVOTDATA("Sum of PS4",CMAQ_raw!$P$10,"JDAY",$C4,"SRC_CAT",CMAQ_raw!BC$3,"SRC_REGION",CMAQ_raw!BC$4) -> 2.0146e-06 | BE4: =GETPIVOTDATA("Sum of PS4",CMAQ_raw!$P$10,"JDAY",$C4,"SRC_CAT",CMAQ_raw!BD$3,"SRC_REGION",CMAQ_raw!BD$4) -> 2.0146e-06 | BF4: =GETPIVOTDATA("Sum of PS4",CMAQ_raw!$P$10,"JDAY",$C4,"SRC_CAT",CMAQ_raw!BE$3,"SRC_REGION",CMAQ_raw!BE$4) -> 2.0146e-06 | BG4: =GETPIVOTDATA("Sum of PS4",CMAQ_raw!$P$10,"JDAY",$C4,"SRC_CAT",CMAQ_raw!BF$3,"SRC_REGION",CMAQ_raw!BF$4) -> 2.0146e-06 | BH4: =GETPIVOTDATA("Sum of PS4",CMAQ_raw!$P$10,"JDAY",$C4,"SRC_CAT",CMAQ_raw!BG$3,"SRC_REGION",CMAQ_raw!BG$4) -> 2.0146e-06 | BI4: =GETPIVOTDATA("Sum of PS4",CMAQ_raw!$P$10,"JDAY",$C4,"SRC_CAT",CMAQ_raw!BH$3,"SRC_REGION",CMAQ_raw!BH$4) -> 2.0146e-06 | BJ4: =GETPIVOTDATA("Sum of PS4",CMAQ_raw!$P$10,"JDAY",$C4,"SRC_CAT",CMAQ_raw!BI$3,"SRC_REGION",CMAQ_raw!BI$4) -> 2.0146e-06 | BK4: =GETPIVOTDATA("Sum of PS4",CMAQ_raw!$P$10,"JDAY",$C4,"SRC_CAT",CMAQ_raw!BJ$3,"SRC_REGION",CMAQ_raw!BJ$4) -> 2.0146e-06 | BL4: =GETPIVOTDATA("Sum of PS4",CMAQ_raw!$P$10,"JDAY",$C4,"SRC_CAT",CMAQ_raw!BK$3,"SRC_REGION",CMAQ_raw!BK$4) -> 2.0146e-06 | BM4: =GETPIVOTDATA("Sum of PS4",CMAQ_raw!$P$10,"JDAY",$C4,"SRC_CAT",CMAQ_raw!BL$3,"SRC_REGION",CMAQ_raw!BL$4) -> 2.0146e-06 | BN4: =GETPIVOTDATA("Sum of PS4",CMAQ_raw!$P$10,"JDAY",$C4,"SRC_CAT",CMAQ_raw!BM$3,"SRC_REGION",CMAQ_raw!BM$4) -> 2.0146e-06 | BO4: =GETPIVOTDATA("Sum of PS4",CMAQ_raw!$P$10,"JDAY",$C4,"SRC_CAT",CMAQ_raw!BN$3,"SRC_REGION",CMAQ_raw!BN$4) -> 2.0146e-06 | BP4: =GETPIVOTDATA("Sum of PS4",CMAQ_raw!$P$10,"JDAY",$C4,"SRC_CAT",CMAQ_raw!BO$3,"SRC_REGION",CMAQ_raw!BO$4) -> 2.0146e-06 | BQ4: =GETPIVOTDATA("Sum of PS4",CMAQ_raw!$P$10,"JDAY",$C4,"SRC_CAT",CMAQ_raw!BP$3,"SRC_REGION",CMAQ_raw!BP$4) -> 2.0146e-06 | BR4: =GETPIVOTDATA("Sum of PS4",CMAQ_raw!$P$10,"JDAY",$C4,"SRC_CAT",CMAQ_raw!BQ$3,"SRC_REGION",CMAQ_raw!BQ$4) -> 2.0149e-06 | BS4: =GETPIVOTDATA("Sum of PS4",CMAQ_raw!$P$10,"JDAY",$C4,"SRC_CAT",CMAQ_raw!BR$3,"SRC_REGION",CMAQ_raw!BR$4) -> 2.1875e-06 | BT4: =GETPIVOTDATA("Sum of PS4",CMAQ_raw!$P$10,"JDAY",$C4,"SRC_CAT",CMAQ_raw!BS$3,"SRC_REGION",CMAQ_raw!BS$4) -> 2.0146e-06 | BU4: =GETPIVOTDATA("Sum of PS4",CMAQ_raw!$P$10,"JDAY",$C4,"SRC_CAT",CMAQ_raw!BT$3,"SRC_REGION",CMAQ_raw!BT$4) -> 2.0146e-06 | BV4: =GETPIVOTDATA("Sum of PS4",CMAQ_raw!$P$10,"JDAY",$C4,"SRC_CAT",CMAQ_raw!BU$3,"SRC_REGION",CMAQ_raw!BU$4) -> 2.8203e-06 | BW4: =GETPIVOTDATA("Sum of PS4",CMAQ_raw!$P$10,"JDAY",$C4,"SRC_CAT",CMAQ_raw!BV$3,"SRC_REGION",CMAQ_raw!BV$4) -> 2.0146e-06 | BX4: =GETPIVOTDATA("Sum of PS4",CMAQ_raw!$P$10,"JDAY",$C4,"SRC_CAT",CMAQ_raw!BW$3,"SRC_REGION",CMAQ_raw!BW$4) -> 2.0162e-06 | BY4: =GETPIVOTDATA("Sum of PS4",CMAQ_raw!$P$10,"JDAY",$C4,"SRC_CAT",CMAQ_raw!BX$3,"SRC_REGION",CMAQ_raw!BX$4) -> 2.0146e-06 | BZ4: =GETPIVOTDATA("Sum of PS4",CMAQ_raw!$P$10,"JDAY",$C4,"SRC_CAT",CMAQ_raw!BY$3,"SRC_REGION",CMAQ_raw!BY$4) -> 2.0146e-06 | CA4: =GETPIVOTDATA("Sum of PS4",CMAQ_raw!$P$10,"JDAY",$C4,"SRC_CAT",CMAQ_raw!BZ$3,"SRC_REGION",CMAQ_raw!BZ$4) -> 2.0146e-06 | CB4: =GETPIVOTDATA("Sum of PS4",CMAQ_raw!$P$10,"JDAY",$C4,"SRC_CAT",CMAQ_raw!CA$3,"SRC_REGION",CMAQ_raw!CA$4) -> 2.0146e-06 | CC4: =GETPIVOTDATA("Sum of PS4",CMAQ_raw!$P$10,"JDAY",$C4,"SRC_CAT",CMAQ_raw!CB$3,"SRC_REGION",CMAQ_raw!CB$4) -> 2.0154e-06 | CD4: =GETPIVOTDATA("Sum of PS4",CMAQ_raw!$P$10,"JDAY",$C4,"SRC_CAT",CMAQ_raw!CC$3,"SRC_REGION",CMAQ_raw!CC$4) -> 2.0146e-06 | CE4: =GETPIVOTDATA("Sum of PS4",CMAQ_raw!$P$10,"JDAY",$C4,"SRC_CAT",CMAQ_raw!CD$3,"SRC_REGION",CMAQ_raw!CD$4) -> 2.0146e-06 | CF4: =GETPIVOTDATA("Sum of PS4",CMAQ_raw!$P$10,"JDAY",$C4,"SRC_CAT",CMAQ_raw!CE$3,"SRC_REGION",CMAQ_raw!CE$4) -> 2.0146e-06 | CG4: =GETPIVOTDATA("Sum of PS4",CMAQ_raw!$P$10,"JDAY",$C4,"SRC_CAT",CMAQ_raw!CF$3,"SRC_REGION",CMAQ_raw!CF$4) -> 2.0146e-06 | CH4: =GETPIVOTDATA("Sum of PS4",CMAQ_raw!$P$10,"JDAY",$C4,"SRC_CAT",CMAQ_raw!CG$3,"SRC_REGION",CMAQ_raw!CG$4) -> 2.0146e-06 | CI4: =GETPIVOTDATA("Sum of PS4",CMAQ_raw!$P$10,"JDAY",$C4,"SRC_CAT",CMAQ_raw!CH$3,"SRC_REGION",CMAQ_raw!CH$4) -> 2.0146e-06 | CJ4: =GETPIVOTDATA("Sum of PS4",CMAQ_raw!$P$10,"JDAY",$C4,"SRC_CAT",CMAQ_raw!CI$3,"SRC_REGION",CMAQ_raw!CI$4) -> 2.0146e-06 | CK4: =GETPIVOTDATA("Sum of PS4",CMAQ_raw!$P$10,"JDAY",$C4,"SRC_CAT",CMAQ_raw!CJ$3,"SRC_REGION",CMAQ_raw!CJ$4) -> 2.0146e-06 | CL4: =GETPIVOTDATA("Sum of PS4",CMAQ_raw!$P$10,"JDAY",$C4,"SRC_CAT",CMAQ_raw!CK$3,"SRC_REGION",CMAQ_raw!CK$4) -> 3.9122e-06 | CM4: =GETPIVOTDATA("Sum of PS4",CMAQ_raw!$P$10,"JDAY",$C4,"SRC_CAT",CMAQ_raw!CL$3,"SRC_REGION",CMAQ_raw!CL$4) -> 2.0146e-06 | CN4: =GETPIVOTDATA("Sum of PS4",CMAQ_raw!$P$10,"JDAY",$C4,"SRC_CAT",CMAQ_raw!CM$3,"SRC_REGION",CMAQ_raw!CM$4) -> 2.0146e-06 | CO4: =GETPIVOTDATA("Sum of PS4",CMAQ_raw!$P$10,"JDAY",$C4,"SRC_CAT",CMAQ_raw!CN$3,"SRC_REGION",CMAQ_raw!CN$4) -> 2.0146e-06 | CP4: =GETPIVOTDATA("Sum of PS4",CMAQ_raw!$P$10,"JDAY",$C4,"SRC_CAT",CMAQ_raw!CO$3,"SRC_REGION",CMAQ_raw!CO$4) -> 2.0146e-06 | CQ4: =GETPIVOTDATA("Sum of PS4",CMAQ_raw!$P$10,"JDAY",$C4,"SRC_CAT",CMAQ_raw!CP$3,"SRC_REGION",CMAQ_raw!CP$4) -> 2.0146e-06 | CR4: =GETPIVOTDATA("Sum of PS4",CMAQ_raw!$P$10,"JDAY",$C4,"SRC_CAT",CMAQ_raw!CQ$3,"SRC_REGION",CMAQ_raw!CQ$4) -> 2.0256e-06 | CS4: =GETPIVOTDATA("Sum of PS4",CMAQ_raw!$P$10,"JDAY",$C4,"SRC_CAT",CMAQ_raw!CR$3,"SRC_REGION",CMAQ_raw!CR$4) -> 2.0146e-06 | CT4: =GETPIVOTDATA("Sum of PS4",CMAQ_raw!$P$10,"JDAY",$C4,"SRC_CAT",CMAQ_raw!CS$3,"SRC_REGION",CMAQ_raw!CS$4) -> 2.0146e-06 | CU4: =GETPIVOTDATA("Sum of PS4",CMAQ_raw!$P$10,"JDAY",$C4,"SRC_CAT",CMAQ_raw!CT$3,"SRC_REGION",CMAQ_raw!CT$4) -> 2.0146e-06 | CV4: =GETPIVOTDATA("Sum of PS4",CMAQ_raw!$P$10,"JDAY",$C4,"SRC_CAT",CMAQ_raw!CU$3,"SRC_REGION",CMAQ_raw!CU$4) -> 2.0146e-06 | CW4: =GETPIVOTDATA("Sum of PS4",CMAQ_raw!$P$10,"JDAY",$C4,"SRC_CAT",CMAQ_raw!CV$3,"SRC_REGION",CMAQ_raw!CV$4) -> 2.0146e-06 | CX4: =GETPIVOTDATA("Sum of PS4",CMAQ_raw!$P$10,"JDAY",$C4,"SRC_CAT",CMAQ_raw!CW$3,"SRC_REGION",CMAQ_raw!CW$4) -> 2.0146e-06 | CY4: =GETPIVOTDATA("Sum of PS4",CMAQ_raw!$P$10,"JDAY",$C4,"SRC_CAT",CMAQ_raw!CX$3,"SRC_REGION",CMAQ_raw!CX$4) -> 2.0146e-06 | CZ4: =GETPIVOTDATA("Sum of PS4",CMAQ_raw!$P$10,"JDAY",$C4,"SRC_CAT",CMAQ_raw!CY$3,"SRC_REGION",CMAQ_raw!CY$4) -> 2.0146e-06 | DA4: =GETPIVOTDATA("Sum of PS4",CMAQ_raw!$P$10,"JDAY",$C4,"SRC_CAT",CMAQ_raw!CZ$3,"SRC_REGION",CMAQ_raw!CZ$4) -> 2.0146e-06 | DB4: =GETPIVOTDATA("Sum of PS4",CMAQ_raw!$P$10,"JDAY",$C4,"SRC_CAT",CMAQ_raw!DA$3,"SRC_REGION",CMAQ_raw!DA$4) -> 2.0146e-06 | DC4: =GETPIVOTDATA("Sum of PS4",CMAQ_raw!$P$10,"JDAY",$C4,"SRC_CAT",CMAQ_raw!DB$3,"SRC_REGION",CMAQ_raw!DB$4) -> 2.0146e-06 | DD4: =GETPIVOTDATA("Sum of PS4",CMAQ_raw!$P$10,"JDAY",$C4,"SRC_CAT",CMAQ_raw!DC$3,"SRC_REGION",CMAQ_raw!DC$4) -> 2.0146e-06 | DE4: =GETPIVOTDATA("Sum of PS4",CMAQ_raw!$P$10,"JDAY",$C4,"SRC_CAT",CMAQ_raw!DD$3,"SRC_REGION",CMAQ_raw!DD$4) -> 2.0146e-06 | DF4: =GETPIVOTDATA("Sum of PS4",CMAQ_raw!$P$10,"JDAY",$C4,"SRC_CAT",CMAQ_raw!DE$3,"SRC_REGION",CMAQ_raw!DE$4) -> 2.0146e-06 | DG4: =GETPIVOTDATA("Sum of PS4",CMAQ_raw!$P$10,"JDAY",$C4,"SRC_CAT",CMAQ_raw!DF$3,"SRC_REGION",CMAQ_raw!DF$4) -> 2.0146e-06 | DH4: =GETPIVOTDATA("Sum of PS4",CMAQ_raw!$P$10,"JDAY",$C4,"SRC_CAT",CMAQ_raw!DG$3,"SRC_REGION",CMAQ_raw!DG$4) -> 2.0146e-06 | DI4: =GETPIVOTDATA("Sum of PS4",CMAQ_raw!$P$10,"JDAY",$C4,"SRC_CAT",CMAQ_raw!DH$3,"SRC_REGION",CMAQ_raw!DH$4) -> 2.0146e-06 | DJ4: =GETPIVOTDATA("Sum of PS4",CMAQ_raw!$P$10,"JDAY",$C4,"SRC_CAT",CMAQ_raw!DI$3,"SRC_REGION",CMAQ_raw!DI$4) -> 2.0146e-06 | DK4: =GETPIVOTDATA("Sum of PS4",CMAQ_raw!$P$10,"JDAY",$C4,"SRC_CAT",CMAQ_raw!DJ$3,"SRC_REGION",CMAQ_raw!DJ$4) -> 2.0146e-06 | DL4: =GETPIVOTDATA("Sum of PS4",CMAQ_raw!$P$10,"JDAY",$C4,"SRC_CAT",CMAQ_raw!DK$3,"SRC_REGION",CMAQ_raw!DK$4) -> 0.035384 | DM4: =GETPIVOTDATA("Sum of PS4",CMAQ_raw!$P$10,"JDAY",$C4,"SRC_CAT",CMAQ_raw!DL$3,"SRC_REGION",CMAQ_raw!DL$4) -> 0.039996 | DN4: =GETPIVOTDATA("Sum of PS4",CMAQ_raw!$P$10,"JDAY",$C4,"SRC_CAT",CMAQ_raw!DM$3,"SRC_REGION",CMAQ_raw!DM$4) -> 0.026667 | DO4: =GETPIVOTDATA("Sum of PS4",CMAQ_raw!$P$10,"JDAY",$C4,"SRC_CAT",CMAQ_raw!DN$3,"SRC_REGION",CMAQ_raw!DN$4) -> 2.0146e-06 | DP4: =GETPIVOTDATA("Sum of PS4",CMAQ_raw!$P$10,"JDAY",$C4,"SRC_CAT",CMAQ_raw!DO$3,"SRC_REGION",CMAQ_raw!DO$4) -> 0.0013163 | DQ4: =GETPIVOTDATA("Sum of PS4",CMAQ_raw!$P$10,"JDAY",$C4,"SRC_CAT",CMAQ_raw!DP$3,"SRC_REGION",CMAQ_raw!DP$4) -> 1.4304e-05 | DR4: =GETPIVOTDATA("Sum of PS4",CMAQ_raw!$P$10,"JDAY",$C4,"SRC_CAT",CMAQ_raw!DQ$3,"SRC_REGION",CMAQ_raw!DQ$4) -> 2.0146e-06 | DS4: =GETPIVOTDATA("Sum of PS4",CMAQ_raw!$P$10,"JDAY",$C4,"SRC_CAT",CMAQ_raw!DR$3,"SRC_REGION",CMAQ_raw!DR$4) -> 0.0033148 | DT4: =GETPIVOTDATA("Sum of PS4",CMAQ_raw!$P$10,"JDAY",$C4,"SRC_CAT",CMAQ_raw!DS$3,"SRC_REGION",CMAQ_raw!DS$4) -> 0.0010258 | DU4: =GETPIVOTDATA("Sum of PS4",CMAQ_raw!$P$10,"JDAY",$C4,"SRC_CAT",CMAQ_raw!DT$3,"SRC_REGION",CMAQ_raw!DT$4) -> 4.7341e-05 | DV4: =GETPIVOTDATA("Sum of PS4",CMAQ_raw!$P$10,"JDAY",$C4,"SRC_CAT",CMAQ_raw!DU$3,"SRC_REGION",CMAQ_raw!DU$4) -> 2.0146e-06 | DW4: =GETPIVOTDATA("Sum of PS4",CMAQ_raw!$P$10,"JDAY",$C4,"SRC_CAT",CMAQ_raw!DV$3,"SRC_REGION",CMAQ_raw!DV$4) -> 2.0146e-06 | DX4: =GETPIVOTDATA("Sum of PS4",CMAQ_raw!$P$10,"JDAY",$C4,"SRC_CAT",CMAQ_raw!DW$3,"SRC_REGION",CMAQ_raw!DW$4) -> 2.0146e-06 | DY4: =GETPIVOTDATA("Sum of PS4",CMAQ_raw!$P$10,"JDAY",$C4,"SRC_CAT",CMAQ_raw!DX$3,"SRC_REGION",CMAQ_raw!DX$4) -> 0.016551 | DZ4: =GETPIVOTDATA("Sum of PS4",CMAQ_raw!$P$10,"JDAY",$C4,"SRC_CAT",CMAQ_raw!DY$3,"SRC_REGION",CMAQ_raw!DY$4) -> 0.027864 | EA4: =GETPIVOTDATA("Sum of PS4",CMAQ_raw!$P$10,"JDAY",$C4,"SRC_CAT",CMAQ_raw!DZ$3,"SRC_REGION",CMAQ_raw!DZ$4) -> 2.0693e-06 | EB4: =GETPIVOTDATA("Sum of PS4",CMAQ_raw!$P$10,"JDAY",$C4,"SRC_CAT",CMAQ_raw!EA$3,"SRC_REGION",CMAQ_raw!EA$4) -> 0.22592 | EC4: =GETPIVOTDATA("Sum of PS4",CMAQ_raw!$P$10,"JDAY",$C4,"SRC_CAT",CMAQ_raw!EB$3,"SRC_REGION",CMAQ_raw!EB$4) -> 0.00034383 | ED4: =GETPIVOTDATA("Sum of PS4",CMAQ_raw!$P$10,"JDAY",$C4,"SRC_CAT",CMAQ_raw!EC$3,"SRC_REGION",CMAQ_raw!EC$4) -> 0.00067919 | EE4: =GETPIVOTDATA("Sum of PS4",CMAQ_raw!$P$10,"JDAY",$C4,"SRC_CAT",CMAQ_raw!ED$3,"SRC_REGION",CMAQ_raw!ED$4) -> 0.011608 | EF4: =GETPIVOTDATA("Sum of PS4",CMAQ_raw!$P$10,"JDAY",$C4,"SRC_CAT",CMAQ_raw!EE$3,"SRC_REGION",CMAQ_raw!EE$4) -> 0.16921 | EG4: =GETPIVOTDATA("Sum of PS4",CMAQ_raw!$P$10,"JDAY",$C4,"SRC_CAT",CMAQ_raw!EF$3,"SRC_REGION",CMAQ_raw!EF$4) -> 2.0146e-06 | EI4: =GETPIVOTDATA("Sum of PN3",CMAQ_raw!$P$10,"JDAY",$C4,"SRC_CAT",CMAQ_raw!EH$3,"SRC_REGION",CMAQ_raw!EH$4) -> 1.7069e-05 | EJ4: =GETPIVOTDATA("Sum of PN3",CMAQ_raw!$P$10,"JDAY",$C4,"SRC_CAT",CMAQ_raw!EI$3,"SRC_REGION",CMAQ_raw!EI$4) -> 1.8276e-05 | EK4: =GETPIVOTDATA("Sum of PN3",CMAQ_raw!$P$10,"JDAY",$C4,"SRC_CAT",CMAQ_raw!EJ$3,"SRC_REGION",CMAQ_raw!EJ$4) -> 0.00039619 | EL4: =GETPIVOTDATA("Sum of PN3",CMAQ_raw!$P$10,"JDAY",$C4,"SRC_CAT",CMAQ_raw!EK$3,"SRC_REGION",CMAQ_raw!EK$4) -> 3.017e-05 | EM4: =GETPIVOTDATA("Sum of PN3",CMAQ_raw!$P$10,"JDAY",$C4,"SRC_CAT",CMAQ_raw!EL$3,"SRC_REGION",CMAQ_raw!EL$4) -> 1.7069e-05 | EN4: =GETPIVOTDATA("Sum of PN3",CMAQ_raw!$P$10,"JDAY",$C4,"SRC_CAT",CMAQ_raw!EM$3,"SRC_REGION",CMAQ_raw!EM$4) -> 1.7069e-05 | EO4: =GETPIVOTDATA("Sum of PN3",CMAQ_raw!$P$10,"JDAY",$C4,"SRC_CAT",CMAQ_raw!EN$3,"SRC_REGION",CMAQ_raw!EN$4) -> 1.7069e-05 | EP4: =GETPIVOTDATA("Sum of PN3",CMAQ_raw!$P$10,"JDAY",$C4,"SRC_CAT",CMAQ_raw!EO$3,"SRC_REGION",CMAQ_raw!EO$4) -> 1.7069e-05 | EQ4: =GETPIVOTDATA("Sum of PN3",CMAQ_raw!$P$10,"JDAY",$C4,"SRC_CAT",CMAQ_raw!EP$3,"SRC_REGION",CMAQ_raw!EP$4) -> 1.7069e-05 | ER4: =GETPIVOTDATA("Sum of PN3",CMAQ_raw!$P$10,"JDAY",$C4,"SRC_CAT",CMAQ_raw!EQ$3,"SRC_REGION",CMAQ_raw!EQ$4) -> 1.7069e-05 | ES4: =GETPIVOTDATA("Sum of PN3",CMAQ_raw!$P$10,"JDAY",$C4,"SRC_CAT",CMAQ_raw!ER$3,"SRC_REGION",CMAQ_raw!ER$4) -> 1.7069e-05 | ET4: =GETPIVOTDATA("Sum of PN3",CMAQ_raw!$P$10,"JDAY",$C4,"SRC_CAT",CMAQ_raw!ES$3,"SRC_REGION",CMAQ_raw!ES$4) -> 1.7069e-05 | EU4: =GETPIVOTDATA("Sum of PN3",CMAQ_raw!$P$10,"JDAY",$C4,"SRC_CAT",CMAQ_raw!ET$3,"SRC_REGION",CMAQ_raw!ET$4) -> 1.7069e-05 | EV4: =GETPIVOTDATA("Sum of PN3",CMAQ_raw!$P$10,"JDAY",$C4,"SRC_CAT",CMAQ_raw!EU$3,"SRC_REGION",CMAQ_raw!EU$4) -> 1.7069e-05 | EW4: =GETPIVOTDATA("Sum of PN3",CMAQ_raw!$P$10,"JDAY",$C4,"SRC_CAT",CMAQ_raw!EV$3,"SRC_REGION",CMAQ_raw!EV$4) -> 1.7127e-05 | EX4: =GETPIVOTDATA("Sum of PN3",CMAQ_raw!$P$10,"JDAY",$C4,"SRC_CAT",CMAQ_raw!EW$3,"SRC_REGION",CMAQ_raw!EW$4) -> 2.4227e-05 | EY4: =GETPIVOTDATA("Sum of PN3",CMAQ_raw!$P$10,"JDAY",$C4,"SRC_CAT",CMAQ_raw!EX$3,"SRC_REGION",CMAQ_raw!EX$4) -> 1.7069e-05 | EZ4: =GETPIVOTDATA("Sum of PN3",CMAQ_raw!$P$10,"JDAY",$C4,"SRC_CAT",CMAQ_raw!EY$3,"SRC_REGION",CMAQ_raw!EY$4) -> 2.2568e-05 | FA4: =GETPIVOTDATA("Sum of PN3",CMAQ_raw!$P$10,"JDAY",$C4,"SRC_CAT",CMAQ_raw!EZ$3,"SRC_REGION",CMAQ_raw!EZ$4) -> 1.7069e-05 | FB4: =GETPIVOTDATA("Sum of PN3",CMAQ_raw!$P$10,"JDAY",$C4,"SRC_CAT",CMAQ_raw!FA$3,"SRC_REGION",CMAQ_raw!FA$4) -> 1.7815e-05 | FC4: =GETPIVOTDATA("Sum of PN3",CMAQ_raw!$P$10,"JDAY",$C4,"SRC_CAT",CMAQ_raw!FB$3,"SRC_REGION",CMAQ_raw!FB$4) -> 0.00071181 | FD4: =GETPIVOTDATA("Sum of PN3",CMAQ_raw!$P$10,"JDAY",$C4,"SRC_CAT",CMAQ_raw!FC$3,"SRC_REGION",CMAQ_raw!FC$4) -> 1.7069e-05 | FE4: =GETPIVOTDATA("Sum of PN3",CMAQ_raw!$P$10,"JDAY",$C4,"SRC_CAT",CMAQ_raw!FD$3,"SRC_REGION",CMAQ_raw!FD$4) -> 1.7069e-05 | FF4: =GETPIVOTDATA("Sum of PN3",CMAQ_raw!$P$10,"JDAY",$C4,"SRC_CAT",CMAQ_raw!FE$3,"SRC_REGION",CMAQ_raw!FE$4) -> 1.707e-05 | FG4: =GETPIVOTDATA("Sum of PN3",CMAQ_raw!$P$10,"JDAY",$C4,"SRC_CAT",CMAQ_raw!FF$3,"SRC_REGION",CMAQ_raw!FF$4) -> 1.707e-05 | FH4: =GETPIVOTDATA("Sum of PN3",CMAQ_raw!$P$10,"JDAY",$C4,"SRC_CAT",CMAQ_raw!FG$3,"SRC_REGION",CMAQ_raw!FG$4) -> 1.7069e-05 | FI4: =GETPIVOTDATA("Sum of PN3",CMAQ_raw!$P$10,"JDAY",$C4,"SRC_CAT",CMAQ_raw!FH$3,"SRC_REGION",CMAQ_raw!FH$4) -> 1.7069e-05 | FJ4: =GETPIVOTDATA("Sum of PN3",CMAQ_raw!$P$10,"JDAY",$C4,"SRC_CAT",CMAQ_raw!FI$3,"SRC_REGION",CMAQ_raw!FI$4) -> 1.7069e-05 | FK4: =GETPIVOTDATA("Sum of PN3",CMAQ_raw!$P$10,"JDAY",$C4,"SRC_CAT",CMAQ_raw!FJ$3,"SRC_REGION",CMAQ_raw!FJ$4) -> 1.7069e-05 | FL4: =GETPIVOTDATA("Sum of PN3",CMAQ_raw!$P$10,"JDAY",$C4,"SRC_CAT",CMAQ_raw!FK$3,"SRC_REGION",CMAQ_raw!FK$4) -> 1.7069e-05 | FM4: =GETPIVOTDATA("Sum of PN3",CMAQ_raw!$P$10,"JDAY",$C4,"SRC_CAT",CMAQ_raw!FL$3,"SRC_REGION",CMAQ_raw!FL$4) -> 1.7069e-05 | FN4: =GETPIVOTDATA("Sum of PN3",CMAQ_raw!$P$10,"JDAY",$C4,"SRC_CAT",CMAQ_raw!FM$3,"SRC_REGION",CMAQ_raw!FM$4) -> 1.7069e-05 | FO4: =GETPIVOTDATA("Sum of PN3",CMAQ_raw!$P$10,"JDAY",$C4,"SRC_CAT",CMAQ_raw!FN$3,"SRC_REGION",CMAQ_raw!FN$4) -> 1.7069e-05 | FP4: =GETPIVOTDATA("Sum of PN3",CMAQ_raw!$P$10,"JDAY",$C4,"SRC_CAT",CMAQ_raw!FO$3,"SRC_REGION",CMAQ_raw!FO$4) -> 1.7069e-05 | FQ4: =GETPIVOTDATA("Sum of PN3",CMAQ_raw!$P$10,"JDAY",$C4,"SRC_CAT",CMAQ_raw!FP$3,"SRC_REGION",CMAQ_raw!FP$4) -> 1.7069e-05 | FR4: =GETPIVOTDATA("Sum of PN3",CMAQ_raw!$P$10,"JDAY",$C4,"SRC_CAT",CMAQ_raw!FQ$3,"SRC_REGION",CMAQ_raw!FQ$4) -> 1.7069e-05 | FS4: =GETPIVOTDATA("Sum of PN3",CMAQ_raw!$P$10,"JDAY",$C4,"SRC_CAT",CMAQ_raw!FR$3,"SRC_REGION",CMAQ_raw!FR$4) -> 1.7069e-05 | FT4: =GETPIVOTDATA("Sum of PN3",CMAQ_raw!$P$10,"JDAY",$C4,"SRC_CAT",CMAQ_raw!FS$3,"SRC_REGION",CMAQ_raw!FS$4) -> 1.7069e-05 | FU4: =GETPIVOTDATA("Sum of PN3",CMAQ_raw!$P$10,"JDAY",$C4,"SRC_CAT",CMAQ_raw!FT$3,"SRC_REGION",CMAQ_raw!FT$4) -> 1.7069e-05 | FV4: =GETPIVOTDATA("Sum of PN3",CMAQ_raw!$P$10,"JDAY",$C4,"SRC_CAT",CMAQ_raw!FU$3,"SRC_REGION",CMAQ_raw!FU$4) -> 1.707e-05 | FW4: =GETPIVOTDATA("Sum of PN3",CMAQ_raw!$P$10,"JDAY",$C4,"SRC_CAT",CMAQ_raw!FV$3,"SRC_REGION",CMAQ_raw!FV$4) -> 1.7123e-05 | FX4: =GETPIVOTDATA("Sum of PN3",CMAQ_raw!$P$10,"JDAY",$C4,"SRC_CAT",CMAQ_raw!FW$3,"SRC_REGION",CMAQ_raw!FW$4) -> 1.7069e-05 | FY4: =GETPIVOTDATA("Sum of PN3",CMAQ_raw!$P$10,"JDAY",$C4,"SRC_CAT",CMAQ_raw!FX$3,"SRC_REGION",CMAQ_raw!FX$4) -> 1.7069e-05 | FZ4: =GETPIVOTDATA("Sum of PN3",CMAQ_raw!$P$10,"JDAY",$C4,"SRC_CAT",CMAQ_raw!FY$3,"SRC_REGION",CMAQ_raw!FY$4) -> 1.7905e-05 | GA4: =GETPIVOTDATA("Sum of PN3",CMAQ_raw!$P$10,"JDAY",$C4,"SRC_CAT",CMAQ_raw!FZ$3,"SRC_REGION",CMAQ_raw!FZ$4) -> 1.7069e-05 | GB4: =GETPIVOTDATA("Sum of PN3",CMAQ_raw!$P$10,"JDAY",$C4,"SRC_CAT",CMAQ_raw!GA$3,"SRC_REGION",CMAQ_raw!GA$4) -> 1.707e-05 | GC4: =GETPIVOTDATA("Sum of PN3",CMAQ_raw!$P$10,"JDAY",$C4,"SRC_CAT",CMAQ_raw!GB$3,"SRC_REGION",CMAQ_raw!GB$4) -> 1.7069e-05 | GD4: =GETPIVOTDATA("Sum of PN3",CMAQ_raw!$P$10,"JDAY",$C4,"SRC_CAT",CMAQ_raw!GC$3,"SRC_REGION",CMAQ_raw!GC$4) -> 1.7069e-05 | GE4: =GETPIVOTDATA("Sum of PN3",CMAQ_raw!$P$10,"JDAY",$C4,"SRC_CAT",CMAQ_raw!GD$3,"SRC_REGION",CMAQ_raw!GD$4) -> 1.7069e-05 | GF4: =GETPIVOTDATA("Sum of PN3",CMAQ_raw!$P$10,"JDAY",$C4,"SRC_CAT",CMAQ_raw!GE$3,"SRC_REGION",CMAQ_raw!GE$4) -> 1.7069e-05 | GG4: =GETPIVOTDATA("Sum of PN3",CMAQ_raw!$P$10,"JDAY",$C4,"SRC_CAT",CMAQ_raw!GF$3,"SRC_REGION",CMAQ_raw!GF$4) -> 1.707e-05 | GH4: =GETPIVOTDATA("Sum of PN3",CMAQ_raw!$P$10,"JDAY",$C4,"SRC_CAT",CMAQ_raw!GG$3,"SRC_REGION",CMAQ_raw!GG$4) -> 1.7069e-05 | GI4: =GETPIVOTDATA("Sum of PN3",CMAQ_raw!$P$10,"JDAY",$C4,"SRC_CAT",CMAQ_raw!GH$3,"SRC_REGION",CMAQ_raw!GH$4) -> 1.7069e-05 | GJ4: =GETPIVOTDATA("Sum of PN3",CMAQ_raw!$P$10,"JDAY",$C4,"SRC_CAT",CMAQ_raw!GI$3,"SRC_REGION",CMAQ_raw!GI$4) -> 1.7069e-05 | GK4: =GETPIVOTDATA("Sum of PN3",CMAQ_raw!$P$10,"JDAY",$C4,"SRC_CAT",CMAQ_raw!GJ$3,"SRC_REGION",CMAQ_raw!GJ$4) -> 1.7069e-05 | GL4: =GETPIVOTDATA("Sum of PN3",CMAQ_raw!$P$10,"JDAY",$C4,"SRC_CAT",CMAQ_raw!GK$3,"SRC_REGION",CMAQ_raw!GK$4) -> 1.7069e-05 | GM4: =GETPIVOTDATA("Sum of PN3",CMAQ_raw!$P$10,"JDAY",$C4,"SRC_CAT",CMAQ_raw!GL$3,"SRC_REGION",CMAQ_raw!GL$4) -> 1.7069e-05 | GN4: =GETPIVOTDATA("Sum of PN3",CMAQ_raw!$P$10,"JDAY",$C4,"SRC_CAT",CMAQ_raw!GM$3,"SRC_REGION",CMAQ_raw!GM$4) -> 1.7069e-05 | GO4: =GETPIVOTDATA("Sum of PN3",CMAQ_raw!$P$10,"JDAY",$C4,"SRC_CAT",CMAQ_raw!GN$3,"SRC_REGION",CMAQ_raw!GN$4) -> 1.7069e-05 | GP4: =GETPIVOTDATA("Sum of PN3",CMAQ_raw!$P$10,"JDAY",$C4,"SRC_CAT",CMAQ_raw!GO$3,"SRC_REGION",CMAQ_raw!GO$4) -> 1.7356e-05 | GQ4: =GETPIVOTDATA("Sum of PN3",CMAQ_raw!$P$10,"JDAY",$C4,"SRC_CAT",CMAQ_raw!GP$3,"SRC_REGION",CMAQ_raw!GP$4) -> 1.7069e-05 | GR4: =GETPIVOTDATA("Sum of PN3",CMAQ_raw!$P$10,"JDAY",$C4,"SRC_CAT",CMAQ_raw!GQ$3,"SRC_REGION",CMAQ_raw!GQ$4) -> 1.7069e-05 | GS4: =GETPIVOTDATA("Sum of PN3",CMAQ_raw!$P$10,"JDAY",$C4,"SRC_CAT",CMAQ_raw!GR$3,"SRC_REGION",CMAQ_raw!GR$4) -> 1.7069e-05 | GT4: =GETPIVOTDATA("Sum of PN3",CMAQ_raw!$P$10,"JDAY",$C4,"SRC_CAT",CMAQ_raw!GS$3,"SRC_REGION",CMAQ_raw!GS$4) -> 1.7069e-05 | GU4: =GETPIVOTDATA("Sum of PN3",CMAQ_raw!$P$10,"JDAY",$C4,"SRC_CAT",CMAQ_raw!GT$3,"SRC_REGION",CMAQ_raw!GT$4) -> 1.7069e-05 | GV4: =GETPIVOTDATA("Sum of PN3",CMAQ_raw!$P$10,"JDAY",$C4,"SRC_CAT",CMAQ_raw!GU$3,"SRC_REGION",CMAQ_raw!GU$4) -> 1.7076e-05 | GW4: =GETPIVOTDATA("Sum of PN3",CMAQ_raw!$P$10,"JDAY",$C4,"SRC_CAT",CMAQ_raw!GV$3,"SRC_REGION",CMAQ_raw!GV$4) -> 1.7069e-05 | GX4: =GETPIVOTDATA("Sum of PN3",CMAQ_raw!$P$10,"JDAY",$C4,"SRC_CAT",CMAQ_raw!GW$3,"SRC_REGION",CMAQ_raw!GW$4) -> 1.7069e-05 | GY4: =GETPIVOTDATA("Sum of PN3",CMAQ_raw!$P$10,"JDAY",$C4,"SRC_CAT",CMAQ_raw!GX$3,"SRC_REGION",CMAQ_raw!GX$4) -> 1.7069e-05 | GZ4: =GETPIVOTDATA("Sum of PN3",CMAQ_raw!$P$10,"JDAY",$C4,"SRC_CAT",CMAQ_raw!GY$3,"SRC_REGION",CMAQ_raw!GY$4) -> 1.7069e-05 | HA4: =GETPIVOTDATA("Sum of PN3",CMAQ_raw!$P$10,"JDAY",$C4,"SRC_CAT",CMAQ_raw!GZ$3,"SRC_REGION",CMAQ_raw!GZ$4) -> 1.7069e-05 | HB4: =GETPIVOTDATA("Sum of PN3",CMAQ_raw!$P$10,"JDAY",$C4,"SRC_CAT",CMAQ_raw!HA$3,"SRC_REGION",CMAQ_raw!HA$4) -> 1.7069e-05 | HC4: =GETPIVOTDATA("Sum of PN3",CMAQ_raw!$P$10,"JDAY",$C4,"SRC_CAT",CMAQ_raw!HB$3,"SRC_REGION",CMAQ_raw!HB$4) -> 1.7069e-05 | HD4: =GETPIVOTDATA("Sum of PN3",CMAQ_raw!$P$10,"JDAY",$C4,"SRC_CAT",CMAQ_raw!HC$3,"SRC_REGION",CMAQ_raw!HC$4) -> 1.7069e-05 | HE4: =GETPIVOTDATA("Sum of PN3",CMAQ_raw!$P$10,"JDAY",$C4,"SRC_CAT",CMAQ_raw!HD$3,"SRC_REGION",CMAQ_raw!HD$4) -> 1.7069e-05 | HF4: =GETPIVOTDATA("Sum of PN3",CMAQ_raw!$P$10,"JDAY",$C4,"SRC_CAT",CMAQ_raw!HE$3,"SRC_REGION",CMAQ_raw!HE$4) -> 1.7069e-05 | HG4: =GETPIVOTDATA("Sum of PN3",CMAQ_raw!$P$10,"JDAY",$C4,"SRC_CAT",CMAQ_raw!HF$3,"SRC_REGION",CMAQ_raw!HF$4) -> 1.7069e-05 | HH4: =GETPIVOTDATA("Sum of PN3",CMAQ_raw!$P$10,"JDAY",$C4,"SRC_CAT",CMAQ_raw!HG$3,"SRC_REGION",CMAQ_raw!HG$4) -> 1.7069e-05 | HI4: =GETPIVOTDATA("Sum of PN3",CMAQ_raw!$P$10,"JDAY",$C4,"SRC_CAT",CMAQ_raw!HH$3,"SRC_REGION",CMAQ_raw!HH$4) -> 1.7069e-05 | HJ4: =GETPIVOTDATA("Sum of PN3",CMAQ_raw!$P$10,"JDAY",$C4,"SRC_CAT",CMAQ_raw!HI$3,"SRC_REGION",CMAQ_raw!HI$4) -> 1.7069e-05 | HK4: =GETPIVOTDATA("Sum of PN3",CMAQ_raw!$P$10,"JDAY",$C4,"SRC_CAT",CMAQ_raw!HJ$3,"SRC_REGION",CMAQ_raw!HJ$4) -> 1.7069e-05 | HL4: =GETPIVOTDATA("Sum of PN3",CMAQ_raw!$P$10,"JDAY",$C4,"SRC_CAT",CMAQ_raw!HK$3,"SRC_REGION",CMAQ_raw!HK$4) -> 1.7069e-05 | HM4: =GETPIVOTDATA("Sum of PN3",CMAQ_raw!$P$10,"JDAY",$C4,"SRC_CAT",CMAQ_raw!HL$3,"SRC_REGION",CMAQ_raw!HL$4) -> 1.7069e-05 | HN4: =GETPIVOTDATA("Sum of PN3",CMAQ_raw!$P$10,"JDAY",$C4,"SRC_CAT",CMAQ_raw!HM$3,"SRC_REGION",CMAQ_raw!HM$4) -> 1.7069e-05 | HO4: =GETPIVOTDATA("Sum of PN3",CMAQ_raw!$P$10,"JDAY",$C4,"SRC_CAT",CMAQ_raw!HN$3,"SRC_REGION",CMAQ_raw!HN$4) -> 1.7069e-05 | HP4: =GETPIVOTDATA("Sum of PN3",CMAQ_raw!$P$10,"JDAY",$C4,"SRC_CAT",CMAQ_raw!HO$3,"SRC_REGION",CMAQ_raw!HO$4) -> 0.0082276 | HQ4: =GETPIVOTDATA("Sum of PN3",CMAQ_raw!$P$10,"JDAY",$C4,"SRC_CAT",CMAQ_raw!HP$3,"SRC_REGION",CMAQ_raw!HP$4) -> 0.0026912 | HR4: =GETPIVOTDATA("Sum of PN3",CMAQ_raw!$P$10,"JDAY",$C4,"SRC_CAT",CMAQ_raw!HQ$3,"SRC_REGION",CMAQ_raw!HQ$4) -> 0.12268 | HS4: =GETPIVOTDATA("Sum of PN3",CMAQ_raw!$P$10,"JDAY",$C4,"SRC_CAT",CMAQ_raw!HR$3,"SRC_REGION",CMAQ_raw!HR$4) -> 1.7069e-05 | HT4: =GETPIVOTDATA("Sum of PN3",CMAQ_raw!$P$10,"JDAY",$C4,"SRC_CAT",CMAQ_raw!HS$3,"SRC_REGION",CMAQ_raw!HS$4) -> 8.4926e-05 | HU4: =GETPIVOTDATA("Sum of PN3",CMAQ_raw!$P$10,"JDAY",$C4,"SRC_CAT",CMAQ_raw!HT$3,"SRC_REGION",CMAQ_raw!HT$4) -> 1.7279e-05 | HV4: =GETPIVOTDATA("Sum of PN3",CMAQ_raw!$P$10,"JDAY",$C4,"SRC_CAT",CMAQ_raw!HU$3,"SRC_REGION",CMAQ_raw!HU$4) -> 1.7069e-05 | HW4: =GETPIVOTDATA("Sum of PN3",CMAQ_raw!$P$10,"JDAY",$C4,"SRC_CAT",CMAQ_raw!HV$3,"SRC_REGION",CMAQ_raw!HV$4) -> 4.2766e-05 | HX4: =GETPIVOTDATA("Sum of PN3",CMAQ_raw!$P$10,"JDAY",$C4,"SRC_CAT",CMAQ_raw!HW$3,"SRC_REGION",CMAQ_raw!HW$4) -> 2.0695e-05 | HY4: =GETPIVOTDATA("Sum of PN3",CMAQ_raw!$P$10,"JDAY",$C4,"SRC_CAT",CMAQ_raw!HX$3,"SRC_REGION",CMAQ_raw!HX$4) -> 1.8421e-05 | HZ4: =GETPIVOTDATA("Sum of PN3",CMAQ_raw!$P$10,"JDAY",$C4,"SRC_CAT",CMAQ_raw!HY$3,"SRC_REGION",CMAQ_raw!HY$4) -> 1.7069e-05 | IA4: =GETPIVOTDATA("Sum of PN3",CMAQ_raw!$P$10,"JDAY",$C4,"SRC_CAT",CMAQ_raw!HZ$3,"SRC_REGION",CMAQ_raw!HZ$4) -> 1.7069e-05 | IB4: =GETPIVOTDATA("Sum of PN3",CMAQ_raw!$P$10,"JDAY",$C4,"SRC_CAT",CMAQ_raw!IA$3,"SRC_REGION",CMAQ_raw!IA$4) -> 1.7069e-05 | IC4: =GETPIVOTDATA("Sum of PN3",CMAQ_raw!$P$10,"JDAY",$C4,"SRC_CAT",CMAQ_raw!IB$3,"SRC_REGION",CMAQ_raw!IB$4) -> 0.00083674 | ID4: =GETPIVOTDATA("Sum of PN3",CMAQ_raw!$P$10,"JDAY",$C4,"SRC_CAT",CMAQ_raw!IC$3,"SRC_REGION",CMAQ_raw!IC$4) -> 0.003122 | IE4: =GETPIVOTDATA("Sum of PN3",CMAQ_raw!$P$10,"JDAY",$C4,"SRC_CAT",CMAQ_raw!ID$3,"SRC_REGION",CMAQ_raw!ID$4) -> 1.713e-05 | IF4: =GETPIVOTDATA("Sum of PN3",CMAQ_raw!$P$10,"JDAY",$C4,"SRC_CAT",CMAQ_raw!IE$3,"SRC_REGION",CMAQ_raw!IE$4) -> 0.18149 | IG4: =GETPIVOTDATA("Sum of PN3",CMAQ_raw!$P$10,"JDAY",$C4,"SRC_CAT",CMAQ_raw!IF$3,"SRC_REGION",CMAQ_raw!IF$4) -> 1.8496e-05 | IH4: =GETPIVOTDATA("Sum of PN3",CMAQ_raw!$P$10,"JDAY",$C4,"SRC_CAT",CMAQ_raw!IG$3,"SRC_REGION",CMAQ_raw!IG$4) -> 0.00014454 | II4: =GETPIVOTDATA("Sum of PN3",CMAQ_raw!$P$10,"JDAY",$C4,"SRC_CAT",CMAQ_raw!IH$3,"SRC_REGION",CMAQ_raw!IH$4) -> 0.00054483 | IJ4: =GETPIVOTDATA("Sum of PN3",CMAQ_raw!$P$10,"JDAY",$C4,"SRC_CAT",CMAQ_raw!II$3,"SRC_REGION",CMAQ_raw!II$4) -> 0.0035248 | IK4: =GETPIVOTDATA("Sum of PN3",CMAQ_raw!$P$10,"JDAY",$C4,"SRC_CAT",CMAQ_raw!IJ$3,"SRC_REGION",CMAQ_raw!IJ$4) -> 1.7069e-05 | IM4: =GETPIVOTDATA("Sum of POA",CMAQ_raw!$P$10,"JDAY",$C4,"SRC_CAT",CMAQ_raw!IL$3,"SRC_REGION",CMAQ_raw!IL$4) -> 1.2145e-16 | IN4: =GETPIVOTDATA("Sum of POA",CMAQ_raw!$P$10,"JDAY",$C4,"SRC_CAT",CMAQ_raw!IM$3,"SRC_REGION",CMAQ_raw!IM$4) -> 1.2145e-16 | IO4: =GETPIVOTDATA("Sum of POA",CMAQ_raw!$P$10,"JDAY",$C4,"SRC_CAT",CMAQ_raw!IN$3,"SRC_REGION",CMAQ_raw!IN$4) -> 1.2145e-16 | IP4: =GETPIVOTDATA("Sum of POA",CMAQ_raw!$P$10,"JDAY",$C4,"SRC_CAT",CMAQ_raw!IO$3,"SRC_REGION",CMAQ_raw!IO$4) -> 1.2145e-16 | IQ4: =GETPIVOTDATA("Sum of POA",CMAQ_raw!$P$10,"JDAY",$C4,"SRC_CAT",CMAQ_raw!IP$3,"SRC_REGION",CMAQ_raw!IP$4) -> 1.2145e-16 | IR4: =GETPIVOTDATA("Sum of POA",CMAQ_raw!$P$10,"JDAY",$C4,"SRC_CAT",CMAQ_raw!IQ$3,"SRC_REGION",CMAQ_raw!IQ$4) -> 1.2145e-16 | IS4: =GETPIVOTDATA("Sum of POA",CMAQ_raw!$P$10,"JDAY",$C4,"SRC_CAT",CMAQ_raw!IR$3,"SRC_REGION",CMAQ_raw!IR$4) -> 1.2145e-16 | IT4: =GETPIVOTDATA("Sum of POA",CMAQ_raw!$P$10,"JDAY",$C4,"SRC_CAT",CMAQ_raw!IS$3,"SRC_REGION",CMAQ_raw!IS$4) -> 1.2145e-16 | IU4: =GETPIVOTDATA("Sum of POA",CMAQ_raw!$P$10,"JDAY",$C4,"SRC_CAT",CMAQ_raw!IT$3,"SRC_REGION",CMAQ_raw!IT$4) -> 1.2145e-16 | IV4: =GETPIVOTDATA("Sum of POA",CMAQ_raw!$P$10,"JDAY",$C4,"SRC_CAT",CMAQ_raw!IU$3,"SRC_REGION",CMAQ_raw!IU$4) -> 1.2145e-16 | IW4: =GETPIVOTDATA("Sum of POA",CMAQ_raw!$P$10,"JDAY",$C4,"SRC_CAT",CMAQ_raw!IV$3,"SRC_REGION",CMAQ_raw!IV$4) -> 1.2145e-16 | IX4: =GETPIVOTDATA("Sum of POA",CMAQ_raw!$P$10,"JDAY",$C4,"SRC_CAT",CMAQ_raw!IW$3,"SRC_REGION",CMAQ_raw!IW$4) -> 1.2145e-16 | IY4: =GETPIVOTDATA("Sum of POA",CMAQ_raw!$P$10,"JDAY",$C4,"SRC_CAT",CMAQ_raw!IX$3,"SRC_REGION",CMAQ_raw!IX$4) -> 1.2145e-16 | IZ4: =GETPIVOTDATA("Sum of POA",CMAQ_raw!$P$10,"JDAY",$C4,"SRC_CAT",CMAQ_raw!IY$3,"SRC_REGION",CMAQ_raw!IY$4) -> 1.2145e-16 | JA4: =GETPIVOTDATA("Sum of POA",CMAQ_raw!$P$10,"JDAY",$C4,"SRC_CAT",CMAQ_raw!IZ$3,"SRC_REGION",CMAQ_raw!IZ$4) -> 1.2145e-16 | JB4: =GETPIVOTDATA("Sum of POA",CMAQ_raw!$P$10,"JDAY",$C4,"SRC_CAT",CMAQ_raw!JA$3,"SRC_REGION",CMAQ_raw!JA$4) -> 1.2145e-16 | JC4: =GETPIVOTDATA("Sum of POA",CMAQ_raw!$P$10,"JDAY",$C4,"SRC_CAT",CMAQ_raw!JB$3,"SRC_REGION",CMAQ_raw!JB$4) -> 1.2145e-16 | JD4: =GETPIVOTDATA("Sum of POA",CMAQ_raw!$P$10,"JDAY",$C4,"SRC_CAT",CMAQ_raw!JC$3,"SRC_REGION",CMAQ_raw!JC$4) -> 1.2145e-16 | JE4: =GETPIVOTDATA("Sum of POA",CMAQ_raw!$P$10,"JDAY",$C4,"SRC_CAT",CMAQ_raw!JD$3,"SRC_REGION",CMAQ_raw!JD$4) -> 1.2145e-16 | JF4: =GETPIVOTDATA("Sum of POA",CMAQ_raw!$P$10,"JDAY",$C4,"SRC_CAT",CMAQ_raw!JE$3,"SRC_REGION",CMAQ_raw!JE$4) -> 1.2145e-16 | JG4: =GETPIVOTDATA("Sum of POA",CMAQ_raw!$P$10,"JDAY",$C4,"SRC_CAT",CMAQ_raw!JF$3,"SRC_REGION",CMAQ_raw!JF$4) -> 1.2145e-16 | JH4: =GETPIVOTDATA("Sum of POA",CMAQ_raw!$P$10,"JDAY",$C4,"SRC_CAT",CMAQ_raw!JG$3,"SRC_REGION",CMAQ_raw!JG$4) -> 1.2145e-16 | JI4: =GETPIVOTDATA("Sum of POA",CMAQ_raw!$P$10,"JDAY",$C4,"SRC_CAT",CMAQ_raw!JH$3,"SRC_REGION",CMAQ_raw!JH$4) -> 1.2145e-16 | JJ4: =GETPIVOTDATA("Sum of POA",CMAQ_raw!$P$10,"JDAY",$C4,"SRC_CAT",CMAQ_raw!JI$3,"SRC_REGION",CMAQ_raw!JI$4) -> 1.9191e-09 | JK4: =GETPIVOTDATA("Sum of POA",CMAQ_raw!$P$10,"JDAY",$C4,"SRC_CAT",CMAQ_raw!JJ$3,"SRC_REGION",CMAQ_raw!JJ$4) -> 1.5887e-09 | JL4: =GETPIVOTDATA("Sum of POA",CMAQ_raw!$P$10,"JDAY",$C4,"SRC_CAT",CMAQ_raw!JK$3,"SRC_REGION",CMAQ_raw!JK$4) -> 1.2145e-16 | JM4: =GETPIVOTDATA("Sum of POA",CMAQ_raw!$P$10,"JDAY",$C4,"SRC_CAT",CMAQ_raw!JL$3,"SRC_REGION",CMAQ_raw!JL$4) -> 1.2145e-16 | JN4: =GETPIVOTDATA("Sum of POA",CMAQ_raw!$P$10,"JDAY",$C4,"SRC_CAT",CMAQ_raw!JM$3,"SRC_REGION",CMAQ_raw!JM$4) -> 1.2145e-16 | JO4: =GETPIVOTDATA("Sum of POA",CMAQ_raw!$P$10,"JDAY",$C4,"SRC_CAT",CMAQ_raw!JN$3,"SRC_REGION",CMAQ_raw!JN$4) -> 1.2545e-16 | JP4: =GETPIVOTDATA("Sum of POA",CMAQ_raw!$P$10,"JDAY",$C4,"SRC_CAT",CMAQ_raw!JO$3,"SRC_REGION",CMAQ_raw!JO$4) -> 1.2145e-16 | JQ4: =GETPIVOTDATA("Sum of POA",CMAQ_raw!$P$10,"JDAY",$C4,"SRC_CAT",CMAQ_raw!JP$3,"SRC_REGION",CMAQ_raw!JP$4) -> 1.2145e-16 | JR4: =GETPIVOTDATA("Sum of POA",CMAQ_raw!$P$10,"JDAY",$C4,"SRC_CAT",CMAQ_raw!JQ$3,"SRC_REGION",CMAQ_raw!JQ$4) -> 4.8947e-15 | JS4: =GETPIVOTDATA("Sum of POA",CMAQ_raw!$P$10,"JDAY",$C4,"SRC_CAT",CMAQ_raw!JR$3,"SRC_REGION",CMAQ_raw!JR$4) -> 1.2145e-16 | JT4: =GETPIVOTDATA("Sum of POA",CMAQ_raw!$P$10,"JDAY",$C4,"SRC_CAT",CMAQ_raw!JS$3,"SRC_REGION",CMAQ_raw!JS$4) -> 1.2145e-16 | JU4: =GETPIVOTDATA("Sum of POA",CMAQ_raw!$P$10,"JDAY",$C4,"SRC_CAT",CMAQ_raw!JT$3,"SRC_REGION",CMAQ_raw!JT$4) -> 1.2145e-16 | JV4: =GETPIVOTDATA("Sum of POA",CMAQ_raw!$P$10,"JDAY",$C4,"SRC_CAT",CMAQ_raw!JU$3,"SRC_REGION",CMAQ_raw!JU$4) -> 1.2145e-16 | JW4: =GETPIVOTDATA("Sum of POA",CMAQ_raw!$P$10,"JDAY",$C4,"SRC_CAT",CMAQ_raw!JV$3,"SRC_REGION",CMAQ_raw!JV$4) -> 1.2145e-16 | JX4: =GETPIVOTDATA("Sum of POA",CMAQ_raw!$P$10,"JDAY",$C4,"SRC_CAT",CMAQ_raw!JW$3,"SRC_REGION",CMAQ_raw!JW$4) -> 1.2176e-16 | JY4: =GETPIVOTDATA("Sum of POA",CMAQ_raw!$P$10,"JDAY",$C4,"SRC_CAT",CMAQ_raw!JX$3,"SRC_REGION",CMAQ_raw!JX$4) -> 9.9991e-12 | JZ4: =GETPIVOTDATA("Sum of POA",CMAQ_raw!$P$10,"JDAY",$C4,"SRC_CAT",CMAQ_raw!JY$3,"SRC_REGION",CMAQ_raw!JY$4) -> 1.9285e-09 | KA4: =GETPIVOTDATA("Sum of POA",CMAQ_raw!$P$10,"JDAY",$C4,"SRC_CAT",CMAQ_raw!JZ$3,"SRC_REGION",CMAQ_raw!JZ$4) -> 8.8048e-07 | KB4: =GETPIVOTDATA("Sum of POA",CMAQ_raw!$P$10,"JDAY",$C4,"SRC_CAT",CMAQ_raw!KA$3,"SRC_REGION",CMAQ_raw!KA$4) -> 1.2145e-16 | KC4: =GETPIVOTDATA("Sum of POA",CMAQ_raw!$P$10,"JDAY",$C4,"SRC_CAT",CMAQ_raw!KB$3,"SRC_REGION",CMAQ_raw!KB$4) -> 1.2145e-16 | KD4: =GETPIVOTDATA("Sum of POA",CMAQ_raw!$P$10,"JDAY",$C4,"SRC_CAT",CMAQ_raw!KC$3,"SRC_REGION",CMAQ_raw!KC$4) -> 1.0879e-05 | KE4: =GETPIVOTDATA("Sum of POA",CMAQ_raw!$P$10,"JDAY",$C4,"SRC_CAT",CMAQ_raw!KD$3,"SRC_REGION",CMAQ_raw!KD$4) -> 1.2145e-16 | KF4: =GETPIVOTDATA("Sum of POA",CMAQ_raw!$P$10,"JDAY",$C4,"SRC_CAT",CMAQ_raw!KE$3,"SRC_REGION",CMAQ_raw!KE$4) -> 5.3451e-09 | KG4: =GETPIVOTDATA("Sum of POA",CMAQ_raw!$P$10,"JDAY",$C4,"SRC_CAT",CMAQ_raw!KF$3,"SRC_REGION",CMAQ_raw!KF$4) -> 1.2145e-16 | KH4: =GETPIVOTDATA("Sum of POA",CMAQ_raw!$P$10,"JDAY",$C4,"SRC_CAT",CMAQ_raw!KG$3,"SRC_REGION",CMAQ_raw!KG$4) -> 1.2146e-16 | KI4: =GETPIVOTDATA("Sum of POA",CMAQ_raw!$P$10,"JDAY",$C4,"SRC_CAT",CMAQ_raw!KH$3,"SRC_REGION",CMAQ_raw!KH$4) -> 1.2167e-16 | KJ4: =GETPIVOTDATA("Sum of POA",CMAQ_raw!$P$10,"JDAY",$C4,"SRC_CAT",CMAQ_raw!KI$3,"SRC_REGION",CMAQ_raw!KI$4) -> 1.2209e-16 | KK4: =GETPIVOTDATA("Sum of POA",CMAQ_raw!$P$10,"JDAY",$C4,"SRC_CAT",CMAQ_raw!KJ$3,"SRC_REGION",CMAQ_raw!KJ$4) -> 1.3666e-08 | KL4: =GETPIVOTDATA("Sum of POA",CMAQ_raw!$P$10,"JDAY",$C4,"SRC_CAT",CMAQ_raw!KK$3,"SRC_REGION",CMAQ_raw!KK$4) -> 5.0424e-13 | KM4: =GETPIVOTDATA("Sum of POA",CMAQ_raw!$P$10,"JDAY",$C4,"SRC_CAT",CMAQ_raw!KL$3,"SRC_REGION",CMAQ_raw!KL$4) -> 2.9733e-16 | KN4: =GETPIVOTDATA("Sum of POA",CMAQ_raw!$P$10,"JDAY",$C4,"SRC_CAT",CMAQ_raw!KM$3,"SRC_REGION",CMAQ_raw!KM$4) -> 1.2145e-16 | KO4: =GETPIVOTDATA("Sum of POA",CMAQ_raw!$P$10,"JDAY",$C4,"SRC_CAT",CMAQ_raw!KN$3,"SRC_REGION",CMAQ_raw!KN$4) -> 6.0366e-16 | KP4: =GETPIVOTDATA("Sum of POA",CMAQ_raw!$P$10,"JDAY",$C4,"SRC_CAT",CMAQ_raw!KO$3,"SRC_REGION",CMAQ_raw!KO$4) -> 9.7578e-16 | KQ4: =GETPIVOTDATA("Sum of POA",CMAQ_raw!$P$10,"JDAY",$C4,"SRC_CAT",CMAQ_raw!KP$3,"SRC_REGION",CMAQ_raw!KP$4) -> 1.2145e-16 | KR4: =GETPIVOTDATA("Sum of POA",CMAQ_raw!$P$10,"JDAY",$C4,"SRC_CAT",CMAQ_raw!KQ$3,"SRC_REGION",CMAQ_raw!KQ$4) -> 1.2145e-16 | KS4: =GETPIVOTDATA("Sum of POA",CMAQ_raw!$P$10,"JDAY",$C4,"SRC_CAT",CMAQ_raw!KR$3,"SRC_REGION",CMAQ_raw!KR$4) -> 1.3699e-14 | KT4: =GETPIVOTDATA("Sum of POA",CMAQ_raw!$P$10,"JDAY",$C4,"SRC_CAT",CMAQ_raw!KS$3,"SRC_REGION",CMAQ_raw!KS$4) -> 6.0573e-06 | KU4: =GETPIVOTDATA("Sum of POA",CMAQ_raw!$P$10,"JDAY",$C4,"SRC_CAT",CMAQ_raw!KT$3,"SRC_REGION",CMAQ_raw!KT$4) -> 1.2145e-16 | KV4: =GETPIVOTDATA("Sum of POA",CMAQ_raw!$P$10,"JDAY",$C4,"SRC_CAT",CMAQ_raw!KU$3,"SRC_REGION",CMAQ_raw!KU$4) -> 1.2145e-16 | KW4: =GETPIVOTDATA("Sum of POA",CMAQ_raw!$P$10,"JDAY",$C4,"SRC_CAT",CMAQ_raw!KV$3,"SRC_REGION",CMAQ_raw!KV$4) -> 1.2145e-16 | KX4: =GETPIVOTDATA("Sum of POA",CMAQ_raw!$P$10,"JDAY",$C4,"SRC_CAT",CMAQ_raw!KW$3,"SRC_REGION",CMAQ_raw!KW$4) -> 1.2145e-16 | KY4: =GETPIVOTDATA("Sum of POA",CMAQ_raw!$P$10,"JDAY",$C4,"SRC_CAT",CMAQ_raw!KX$3,"SRC_REGION",CMAQ_raw!KX$4) -> 1.2145e-16 | KZ4: =GETPIVOTDATA("Sum of POA",CMAQ_raw!$P$10,"JDAY",$C4,"SRC_CAT",CMAQ_raw!KY$3,"SRC_REGION",CMAQ_raw!KY$4) -> 3.1237e-07 | LA4: =GETPIVOTDATA("Sum of POA",CMAQ_raw!$P$10,"JDAY",$C4,"SRC_CAT",CMAQ_raw!KZ$3,"SRC_REGION",CMAQ_raw!KZ$4) -> 2.0756e-14 | LB4: =GETPIVOTDATA("Sum of POA",CMAQ_raw!$P$10,"JDAY",$C4,"SRC_CAT",CMAQ_raw!LA$3,"SRC_REGION",CMAQ_raw!LA$4) -> 1.0684e-14 | LC4: =GETPIVOTDATA("Sum of POA",CMAQ_raw!$P$10,"JDAY",$C4,"SRC_CAT",CMAQ_raw!LB$3,"SRC_REGION",CMAQ_raw!LB$4) -> 1.2145e-16 | LD4: =GETPIVOTDATA("Sum of POA",CMAQ_raw!$P$10,"JDAY",$C4,"SRC_CAT",CMAQ_raw!LC$3,"SRC_REGION",CMAQ_raw!LC$4) -> 1.2145e-16 | LE4: =GETPIVOTDATA("Sum of POA",CMAQ_raw!$P$10,"JDAY",$C4,"SRC_CAT",CMAQ_raw!LD$3,"SRC_REGION",CMAQ_raw!LD$4) -> 4.2518e-16 | LF4: =GETPIVOTDATA("Sum of POA",CMAQ_raw!$P$10,"JDAY",$C4,"SRC_CAT",CMAQ_raw!LE$3,"SRC_REGION",CMAQ_raw!LE$4) -> 1.2145e-16 | LG4: =GETPIVOTDATA("Sum of POA",CMAQ_raw!$P$10,"JDAY",$C4,"SRC_CAT",CMAQ_raw!LF$3,"SRC_REGION",CMAQ_raw!LF$4) -> 1.2255e-16 | LH4: =GETPIVOTDATA("Sum of POA",CMAQ_raw!$P$10,"JDAY",$C4,"SRC_CAT",CMAQ_raw!LG$3,"SRC_REGION",CMAQ_raw!LG$4) -> 1.2145e-16 | LI4: =GETPIVOTDATA("Sum of POA",CMAQ_raw!$P$10,"JDAY",$C4,"SRC_CAT",CMAQ_raw!LH$3,"SRC_REGION",CMAQ_raw!LH$4) -> 1.2145e-16 | LJ4: =GETPIVOTDATA("Sum of POA",CMAQ_raw!$P$10,"JDAY",$C4,"SRC_CAT",CMAQ_raw!LI$3,"SRC_REGION",CMAQ_raw!LI$4) -> 1.2146e-16 | LK4: =GETPIVOTDATA("Sum of POA",CMAQ_raw!$P$10,"JDAY",$C4,"SRC_CAT",CMAQ_raw!LJ$3,"SRC_REGION",CMAQ_raw!LJ$4) -> 9.3166e-15 | LL4: =GETPIVOTDATA("Sum of POA",CMAQ_raw!$P$10,"JDAY",$C4,"SRC_CAT",CMAQ_raw!LK$3,"SRC_REGION",CMAQ_raw!LK$4) -> 1.2145e-16 | LM4: =GETPIVOTDATA("Sum of POA",CMAQ_raw!$P$10,"JDAY",$C4,"SRC_CAT",CMAQ_raw!LL$3,"SRC_REGION",CMAQ_raw!LL$4) -> 1.2145e-16 | LN4: =GETPIVOTDATA("Sum of POA",CMAQ_raw!$P$10,"JDAY",$C4,"SRC_CAT",CMAQ_raw!LM$3,"SRC_REGION",CMAQ_raw!LM$4) -> 1.0326e-13 | LO4: =GETPIVOTDATA("Sum of POA",CMAQ_raw!$P$10,"JDAY",$C4,"SRC_CAT",CMAQ_raw!LN$3,"SRC_REGION",CMAQ_raw!LN$4) -> 1.2145e-16 | LP4: =GETPIVOTDATA("Sum of POA",CMAQ_raw!$P$10,"JDAY",$C4,"SRC_CAT",CMAQ_raw!LO$3,"SRC_REGION",CMAQ_raw!LO$4) -> 2.8388e-12 | LQ4: =GETPIVOTDATA("Sum of POA",CMAQ_raw!$P$10,"JDAY",$C4,"SRC_CAT",CMAQ_raw!LP$3,"SRC_REGION",CMAQ_raw!LP$4) -> 1.2145e-16 | LR4: =GETPIVOTDATA("Sum of POA",CMAQ_raw!$P$10,"JDAY",$C4,"SRC_CAT",CMAQ_raw!LQ$3,"SRC_REGION",CMAQ_raw!LQ$4) -> 1.2145e-16 | LS4: =GETPIVOTDATA("Sum of POA",CMAQ_raw!$P$10,"JDAY",$C4,"SRC_CAT",CMAQ_raw!LR$3,"SRC_REGION",CMAQ_raw!LR$4) -> 1.3382e-16 | LT4: =GETPIVOTDATA("Sum of POA",CMAQ_raw!$P$10,"JDAY",$C4,"SRC_CAT",CMAQ_raw!LS$3,"SRC_REGION",CMAQ_raw!LS$4) -> 0.0092365 | LU4: =GETPIVOTDATA("Sum of POA",CMAQ_raw!$P$10,"JDAY",$C4,"SRC_CAT",CMAQ_raw!LT$3,"SRC_REGION",CMAQ_raw!LT$4) -> 0.010029 | LV4: =GETPIVOTDATA("Sum of POA",CMAQ_raw!$P$10,"JDAY",$C4,"SRC_CAT",CMAQ_raw!LU$3,"SRC_REGION",CMAQ_raw!LU$4) -> 0.53586 | LW4: =GETPIVOTDATA("Sum of POA",CMAQ_raw!$P$10,"JDAY",$C4,"SRC_CAT",CMAQ_raw!LV$3,"SRC_REGION",CMAQ_raw!LV$4) -> 1.5433e-13 | LX4: =GETPIVOTDATA("Sum of POA",CMAQ_raw!$P$10,"JDAY",$C4,"SRC_CAT",CMAQ_raw!LW$3,"SRC_REGION",CMAQ_raw!LW$4) -> 0.00049816 | LY4: =GETPIVOTDATA("Sum of POA",CMAQ_raw!$P$10,"JDAY",$C4,"SRC_CAT",CMAQ_raw!LX$3,"SRC_REGION",CMAQ_raw!LX$4) -> 3.3346e-06 | LZ4: =GETPIVOTDATA("Sum of POA",CMAQ_raw!$P$10,"JDAY",$C4,"SRC_CAT",CMAQ_raw!LY$3,"SRC_REGION",CMAQ_raw!LY$4) -> 8.9302e-14 | MA4: =GETPIVOTDATA("Sum of POA",CMAQ_raw!$P$10,"JDAY",$C4,"SRC_CAT",CMAQ_raw!LZ$3,"SRC_REGION",CMAQ_raw!LZ$4) -> 0.00058735 | MB4: =GETPIVOTDATA("Sum of POA",CMAQ_raw!$P$10,"JDAY",$C4,"SRC_CAT",CMAQ_raw!MA$3,"SRC_REGION",CMAQ_raw!MA$4) -> 0.00014474 | MC4: =GETPIVOTDATA("Sum of POA",CMAQ_raw!$P$10,"JDAY",$C4,"SRC_CAT",CMAQ_raw!MB$3,"SRC_REGION",CMAQ_raw!MB$4) -> 1.2188e-05 | MD4: =GETPIVOTDATA("Sum of POA",CMAQ_raw!$P$10,"JDAY",$C4,"SRC_CAT",CMAQ_raw!MC$3,"SRC_REGION",CMAQ_raw!MC$4) -> 4.1607e-16 | ME4: =GETPIVOTDATA("Sum of POA",CMAQ_raw!$P$10,"JDAY",$C4,"SRC_CAT",CMAQ_raw!MD$3,"SRC_REGION",CMAQ_raw!MD$4) -> 3.909e-14 | MF4: =GETPIVOTDATA("Sum of POA",CMAQ_raw!$P$10,"JDAY",$C4,"SRC_CAT",CMAQ_raw!ME$3,"SRC_REGION",CMAQ_raw!ME$4) -> 3.5871e-14 | MG4: =GETPIVOTDATA("Sum of POA",CMAQ_raw!$P$10,"JDAY",$C4,"SRC_CAT",CMAQ_raw!MF$3,"SRC_REGION",CMAQ_raw!MF$4) -> 0.0043327 | MH4: =GETPIVOTDATA("Sum of POA",CMAQ_raw!$P$10,"JDAY",$C4,"SRC_CAT",CMAQ_raw!MG$3,"SRC_REGION",CMAQ_raw!MG$4) -> 0.012715 | MI4: =GETPIVOTDATA("Sum of POA",CMAQ_raw!$P$10,"JDAY",$C4,"SRC_CAT",CMAQ_raw!MH$3,"SRC_REGION",CMAQ_raw!MH$4) -> 1.6591e-07 | MJ4: =GETPIVOTDATA("Sum of POA",CMAQ_raw!$P$10,"JDAY",$C4,"SRC_CAT",CMAQ_raw!MI$3,"SRC_REGION",CMAQ_raw!MI$4) -> 0.15721 | MK4: =GETPIVOTDATA("Sum of POA",CMAQ_raw!$P$10,"JDAY",$C4,"SRC_CAT",CMAQ_raw!MJ$3,"SRC_REGION",CMAQ_raw!MJ$4) -> 4.9643e-05 | ML4: =GETPIVOTDATA("Sum of POA",CMAQ_raw!$P$10,"JDAY",$C4,"SRC_CAT",CMAQ_raw!MK$3,"SRC_REGION",CMAQ_raw!MK$4) -> 0.00019342 | MM4: =GETPIVOTDATA("Sum of POA",CMAQ_raw!$P$10,"JDAY",$C4,"SRC_CAT",CMAQ_raw!ML$3,"SRC_REGION",CMAQ_raw!ML$4) -> 0.0021093 | MN4: =GETPIVOTDATA("Sum of POA",CMAQ_raw!$P$10,"JDAY",$C4,"SRC_CAT",CMAQ_raw!MM$3,"SRC_REGION",CMAQ_raw!MM$4) -> 0.027001 | MO4: =GETPIVOTDATA("Sum of POA",CMAQ_raw!$P$10,"JDAY",$C4,"SRC_CAT",CMAQ_raw!MN$3,"SRC_REGION",CMAQ_raw!MN$4) -> 1.2145e-16 | MQ4: =GETPIVOTDATA("Sum of PEC",CMAQ_raw!$P$10,"JDAY",$C4,"SRC_CAT",CMAQ_raw!MP$3,"SRC_REGION",CMAQ_raw!MP$4) -> 1.2689e-16 | MR4: =GETPIVOTDATA("Sum of PEC",CMAQ_raw!$P$10,"JDAY",$C4,"SRC_CAT",CMAQ_raw!MQ$3,"SRC_REGION",CMAQ_raw!MQ$4) -> 1.2689e-16 | MS4: =GETPIVOTDATA("Sum of PEC",CMAQ_raw!$P$10,"JDAY",$C4,"SRC_CAT",CMAQ_raw!MR$3,"SRC_REGION",CMAQ_raw!MR$4) -> 1.2689e-16 | MT4: =GETPIVOTDATA("Sum of PEC",CMAQ_raw!$P$10,"JDAY",$C4,"SRC_CAT",CMAQ_raw!MS$3,"SRC_REGION",CMAQ_raw!MS$4) -> 1.2689e-16 | MU4: =GETPIVOTDATA("Sum of PEC",CMAQ_raw!$P$10,"JDAY",$C4,"SRC_CAT",CMAQ_raw!MT$3,"SRC_REGION",CMAQ_raw!MT$4) -> 1.2689e-16 | MV4: =GETPIVOTDATA("Sum of PEC",CMAQ_raw!$P$10,"JDAY",$C4,"SRC_CAT",CMAQ_raw!MU$3,"SRC_REGION",CMAQ_raw!MU$4) -> 1.2689e-16 | MW4: =GETPIVOTDATA("Sum of PEC",CMAQ_raw!$P$10,"JDAY",$C4,"SRC_CAT",CMAQ_raw!MV$3,"SRC_REGION",CMAQ_raw!MV$4) -> 1.2689e-16 | MX4: =GETPIVOTDATA("Sum of PEC",CMAQ_raw!$P$10,"JDAY",$C4,"SRC_CAT",CMAQ_raw!MW$3,"SRC_REGION",CMAQ_raw!MW$4) -> 1.2689e-16 | MY4: =GETPIVOTDATA("Sum of PEC",CMAQ_raw!$P$10,"JDAY",$C4,"SRC_CAT",CMAQ_raw!MX$3,"SRC_REGION",CMAQ_raw!MX$4) -> 1.2689e-16 | MZ4: =GETPIVOTDATA("Sum of PEC",CMAQ_raw!$P$10,"JDAY",$C4,"SRC_CAT",CMAQ_raw!MY$3,"SRC_REGION",CMAQ_raw!MY$4) -> 1.2689e-16 | NA4: =GETPIVOTDATA("Sum of PEC",CMAQ_raw!$P$10,"JDAY",$C4,"SRC_CAT",CMAQ_raw!MZ$3,"SRC_REGION",CMAQ_raw!MZ$4) -> 1.2689e-16 | NB4: =GETPIVOTDATA("Sum of PEC",CMAQ_raw!$P$10,"JDAY",$C4,"SRC_CAT",CMAQ_raw!NA$3,"SRC_REGION",CMAQ_raw!NA$4) -> 1.2689e-16 | NC4: =GETPIVOTDATA("Sum of PEC",CMAQ_raw!$P$10,"JDAY",$C4,"SRC_CAT",CMAQ_raw!NB$3,"SRC_REGION",CMAQ_raw!NB$4) -> 1.2689e-16 | ND4: =GETPIVOTDATA("Sum of PEC",CMAQ_raw!$P$10,"JDAY",$C4,"SRC_CAT",CMAQ_raw!NC$3,"SRC_REGION",CMAQ_raw!NC$4) -> 1.2689e-16 | NE4: =GETPIVOTDATA("Sum of PEC",CMAQ_raw!$P$10,"JDAY",$C4,"SRC_CAT",CMAQ_raw!ND$3,"SRC_REGION",CMAQ_raw!ND$4) -> 1.2689e-16 | NF4: =GETPIVOTDATA("Sum of PEC",CMAQ_raw!$P$10,"JDAY",$C4,"SRC_CAT",CMAQ_raw!NE$3,"SRC_REGION",CMAQ_raw!NE$4) -> 1.2689e-16 | NG4: =GETPIVOTDATA("Sum of PEC",CMAQ_raw!$P$10,"JDAY",$C4,"SRC_CAT",CMAQ_raw!NF$3,"SRC_REGION",CMAQ_raw!NF$4) -> 1.2689e-16 | NH4: =GETPIVOTDATA("Sum of PEC",CMAQ_raw!$P$10,"JDAY",$C4,"SRC_CAT",CMAQ_raw!NG$3,"SRC_REGION",CMAQ_raw!NG$4) -> 1.2689e-16 | NI4: =GETPIVOTDATA("Sum of PEC",CMAQ_raw!$P$10,"JDAY",$C4,"SRC_CAT",CMAQ_raw!NH$3,"SRC_REGION",CMAQ_raw!NH$4) -> 1.2689e-16 | NJ4: =GETPIVOTDATA("Sum of PEC",CMAQ_raw!$P$10,"JDAY",$C4,"SRC_CAT",CMAQ_raw!NI$3,"SRC_REGION",CMAQ_raw!NI$4) -> 1.2689e-16 | NK4: =GETPIVOTDATA("Sum of PEC",CMAQ_raw!$P$10,"JDAY",$C4,"SRC_CAT",CMAQ_raw!NJ$3,"SRC_REGION",CMAQ_raw!NJ$4) -> 1.2689e-16 | NL4: =GETPIVOTDATA("Sum of PEC",CMAQ_raw!$P$10,"JDAY",$C4,"SRC_CAT",CMAQ_raw!NK$3,"SRC_REGION",CMAQ_raw!NK$4) -> 1.2689e-16 | NM4: =GETPIVOTDATA("Sum of PEC",CMAQ_raw!$P$10,"JDAY",$C4,"SRC_CAT",CMAQ_raw!NL$3,"SRC_REGION",CMAQ_raw!NL$4) -> 1.2689e-16 | NN4: =GETPIVOTDATA("Sum of PEC",CMAQ_raw!$P$10,"JDAY",$C4,"SRC_CAT",CMAQ_raw!NM$3,"SRC_REGION",CMAQ_raw!NM$4) -> 1.3775e-09 | NO4: =GETPIVOTDATA("Sum of PEC",CMAQ_raw!$P$10,"JDAY",$C4,"SRC_CAT",CMAQ_raw!NN$3,"SRC_REGION",CMAQ_raw!NN$4) -> 7.5112e-10 | NP4: =GETPIVOTDATA("Sum of PEC",CMAQ_raw!$P$10,"JDAY",$C4,"SRC_CAT",CMAQ_raw!NO$3,"SRC_REGION",CMAQ_raw!NO$4) -> 1.2689e-16 | NQ4: =GETPIVOTDATA("Sum of PEC",CMAQ_raw!$P$10,"JDAY",$C4,"SRC_CAT",CMAQ_raw!NP$3,"SRC_REGION",CMAQ_raw!NP$4) -> 1.2689e-16 | NR4: =GETPIVOTDATA("Sum of PEC",CMAQ_raw!$P$10,"JDAY",$C4,"SRC_CAT",CMAQ_raw!NQ$3,"SRC_REGION",CMAQ_raw!NQ$4) -> 1.2689e-16 | NS4: =GETPIVOTDATA("Sum of PEC",CMAQ_raw!$P$10,"JDAY",$C4,"SRC_CAT",CMAQ_raw!NR$3,"SRC_REGION",CMAQ_raw!NR$4) -> 1.2748e-16 | NT4: =GETPIVOTDATA("Sum of PEC",CMAQ_raw!$P$10,"JDAY",$C4,"SRC_CAT",CMAQ_raw!NS$3,"SRC_REGION",CMAQ_raw!NS$4) -> 1.2689e-16 | NU4: =GETPIVOTDATA("Sum of PEC",CMAQ_raw!$P$10,"JDAY",$C4,"SRC_CAT",CMAQ_raw!NT$3,"SRC_REGION",CMAQ_raw!NT$4) -> 1.2689e-16 | NV4: =GETPIVOTDATA("Sum of PEC",CMAQ_raw!$P$10,"JDAY",$C4,"SRC_CAT",CMAQ_raw!NU$3,"SRC_REGION",CMAQ_raw!NU$4) -> 2.0727e-15 | NW4: =GETPIVOTDATA("Sum of PEC",CMAQ_raw!$P$10,"JDAY",$C4,"SRC_CAT",CMAQ_raw!NV$3,"SRC_REGION",CMAQ_raw!NV$4) -> 1.2689e-16 | NX4: =GETPIVOTDATA("Sum of PEC",CMAQ_raw!$P$10,"JDAY",$C4,"SRC_CAT",CMAQ_raw!NW$3,"SRC_REGION",CMAQ_raw!NW$4) -> 1.2689e-16 | NY4: =GETPIVOTDATA("Sum of PEC",CMAQ_raw!$P$10,"JDAY",$C4,"SRC_CAT",CMAQ_raw!NX$3,"SRC_REGION",CMAQ_raw!NX$4) -> 1.2689e-16 | NZ4: =GETPIVOTDATA("Sum of PEC",CMAQ_raw!$P$10,"JDAY",$C4,"SRC_CAT",CMAQ_raw!NY$3,"SRC_REGION",CMAQ_raw!NY$4) -> 1.2689e-16 | OA4: =GETPIVOTDATA("Sum of PEC",CMAQ_raw!$P$10,"JDAY",$C4,"SRC_CAT",CMAQ_raw!NZ$3,"SRC_REGION",CMAQ_raw!NZ$4) -> 1.2689e-16 | OB4: =GETPIVOTDATA("Sum of PEC",CMAQ_raw!$P$10,"JDAY",$C4,"SRC_CAT",CMAQ_raw!OA$3,"SRC_REGION",CMAQ_raw!OA$4) -> 1.2707e-16 | OC4: =GETPIVOTDATA("Sum of PEC",CMAQ_raw!$P$10,"JDAY",$C4,"SRC_CAT",CMAQ_raw!OB$3,"SRC_REGION",CMAQ_raw!OB$4) -> 4.9294e-12 | OD4: =GETPIVOTDATA("Sum of PEC",CMAQ_raw!$P$10,"JDAY",$C4,"SRC_CAT",CMAQ_raw!OC$3,"SRC_REGION",CMAQ_raw!OC$4) -> 1.0571e-09 | OE4: =GETPIVOTDATA("Sum of PEC",CMAQ_raw!$P$10,"JDAY",$C4,"SRC_CAT",CMAQ_raw!OD$3,"SRC_REGION",CMAQ_raw!OD$4) -> 4.1434e-07 | OF4: =GETPIVOTDATA("Sum of PEC",CMAQ_raw!$P$10,"JDAY",$C4,"SRC_CAT",CMAQ_raw!OE$3,"SRC_REGION",CMAQ_raw!OE$4) -> 1.2689e-16 | OG4: =GETPIVOTDATA("Sum of PEC",CMAQ_raw!$P$10,"JDAY",$C4,"SRC_CAT",CMAQ_raw!OF$3,"SRC_REGION",CMAQ_raw!OF$4) -> 1.2689e-16 | OH4: =GETPIVOTDATA("Sum of PEC",CMAQ_raw!$P$10,"JDAY",$C4,"SRC_CAT",CMAQ_raw!OG$3,"SRC_REGION",CMAQ_raw!OG$4) -> 3.9429e-06 | OI4: =GETPIVOTDATA("Sum of PEC",CMAQ_raw!$P$10,"JDAY",$C4,"SRC_CAT",CMAQ_raw!OH$3,"SRC_REGION",CMAQ_raw!OH$4) -> 1.2689e-16 | OJ4: =GETPIVOTDATA("Sum of PEC",CMAQ_raw!$P$10,"JDAY",$C4,"SRC_CAT",CMAQ_raw!OI$3,"SRC_REGION",CMAQ_raw!OI$4) -> 2.1785e-09 | OK4: =GETPIVOTDATA("Sum of PEC",CMAQ_raw!$P$10,"JDAY",$C4,"SRC_CAT",CMAQ_raw!OJ$3,"SRC_REGION",CMAQ_raw!OJ$4) -> 1.2689e-16 | OL4: =GETPIVOTDATA("Sum of PEC",CMAQ_raw!$P$10,"JDAY",$C4,"SRC_CAT",CMAQ_raw!OK$3,"SRC_REGION",CMAQ_raw!OK$4) -> 1.269e-16 | OM4: =GETPIVOTDATA("Sum of PEC",CMAQ_raw!$P$10,"JDAY",$C4,"SRC_CAT",CMAQ_raw!OL$3,"SRC_REGION",CMAQ_raw!OL$4) -> 1.2692e-16 | ON4: =GETPIVOTDATA("Sum of PEC",CMAQ_raw!$P$10,"JDAY",$C4,"SRC_CAT",CMAQ_raw!OM$3,"SRC_REGION",CMAQ_raw!OM$4) -> 1.2697e-16 | OO4: =GETPIVOTDATA("Sum of PEC",CMAQ_raw!$P$10,"JDAY",$C4,"SRC_CAT",CMAQ_raw!ON$3,"SRC_REGION",CMAQ_raw!ON$4) -> 7.3596e-09 | OP4: =GETPIVOTDATA("Sum of PEC",CMAQ_raw!$P$10,"JDAY",$C4,"SRC_CAT",CMAQ_raw!OO$3,"SRC_REGION",CMAQ_raw!OO$4) -> 1.0056e-13 | OQ4: =GETPIVOTDATA("Sum of PEC",CMAQ_raw!$P$10,"JDAY",$C4,"SRC_CAT",CMAQ_raw!OP$3,"SRC_REGION",CMAQ_raw!OP$4) -> 1.5764e-16 | OR4: =GETPIVOTDATA("Sum of PEC",CMAQ_raw!$P$10,"JDAY",$C4,"SRC_CAT",CMAQ_raw!OQ$3,"SRC_REGION",CMAQ_raw!OQ$4) -> 1.2689e-16 | OS4: =GETPIVOTDATA("Sum of PEC",CMAQ_raw!$P$10,"JDAY",$C4,"SRC_CAT",CMAQ_raw!OR$3,"SRC_REGION",CMAQ_raw!OR$4) -> 2.9212e-16 | OT4: =GETPIVOTDATA("Sum of PEC",CMAQ_raw!$P$10,"JDAY",$C4,"SRC_CAT",CMAQ_raw!OS$3,"SRC_REGION",CMAQ_raw!OS$4) -> 2.6432e-16 | OU4: =GETPIVOTDATA("Sum of PEC",CMAQ_raw!$P$10,"JDAY",$C4,"SRC_CAT",CMAQ_raw!OT$3,"SRC_REGION",CMAQ_raw!OT$4) -> 1.2689e-16 | OV4: =GETPIVOTDATA("Sum of PEC",CMAQ_raw!$P$10,"JDAY",$C4,"SRC_CAT",CMAQ_raw!OU$3,"SRC_REGION",CMAQ_raw!OU$4) -> 1.2689e-16 | OW4: =GETPIVOTDATA("Sum of PEC",CMAQ_raw!$P$10,"JDAY",$C4,"SRC_CAT",CMAQ_raw!OV$3,"SRC_REGION",CMAQ_raw!OV$4) -> 3.046e-15 | OX4: =GETPIVOTDATA("Sum of PEC",CMAQ_raw!$P$10,"JDAY",$C4,"SRC_CAT",CMAQ_raw!OW$3,"SRC_REGION",CMAQ_raw!OW$4) -> 3.4404e-06 | OY4: =GETPIVOTDATA("Sum of PEC",CMAQ_raw!$P$10,"JDAY",$C4,"SRC_CAT",CMAQ_raw!OX$3,"SRC_REGION",CMAQ_raw!OX$4) -> 1.2689e-16 | OZ4: =GETPIVOTDATA("Sum of PEC",CMAQ_raw!$P$10,"JDAY",$C4,"SRC_CAT",CMAQ_raw!OY$3,"SRC_REGION",CMAQ_raw!OY$4) -> 1.2689e-16 | PA4: =GETPIVOTDATA("Sum of PEC",CMAQ_raw!$P$10,"JDAY",$C4,"SRC_CAT",CMAQ_raw!OZ$3,"SRC_REGION",CMAQ_raw!OZ$4) -> 1.2689e-16 | PB4: =GETPIVOTDATA("Sum of PEC",CMAQ_raw!$P$10,"JDAY",$C4,"SRC_CAT",CMAQ_raw!PA$3,"SRC_REGION",CMAQ_raw!PA$4) -> 1.2689e-16 | PC4: =GETPIVOTDATA("Sum of PEC",CMAQ_raw!$P$10,"JDAY",$C4,"SRC_CAT",CMAQ_raw!PB$3,"SRC_REGION",CMAQ_raw!PB$4) -> 1.2689e-16 | PD4: =GETPIVOTDATA("Sum of PEC",CMAQ_raw!$P$10,"JDAY",$C4,"SRC_CAT",CMAQ_raw!PC$3,"SRC_REGION",CMAQ_raw!PC$4) -> 4.7718e-08 | PE4: =GETPIVOTDATA("Sum of PEC",CMAQ_raw!$P$10,"JDAY",$C4,"SRC_CAT",CMAQ_raw!PD$3,"SRC_REGION",CMAQ_raw!PD$4) -> 2.4821e-15 | PF4: =GETPIVOTDATA("Sum of PEC",CMAQ_raw!$P$10,"JDAY",$C4,"SRC_CAT",CMAQ_raw!PE$3,"SRC_REGION",CMAQ_raw!PE$4) -> 1.4685e-15 | PG4: =GETPIVOTDATA("Sum of PEC",CMAQ_raw!$P$10,"JDAY",$C4,"SRC_CAT",CMAQ_raw!PF$3,"SRC_REGION",CMAQ_raw!PF$4) -> 1.2689e-16 | PH4: =GETPIVOTDATA("Sum of PEC",CMAQ_raw!$P$10,"JDAY",$C4,"SRC_CAT",CMAQ_raw!PG$3,"SRC_REGION",CMAQ_raw!PG$4) -> 1.2689e-16 | PI4: =GETPIVOTDATA("Sum of PEC",CMAQ_raw!$P$10,"JDAY",$C4,"SRC_CAT",CMAQ_raw!PH$3,"SRC_REGION",CMAQ_raw!PH$4) -> 1.6325e-16 | PJ4: =GETPIVOTDATA("Sum of PEC",CMAQ_raw!$P$10,"JDAY",$C4,"SRC_CAT",CMAQ_raw!PI$3,"SRC_REGION",CMAQ_raw!PI$4) -> 1.2689e-16 | PK4: =GETPIVOTDATA("Sum of PEC",CMAQ_raw!$P$10,"JDAY",$C4,"SRC_CAT",CMAQ_raw!PJ$3,"SRC_REGION",CMAQ_raw!PJ$4) -> 1.2702e-16 | PL4: =GETPIVOTDATA("Sum of PEC",CMAQ_raw!$P$10,"JDAY",$C4,"SRC_CAT",CMAQ_raw!PK$3,"SRC_REGION",CMAQ_raw!PK$4) -> 1.2689e-16 | PM4: =GETPIVOTDATA("Sum of PEC",CMAQ_raw!$P$10,"JDAY",$C4,"SRC_CAT",CMAQ_raw!PL$3,"SRC_REGION",CMAQ_raw!PL$4) -> 1.2689e-16 | PN4: =GETPIVOTDATA("Sum of PEC",CMAQ_raw!$P$10,"JDAY",$C4,"SRC_CAT",CMAQ_raw!PM$3,"SRC_REGION",CMAQ_raw!PM$4) -> 1.2689e-16 | PO4: =GETPIVOTDATA("Sum of PEC",CMAQ_raw!$P$10,"JDAY",$C4,"SRC_CAT",CMAQ_raw!PN$3,"SRC_REGION",CMAQ_raw!PN$4) -> 1.1522e-15 | PP4: =GETPIVOTDATA("Sum of PEC",CMAQ_raw!$P$10,"JDAY",$C4,"SRC_CAT",CMAQ_raw!PO$3,"SRC_REGION",CMAQ_raw!PO$4) -> 1.2689e-16 | PQ4: =GETPIVOTDATA("Sum of PEC",CMAQ_raw!$P$10,"JDAY",$C4,"SRC_CAT",CMAQ_raw!PP$3,"SRC_REGION",CMAQ_raw!PP$4) -> 1.2689e-16 | PR4: =GETPIVOTDATA("Sum of PEC",CMAQ_raw!$P$10,"JDAY",$C4,"SRC_CAT",CMAQ_raw!PQ$3,"SRC_REGION",CMAQ_raw!PQ$4) -> 1.5269e-14 | PS4: =GETPIVOTDATA("Sum of PEC",CMAQ_raw!$P$10,"JDAY",$C4,"SRC_CAT",CMAQ_raw!PR$3,"SRC_REGION",CMAQ_raw!PR$4) -> 1.2689e-16 | PT4: =GETPIVOTDATA("Sum of PEC",CMAQ_raw!$P$10,"JDAY",$C4,"SRC_CAT",CMAQ_raw!PS$3,"SRC_REGION",CMAQ_raw!PS$4) -> 5.7556e-13 | PU4: =GETPIVOTDATA("Sum of PEC",CMAQ_raw!$P$10,"JDAY",$C4,"SRC_CAT",CMAQ_raw!PT$3,"SRC_REGION",CMAQ_raw!PT$4) -> 1.2689e-16 | PV4: =GETPIVOTDATA("Sum of PEC",CMAQ_raw!$P$10,"JDAY",$C4,"SRC_CAT",CMAQ_raw!PU$3,"SRC_REGION",CMAQ_raw!PU$4) -> 1.2689e-16 | PW4: =GETPIVOTDATA("Sum of PEC",CMAQ_raw!$P$10,"JDAY",$C4,"SRC_CAT",CMAQ_raw!PV$3,"SRC_REGION",CMAQ_raw!PV$4) -> 1.3341e-16 | PX4: =GETPIVOTDATA("Sum of PEC",CMAQ_raw!$P$10,"JDAY",$C4,"SRC_CAT",CMAQ_raw!PW$3,"SRC_REGION",CMAQ_raw!PW$4) -> 0.0020148 | PY4: =GETPIVOTDATA("Sum of PEC",CMAQ_raw!$P$10,"JDAY",$C4,"SRC_CAT",CMAQ_raw!PX$3,"SRC_REGION",CMAQ_raw!PX$4) -> 0.0037989 | PZ4: =GETPIVOTDATA("Sum of PEC",CMAQ_raw!$P$10,"JDAY",$C4,"SRC_CAT",CMAQ_raw!PY$3,"SRC_REGION",CMAQ_raw!PY$4) -> 0.073081 | QA4: =GETPIVOTDATA("Sum of PEC",CMAQ_raw!$P$10,"JDAY",$C4,"SRC_CAT",CMAQ_raw!PZ$3,"SRC_REGION",CMAQ_raw!PZ$4) -> 2.7801e-14 | QB4: =GETPIVOTDATA("Sum of PEC",CMAQ_raw!$P$10,"JDAY",$C4,"SRC_CAT",CMAQ_raw!QA$3,"SRC_REGION",CMAQ_raw!QA$4) -> 0.00012949 | QC4: =GETPIVOTDATA("Sum of PEC",CMAQ_raw!$P$10,"JDAY",$C4,"SRC_CAT",CMAQ_raw!QB$3,"SRC_REGION",CMAQ_raw!QB$4) -> 1.1473e-06 | QD4: =GETPIVOTDATA("Sum of PEC",CMAQ_raw!$P$10,"JDAY",$C4,"SRC_CAT",CMAQ_raw!QC$3,"SRC_REGION",CMAQ_raw!QC$4) -> 2.7992e-14 | QE4: =GETPIVOTDATA("Sum of PEC",CMAQ_raw!$P$10,"JDAY",$C4,"SRC_CAT",CMAQ_raw!QD$3,"SRC_REGION",CMAQ_raw!QD$4) -> 0.00026837 | QF4: =GETPIVOTDATA("Sum of PEC",CMAQ_raw!$P$10,"JDAY",$C4,"SRC_CAT",CMAQ_raw!QE$3,"SRC_REGION",CMAQ_raw!QE$4) -> 7.6355e-05 | QG4: =GETPIVOTDATA("Sum of PEC",CMAQ_raw!$P$10,"JDAY",$C4,"SRC_CAT",CMAQ_raw!QF$3,"SRC_REGION",CMAQ_raw!QF$4) -> 4.659e-06 | QH4: =GETPIVOTDATA("Sum of PEC",CMAQ_raw!$P$10,"JDAY",$C4,"SRC_CAT",CMAQ_raw!QG$3,"SRC_REGION",CMAQ_raw!QG$4) -> 2.4611e-16 | QI4: =GETPIVOTDATA("Sum of PEC",CMAQ_raw!$P$10,"JDAY",$C4,"SRC_CAT",CMAQ_raw!QH$3,"SRC_REGION",CMAQ_raw!QH$4) -> 2.4453e-14 | QJ4: =GETPIVOTDATA("Sum of PEC",CMAQ_raw!$P$10,"JDAY",$C4,"SRC_CAT",CMAQ_raw!QI$3,"SRC_REGION",CMAQ_raw!QI$4) -> 1.7935e-14 | QK4: =GETPIVOTDATA("Sum of PEC",CMAQ_raw!$P$10,"JDAY",$C4,"SRC_CAT",CMAQ_raw!QJ$3,"SRC_REGION",CMAQ_raw!QJ$4) -> 0.0013205 | QL4: =GETPIVOTDATA("Sum of PEC",CMAQ_raw!$P$10,"JDAY",$C4,"SRC_CAT",CMAQ_raw!QK$3,"SRC_REGION",CMAQ_raw!QK$4) -> 0.0022158 | QM4: =GETPIVOTDATA("Sum of PEC",CMAQ_raw!$P$10,"JDAY",$C4,"SRC_CAT",CMAQ_raw!QL$3,"SRC_REGION",CMAQ_raw!QL$4) -> 3.0507e-08 | QN4: =GETPIVOTDATA("Sum of PEC",CMAQ_raw!$P$10,"JDAY",$C4,"SRC_CAT",CMAQ_raw!QM$3,"SRC_REGION",CMAQ_raw!QM$4) -> 0.025081 | QO4: =GETPIVOTDATA("Sum of PEC",CMAQ_raw!$P$10,"JDAY",$C4,"SRC_CAT",CMAQ_raw!QN$3,"SRC_REGION",CMAQ_raw!QN$4) -> 2.4454e-05 | QP4: =GETPIVOTDATA("Sum of PEC",CMAQ_raw!$P$10,"JDAY",$C4,"SRC_CAT",CMAQ_raw!QO$3,"SRC_REGION",CMAQ_raw!QO$4) -> 6.1734e-05 | QQ4: =GETPIVOTDATA("Sum of PEC",CMAQ_raw!$P$10,"JDAY",$C4,"SRC_CAT",CMAQ_raw!QP$3,"SRC_REGION",CMAQ_raw!QP$4) -> 0.00089865 | QR4: =GETPIVOTDATA("Sum of PEC",CMAQ_raw!$P$10,"JDAY",$C4,"SRC_CAT",CMAQ_raw!QQ$3,"SRC_REGION",CMAQ_raw!QQ$4) -> 0.011937 | QS4: =GETPIVOTDATA("Sum of PEC",CMAQ_raw!$P$10,"JDAY",$C4,"SRC_CAT",CMAQ_raw!QR$3,"SRC_REGION",CMAQ_raw!QR$4) -> 1.2689e-16 | QU4: =GETPIVOTDATA("Sum of OPF",CMAQ_raw!$P$10,"JDAY",$C4,"SRC_CAT",CMAQ_raw!QT$3,"SRC_REGION",CMAQ_raw!QT$4) -> 4.1644e-16 | QV4: =GETPIVOTDATA("Sum of OPF",CMAQ_raw!$P$10,"JDAY",$C4,"SRC_CAT",CMAQ_raw!QU$3,"SRC_REGION",CMAQ_raw!QU$4) -> 4.4609e-06 | QW4: =GETPIVOTDATA("Sum of OPF",CMAQ_raw!$P$10,"JDAY",$C4,"SRC_CAT",CMAQ_raw!QV$3,"SRC_REGION",CMAQ_raw!QV$4) -> 1.0365e-08 | QX4: =GETPIVOTDATA("Sum of OPF",CMAQ_raw!$P$10,"JDAY",$C4,"SRC_CAT",CMAQ_raw!QW$3,"SRC_REGION",CMAQ_raw!QW$4) -> 2.2331e-06 | QY4: =GETPIVOTDATA("Sum of OPF",CMAQ_raw!$P$10,"JDAY",$C4,"SRC_CAT",CMAQ_raw!QX$3,"SRC_REGION",CMAQ_raw!QX$4) -> 4.1968e-16 | QZ4: =GETPIVOTDATA("Sum of OPF",CMAQ_raw!$P$10,"JDAY",$C4,"SRC_CAT",CMAQ_raw!QY$3,"SRC_REGION",CMAQ_raw!QY$4) -> 4.1644e-16 | RA4: =GETPIVOTDATA("Sum of OPF",CMAQ_raw!$P$10,"JDAY",$C4,"SRC_CAT",CMAQ_raw!QZ$3,"SRC_REGION",CMAQ_raw!QZ$4) -> 1.5725e-14 | RB4: =GETPIVOTDATA("Sum of OPF",CMAQ_raw!$P$10,"JDAY",$C4,"SRC_CAT",CMAQ_raw!RA$3,"SRC_REGION",CMAQ_raw!RA$4) -> 4.1645e-16 | RC4: =GETPIVOTDATA("Sum of OPF",CMAQ_raw!$P$10,"JDAY",$C4,"SRC_CAT",CMAQ_raw!RB$3,"SRC_REGION",CMAQ_raw!RB$4) -> 4.1644e-16 | RD4: =GETPIVOTDATA("Sum of OPF",CMAQ_raw!$P$10,"JDAY",$C4,"SRC_CAT",CMAQ_raw!RC$3,"SRC_REGION",CMAQ_raw!RC$4) -> 4.3384e-16 | RE4: =GETPIVOTDATA("Sum of OPF",CMAQ_raw!$P$10,"JDAY",$C4,"SRC_CAT",CMAQ_raw!RD$3,"SRC_REGION",CMAQ_raw!RD$4) -> 1.0442e-15 | RF4: =GETPIVOTDATA("Sum of OPF",CMAQ_raw!$P$10,"JDAY",$C4,"SRC_CAT",CMAQ_raw!RE$3,"SRC_REGION",CMAQ_raw!RE$4) -> 4.1644e-16 | RG4: =GETPIVOTDATA("Sum of OPF",CMAQ_raw!$P$10,"JDAY",$C4,"SRC_CAT",CMAQ_raw!RF$3,"SRC_REGION",CMAQ_raw!RF$4) -> 4.1644e-16 | RH4: =GETPIVOTDATA("Sum of OPF",CMAQ_raw!$P$10,"JDAY",$C4,"SRC_CAT",CMAQ_raw!RG$3,"SRC_REGION",CMAQ_raw!RG$4) -> 4.1644e-16 | RI4: =GETPIVOTDATA("Sum of OPF",CMAQ_raw!$P$10,"JDAY",$C4,"SRC_CAT",CMAQ_raw!RH$3,"SRC_REGION",CMAQ_raw!RH$4) -> 4.1644e-16 | RJ4: =GETPIVOTDATA("Sum of OPF",CMAQ_raw!$P$10,"JDAY",$C4,"SRC_CAT",CMAQ_raw!RI$3,"SRC_REGION",CMAQ_raw!RI$4) -> 4.1644e-16 | RK4: =GETPIVOTDATA("Sum of OPF",CMAQ_raw!$P$10,"JDAY",$C4,"SRC_CAT",CMAQ_raw!RJ$3,"SRC_REGION",CMAQ_raw!RJ$4) -> 4.2862e-16 | RL4: =GETPIVOTDATA("Sum of OPF",CMAQ_raw!$P$10,"JDAY",$C4,"SRC_CAT",CMAQ_raw!RK$3,"SRC_REGION",CMAQ_raw!RK$4) -> 5.3077e-06 | RM4: =GETPIVOTDATA("Sum of OPF",CMAQ_raw!$P$10,"JDAY",$C4,"SRC_CAT",CMAQ_raw!RL$3,"SRC_REGION",CMAQ_raw!RL$4) -> 4.1973e-16 | RN4: =GETPIVOTDATA("Sum of OPF",CMAQ_raw!$P$10,"JDAY",$C4,"SRC_CAT",CMAQ_raw!RM$3,"SRC_REGION",CMAQ_raw!RM$4) -> 3.6598e-07 | RO4: =GETPIVOTDATA("Sum of OPF",CMAQ_raw!$P$10,"JDAY",$C4,"SRC_CAT",CMAQ_raw!RN$3,"SRC_REGION",CMAQ_raw!RN$4) -> 4.1644e-16 | RP4: =GETPIVOTDATA("Sum of OPF",CMAQ_raw!$P$10,"JDAY",$C4,"SRC_CAT",CMAQ_raw!RO$3,"SRC_REGION",CMAQ_raw!RO$4) -> 4.1644e-16 | RQ4: =GETPIVOTDATA("Sum of OPF",CMAQ_raw!$P$10,"JDAY",$C4,"SRC_CAT",CMAQ_raw!RP$3,"SRC_REGION",CMAQ_raw!RP$4) -> 4.1644e-16 | RR4: =GETPIVOTDATA("Sum of OPF",CMAQ_raw!$P$10,"JDAY",$C4,"SRC_CAT",CMAQ_raw!RQ$3,"SRC_REGION",CMAQ_raw!RQ$4) -> 4.1644e-16 | RS4: =GETPIVOTDATA("Sum of OPF",CMAQ_raw!$P$10,"JDAY",$C4,"SRC_CAT",CMAQ_raw!RR$3,"SRC_REGION",CMAQ_raw!RR$4) -> 4.0704e-12 | RT4: =GETPIVOTDATA("Sum of OPF",CMAQ_raw!$P$10,"JDAY",$C4,"SRC_CAT",CMAQ_raw!RS$3,"SRC_REGION",CMAQ_raw!RS$4) -> 4.1644e-16 | RU4: =GETPIVOTDATA("Sum of OPF",CMAQ_raw!$P$10,"JDAY",$C4,"SRC_CAT",CMAQ_raw!RT$3,"SRC_REGION",CMAQ_raw!RT$4) -> 4.1644e-16 | RV4: =GETPIVOTDATA("Sum of OPF",CMAQ_raw!$P$10,"JDAY",$C4,"SRC_CAT",CMAQ_raw!RU$3,"SRC_REGION",CMAQ_raw!RU$4) -> 4.1644e-16 | RW4: =GETPIVOTDATA("Sum of OPF",CMAQ_raw!$P$10,"JDAY",$C4,"SRC_CAT",CMAQ_raw!RV$3,"SRC_REGION",CMAQ_raw!RV$4) -> 4.1644e-16 | RX4: =GETPIVOTDATA("Sum of OPF",CMAQ_raw!$P$10,"JDAY",$C4,"SRC_CAT",CMAQ_raw!RW$3,"SRC_REGION",CMAQ_raw!RW$4) -> 4.1644e-16 | RY4: =GETPIVOTDATA("Sum of OPF",CMAQ_raw!$P$10,"JDAY",$C4,"SRC_CAT",CMAQ_raw!RX$3,"SRC_REGION",CMAQ_raw!RX$4) -> 4.1644e-16 | RZ4: =GETPIVOTDATA("Sum of OPF",CMAQ_raw!$P$10,"JDAY",$C4,"SRC_CAT",CMAQ_raw!RY$3,"SRC_REGION",CMAQ_raw!RY$4) -> 4.2209e-16 | SA4: =GETPIVOTDATA("Sum of OPF",CMAQ_raw!$P$10,"JDAY",$C4,"SRC_CAT",CMAQ_raw!RZ$3,"SRC_REGION",CMAQ_raw!RZ$4) -> 4.1644e-16 | SB4: =GETPIVOTDATA("Sum of OPF",CMAQ_raw!$P$10,"JDAY",$C4,"SRC_CAT",CMAQ_raw!SA$3,"SRC_REGION",CMAQ_raw!SA$4) -> 4.1644e-16 | SC4: =GETPIVOTDATA("Sum of OPF",CMAQ_raw!$P$10,"JDAY",$C4,"SRC_CAT",CMAQ_raw!SB$3,"SRC_REGION",CMAQ_raw!SB$4) -> 4.1644e-16 | SD4: =GETPIVOTDATA("Sum of OPF",CMAQ_raw!$P$10,"JDAY",$C4,"SRC_CAT",CMAQ_raw!SC$3,"SRC_REGION",CMAQ_raw!SC$4) -> 4.1644e-16 | SE4: =GETPIVOTDATA("Sum of OPF",CMAQ_raw!$P$10,"JDAY",$C4,"SRC_CAT",CMAQ_raw!SD$3,"SRC_REGION",CMAQ_raw!SD$4) -> 4.1644e-16 | SF4: =GETPIVOTDATA("Sum of OPF",CMAQ_raw!$P$10,"JDAY",$C4,"SRC_CAT",CMAQ_raw!SE$3,"SRC_REGION",CMAQ_raw!SE$4) -> 4.1644e-16 | SG4: =GETPIVOTDATA("Sum of OPF",CMAQ_raw!$P$10,"JDAY",$C4,"SRC_CAT",CMAQ_raw!SF$3,"SRC_REGION",CMAQ_raw!SF$4) -> 2.301e-14 | SH4: =GETPIVOTDATA("Sum of OPF",CMAQ_raw!$P$10,"JDAY",$C4,"SRC_CAT",CMAQ_raw!SG$3,"SRC_REGION",CMAQ_raw!SG$4) -> 2.6401e-12 | SI4: =GETPIVOTDATA("Sum of OPF",CMAQ_raw!$P$10,"JDAY",$C4,"SRC_CAT",CMAQ_raw!SH$3,"SRC_REGION",CMAQ_raw!SH$4) -> 2.0729e-09 | SJ4: =GETPIVOTDATA("Sum of OPF",CMAQ_raw!$P$10,"JDAY",$C4,"SRC_CAT",CMAQ_raw!SI$3,"SRC_REGION",CMAQ_raw!SI$4) -> 4.1644e-16 | SK4: =GETPIVOTDATA("Sum of OPF",CMAQ_raw!$P$10,"JDAY",$C4,"SRC_CAT",CMAQ_raw!SJ$3,"SRC_REGION",CMAQ_raw!SJ$4) -> 4.1644e-16 | SL4: =GETPIVOTDATA("Sum of OPF",CMAQ_raw!$P$10,"JDAY",$C4,"SRC_CAT",CMAQ_raw!SK$3,"SRC_REGION",CMAQ_raw!SK$4) -> 8.849e-10 | SM4: =GETPIVOTDATA("Sum of OPF",CMAQ_raw!$P$10,"JDAY",$C4,"SRC_CAT",CMAQ_raw!SL$3,"SRC_REGION",CMAQ_raw!SL$4) -> 4.1644e-16 | SN4: =GETPIVOTDATA("Sum of OPF",CMAQ_raw!$P$10,"JDAY",$C4,"SRC_CAT",CMAQ_raw!SM$3,"SRC_REGION",CMAQ_raw!SM$4) -> 1.4443e-11 | SO4: =GETPIVOTDATA("Sum of OPF",CMAQ_raw!$P$10,"JDAY",$C4,"SRC_CAT",CMAQ_raw!SN$3,"SRC_REGION",CMAQ_raw!SN$4) -> 4.1644e-16 | SP4: =GETPIVOTDATA("Sum of OPF",CMAQ_raw!$P$10,"JDAY",$C4,"SRC_CAT",CMAQ_raw!SO$3,"SRC_REGION",CMAQ_raw!SO$4) -> 4.1644e-16 | SQ4: =GETPIVOTDATA("Sum of OPF",CMAQ_raw!$P$10,"JDAY",$C4,"SRC_CAT",CMAQ_raw!SP$3,"SRC_REGION",CMAQ_raw!SP$4) -> 4.1644e-16 | SR4: =GETPIVOTDATA("Sum of OPF",CMAQ_raw!$P$10,"JDAY",$C4,"SRC_CAT",CMAQ_raw!SQ$3,"SRC_REGION",CMAQ_raw!SQ$4) -> 4.1644e-16 | SS4: =GETPIVOTDATA("Sum of OPF",CMAQ_raw!$P$10,"JDAY",$C4,"SRC_CAT",CMAQ_raw!SR$3,"SRC_REGION",CMAQ_raw!SR$4) -> 1.0127e-11 | ST4: =GETPIVOTDATA("Sum of OPF",CMAQ_raw!$P$10,"JDAY",$C4,"SRC_CAT",CMAQ_raw!SS$3,"SRC_REGION",CMAQ_raw!SS$4) -> 4.1644e-16 | SU4: =GETPIVOTDATA("Sum of OPF",CMAQ_raw!$P$10,"JDAY",$C4,"SRC_CAT",CMAQ_raw!ST$3,"SRC_REGION",CMAQ_raw!ST$4) -> 4.1644e-16 | SV4: =GETPIVOTDATA("Sum of OPF",CMAQ_raw!$P$10,"JDAY",$C4,"SRC_CAT",CMAQ_raw!SU$3,"SRC_REGION",CMAQ_raw!SU$4) -> 4.1644e-16 | SW4: =GETPIVOTDATA("Sum of OPF",CMAQ_raw!$P$10,"JDAY",$C4,"SRC_CAT",CMAQ_raw!SV$3,"SRC_REGION",CMAQ_raw!SV$4) -> 4.1804e-16 | SX4: =GETPIVOTDATA("Sum of OPF",CMAQ_raw!$P$10,"JDAY",$C4,"SRC_CAT",CMAQ_raw!SW$3,"SRC_REGION",CMAQ_raw!SW$4) -> 4.1644e-16 | SY4: =GETPIVOTDATA("Sum of OPF",CMAQ_raw!$P$10,"JDAY",$C4,"SRC_CAT",CMAQ_raw!SX$3,"SRC_REGION",CMAQ_raw!SX$4) -> 4.1644e-16 | SZ4: =GETPIVOTDATA("Sum of OPF",CMAQ_raw!$P$10,"JDAY",$C4,"SRC_CAT",CMAQ_raw!SY$3,"SRC_REGION",CMAQ_raw!SY$4) -> 4.1644e-16 | TA4: =GETPIVOTDATA("Sum of OPF",CMAQ_raw!$P$10,"JDAY",$C4,"SRC_CAT",CMAQ_raw!SZ$3,"SRC_REGION",CMAQ_raw!SZ$4) -> 4.1644e-16 | TB4: =GETPIVOTDATA("Sum of OPF",CMAQ_raw!$P$10,"JDAY",$C4,"SRC_CAT",CMAQ_raw!TA$3,"SRC_REGION",CMAQ_raw!TA$4) -> 1.21e-08 | TC4: =GETPIVOTDATA("Sum of OPF",CMAQ_raw!$P$10,"JDAY",$C4,"SRC_CAT",CMAQ_raw!TB$3,"SRC_REGION",CMAQ_raw!TB$4) -> 4.1644e-16 | TD4: =GETPIVOTDATA("Sum of OPF",CMAQ_raw!$P$10,"JDAY",$C4,"SRC_CAT",CMAQ_raw!TC$3,"SRC_REGION",CMAQ_raw!TC$4) -> 4.1644e-16 | TE4: =GETPIVOTDATA("Sum of OPF",CMAQ_raw!$P$10,"JDAY",$C4,"SRC_CAT",CMAQ_raw!TD$3,"SRC_REGION",CMAQ_raw!TD$4) -> 4.1644e-16 | TF4: =GETPIVOTDATA("Sum of OPF",CMAQ_raw!$P$10,"JDAY",$C4,"SRC_CAT",CMAQ_raw!TE$3,"SRC_REGION",CMAQ_raw!TE$4) -> 4.1644e-16 | TG4: =GETPIVOTDATA("Sum of OPF",CMAQ_raw!$P$10,"JDAY",$C4,"SRC_CAT",CMAQ_raw!TF$3,"SRC_REGION",CMAQ_raw!TF$4) -> 4.1644e-16 | TH4: =GETPIVOTDATA("Sum of OPF",CMAQ_raw!$P$10,"JDAY",$C4,"SRC_CAT",CMAQ_raw!TG$3,"SRC_REGION",CMAQ_raw!TG$4) -> 4.1644e-16 | TI4: =GETPIVOTDATA("Sum of OPF",CMAQ_raw!$P$10,"JDAY",$C4,"SRC_CAT",CMAQ_raw!TH$3,"SRC_REGION",CMAQ_raw!TH$4) -> 4.1644e-16 | TJ4: =GETPIVOTDATA("Sum of OPF",CMAQ_raw!$P$10,"JDAY",$C4,"SRC_CAT",CMAQ_raw!TI$3,"SRC_REGION",CMAQ_raw!TI$4) -> 4.1644e-16 | TK4: =GETPIVOTDATA("Sum of OPF",CMAQ_raw!$P$10,"JDAY",$C4,"SRC_CAT",CMAQ_raw!TJ$3,"SRC_REGION",CMAQ_raw!TJ$4) -> 4.1644e-16 | TL4: =GETPIVOTDATA("Sum of OPF",CMAQ_raw!$P$10,"JDAY",$C4,"SRC_CAT",CMAQ_raw!TK$3,"SRC_REGION",CMAQ_raw!TK$4) -> 4.1644e-16 | TM4: =GETPIVOTDATA("Sum of OPF",CMAQ_raw!$P$10,"JDAY",$C4,"SRC_CAT",CMAQ_raw!TL$3,"SRC_REGION",CMAQ_raw!TL$4) -> 4.1644e-16 | TN4: =GETPIVOTDATA("Sum of OPF",CMAQ_raw!$P$10,"JDAY",$C4,"SRC_CAT",CMAQ_raw!TM$3,"SRC_REGION",CMAQ_raw!TM$4) -> 4.1644e-16 | TO4: =GETPIVOTDATA("Sum of OPF",CMAQ_raw!$P$10,"JDAY",$C4,"SRC_CAT",CMAQ_raw!TN$3,"SRC_REGION",CMAQ_raw!TN$4) -> 4.1644e-16 | TP4: =GETPIVOTDATA("Sum of OPF",CMAQ_raw!$P$10,"JDAY",$C4,"SRC_CAT",CMAQ_raw!TO$3,"SRC_REGION",CMAQ_raw!TO$4) -> 4.1644e-16 | TQ4: =GETPIVOTDATA("Sum of OPF",CMAQ_raw!$P$10,"JDAY",$C4,"SRC_CAT",CMAQ_raw!TP$3,"SRC_REGION",CMAQ_raw!TP$4) -> 4.1644e-16 | TR4: =GETPIVOTDATA("Sum of OPF",CMAQ_raw!$P$10,"JDAY",$C4,"SRC_CAT",CMAQ_raw!TQ$3,"SRC_REGION",CMAQ_raw!TQ$4) -> 4.1644e-16 | TS4: =GETPIVOTDATA("Sum of OPF",CMAQ_raw!$P$10,"JDAY",$C4,"SRC_CAT",CMAQ_raw!TR$3,"SRC_REGION",CMAQ_raw!TR$4) -> 4.1644e-16 | TT4: =GETPIVOTDATA("Sum of OPF",CMAQ_raw!$P$10,"JDAY",$C4,"SRC_CAT",CMAQ_raw!TS$3,"SRC_REGION",CMAQ_raw!TS$4) -> 4.1644e-16 | TU4: =GETPIVOTDATA("Sum of OPF",CMAQ_raw!$P$10,"JDAY",$C4,"SRC_CAT",CMAQ_raw!TT$3,"SRC_REGION",CMAQ_raw!TT$4) -> 4.1644e-16 | TV4: =GETPIVOTDATA("Sum of OPF",CMAQ_raw!$P$10,"JDAY",$C4,"SRC_CAT",CMAQ_raw!TU$3,"SRC_REGION",CMAQ_raw!TU$4) -> 4.1645e-16 | TW4: =GETPIVOTDATA("Sum of OPF",CMAQ_raw!$P$10,"JDAY",$C4,"SRC_CAT",CMAQ_raw!TV$3,"SRC_REGION",CMAQ_raw!TV$4) -> 4.1644e-16 | TX4: =GETPIVOTDATA("Sum of OPF",CMAQ_raw!$P$10,"JDAY",$C4,"SRC_CAT",CMAQ_raw!TW$3,"SRC_REGION",CMAQ_raw!TW$4) -> 4.1644e-16 | TY4: =GETPIVOTDATA("Sum of OPF",CMAQ_raw!$P$10,"JDAY",$C4,"SRC_CAT",CMAQ_raw!TX$3,"SRC_REGION",CMAQ_raw!TX$4) -> 4.1644e-16 | TZ4: =GETPIVOTDATA("Sum of OPF",CMAQ_raw!$P$10,"JDAY",$C4,"SRC_CAT",CMAQ_raw!TY$3,"SRC_REGION",CMAQ_raw!TY$4) -> 4.1644e-16 | UA4: =GETPIVOTDATA("Sum of OPF",CMAQ_raw!$P$10,"JDAY",$C4,"SRC_CAT",CMAQ_raw!TZ$3,"SRC_REGION",CMAQ_raw!TZ$4) -> 4.1718e-16 | UB4: =GETPIVOTDATA("Sum of OPF",CMAQ_raw!$P$10,"JDAY",$C4,"SRC_CAT",CMAQ_raw!UA$3,"SRC_REGION",CMAQ_raw!UA$4) -> 0.030141 | UC4: =GETPIVOTDATA("Sum of OPF",CMAQ_raw!$P$10,"JDAY",$C4,"SRC_CAT",CMAQ_raw!UB$3,"SRC_REGION",CMAQ_raw!UB$4) -> 0.0045433 | UD4: =GETPIVOTDATA("Sum of OPF",CMAQ_raw!$P$10,"JDAY",$C4,"SRC_CAT",CMAQ_raw!UC$3,"SRC_REGION",CMAQ_raw!UC$4) -> 0.19786 | UE4: =GETPIVOTDATA("Sum of OPF",CMAQ_raw!$P$10,"JDAY",$C4,"SRC_CAT",CMAQ_raw!UD$3,"SRC_REGION",CMAQ_raw!UD$4) -> 5.6883e-13 | UF4: =GETPIVOTDATA("Sum of OPF",CMAQ_raw!$P$10,"JDAY",$C4,"SRC_CAT",CMAQ_raw!UE$3,"SRC_REGION",CMAQ_raw!UE$4) -> 0.00014976 | UG4: =GETPIVOTDATA("Sum of OPF",CMAQ_raw!$P$10,"JDAY",$C4,"SRC_CAT",CMAQ_raw!UF$3,"SRC_REGION",CMAQ_raw!UF$4) -> 7.1671e-07 | UH4: =GETPIVOTDATA("Sum of OPF",CMAQ_raw!$P$10,"JDAY",$C4,"SRC_CAT",CMAQ_raw!UG$3,"SRC_REGION",CMAQ_raw!UG$4) -> 1.9674e-13 | UI4: =GETPIVOTDATA("Sum of OPF",CMAQ_raw!$P$10,"JDAY",$C4,"SRC_CAT",CMAQ_raw!UH$3,"SRC_REGION",CMAQ_raw!UH$4) -> 1.382e-05 | UJ4: =GETPIVOTDATA("Sum of OPF",CMAQ_raw!$P$10,"JDAY",$C4,"SRC_CAT",CMAQ_raw!UI$3,"SRC_REGION",CMAQ_raw!UI$4) -> 1.3792e-06 | UK4: =GETPIVOTDATA("Sum of OPF",CMAQ_raw!$P$10,"JDAY",$C4,"SRC_CAT",CMAQ_raw!UJ$3,"SRC_REGION",CMAQ_raw!UJ$4) -> 2.136e-05 | UL4: =GETPIVOTDATA("Sum of OPF",CMAQ_raw!$P$10,"JDAY",$C4,"SRC_CAT",CMAQ_raw!UK$3,"SRC_REGION",CMAQ_raw!UK$4) -> 1.2186e-15 | UM4: =GETPIVOTDATA("Sum of OPF",CMAQ_raw!$P$10,"JDAY",$C4,"SRC_CAT",CMAQ_raw!UL$3,"SRC_REGION",CMAQ_raw!UL$4) -> 1.6724e-13 | UN4: =GETPIVOTDATA("Sum of OPF",CMAQ_raw!$P$10,"JDAY",$C4,"SRC_CAT",CMAQ_raw!UM$3,"SRC_REGION",CMAQ_raw!UM$4) -> 2.3077e-13 | UO4: =GETPIVOTDATA("Sum of OPF",CMAQ_raw!$P$10,"JDAY",$C4,"SRC_CAT",CMAQ_raw!UN$3,"SRC_REGION",CMAQ_raw!UN$4) -> 0.0037605 | UP4: =GETPIVOTDATA("Sum of OPF",CMAQ_raw!$P$10,"JDAY",$C4,"SRC_CAT",CMAQ_raw!UO$3,"SRC_REGION",CMAQ_raw!UO$4) -> 0.029369 | UQ4: =GETPIVOTDATA("Sum of OPF",CMAQ_raw!$P$10,"JDAY",$C4,"SRC_CAT",CMAQ_raw!UP$3,"SRC_REGION",CMAQ_raw!UP$4) -> 1.9313e-07 | UR4: =GETPIVOTDATA("Sum of OPF",CMAQ_raw!$P$10,"JDAY",$C4,"SRC_CAT",CMAQ_raw!UQ$3,"SRC_REGION",CMAQ_raw!UQ$4) -> 0.42578 | US4: =GETPIVOTDATA("Sum of OPF",CMAQ_raw!$P$10,"JDAY",$C4,"SRC_CAT",CMAQ_raw!UR$3,"SRC_REGION",CMAQ_raw!UR$4) -> 2.944e-07 | UT4: =GETPIVOTDATA("Sum of OPF",CMAQ_raw!$P$10,"JDAY",$C4,"SRC_CAT",CMAQ_raw!US$3,"SRC_REGION",CMAQ_raw!US$4) -> 0.00047031 | UU4: =GETPIVOTDATA("Sum of OPF",CMAQ_raw!$P$10,"JDAY",$C4,"SRC_CAT",CMAQ_raw!UT$3,"SRC_REGION",CMAQ_raw!UT$4) -> 6.0629e-05 | UV4: =GETPIVOTDATA("Sum of OPF",CMAQ_raw!$P$10,"JDAY",$C4,"SRC_CAT",CMAQ_raw!UU$3,"SRC_REGION",CMAQ_raw!UU$4) -> 0.00049574 | UW4: =GETPIVOTDATA("Sum of OPF",CMAQ_raw!$P$10,"JDAY",$C4,"SRC_CAT",CMAQ_raw!UV$3,"SRC_REGION",CMAQ_raw!UV$4) -> 4.1644e-16 | UY4: =GETPIVOTDATA("Sum of PMC",CMAQ_raw!$P$10,"JDAY",$C4,"SRC_CAT",CMAQ_raw!UX$3,"SRC_REGION",CMAQ_raw!UX$4) -> 3.1462e-16 | UZ4: =GETPIVOTDATA("Sum of PMC",CMAQ_raw!$P$10,"JDAY",$C4,"SRC_CAT",CMAQ_raw!UY$3,"SRC_REGION",CMAQ_raw!UY$4) -> 1.8266e-05 | VA4: =GETPIVOTDATA("Sum of PMC",CMAQ_raw!$P$10,"JDAY",$C4,"SRC_CAT",CMAQ_raw!UZ$3,"SRC_REGION",CMAQ_raw!UZ$4) -> 4.6441e-08 | VB4: =GETPIVOTDATA("Sum of PMC",CMAQ_raw!$P$10,"JDAY",$C4,"SRC_CAT",CMAQ_raw!VA$3,"SRC_REGION",CMAQ_raw!VA$4) -> 3.822e-06 | VC4: =GETPIVOTDATA("Sum of PMC",CMAQ_raw!$P$10,"JDAY",$C4,"SRC_CAT",CMAQ_raw!VB$3,"SRC_REGION",CMAQ_raw!VB$4) -> 3.1963e-16 | VD4: =GETPIVOTDATA("Sum of PMC",CMAQ_raw!$P$10,"JDAY",$C4,"SRC_CAT",CMAQ_raw!VC$3,"SRC_REGION",CMAQ_raw!VC$4) -> 3.1462e-16 | VE4: =GETPIVOTDATA("Sum of PMC",CMAQ_raw!$P$10,"JDAY",$C4,"SRC_CAT",CMAQ_raw!VD$3,"SRC_REGION",CMAQ_raw!VD$4) -> 4.7541e-14 | VF4: =GETPIVOTDATA("Sum of PMC",CMAQ_raw!$P$10,"JDAY",$C4,"SRC_CAT",CMAQ_raw!VE$3,"SRC_REGION",CMAQ_raw!VE$4) -> 3.1464e-16 | VG4: =GETPIVOTDATA("Sum of PMC",CMAQ_raw!$P$10,"JDAY",$C4,"SRC_CAT",CMAQ_raw!VF$3,"SRC_REGION",CMAQ_raw!VF$4) -> 3.1462e-16 | VH4: =GETPIVOTDATA("Sum of PMC",CMAQ_raw!$P$10,"JDAY",$C4,"SRC_CAT",CMAQ_raw!VG$3,"SRC_REGION",CMAQ_raw!VG$4) -> 3.592e-16 | VI4: =GETPIVOTDATA("Sum of PMC",CMAQ_raw!$P$10,"JDAY",$C4,"SRC_CAT",CMAQ_raw!VH$3,"SRC_REGION",CMAQ_raw!VH$4) -> 2.2346e-15 | VJ4: =GETPIVOTDATA("Sum of PMC",CMAQ_raw!$P$10,"JDAY",$C4,"SRC_CAT",CMAQ_raw!VI$3,"SRC_REGION",CMAQ_raw!VI$4) -> 3.1462e-16 | VK4: =GETPIVOTDATA("Sum of PMC",CMAQ_raw!$P$10,"JDAY",$C4,"SRC_CAT",CMAQ_raw!VJ$3,"SRC_REGION",CMAQ_raw!VJ$4) -> 3.1462e-16 | VL4: =GETPIVOTDATA("Sum of PMC",CMAQ_raw!$P$10,"JDAY",$C4,"SRC_CAT",CMAQ_raw!VK$3,"SRC_REGION",CMAQ_raw!VK$4) -> 3.1462e-16 | VM4: =GETPIVOTDATA("Sum of PMC",CMAQ_raw!$P$10,"JDAY",$C4,"SRC_CAT",CMAQ_raw!VL$3,"SRC_REGION",CMAQ_raw!VL$4) -> 3.1462e-16 | VN4: =GETPIVOTDATA("Sum of PMC",CMAQ_raw!$P$10,"JDAY",$C4,"SRC_CAT",CMAQ_raw!VM$3,"SRC_REGION",CMAQ_raw!VM$4) -> 3.1462e-16 | VO4: =GETPIVOTDATA("Sum of PMC",CMAQ_raw!$P$10,"JDAY",$C4,"SRC_CAT",CMAQ_raw!VN$3,"SRC_REGION",CMAQ_raw!VN$4) -> 3.3352e-16 | VP4: =GETPIVOTDATA("Sum of PMC",CMAQ_raw!$P$10,"JDAY",$C4,"SRC_CAT",CMAQ_raw!VO$3,"SRC_REGION",CMAQ_raw!VO$4) -> 7.1965e-06 | VQ4: =GETPIVOTDATA("Sum of PMC",CMAQ_raw!$P$10,"JDAY",$C4,"SRC_CAT",CMAQ_raw!VP$3,"SRC_REGION",CMAQ_raw!VP$4) -> 3.1696e-16 | VR4: =GETPIVOTDATA("Sum of PMC",CMAQ_raw!$P$10,"JDAY",$C4,"SRC_CAT",CMAQ_raw!VQ$3,"SRC_REGION",CMAQ_raw!VQ$4) -> 1.1733e-06 | VS4: =GETPIVOTDATA("Sum of PMC",CMAQ_raw!$P$10,"JDAY",$C4,"SRC_CAT",CMAQ_raw!VR$3,"SRC_REGION",CMAQ_raw!VR$4) -> 3.1462e-16 | VT4: =GETPIVOTDATA("Sum of PMC",CMAQ_raw!$P$10,"JDAY",$C4,"SRC_CAT",CMAQ_raw!VS$3,"SRC_REGION",CMAQ_raw!VS$4) -> 3.1462e-16 | VU4: =GETPIVOTDATA("Sum of PMC",CMAQ_raw!$P$10,"JDAY",$C4,"SRC_CAT",CMAQ_raw!VT$3,"SRC_REGION",CMAQ_raw!VT$4) -> 3.1462e-16 | VV4: =GETPIVOTDATA("Sum of PMC",CMAQ_raw!$P$10,"JDAY",$C4,"SRC_CAT",CMAQ_raw!VU$3,"SRC_REGION",CMAQ_raw!VU$4) -> 1.0688e-09 | VW4: =GETPIVOTDATA("Sum of PMC",CMAQ_raw!$P$10,"JDAY",$C4,"SRC_CAT",CMAQ_raw!VV$3,"SRC_REGION",CMAQ_raw!VV$4) -> 9.1002e-11 | VX4: =GETPIVOTDATA("Sum of PMC",CMAQ_raw!$P$10,"JDAY",$C4,"SRC_CAT",CMAQ_raw!VW$3,"SRC_REGION",CMAQ_raw!VW$4) -> 3.1462e-16 | VY4: =GETPIVOTDATA("Sum of PMC",CMAQ_raw!$P$10,"JDAY",$C4,"SRC_CAT",CMAQ_raw!VX$3,"SRC_REGION",CMAQ_raw!VX$4) -> 3.1462e-16 | VZ4: =GETPIVOTDATA("Sum of PMC",CMAQ_raw!$P$10,"JDAY",$C4,"SRC_CAT",CMAQ_raw!VY$3,"SRC_REGION",CMAQ_raw!VY$4) -> 3.1462e-16 | WA4: =GETPIVOTDATA("Sum of PMC",CMAQ_raw!$P$10,"JDAY",$C4,"SRC_CAT",CMAQ_raw!VZ$3,"SRC_REGION",CMAQ_raw!VZ$4) -> 3.1475e-16 | WB4: =GETPIVOTDATA("Sum of PMC",CMAQ_raw!$P$10,"JDAY",$C4,"SRC_CAT",CMAQ_raw!WA$3,"SRC_REGION",CMAQ_raw!WA$4) -> 3.1462e-16 | WC4: =GETPIVOTDATA("Sum of PMC",CMAQ_raw!$P$10,"JDAY",$C4,"SRC_CAT",CMAQ_raw!WB$3,"SRC_REGION",CMAQ_raw!WB$4) -> 3.1462e-16 | WD4: =GETPIVOTDATA("Sum of PMC",CMAQ_raw!$P$10,"JDAY",$C4,"SRC_CAT",CMAQ_raw!WC$3,"SRC_REGION",CMAQ_raw!WC$4) -> 4.6707e-16 | WE4: =GETPIVOTDATA("Sum of PMC",CMAQ_raw!$P$10,"JDAY",$C4,"SRC_CAT",CMAQ_raw!WD$3,"SRC_REGION",CMAQ_raw!WD$4) -> 3.1462e-16 | WF4: =GETPIVOTDATA("Sum of PMC",CMAQ_raw!$P$10,"JDAY",$C4,"SRC_CAT",CMAQ_raw!WE$3,"SRC_REGION",CMAQ_raw!WE$4) -> 3.1462e-16 | WG4: =GETPIVOTDATA("Sum of PMC",CMAQ_raw!$P$10,"JDAY",$C4,"SRC_CAT",CMAQ_raw!WF$3,"SRC_REGION",CMAQ_raw!WF$4) -> 3.1462e-16 | WH4: =GETPIVOTDATA("Sum of PMC",CMAQ_raw!$P$10,"JDAY",$C4,"SRC_CAT",CMAQ_raw!WG$3,"SRC_REGION",CMAQ_raw!WG$4) -> 3.1462e-16 | WI4: =GETPIVOTDATA("Sum of PMC",CMAQ_raw!$P$10,"JDAY",$C4,"SRC_CAT",CMAQ_raw!WH$3,"SRC_REGION",CMAQ_raw!WH$4) -> 3.1462e-16 | WJ4: =GETPIVOTDATA("Sum of PMC",CMAQ_raw!$P$10,"JDAY",$C4,"SRC_CAT",CMAQ_raw!WI$3,"SRC_REGION",CMAQ_raw!WI$4) -> 3.1484e-16 | WK4: =GETPIVOTDATA("Sum of PMC",CMAQ_raw!$P$10,"JDAY",$C4,"SRC_CAT",CMAQ_raw!WJ$3,"SRC_REGION",CMAQ_raw!WJ$4) -> 7.62e-13 | WL4: =GETPIVOTDATA("Sum of PMC",CMAQ_raw!$P$10,"JDAY",$C4,"SRC_CAT",CMAQ_raw!WK$3,"SRC_REGION",CMAQ_raw!WK$4) -> 7.2843e-11 | WM4: =GETPIVOTDATA("Sum of PMC",CMAQ_raw!$P$10,"JDAY",$C4,"SRC_CAT",CMAQ_raw!WL$3,"SRC_REGION",CMAQ_raw!WL$4) -> 1.9053e-07 | WN4: =GETPIVOTDATA("Sum of PMC",CMAQ_raw!$P$10,"JDAY",$C4,"SRC_CAT",CMAQ_raw!WM$3,"SRC_REGION",CMAQ_raw!WM$4) -> 3.1462e-16 | WO4: =GETPIVOTDATA("Sum of PMC",CMAQ_raw!$P$10,"JDAY",$C4,"SRC_CAT",CMAQ_raw!WN$3,"SRC_REGION",CMAQ_raw!WN$4) -> 3.1462e-16 | WP4: =GETPIVOTDATA("Sum of PMC",CMAQ_raw!$P$10,"JDAY",$C4,"SRC_CAT",CMAQ_raw!WO$3,"SRC_REGION",CMAQ_raw!WO$4) -> 3.0441e-06 | WQ4: =GETPIVOTDATA("Sum of PMC",CMAQ_raw!$P$10,"JDAY",$C4,"SRC_CAT",CMAQ_raw!WP$3,"SRC_REGION",CMAQ_raw!WP$4) -> 3.1462e-16 | WR4: =GETPIVOTDATA("Sum of PMC",CMAQ_raw!$P$10,"JDAY",$C4,"SRC_CAT",CMAQ_raw!WQ$3,"SRC_REGION",CMAQ_raw!WQ$4) -> 3.005e-10 | WS4: =GETPIVOTDATA("Sum of PMC",CMAQ_raw!$P$10,"JDAY",$C4,"SRC_CAT",CMAQ_raw!WR$3,"SRC_REGION",CMAQ_raw!WR$4) -> 3.1462e-16 | WT4: =GETPIVOTDATA("Sum of PMC",CMAQ_raw!$P$10,"JDAY",$C4,"SRC_CAT",CMAQ_raw!WS$3,"SRC_REGION",CMAQ_raw!WS$4) -> 3.1462e-16 | WU4: =GETPIVOTDATA("Sum of PMC",CMAQ_raw!$P$10,"JDAY",$C4,"SRC_CAT",CMAQ_raw!WT$3,"SRC_REGION",CMAQ_raw!WT$4) -> 3.1462e-16 | WV4: =GETPIVOTDATA("Sum of PMC",CMAQ_raw!$P$10,"JDAY",$C4,"SRC_CAT",CMAQ_raw!WU$3,"SRC_REGION",CMAQ_raw!WU$4) -> 3.1464e-16 | WW4: =GETPIVOTDATA("Sum of PMC",CMAQ_raw!$P$10,"JDAY",$C4,"SRC_CAT",CMAQ_raw!WV$3,"SRC_REGION",CMAQ_raw!WV$4) -> 4.2963e-10 | WX4: =GETPIVOTDATA("Sum of PMC",CMAQ_raw!$P$10,"JDAY",$C4,"SRC_CAT",CMAQ_raw!WW$3,"SRC_REGION",CMAQ_raw!WW$4) -> 2.9281e-14 | WY4: =GETPIVOTDATA("Sum of PMC",CMAQ_raw!$P$10,"JDAY",$C4,"SRC_CAT",CMAQ_raw!WX$3,"SRC_REGION",CMAQ_raw!WX$4) -> 3.2236e-16 | WZ4: =GETPIVOTDATA("Sum of PMC",CMAQ_raw!$P$10,"JDAY",$C4,"SRC_CAT",CMAQ_raw!WY$3,"SRC_REGION",CMAQ_raw!WY$4) -> 3.1462e-16 | XA4: =GETPIVOTDATA("Sum of PMC",CMAQ_raw!$P$10,"JDAY",$C4,"SRC_CAT",CMAQ_raw!WZ$3,"SRC_REGION",CMAQ_raw!WZ$4) -> 3.4802e-16 | XB4: =GETPIVOTDATA("Sum of PMC",CMAQ_raw!$P$10,"JDAY",$C4,"SRC_CAT",CMAQ_raw!XA$3,"SRC_REGION",CMAQ_raw!XA$4) -> 3.445e-16 | XC4: =GETPIVOTDATA("Sum of PMC",CMAQ_raw!$P$10,"JDAY",$C4,"SRC_CAT",CMAQ_raw!XB$3,"SRC_REGION",CMAQ_raw!XB$4) -> 3.1462e-16 | XD4: =GETPIVOTDATA("Sum of PMC",CMAQ_raw!$P$10,"JDAY",$C4,"SRC_CAT",CMAQ_raw!XC$3,"SRC_REGION",CMAQ_raw!XC$4) -> 3.1462e-16 | XE4: =GETPIVOTDATA("Sum of PMC",CMAQ_raw!$P$10,"JDAY",$C4,"SRC_CAT",CMAQ_raw!XD$3,"SRC_REGION",CMAQ_raw!XD$4) -> 7.1264e-16 | XF4: =GETPIVOTDATA("Sum of PMC",CMAQ_raw!$P$10,"JDAY",$C4,"SRC_CAT",CMAQ_raw!XE$3,"SRC_REGION",CMAQ_raw!XE$4) -> 3.7218e-07 | XG4: =GETPIVOTDATA("Sum of PMC",CMAQ_raw!$P$10,"JDAY",$C4,"SRC_CAT",CMAQ_raw!XF$3,"SRC_REGION",CMAQ_raw!XF$4) -> 3.1462e-16 | XH4: =GETPIVOTDATA("Sum of PMC",CMAQ_raw!$P$10,"JDAY",$C4,"SRC_CAT",CMAQ_raw!XG$3,"SRC_REGION",CMAQ_raw!XG$4) -> 3.1462e-16 | XI4: =GETPIVOTDATA("Sum of PMC",CMAQ_raw!$P$10,"JDAY",$C4,"SRC_CAT",CMAQ_raw!XH$3,"SRC_REGION",CMAQ_raw!XH$4) -> 3.1462e-16 | XJ4: =GETPIVOTDATA("Sum of PMC",CMAQ_raw!$P$10,"JDAY",$C4,"SRC_CAT",CMAQ_raw!XI$3,"SRC_REGION",CMAQ_raw!XI$4) -> 3.1462e-16 | XK4: =GETPIVOTDATA("Sum of PMC",CMAQ_raw!$P$10,"JDAY",$C4,"SRC_CAT",CMAQ_raw!XJ$3,"SRC_REGION",CMAQ_raw!XJ$4) -> 3.1462e-16 | XL4: =GETPIVOTDATA("Sum of PMC",CMAQ_raw!$P$10,"JDAY",$C4,"SRC_CAT",CMAQ_raw!XK$3,"SRC_REGION",CMAQ_raw!XK$4) -> 8.9145e-09 | XM4: =GETPIVOTDATA("Sum of PMC",CMAQ_raw!$P$10,"JDAY",$C4,"SRC_CAT",CMAQ_raw!XL$3,"SRC_REGION",CMAQ_raw!XL$4) -> 5.7948e-16 | XN4: =GETPIVOTDATA("Sum of PMC",CMAQ_raw!$P$10,"JDAY",$C4,"SRC_CAT",CMAQ_raw!XM$3,"SRC_REGION",CMAQ_raw!XM$4) -> 4.5657e-16 | XO4: =GETPIVOTDATA("Sum of PMC",CMAQ_raw!$P$10,"JDAY",$C4,"SRC_CAT",CMAQ_raw!XN$3,"SRC_REGION",CMAQ_raw!XN$4) -> 3.1462e-16 | XP4: =GETPIVOTDATA("Sum of PMC",CMAQ_raw!$P$10,"JDAY",$C4,"SRC_CAT",CMAQ_raw!XO$3,"SRC_REGION",CMAQ_raw!XO$4) -> 3.1462e-16 | XQ4: =GETPIVOTDATA("Sum of PMC",CMAQ_raw!$P$10,"JDAY",$C4,"SRC_CAT",CMAQ_raw!XP$3,"SRC_REGION",CMAQ_raw!XP$4) -> 3.1833e-16 | XR4: =GETPIVOTDATA("Sum of PMC",CMAQ_raw!$P$10,"JDAY",$C4,"SRC_CAT",CMAQ_raw!XQ$3,"SRC_REGION",CMAQ_raw!XQ$4) -> 3.1462e-16 | XS4: =GETPIVOTDATA("Sum of PMC",CMAQ_raw!$P$10,"JDAY",$C4,"SRC_CAT",CMAQ_raw!XR$3,"SRC_REGION",CMAQ_raw!XR$4) -> 3.1464e-16 | XT4: =GETPIVOTDATA("Sum of PMC",CMAQ_raw!$P$10,"JDAY",$C4,"SRC_CAT",CMAQ_raw!XS$3,"SRC_REGION",CMAQ_raw!XS$4) -> 3.1462e-16 | XU4: =GETPIVOTDATA("Sum of PMC",CMAQ_raw!$P$10,"JDAY",$C4,"SRC_CAT",CMAQ_raw!XT$3,"SRC_REGION",CMAQ_raw!XT$4) -> 3.1462e-16 | XV4: =GETPIVOTDATA("Sum of PMC",CMAQ_raw!$P$10,"JDAY",$C4,"SRC_CAT",CMAQ_raw!XU$3,"SRC_REGION",CMAQ_raw!XU$4) -> 3.1462e-16 | XW4: =GETPIVOTDATA("Sum of PMC",CMAQ_raw!$P$10,"JDAY",$C4,"SRC_CAT",CMAQ_raw!XV$3,"SRC_REGION",CMAQ_raw!XV$4) -> 4.2005e-16 | XX4: =GETPIVOTDATA("Sum of PMC",CMAQ_raw!$P$10,"JDAY",$C4,"SRC_CAT",CMAQ_raw!XW$3,"SRC_REGION",CMAQ_raw!XW$4) -> 3.1462e-16 | XY4: =GETPIVOTDATA("Sum of PMC",CMAQ_raw!$P$10,"JDAY",$C4,"SRC_CAT",CMAQ_raw!XX$3,"SRC_REGION",CMAQ_raw!XX$4) -> 3.1462e-16 | XZ4: =GETPIVOTDATA("Sum of PMC",CMAQ_raw!$P$10,"JDAY",$C4,"SRC_CAT",CMAQ_raw!XY$3,"SRC_REGION",CMAQ_raw!XY$4) -> 1.5145e-15 | YA4: =GETPIVOTDATA("Sum of PMC",CMAQ_raw!$P$10,"JDAY",$C4,"SRC_CAT",CMAQ_raw!XZ$3,"SRC_REGION",CMAQ_raw!XZ$4) -> 3.1462e-16 | YB4: =GETPIVOTDATA("Sum of PMC",CMAQ_raw!$P$10,"JDAY",$C4,"SRC_CAT",CMAQ_raw!YA$3,"SRC_REGION",CMAQ_raw!YA$4) -> 2.3749e-14 | YC4: =GETPIVOTDATA("Sum of PMC",CMAQ_raw!$P$10,"JDAY",$C4,"SRC_CAT",CMAQ_raw!YB$3,"SRC_REGION",CMAQ_raw!YB$4) -> 3.1462e-16 | YD4: =GETPIVOTDATA("Sum of PMC",CMAQ_raw!$P$10,"JDAY",$C4,"SRC_CAT",CMAQ_raw!YC$3,"SRC_REGION",CMAQ_raw!YC$4) -> 3.1462e-16 | YE4: =GETPIVOTDATA("Sum of PMC",CMAQ_raw!$P$10,"JDAY",$C4,"SRC_CAT",CMAQ_raw!YD$3,"SRC_REGION",CMAQ_raw!YD$4) -> 3.1502e-16 | YF4: =GETPIVOTDATA("Sum of PMC",CMAQ_raw!$P$10,"JDAY",$C4,"SRC_CAT",CMAQ_raw!YE$3,"SRC_REGION",CMAQ_raw!YE$4) -> 0.088259 | YG4: =GETPIVOTDATA("Sum of PMC",CMAQ_raw!$P$10,"JDAY",$C4,"SRC_CAT",CMAQ_raw!YF$3,"SRC_REGION",CMAQ_raw!YF$4) -> 0.01737 | YH4: =GETPIVOTDATA("Sum of PMC",CMAQ_raw!$P$10,"JDAY",$C4,"SRC_CAT",CMAQ_raw!YG$3,"SRC_REGION",CMAQ_raw!YG$4) -> 0.76262 | YI4: =GETPIVOTDATA("Sum of PMC",CMAQ_raw!$P$10,"JDAY",$C4,"SRC_CAT",CMAQ_raw!YH$3,"SRC_REGION",CMAQ_raw!YH$4) -> 6.54e-13 | YJ4: =GETPIVOTDATA("Sum of PMC",CMAQ_raw!$P$10,"JDAY",$C4,"SRC_CAT",CMAQ_raw!YI$3,"SRC_REGION",CMAQ_raw!YI$4) -> 0.00035755 | YK4: =GETPIVOTDATA("Sum of PMC",CMAQ_raw!$P$10,"JDAY",$C4,"SRC_CAT",CMAQ_raw!YJ$3,"SRC_REGION",CMAQ_raw!YJ$4) -> 1.2223e-06 | YL4: =GETPIVOTDATA("Sum of PMC",CMAQ_raw!$P$10,"JDAY",$C4,"SRC_CAT",CMAQ_raw!YK$3,"SRC_REGION",CMAQ_raw!YK$4) -> 2.0751e-13 | YM4: =GETPIVOTDATA("Sum of PMC",CMAQ_raw!$P$10,"JDAY",$C4,"SRC_CAT",CMAQ_raw!YL$3,"SRC_REGION",CMAQ_raw!YL$4) -> 2.6654e-05 | YN4: =GETPIVOTDATA("Sum of PMC",CMAQ_raw!$P$10,"JDAY",$C4,"SRC_CAT",CMAQ_raw!YM$3,"SRC_REGION",CMAQ_raw!YM$4) -> 1.7472e-06 | YO4: =GETPIVOTDATA("Sum of PMC",CMAQ_raw!$P$10,"JDAY",$C4,"SRC_CAT",CMAQ_raw!YN$3,"SRC_REGION",CMAQ_raw!YN$4) -> 3.8039e-05 | YP4: =GETPIVOTDATA("Sum of PMC",CMAQ_raw!$P$10,"JDAY",$C4,"SRC_CAT",CMAQ_raw!YO$3,"SRC_REGION",CMAQ_raw!YO$4) -> 5.9243e-16 | YQ4: =GETPIVOTDATA("Sum of PMC",CMAQ_raw!$P$10,"JDAY",$C4,"SRC_CAT",CMAQ_raw!YP$3,"SRC_REGION",CMAQ_raw!YP$4) -> 8.5729e-14 | YR4: =GETPIVOTDATA("Sum of PMC",CMAQ_raw!$P$10,"JDAY",$C4,"SRC_CAT",CMAQ_raw!YQ$3,"SRC_REGION",CMAQ_raw!YQ$4) -> 7.0324e-14 | YS4: =GETPIVOTDATA("Sum of PMC",CMAQ_raw!$P$10,"JDAY",$C4,"SRC_CAT",CMAQ_raw!YR$3,"SRC_REGION",CMAQ_raw!YR$4) -> 0.011927 | YT4: =GETPIVOTDATA("Sum of PMC",CMAQ_raw!$P$10,"JDAY",$C4,"SRC_CAT",CMAQ_raw!YS$3,"SRC_REGION",CMAQ_raw!YS$4) -> 0.12432 | YU4: =GETPIVOTDATA("Sum of PMC",CMAQ_raw!$P$10,"JDAY",$C4,"SRC_CAT",CMAQ_raw!YT$3,"SRC_REGION",CMAQ_raw!YT$4) -> 5.4916e-07 | YV4: =GETPIVOTDATA("Sum of PMC",CMAQ_raw!$P$10,"JDAY",$C4,"SRC_CAT",CMAQ_raw!YU$3,"SRC_REGION",CMAQ_raw!YU$4) -> 1.916 | YW4: =GETPIVOTDATA("Sum of PMC",CMAQ_raw!$P$10,"JDAY",$C4,"SRC_CAT",CMAQ_raw!YV$3,"SRC_REGION",CMAQ_raw!YV$4) -> 4.1995e-07 | YX4: =GETPIVOTDATA("Sum of PMC",CMAQ_raw!$P$10,"JDAY",$C4,"SRC_CAT",CMAQ_raw!YW$3,"SRC_REGION",CMAQ_raw!YW$4) -> 0.0015545 | YY4: =GETPIVOTDATA("Sum of PMC",CMAQ_raw!$P$10,"JDAY",$C4,"SRC_CAT",CMAQ_raw!YX$3,"SRC_REGION",CMAQ_raw!YX$4) -> 3.6711e-05 | YZ4: =GETPIVOTDATA("Sum of PMC",CMAQ_raw!$P$10,"JDAY",$C4,"SRC_CAT",CMAQ_raw!YY$3,"SRC_REGION",CMAQ_raw!YY$4) -> 0.0011035 | ZA4: =GETPIVOTDATA("Sum of PMC",CMAQ_raw!$P$10,"JDAY",$C4,"SRC_CAT",CMAQ_raw!YZ$3,"SRC_REGION",CMAQ_raw!YZ$4) -> 3.1462e-16
